Workbook

Sheet README
A1: Regional Haze Modeling: Glidepaths
A2: Ramboll: April 23, 2020
A3: Peliminary 2028 visibility projections at Class I Areas in 13 WRAP contiguous and neighboring states
A4: Tab Name | B4: Description
A5: Calculator Tabs (Input Cells Highlighted in Yellow)
A6: Glidepath_DV | B6: Deciview glidepath graphic and data for sites of interest for 20% clearest and 20% most impaired days
A7: Glidepath_Bext | B7: PM Species glidepath graphic and data for sites of interest for 20% clearest and 20% most impaired days
A8: Source&Composition | B8: Not used yet
A9: Data/Calculation Tabs (Do Not Change)
A10: Data_Summary | B10: Data Summary for all sites of interest
A11: ClearestDays | B11: Observed Data for 20% clearest days for sites of interest from latest (Dec 2019) IMPROVE data through 2018
A12: MostImpairedDays | B12: Observed Data for 20% most impaired days for sites of interest from latest (Dec 2019) IMPROVE data through 2018
A13: SMAT_RepBase_2028OTBa | B13: 2028 SMAT projection using EPA Method based on CAMx RepBase and 2028OTBa (Representative Baseline fires) simulations projecting 2014-2018 IMPROVE MID and 20% Clearest Days based on newer (Apr 2020) IMPROVE data (through 2018) used in SMAT
A14: SMAT_2014v2_2028OTBb | B14: 2028 SMAT projection using EPA Method based on CAMx 2014v2 and 2028OTBb (actual 2014 fires) simulations projecting 2012-2016 IMPROVE MID and 20% Clearest Days based on newer (Apr 2020) IMPROVE data (through 2018) used in SMAT
A15: Endpoints | B15: 2064 unadjusted endpoint (NCII) from IMPROVE website (Dec 2019)
A17: Methods and assumptions
A18: Background
A19: WRAP is using CAMx modeling with a 2014 36/12-km modeling platform to make 2028 visibilioty projections at 76 IMPROVE sites representing 116 Class I Areas (see map below, note that BOWA is not included). WRAP is conducting CAMx annual simulations using 2014 36/12-km meteorological inputs for four emission scenarios: 2014v2 actual base case; Representative Baseline (RepBase) emissions (2014-2018); and two 2028 On-the-Books scenarios, one with RepBase fires (2028OTBa) and one with 2014 actual fires (2028OTBb). 2028 visibility projections will be made using two sets of current/futre year CAMx modeling results (2014v2/2028OTBb and RepBase/2028OTBa) and several projections methods (EPA, EPAwoF, ModMID and adjusted methods by MPE).
A20: Preliminary Projection This spreadsheet contains preliminary 2028 visibility projections that were calculated following the EPA's modeling guidance (EPA, 2018) and using the Software for Modeled Attainment Test-Community Edition (SMAT-CE; https://www.epa.gov/scram/photochemical-modeling-tools) version 1.6. 2028 visibility projections were made using SMAT with the CAMx 2014v2/2028OTBb modeling results and the EPA Method that bases RRFs on the 2014 IMPROVE MID. We received updated IMPROVE data (through 2018) from EPA on April 10, 2020 that was used with SMAT v1.6 to project the 2012-2016 IMPROVE MID and 20% Clearest Days data to 2028.
A21: Reference EPA. 2018. Modeling Guidance for Demonstrating Attainment of Air Quality Goals for Ozone, PM2.5, and Regional Haze. https://www3.epa.gov/ttn/scram/guidance/guide/O3-PM-RH-Modeling_Guidance-2018.pdf
A25: Specie Definition | B25: Short name
A26: Ammonium sulfate | B26: ammSO4
A27: Ammonium nitrate | B27: ammNO3
A28: Soil | B28: Soil
A29: Organic matter compound | B29: OMC
A30: Elemental Carbon | B30: EC
A31: Seasalt | B31: Seasalt
A32: Crustal Material | B32: CM
A34: IMPROVE Site | B34: Class I Areas
A35: AGTI1 | B35: Agua Tibia Wilderness Area
A36: BADL1 | B36: Badlands Wilderness
A37: BALD1 | B37: Mount Baldy Wilderness Area
A38: BAND1 | B38: Bandelier Wilderness Area
A39: BIBE1 | B39: Big Bend NP
A40: BLIS1 | B40: Desolation Wilderness Area
A41: BLIS1 | B41: Mokelumme Wilderness Area
A42: BOAP1 | B42: Bosque del Apache Wilderness Area
A43: BRCA1 | B43: Bryce Canyon NP
A44: BRID1 | B44: Bridger Wilderness
A45: BRID1 | B45: Fitzpatrick Wilderness
A46: CABI1 | B46: Cabinet Mountains Wilderness Area
A47: CACR1 | B47: Ceny Creek Wilderness
A48: CANY1 | B48: Arches NP | D48: BOWA1 (Boundary Waters in MN) not included in 2028 projections as outside of 12-km 12WUS1 domain
A49: CANY1 | B49: Canyonlands NP | D49: CACR1 (Caney Creek in AR) is included in 2028 projections but not on map
A50: CAPI1 | B50: Capitol Reef NP
A51: CHIR1 | B51: Chiricahua National Monument Wilderness Area
A52: CHIR1 | B52: Chiricahua Wilderness Area
A53: CHIR1 | B53: Galiuro Wilderness Area
A54: CRLA1 | B54: Crater Lake NP
A55: CRLA1 | B55: Diamond Peak Wilderness.
A56: CRLA1 | B56: Gearhart Mountain Wilderness
A57: CRLA1 | B57: Mountain Lakes Wilderness
A58: CRMO1 | B58: Craters of the Moon Wilderness Area
A59: DOME1 | B59: Dome Land Wilderness Area
A60: GAMO1 | B60: Gates of the Mtn Wilderness Area
A61: GICL1 | B61: Gila Wilderness Area
A62: GLAC1 | B62: Glacier NP
A63: GRCA2 | B63: Grand Canyon NP
A64: GRSA1 | B64: Great Sand Dunes Wilderness Area
A65: GUMO1 | B65: Carlsbad Caverns NP
A66: GUMO1 | B66: Guadalupe Mountains NP
A67: HECA1 | B67: Hells Canyon Wilderness Area
A68: HOOV1 | B68: Hoover Wilderness Area
A69: IKBA1 | B69: Mazatzal Wilderness Area
A70: IKBA1 | B70: Pine Mountain Wilderness Area
A71: JARB1 | B71: Jarbidge Wilderness Area
A72: JOSH1 | B72: Joshua Tree Wilderness Area
A73: KAIS1 | B73: John Muir Wilderness Area
A74: KAIS1 | B74: Kaiser Wilderness Area
A75: KAIS1 | B75: Minarets Wilderness Area
A76: KALM1 | B76: Kalmiopsis Wilderness
A77: LABE1 | B77: Lava Beds Wilderness Area
A78: LABE1 | B78: South Warner Wilderness Area
A79: LAVO1 | B79: Caribou Wilderness Area
A80: LAVO1 | B80: Lassen Volcanic NP
A81: LAVO1 | B81: Thousand Lakes Wilderness Area
A82: LOST1 | B82: Lostwood Wilderness
A83: MELA1 | B83: Medicine Lake Wilderness Area
A84: MEVE1 | B84: Mesa Verde NP
A85: MOHO1 | B85: Mount Hood Wilderness
A86: MONT1 | B86: Bob Marshall Wilderness Area
A87: MONT1 | B87: Mission Mountain Wilderness Area
A88: MONT1 | B88: Scapegoat Wilderness Area
A89: MORA1 | B89: Mount Rainer NP
A90: MOZI1 | B90: Mount Zirkel Wilderness Area
A91: MOZI1 | B91: Rawah Wilderness Area
A92: NOAB1 | B92: North Absaroka Wilderness
A93: NOAB1 | B93: Washakie Wilderness
A94: NOCA1 | B94: Glacier Peak Wilderness
A95: NOCA1 | B95: North Cascades NP
A96: OLYM1 | B96: Olympic NP
A97: PASA1 | B97: Pasayten Wilderness
A98: PEFO1 | B98: Petrified Forest NP
A99: PINN1 | B99: Pinnacles Wilderness Area
A100: PINN1 | B100: Ventana Wilderness Area
A101: PORE1 | B101: Point Reyes Wilderness Area
A102: RAFA1 | B102: San Rafael Wilderness Area
A103: REDW1 | B103: Redwood NP
A104: ROMO1 | B104: Rocky Mountain NP
A105: SACR1 | B105: Salt Creek Wilderness Area
A106: SAGA1 | B106: Cucamonga Wilderness Area
A107: SAGA1 | B107: San Gabriel Wilderness Area
A108: SAGO1 | B108: San Gorgonio Wilderness Area
A109: SAGO1 | B109: San Jacinto Wilderness Area
A110: SAGU1 | B110: Saguaro Wilderness Area
A111: SAPE1 | B111: San Pedro Parks Wilderness Area
A112: SAWT1 | B112: Sawtooth Wilderness Area
A113: SEQU1 | B113: Kings Canyon NP
A114: SEQU1 | B114: Sequoia NP
A115: SIAN1 | B115: Sierra Ancha Wilderness Area
A116: SNPA1 | B116: Alpine Lakes Wilderness.
A117: STAR1 | B117: Eagle Cap Wilderness
A118: STAR1 | B118: Strawberry Mountain Wilderness
A119: SULA1 | B119: Anaconda-Pintlar Wilderness Area
A120: SULA1 | B120: Selway-Bitterroot Wilderness Area
A121: SYCA_RHTS | B121: Sycamore Canyon Wilderness Area
A122: THRO1 | B122: Theodore Roosevelt NP
A123: THSI1 | B123: Mount Jefferson Wilderness
A124: THSI1 | B124: Mount Washington Wilderness
A125: THSI1 | B125: Three Sisters Wilderness
A126: TONT1 | B126: Superstition Wilderness Area
A127: TRIN1 | B127: Marble Mountain Wilderness Area
A128: TRIN1 | B128: Yolla-Bolly-Middle-Eel Wilderness Area
A129: ULBE1 | B129: U. L. Bend Wilderness Area
A130: VOYA2 | B130: Voyageurs NP
A131: WEMI1 | B131: Black Canyon of the Gunnison Wilderness Area
A132: WEMI1 | B132: La Garita Wilderness Area
A133: WEMI1 | B133: Weminuche Wilderness Area
A134: WHIT1 | B134: White Mountain Wilderness Area
A135: WHPA1 | B135: Goat Rocks Wilderness
A136: WHPA1 | B136: Mount Adams Wilderness
A137: WHPE1 | B137: Pecos Wilderness Area
A138: WHPE1 | B138: Wheeler Peak Wilderness Area
A139: WHRI1 | B139: Eagles Nest Wilderness Area
A140: WHRI1 | B140: Flat Tops Wilderness Area
A141: WHRI1 | B141: Maroon Bells-Snowmass Wilderness Area
A142: WHRI1 | B142: West Elk Wilderness Area
A143: WICA1 | B143: Wind Cave NP
A144: WIMO1 | B144: Wichita Mountains Wilderness
A145: YELL2 | B145: Grand Teton NP
A146: YELL2 | B146: Red Rock Lakes Wilderness Area.
A147: YELL2 | B147: Teton Wilderness
A148: YELL2 | B148: Yellowstone NP
A149: YOSE1 | B149: Emigrant Wilderness Area
A150: YOSE1 | B150: Yosemite NP
A151: ZICA1 | B151: Zion NP

Sheet Glidepath_DV
A1: 20% Clearest/Most Impaired Days
A2: Data Source: | B2: Clearest Days
B3: Most Impaired Days
A4: Methodology: | B4: Second IMPROVE Algorithm, Non Adj values do not include International Contribution
A5: Units: | B5: Deciview (dv)
A7: Inputs
A8: Show 20 % Clearest Days | B8: Yes | C8: Yes/No | D8: =B8&B9 -> YesYes
A9: Show 20 % Most Impaired Days | B9: Yes | C9: Yes/No
A10: Select Site #1 | B10: BADL1 | C10: =IF(B10="BRIS1","Please Read: 2000-2004 Baseline Values are based on SMAT Data, EPA data unavailable until 2009!","") -> 
B11: =B10&": "&VLOOKUP(B10,Endpoints!$A$3:$AI$179,26,FALSE) -> BADL1: Badlands NP | C11: =B11&CHAR(10)&"[2014v2/2028OTBb; CY IMPROVE = 2012-2016; Projection Method = EPA]"&CHAR(10)&"[RepBase/2028OTBa; CY IMPROVE =2014-2018; Projection Method = EPA]" -> BADL1: Badlands NP [2014v2/2028OTBb; CY IMPROVE = 2012-2016; Projection Method = EPA] [RepBase/2028OTBa; CY IMPROVE =2014-2018; Projection Method = EPA] | J11: Data Range Formula | K11: =INDEX($J$13:$J$77,MATCH(#REF!,$I$13:$I$77,0)):INDEX($J$13:$J$77,MATCH(2064,$I$13:$I$77,0)) -> 
A12: Year | B12: 20% Clearest Days | C12: 20% Most Impaired - Non Adj | D12: 20% Most Impaired - Adj | E12: Clearest - 5-Year Obs Average | F12: MID - 5-Year Obs Average | G12: MID - 2000-2018 Obs | H12: Clearest - 2000-2018 Obs | I12: =A12 -> Year | J12: =IF($B$8="No","",B12) -> 20% Clearest Days | K12: =IF($B$9="No","",C12) -> 20% Most Impaired - Non Adj | L12: =IF($B$9="No","",D12) -> 20% Most Impaired - Adj | M12: =IF($B$8="No","",E12) -> Clearest - 5-Year Obs Average | N12: =IF($B$9="No","",F12) -> MID - 5-Year Obs Average | O12: =IF($B$9="No",NA(),G12) -> MID - 2000-2018 Obs | P12: =IF($B$8="No",NA(),H12) -> Clearest - 2000-2018 Obs | Q12: =IF($B$9="No","","2028 MID Projection - 2014v2-2028OTBb") -> 2028 MID Projection - 2014v2-2028OTBb | R12: =IF($B$8="No","","2028 Clearest Day Projection - 2014v2-2028OTBb") -> 2028 Clearest Day Projection - 2014v2-2028OTBb | S12: =IF($B$9="No","","2028 MID Projection - RepBase-2028OTBa") -> 2028 MID Projection - RepBase-2028OTBa | T12: =IF($B$8="No","","2028 Clearest Day Projection - RepBase-2028OTBa") -> 2028 Clearest Day Projection - RepBase-2028OTBa
A13: 2000 | B13: =Data_Summary!$J$8 -> 6.888542015 | C13: =Data_Summary!$J$9 -> 14.98036061 | D13: =Data_Summary!$J$9 -> 14.98036061 | E13: =_xlfn.IFNA(VLOOKUP($A13,Data_Summary!$A$20:$I$23,9,FALSE),IF(ISNUMBER(E12),E12,"")) -> 6.888542015 | F13: =_xlfn.IFNA(VLOOKUP($A13,Data_Summary!$A$25:$I$28,9,FALSE),IF(ISNUMBER(F12),F12,"")) -> 14.98036061 | G13: =_xlfn.IFNA(VLOOKUP($B$10&I13,MostImpairedDays!$A$2:$AN$2753,37,FALSE),NA()) -> 14.34045485 | H13: =_xlfn.IFNA(VLOOKUP($B$10&I13,ClearestDays!$A$1:$AF$2811,21,FALSE),NA()) -> 7.378665471 | I13: =A13 -> 2000 | J13: =IF($B$8="No","",B13) -> 6.888542015 | K13: =IF($B$9="No",NA(),C13) -> 14.98036061 | L13: =IF($B$9="No",NA(),D13) -> 14.98036061 | M13: =IF($B$8="No",NA(),E13) -> 6.888542015 | N13: =IF($B$9="No",NA(),F13) -> 14.98036061 | O13: =IF($B$9="No",NA(),G13) -> 14.34045485 | P13: =IF($B$8="No",NA(),H13) -> 7.378665471
A14: 2001 | B14: =Data_Summary!$J$8 -> 6.888542015 | C14: =Data_Summary!$J$9 -> 14.98036061 | D14: =Data_Summary!$J$9 -> 14.98036061 | E14: =_xlfn.IFNA(VLOOKUP($A14,Data_Summary!$A$20:$I$23,9,FALSE),IF(ISNUMBER(E13),E13,"")) -> 6.888542015 | F14: =_xlfn.IFNA(VLOOKUP($A14,Data_Summary!$A$25:$I$28,9,FALSE),IF(ISNUMBER(F13),F13,"")) -> 14.98036061 | G14: =_xlfn.IFNA(VLOOKUP($B$10&I14,MostImpairedDays!$A$2:$AN$2753,37,FALSE),NA()) -> 16.05383224 | H14: =_xlfn.IFNA(VLOOKUP($B$10&I14,ClearestDays!$A$1:$AF$2811,21,FALSE),NA()) -> 7.454412819 | I14: 2001 | J14: =IF($B$8="No","",B14) -> 6.888542015 | K14: =IF($B$9="No",NA(),C14) -> 14.98036061 | L14: =IF($B$9="No",NA(),D14) -> 14.98036061 | M14: 6.888542015 | N14: =IF($B$9="No",NA(),F14) -> 14.98036061 | O14: 16.05383224 | P14: 7.454412819
A15: 2002 | B15: =Data_Summary!$J$8 -> 6.888542015 | C15: =Data_Summary!$J$9 -> 14.98036061 | D15: =Data_Summary!$J$9 -> 14.98036061 | E15: =_xlfn.IFNA(VLOOKUP($A15,Data_Summary!$A$20:$I$23,9,FALSE),IF(ISNUMBER(E14),E14,"")) -> 6.888542015 | F15: =_xlfn.IFNA(VLOOKUP($A15,Data_Summary!$A$25:$I$28,9,FALSE),IF(ISNUMBER(F14),F14,"")) -> 14.98036061 | G15: =_xlfn.IFNA(VLOOKUP($B$10&I15,MostImpairedDays!$A$2:$AN$2753,37,FALSE),NA()) -> 14.44224366 | H15: =_xlfn.IFNA(VLOOKUP($B$10&I15,ClearestDays!$A$1:$AF$2811,21,FALSE),NA()) -> 6.693752758 | I15: 2002 | J15: 6.888542015 | K15: 14.98036061 | L15: 14.98036061 | M15: 6.888542015 | N15: 14.98036061 | O15: 14.44224366 | P15: 6.693752758
A16: 2003 | B16: =Data_Summary!$J$8 -> 6.888542015 | C16: =Data_Summary!$J$9 -> 14.98036061 | D16: =Data_Summary!$J$9 -> 14.98036061 | E16: =_xlfn.IFNA(VLOOKUP($A16,Data_Summary!$A$20:$I$23,9,FALSE),IF(ISNUMBER(E15),E15,"")) -> 6.888542015 | F16: =_xlfn.IFNA(VLOOKUP($A16,Data_Summary!$A$25:$I$28,9,FALSE),IF(ISNUMBER(F15),F15,"")) -> 14.98036061 | G16: =_xlfn.IFNA(VLOOKUP($B$10&I16,MostImpairedDays!$A$2:$AN$2753,37,FALSE),NA()) -> 15.21438912 | H16: =_xlfn.IFNA(VLOOKUP($B$10&I16,ClearestDays!$A$1:$AF$2811,21,FALSE),NA()) -> 6.295305946 | I16: 2003 | J16: 6.888542015 | K16: 14.98036061 | L16: 14.98036061 | M16: 6.888542015 | N16: 14.98036061 | O16: 15.21438912 | P16: 6.295305946
A17: 2004 | B17: =Data_Summary!$J$8 -> 6.888542015 | C17: =Data_Summary!$J$9 -> 14.98036061 | D17: =Data_Summary!$J$9 -> 14.98036061 | E17: =_xlfn.IFNA(VLOOKUP($A17,Data_Summary!$A$20:$I$23,9,FALSE),IF(ISNUMBER(E16),E16,"")) -> 6.888542015 | F17: =_xlfn.IFNA(VLOOKUP($A17,Data_Summary!$A$25:$I$28,9,FALSE),IF(ISNUMBER(F16),F16,"")) -> 14.98036061 | G17: =_xlfn.IFNA(VLOOKUP($B$10&I17,MostImpairedDays!$A$2:$AN$2753,37,FALSE),NA()) -> 14.85088319 | H17: =_xlfn.IFNA(VLOOKUP($B$10&I17,ClearestDays!$A$1:$AF$2811,21,FALSE),NA()) -> 6.620573081 | I17: 2004 | J17: 6.888542015 | K17: 14.98036061 | L17: 14.98036061 | M17: 6.888542015 | N17: 14.98036061 | O17: 14.85088319 | P17: 6.620573081
A18: 2005 | B18: =B17 -> 6.888542015 | C18: =($C$77-$C$17)/($A$77-$A$17)+C17 -> 14.83220727 | D18: =($D$77-$D$17)/($A$77-$A$17)+D17 ->  | E18: =NA() ->  | F18: =NA() ->  | G18: =_xlfn.IFNA(VLOOKUP($B$10&I18,MostImpairedDays!$A$2:$AN$2753,37,FALSE),NA()) -> 15.70643335 | H18: =_xlfn.IFNA(VLOOKUP($B$10&I18,ClearestDays!$A$1:$AF$2811,21,FALSE),NA()) -> 7.049260638 | I18: 2005 | J18: 6.888542015 | K18: 14.83220727 | O18: 15.70643335 | P18: 7.049260638
A19: 2006 | B19: 6.888542015 | C19: =($C$77-$C$17)/($A$77-$A$17)+C18 -> 14.68405392 | D19: =($D$77-$D$17)/($A$77-$A$17)+D18 ->  | E19: =NA() ->  | F19: =NA() ->  | G19: =_xlfn.IFNA(VLOOKUP($B$10&I19,MostImpairedDays!$A$2:$AN$2753,37,FALSE),NA()) -> 14.84114783 | H19: =_xlfn.IFNA(VLOOKUP($B$10&I19,ClearestDays!$A$1:$AF$2811,21,FALSE),NA()) -> 6.204569608 | I19: 2006 | J19: 6.888542015 | K19: 14.68405392 | O19: 14.84114783 | P19: 6.204569608
A20: 2007 | B20: 6.888542015 | C20: 14.53590057 | E20: =NA() ->  | F20: =NA() ->  | G20: =_xlfn.IFNA(VLOOKUP($B$10&I20,MostImpairedDays!$A$2:$AN$2753,37,FALSE),NA()) -> 15.14437127 | H20: =_xlfn.IFNA(VLOOKUP($B$10&I20,ClearestDays!$A$1:$AF$2811,21,FALSE),NA()) -> 7.067549105 | I20: 2007 | J20: 6.888542015 | K20: 14.53590057 | O20: 15.14437127 | P20: 7.067549105
A21: 2008 | B21: 6.888542015 | C21: 14.38774722 | E21: =_xlfn.IFNA(VLOOKUP($A21,Data_Summary!$A$20:$I$23,9,FALSE),IF(ISNUMBER(E20),E20,"")) -> 6.220980896 | F21: =_xlfn.IFNA(VLOOKUP($A21,Data_Summary!$A$25:$I$28,9,FALSE),IF(ISNUMBER(F20),F20,"")) -> 14.63505556 | G21: =_xlfn.IFNA(VLOOKUP($B$10&I21,MostImpairedDays!$A$2:$AN$2753,37,FALSE),NA()) -> 14.90288337 | H21: =_xlfn.IFNA(VLOOKUP($B$10&I21,ClearestDays!$A$1:$AF$2811,21,FALSE),NA()) -> 7.618619259 | I21: 2008 | J21: 6.888542015 | K21: 14.38774722 | M21: 6.220980896 | N21: 14.63505556 | O21: 14.90288337 | P21: 7.618619259
A22: 2009 | B22: 6.888542015 | C22: 14.23959388 | E22: =_xlfn.IFNA(VLOOKUP($A22,Data_Summary!$A$20:$I$23,9,FALSE),IF(ISNUMBER(E21),E21,"")) -> 6.220980896 | F22: =_xlfn.IFNA(VLOOKUP($A22,Data_Summary!$A$25:$I$28,9,FALSE),IF(ISNUMBER(F21),F21,"")) -> 14.63505556 | G22: =_xlfn.IFNA(VLOOKUP($B$10&I22,MostImpairedDays!$A$2:$AN$2753,37,FALSE),NA()) -> 14.44739048 | H22: =_xlfn.IFNA(VLOOKUP($B$10&I22,ClearestDays!$A$1:$AF$2811,21,FALSE),NA()) -> 6.073006223 | I22: 2009 | J22: 6.888542015 | K22: 14.23959388 | M22: 6.220980896 | N22: 14.63505556 | O22: 14.44739048 | P22: 6.073006223
A23: 2010 | B23: 6.888542015 | C23: 14.09144053 | E23: =_xlfn.IFNA(VLOOKUP($A23,Data_Summary!$A$20:$I$23,9,FALSE),IF(ISNUMBER(E22),E22,"")) -> 6.220980896 | F23: =_xlfn.IFNA(VLOOKUP($A23,Data_Summary!$A$25:$I$28,9,FALSE),IF(ISNUMBER(F22),F22,"")) -> 14.63505556 | G23: =_xlfn.IFNA(VLOOKUP($B$10&I23,MostImpairedDays!$A$2:$AN$2753,37,FALSE),NA()) -> 15.88898973 | H23: =_xlfn.IFNA(VLOOKUP($B$10&I23,ClearestDays!$A$1:$AF$2811,21,FALSE),NA()) -> 6.415857009 | I23: 2010 | J23: 6.888542015 | K23: 14.09144053 | M23: 6.220980896 | N23: 14.63505556 | O23: 15.88898973 | P23: 6.415857009
A24: 2011 | B24: 6.888542015 | C24: 13.94328718 | E24: =_xlfn.IFNA(VLOOKUP($A24,Data_Summary!$A$20:$I$23,9,FALSE),IF(ISNUMBER(E23),E23,"")) -> 6.220980896 | F24: =_xlfn.IFNA(VLOOKUP($A24,Data_Summary!$A$25:$I$28,9,FALSE),IF(ISNUMBER(F23),F23,"")) -> 14.63505556 | G24: =_xlfn.IFNA(VLOOKUP($B$10&I24,MostImpairedDays!$A$2:$AN$2753,37,FALSE),NA()) -> 14.38713392 | H24: =_xlfn.IFNA(VLOOKUP($B$10&I24,ClearestDays!$A$1:$AF$2811,21,FALSE),NA()) -> 5.561390807 | I24: 2011 | J24: 6.888542015 | K24: 13.94328718 | M24: 6.220980896 | N24: 14.63505556 | O24: 14.38713392 | P24: 5.561390807
A25: 2012 | B25: 6.888542015 | C25: 13.79513383 | E25: =_xlfn.IFNA(VLOOKUP($A25,Data_Summary!$A$20:$I$23,9,FALSE),IF(ISNUMBER(E24),E24,"")) -> 6.220980896 | F25: =_xlfn.IFNA(VLOOKUP($A25,Data_Summary!$A$25:$I$28,9,FALSE),IF(ISNUMBER(F24),F24,"")) -> 14.63505556 | G25: =_xlfn.IFNA(VLOOKUP($B$10&I25,MostImpairedDays!$A$2:$AN$2753,37,FALSE),NA()) -> 13.54888033 | H25: =_xlfn.IFNA(VLOOKUP($B$10&I25,ClearestDays!$A$1:$AF$2811,21,FALSE),NA()) -> 5.436031182 | I25: 2012 | J25: 6.888542015 | K25: 13.79513383 | M25: 6.220980896 | N25: 14.63505556 | O25: 13.54888033 | P25: 5.436031182
A26: 2013 | B26: 6.888542015 | C26: 13.64698048 | E26: =NA() ->  | F26: =NA() ->  | G26: =_xlfn.IFNA(VLOOKUP($B$10&I26,MostImpairedDays!$A$2:$AN$2753,37,FALSE),NA()) -> 13.37344786 | H26: =_xlfn.IFNA(VLOOKUP($B$10&I26,ClearestDays!$A$1:$AF$2811,21,FALSE),NA()) -> 5.427430523 | I26: 2013 | J26: 6.888542015 | K26: 13.64698048 | O26: 13.37344786 | P26: 5.427430523
A27: 2014 | B27: 6.888542015 | C27: 13.49882714 | E27: =_xlfn.IFNA(VLOOKUP($A27,Data_Summary!$A$20:$I$23,9,FALSE),IF(ISNUMBER(E26),E26,"")) -> 5.39199694 | F27: =_xlfn.IFNA(VLOOKUP($A27,Data_Summary!$A$25:$I$28,9,FALSE),IF(ISNUMBER(F26),F26,"")) -> 12.33036223 | G27: =_xlfn.IFNA(VLOOKUP($B$10&I27,MostImpairedDays!$A$2:$AN$2753,37,FALSE),NA()) -> 12.24126175 | H27: =_xlfn.IFNA(VLOOKUP($B$10&I27,ClearestDays!$A$1:$AF$2811,21,FALSE),NA()) -> 5.624652573 | I27: 2014 | J27: 6.888542015 | K27: 13.49882714 | M27: 5.39199694 | N27: 12.33036223 | O27: 12.24126175 | P27: 5.624652573
A28: 2015 | B28: 6.888542015 | C28: 13.35067379 | D28: =($D$77-$D$17)/($A$77-$A$17)+D27 ->  | E28: =_xlfn.IFNA(VLOOKUP($A28,Data_Summary!$A$20:$I$23,9,FALSE),IF(ISNUMBER(E27),E27,"")) -> 5.39199694 | F28: =_xlfn.IFNA(VLOOKUP($A28,Data_Summary!$A$25:$I$28,9,FALSE),IF(ISNUMBER(F27),F27,"")) -> 12.33036223 | G28: =_xlfn.IFNA(VLOOKUP($B$10&I28,MostImpairedDays!$A$2:$AN$2753,37,FALSE),NA()) -> 11.52572012 | H28: =_xlfn.IFNA(VLOOKUP($B$10&I28,ClearestDays!$A$1:$AF$2811,21,FALSE),NA()) -> 5.692538437 | I28: 2015 | J28: 6.888542015 | K28: 13.35067379 | M28: 5.39199694 | N28: 12.33036223 | O28: 11.52572012 | P28: 5.692538437
A29: 2016 | B29: 6.888542015 | C29: 13.20252044 | E29: =_xlfn.IFNA(VLOOKUP($A29,Data_Summary!$A$20:$I$23,9,FALSE),IF(ISNUMBER(E28),E28,"")) -> 5.39199694 | F29: =_xlfn.IFNA(VLOOKUP($A29,Data_Summary!$A$25:$I$28,9,FALSE),IF(ISNUMBER(F28),F28,"")) -> 12.33036223 | G29: =_xlfn.IFNA(VLOOKUP($B$10&I29,MostImpairedDays!$A$2:$AN$2753,37,FALSE),NA()) -> 12.09330046 | H29: =_xlfn.IFNA(VLOOKUP($B$10&I29,ClearestDays!$A$1:$AF$2811,21,FALSE),NA()) -> 5.187005131 | I29: 2016 | J29: 6.888542015 | K29: 13.20252044 | M29: 5.39199694 | N29: 12.33036223 | O29: 12.09330046 | P29: 5.187005131
A30: 2017 | B30: 6.888542015 | C30: 13.05436709 | E30: =_xlfn.IFNA(VLOOKUP($A30,Data_Summary!$A$20:$I$23,9,FALSE),IF(ISNUMBER(E29),E29,"")) -> 5.39199694 | F30: =_xlfn.IFNA(VLOOKUP($A30,Data_Summary!$A$25:$I$28,9,FALSE),IF(ISNUMBER(F29),F29,"")) -> 12.33036223 | G30: =_xlfn.IFNA(VLOOKUP($B$10&I30,MostImpairedDays!$A$2:$AN$2753,37,FALSE),NA()) -> 12.82943853 | H30: =_xlfn.IFNA(VLOOKUP($B$10&I30,ClearestDays!$A$1:$AF$2811,21,FALSE),NA()) -> 5.185377964 | I30: 2017 | J30: 6.888542015 | K30: 13.05436709 | M30: 5.39199694 | N30: 12.33036223 | O30: 12.82943853 | P30: 5.185377964
A31: 2018 | B31: 6.888542015 | C31: 12.90621375 | E31: =_xlfn.IFNA(VLOOKUP($A31,Data_Summary!$A$20:$I$23,9,FALSE),IF(ISNUMBER(E30),E30,"")) -> 5.39199694 | F31: =_xlfn.IFNA(VLOOKUP($A31,Data_Summary!$A$25:$I$28,9,FALSE),IF(ISNUMBER(F30),F30,"")) -> 12.33036223 | G31: =_xlfn.IFNA(VLOOKUP($B$10&I31,MostImpairedDays!$A$2:$AN$2753,37,FALSE),NA()) -> 12.96209028 | H31: =_xlfn.IFNA(VLOOKUP($B$10&I31,ClearestDays!$A$1:$AF$2811,21,FALSE),NA()) -> 5.270410594 | I31: 2018 | J31: 6.888542015 | K31: 12.90621375 | M31: 5.39199694 | N31: 12.33036223 | O31: 12.96209028 | P31: 5.270410594
A32: 2019 | B32: 6.888542015 | C32: 12.7580604 | I32: 2019 | J32: 6.888542015 | K32: 12.7580604
A33: 2020 | B33: 6.888542015 | C33: 12.60990705 | I33: 2020 | J33: 6.888542015 | K33: 12.60990705
A34: 2021 | B34: 6.888542015 | C34: 12.4617537 | I34: 2021 | J34: 6.888542015 | K34: 12.4617537
A35: 2022 | B35: 6.888542015 | C35: 12.31360036 | I35: 2022 | J35: 6.888542015 | K35: 12.31360036
A36: 2023 | B36: 6.888542015 | C36: 12.16544701 | I36: 2023 | J36: 6.888542015 | K36: 12.16544701
A37: 2024 | B37: 6.888542015 | C37: 12.01729366 | I37: 2024 | J37: 6.888542015 | K37: 12.01729366
A38: 2025 | B38: 6.888542015 | C38: 11.86914031 | I38: 2025 | J38: 6.888542015 | K38: 11.86914031
A39: 2026 | B39: 6.888542015 | C39: 11.72098697 | I39: 2026 | J39: 6.888542015 | K39: 11.72098697
A40: 2027 | B40: 6.888542015 | C40: 11.57283362 | I40: 2027 | J40: 6.888542015 | K40: 11.57283362
A41: 2028 | B41: 6.888542015 | C41: 11.42468027 | I41: 2028 | J41: 6.888542015 | K41: 11.42468027 | Q41: =IF($B$9="No",NA(),Data_Summary!J49) -> 12.3950042 | R41: =IF($B$8="No",NA(),Data_Summary!J54) -> 5.2582653 | S41: =IF($B$9="No",NA(),Data_Summary!J50) -> 11.0814935 | T41: =IF($B$8="No",NA(),Data_Summary!J55) -> 5.0176041
A42: 2029 | B42: 6.888542015 | C42: 11.27652692
A43: 2030 | B43: 6.888542015 | C43: 11.12837358
A44: 2031 | B44: 6.888542015 | C44: 10.98022023
A45: 2032 | B45: 6.888542015 | C45: 10.83206688
A46: 2033 | B46: 6.888542015 | C46: 10.68391353
A47: 2034 | B47: 6.888542015 | C47: 10.53576019
A48: 2035 | B48: 6.888542015 | C48: 10.38760684
A49: 2036 | B49: 6.888542015 | C49: 10.23945349
A50: 2037 | B50: 6.888542015 | C50: 10.09130014
A51: 2038 | B51: 6.888542015 | C51: 9.943146796
A52: 2039 | B52: 6.888542015 | C52: 9.794993449
A53: 2040 | B53: 6.888542015 | C53: 9.646840101
A54: 2041 | B54: 6.888542015 | C54: 9.498686754
A55: 2042 | B55: 6.888542015 | C55: 9.350533406
A56: 2043 | B56: 6.888542015 | C56: 9.202380058
A57: 2044 | B57: 6.888542015 | C57: 9.054226711
A58: 2045 | B58: 6.888542015 | C58: 8.906073363
A59: 2046 | B59: 6.888542015 | C59: 8.757920016
A60: 2047 | B60: 6.888542015 | C60: 8.609766668
A61: 2048 | B61: 6.888542015 | C61: 8.461613321
A62: 2049 | B62: 6.888542015 | C62: 8.313459973
A63: 2050 | B63: 6.888542015 | C63: 8.165306626
A64: 2051 | B64: 6.888542015 | C64: 8.017153278
A65: 2052 | B65: 6.888542015 | C65: 7.868999931
A66: 2053 | B66: 6.888542015 | C66: 7.720846583
A67: 2054 | B67: 6.888542015 | C67: 7.572693235
A68: 2055 | B68: 6.888542015 | C68: 7.424539888
A69: 2056 | B69: 6.888542015 | C69: 7.27638654
A70: 2057 | B70: 6.888542015 | C70: 7.128233193
A71: 2058 | B71: 6.888542015 | C71: 6.980079845
A72: 2059 | B72: 6.888542015 | C72: 6.831926498
A73: 2060 | B73: 6.888542015 | C73: 6.68377315
A74: 2061 | B74: 6.888542015 | C74: 6.535619803
A75: 2062 | B75: 6.888542015 | C75: 6.387466455
A76: 2063 | B76: 6.888542015 | C76: 6.239313108
A77: 2064 | B77: 6.888542015 | C77: =Data_Summary!$I$36 -> 6.09115976 | D77: =C77+10*LN((Data_Summary!$J$36+Data_Summary!$I$45)/Data_Summary!$J$36) ->  | I77: =A77 -> 2064 | J77: =IF($B$8="No","",B77) -> 6.888542015 | K77: =IF($B$9="No",NA(),C77) -> 6.09115976 | L77: =IF($B$9="No",NA(),D77) -> 

Sheet Glidepath_Bext
A1: 20% Clearest/Most Impaired Days
A2: Data Source: | B2: Clearest Days
B3: Most Impaired Days
A4: Methodology: | B4: Second IMPROVE Algorithm, Non Adj values do not include International Contribution; Tbext is converted from DV; Assume linear glidepaths for individual specie extinction
A5: Units: | B5: Extinction (Mm-1)
A7: Inputs
A8: Show 20 % Clearest Days | B8: Yes | C8: Yes/No
A9: Show 20 % Most Impaired Days | B9: Yes | C9: Yes/No | D9: =B8&B9 -> YesYes
A10: Select Site #1 | B10: =Glidepath_DV!$B$10 -> BADL1 | C10: Select Site in Glidepath_DV tab
A11: Pollutant | B11: TBext | C11: TBext is converted from DV; Assume linear glidepaths for PM species
B12: =B10&": "&B11 -> BADL1: TBext | C12: =$B$10&": "&VLOOKUP(B10,Endpoints!$A$3:$AI$179,COLUMN(Z1),FALSE) -> BADL1: Badlands NP | E12: =B12&CHAR(10)&"[2014v2/2028OTBb; CY IMPROVE = 2012-2016; Projection Method = EPA]"&CHAR(10)&"[RepBase/2028OTBa; CY IMPROVE =2014-2018; Projection Method = EPA]" -> BADL1: TBext [2014v2/2028OTBb; CY IMPROVE = 2012-2016; Projection Method = EPA] [RepBase/2028OTBa; CY IMPROVE =2014-2018; Projection Method = EPA]
A13: Year | B13: 20% Clearest Days | C13: 20% Most Impaired - Non Adj | D13: 20 % Most Impaired - Adj | E13: Clearest - 5-Year Obs Average | F13: Most Impaired - 5-Year Obs Average | G13: Clearest - 2000-2018 Obs | H13: MID - 2000-2018 Obs | I13: Year | J13: =IF($B$8="No",NA(),B13) -> 20% Clearest Days | K13: =IF($B$9="No",NA(),C13) -> 20% Most Impaired - Non Adj | L13: =IF($B$9="No",NA(),D13) -> 20 % Most Impaired - Adj | M13: =IF($B$8="No",NA(),E13) -> Clearest - 5-Year Obs Average | N13: =IF($B$9="No",NA(),F13) -> Most Impaired - 5-Year Obs Average | O13: Modified X-Axis | P13: =IF($B$9="No",NA(),"2028 MID Projection - 2014v2-2028OTBb") -> 2028 MID Projection - 2014v2-2028OTBb | Q13: =IF($B$8="No",NA(),"2028 Clearest Day Projection - 2014v2-2028OTBb") -> 2028 Clearest Day Projection - 2014v2-2028OTBb | R13: =IF($B$9="No",NA(),"2028 MID Projection - RepBase-2028OTBa") -> 2028 MID Projection - RepBase-2028OTBa | S13: =IF($B$8="No",NA(),"2028 Clearest Day Projection - RepBase-2028OTBa") -> 2028 Clearest Day Projection - RepBase-2028OTBa | T13: =IF($B$8="No",NA(),G13) -> Clearest - 2000-2018 Obs | U13: =IF($B$9="No",NA(),H13) -> MID - 2000-2018 Obs
A14: 2000 | B14: =IF($B$11="Tbext",10*EXP(Glidepath_DV!B13/10),INDEX(Data_Summary!$C$8:$K$8,1,MATCH(Glidepath_Bext!$B$11,Data_Summary!$C$7:$K$7,0))) -> 19.91432445 | C14: =IF($B$11="Tbext",10*EXP(Glidepath_DV!C13/10),INDEX(Data_Summary!$C$9:$K$9,1,MATCH(Glidepath_Bext!$B$11,Data_Summary!$C$7:$K$7,0))) -> 44.72895945 | D14: =IF($B$11="Tbext",10*EXP(Glidepath_DV!D13/10),INDEX(Data_Summary!$C$9:$K$9,1,MATCH(Glidepath_Bext!$B$11,Data_Summary!$C$7:$K$7,0))) -> 44.72895945 | E14: =_xlfn.IFNA(VLOOKUP($A14,Data_Summary!$A$20:$J$23,MATCH($B$11,Data_Summary!$A$18:$J$18,0),FALSE),IF(ISNUMBER(E13),E13,"")) -> 19.91432445 | F14: =_xlfn.IFNA(VLOOKUP($A14,Data_Summary!$A$25:$J$28,MATCH($B$11,Data_Summary!$A$18:$J$18,0),FALSE),IF(ISNUMBER(F13),F13,"")) -> 44.72895945 | G14: =_xlfn.IFNA(VLOOKUP($B$10&I14,ClearestDays!$A$2:$AF$2811,MATCH($B$11,ClearestDays!$A$1:$AF$1,0),FALSE),NA()) -> 21.10014475 | H14: =_xlfn.IFNA(VLOOKUP($B$10&I14,MostImpairedDays!$A$2:$AN$2753,MATCH($B$11,MostImpairedDays!$A$1:$AN$1,0),FALSE),NA()) -> 43.2745904 | I14: =A14 -> 2000 | J14: =IF($B$8="No",NA(),B14) -> 19.91432445 | K14: =IF($B$9="No",NA(),C14) -> 44.72895945 | L14: =IF($B$9="No",NA(),D14) -> 44.72895945 | M14: =IF($B$8="No",NA(),E14) -> 19.91432445 | N14: =IF($B$9="No",NA(),F14) -> 44.72895945 | T14: =IF($B$8="No",NA(),G14) -> 21.10014475 | U14: =IF($B$9="No",NA(),H14) -> 43.2745904
A15: 2001 | B15: =IF($B$11="Tbext",10*EXP(Glidepath_DV!B14/10),INDEX(Data_Summary!$C$8:$K$8,1,MATCH(Glidepath_Bext!$B$11,Data_Summary!$C$7:$K$7,0))) -> 19.91432445 | C15: =IF($B$11="Tbext",10*EXP(Glidepath_DV!C14/10),INDEX(Data_Summary!$C$9:$K$9,1,MATCH(Glidepath_Bext!$B$11,Data_Summary!$C$7:$K$7,0))) -> 44.72895945 | D15: =IF($B$11="Tbext",10*EXP(Glidepath_DV!D14/10),INDEX(Data_Summary!$C$9:$K$9,1,MATCH(Glidepath_Bext!$B$11,Data_Summary!$C$7:$K$7,0))) -> 44.72895945 | E15: =_xlfn.IFNA(VLOOKUP($A15,Data_Summary!$A$20:$J$23,MATCH($B$11,Data_Summary!$A$18:$J$18,0),FALSE),IF(ISNUMBER(E14),E14,"")) -> 19.91432445 | F15: =_xlfn.IFNA(VLOOKUP($A15,Data_Summary!$A$25:$J$28,MATCH($B$11,Data_Summary!$A$18:$J$18,0),FALSE),IF(ISNUMBER(F14),F14,"")) -> 44.72895945 | G15: =_xlfn.IFNA(VLOOKUP($B$10&I15,ClearestDays!$A$2:$AF$2811,MATCH($B$11,ClearestDays!$A$1:$AF$1,0),FALSE),NA()) -> 21.15769813 | H15: =_xlfn.IFNA(VLOOKUP($B$10&I15,MostImpairedDays!$A$2:$AN$2753,MATCH($B$11,MostImpairedDays!$A$1:$AN$1,0),FALSE),NA()) -> 51.61200675 | I15: 2001 | J15: =IF($B$8="No",NA(),B15) -> 19.91432445 | K15: =IF($B$9="No",NA(),C15) -> 44.72895945 | L15: =IF($B$9="No",NA(),D15) -> 44.72895945 | M15: =IF($B$8="No",NA(),E15) -> 19.91432445 | N15: =IF($B$9="No",NA(),F15) -> 44.72895945 | T15: =IF($B$8="No",NA(),G15) -> 21.15769813 | U15: =IF($B$9="No",NA(),H15) -> 51.61200675
A16: 2002 | B16: =IF($B$11="Tbext",10*EXP(Glidepath_DV!B15/10),INDEX(Data_Summary!$C$8:$K$8,1,MATCH(Glidepath_Bext!$B$11,Data_Summary!$C$7:$K$7,0))) -> 19.91432445 | C16: =IF($B$11="Tbext",10*EXP(Glidepath_DV!C15/10),INDEX(Data_Summary!$C$9:$K$9,1,MATCH(Glidepath_Bext!$B$11,Data_Summary!$C$7:$K$7,0))) -> 44.72895945 | D16: =IF($B$11="Tbext",10*EXP(Glidepath_DV!D15/10),INDEX(Data_Summary!$C$9:$K$9,1,MATCH(Glidepath_Bext!$B$11,Data_Summary!$C$7:$K$7,0))) -> 44.72895945 | E16: =_xlfn.IFNA(VLOOKUP($A16,Data_Summary!$A$20:$J$23,MATCH($B$11,Data_Summary!$A$18:$J$18,0),FALSE),IF(ISNUMBER(E15),E15,"")) -> 19.91432445 | F16: =_xlfn.IFNA(VLOOKUP($A16,Data_Summary!$A$25:$J$28,MATCH($B$11,Data_Summary!$A$18:$J$18,0),FALSE),IF(ISNUMBER(F15),F15,"")) -> 44.72895945 | G16: =_xlfn.IFNA(VLOOKUP($B$10&I16,ClearestDays!$A$2:$AF$2811,MATCH($B$11,ClearestDays!$A$1:$AF$1,0),FALSE),NA()) -> 19.58289735 | H16: =_xlfn.IFNA(VLOOKUP($B$10&I16,MostImpairedDays!$A$2:$AN$2753,MATCH($B$11,MostImpairedDays!$A$1:$AN$1,0),FALSE),NA()) -> 43.25827993 | I16: 2002 | J16: 19.91432445 | K16: 44.72895945 | L16: 44.72895945 | M16: 19.91432445 | N16: 44.72895945 | T16: 19.58289735 | U16: 43.25827993
A17: 2003 | B17: =IF($B$11="Tbext",10*EXP(Glidepath_DV!B16/10),INDEX(Data_Summary!$C$8:$K$8,1,MATCH(Glidepath_Bext!$B$11,Data_Summary!$C$7:$K$7,0))) -> 19.91432445 | C17: =IF($B$11="Tbext",10*EXP(Glidepath_DV!C16/10),INDEX(Data_Summary!$C$9:$K$9,1,MATCH(Glidepath_Bext!$B$11,Data_Summary!$C$7:$K$7,0))) -> 44.72895945 | D17: =IF($B$11="Tbext",10*EXP(Glidepath_DV!D16/10),INDEX(Data_Summary!$C$9:$K$9,1,MATCH(Glidepath_Bext!$B$11,Data_Summary!$C$7:$K$7,0))) -> 44.72895945 | E17: =_xlfn.IFNA(VLOOKUP($A17,Data_Summary!$A$20:$J$23,MATCH($B$11,Data_Summary!$A$18:$J$18,0),FALSE),IF(ISNUMBER(E16),E16,"")) -> 19.91432445 | F17: =_xlfn.IFNA(VLOOKUP($A17,Data_Summary!$A$25:$J$28,MATCH($B$11,Data_Summary!$A$18:$J$18,0),FALSE),IF(ISNUMBER(F16),F16,"")) -> 44.72895945 | G17: =_xlfn.IFNA(VLOOKUP($B$10&I17,ClearestDays!$A$2:$AF$2811,MATCH($B$11,ClearestDays!$A$1:$AF$1,0),FALSE),NA()) -> 18.80959722 | H17: =_xlfn.IFNA(VLOOKUP($B$10&I17,MostImpairedDays!$A$2:$AN$2753,MATCH($B$11,MostImpairedDays!$A$1:$AN$1,0),FALSE),NA()) -> 46.98647362 | I17: 2003 | J17: 19.91432445 | K17: 44.72895945 | L17: 44.72895945 | M17: 19.91432445 | N17: 44.72895945 | T17: 18.80959722 | U17: 46.98647362
A18: 2004 | B18: =IF($B$11="Tbext",10*EXP(Glidepath_DV!B17/10),INDEX(Data_Summary!$C$8:$K$8,1,MATCH(Glidepath_Bext!$B$11,Data_Summary!$C$7:$K$7,0))) -> 19.91432445 | C18: =IF($B$11="Tbext",10*EXP(Glidepath_DV!C17/10),INDEX(Data_Summary!$C$9:$K$9,1,MATCH(Glidepath_Bext!$B$11,Data_Summary!$C$7:$K$7,0))) -> 44.72895945 | D18: =IF($B$11="Tbext",10*EXP(Glidepath_DV!D17/10),INDEX(Data_Summary!$C$9:$K$9,1,MATCH(Glidepath_Bext!$B$11,Data_Summary!$C$7:$K$7,0))) -> 44.72895945 | E18: =_xlfn.IFNA(VLOOKUP($A18,Data_Summary!$A$20:$J$23,MATCH($B$11,Data_Summary!$A$18:$J$18,0),FALSE),IF(ISNUMBER(E17),E17,"")) -> 19.91432445 | F18: =_xlfn.IFNA(VLOOKUP($A18,Data_Summary!$A$25:$J$28,MATCH($B$11,Data_Summary!$A$18:$J$18,0),FALSE),IF(ISNUMBER(F17),F17,"")) -> 44.72895945 | G18: =_xlfn.IFNA(VLOOKUP($B$10&I18,ClearestDays!$A$2:$AF$2811,MATCH($B$11,ClearestDays!$A$1:$AF$1,0),FALSE),NA()) -> 19.44092567 | H18: =_xlfn.IFNA(VLOOKUP($B$10&I18,MostImpairedDays!$A$2:$AN$2753,MATCH($B$11,MostImpairedDays!$A$1:$AN$1,0),FALSE),NA()) -> 45.37729152 | I18: 2004 | J18: 19.91432445 | K18: 44.72895945 | L18: 44.72895945 | M18: 19.91432445 | N18: 44.72895945 | T18: 19.44092567 | U18: 45.37729152
A19: 2005 | B19: =B18 -> 19.91432445 | C19: =IF($B$11="Tbext",10*EXP(Glidepath_DV!C18/10),($C$78-$C$18)/($A$78-$A$18)+C18) -> 44.07116966 | D19: =IF($B$11="Tbext",10*EXP(Glidepath_DV!D18/10),($D$78-$D$18)/($A$78-$A$18)+D18) ->  | E19: =NA() ->  | F19: =NA() ->  | G19: =_xlfn.IFNA(VLOOKUP($B$10&I19,ClearestDays!$A$2:$AF$2811,MATCH($B$11,ClearestDays!$A$1:$AF$1,0),FALSE),NA()) -> 20.3976018 | H19: =_xlfn.IFNA(VLOOKUP($B$10&I19,MostImpairedDays!$A$2:$AN$2753,MATCH($B$11,MostImpairedDays!$A$1:$AN$1,0),FALSE),NA()) -> 48.75078911 | I19: 2005 | J19: 19.91432445 | K19: 44.07116966 | T19: 20.3976018 | U19: 48.75078911
A20: 2006 | B20: =B19 -> 19.91432445 | C20: =IF($B$11="Tbext",10*EXP(Glidepath_DV!C19/10),($C$78-$C$18)/($A$78-$A$18)+C19) -> 43.42305342 | D20: =IF($B$11="Tbext",10*EXP(Glidepath_DV!D19/10),($D$78-$D$18)/($A$78-$A$18)+D19) ->  | E20: =NA() ->  | F20: =NA() ->  | G20: =_xlfn.IFNA(VLOOKUP($B$10&I20,ClearestDays!$A$2:$AF$2811,MATCH($B$11,ClearestDays!$A$1:$AF$1,0),FALSE),NA()) -> 18.70269598 | H20: =_xlfn.IFNA(VLOOKUP($B$10&I20,MostImpairedDays!$A$2:$AN$2753,MATCH($B$11,MostImpairedDays!$A$1:$AN$1,0),FALSE),NA()) -> 46.17000597 | I20: 2006 | J20: 19.91432445 | K20: 43.42305342 | T20: 18.70269598 | U20: 46.17000597
A21: 2007 | B21: 19.91432445 | C21: =IF($B$11="Tbext",10*EXP(Glidepath_DV!C20/10),($C$78-$C$18)/($A$78-$A$18)+C20) -> 42.78446845 | D21: =IF($B$11="Tbext",10*EXP(Glidepath_DV!D20/10),($D$78-$D$18)/($A$78-$A$18)+D20) ->  | E21: =NA() ->  | F21: =NA() ->  | G21: =_xlfn.IFNA(VLOOKUP($B$10&I21,ClearestDays!$A$2:$AF$2811,MATCH($B$11,ClearestDays!$A$1:$AF$1,0),FALSE),NA()) -> 20.32325732 | H21: =_xlfn.IFNA(VLOOKUP($B$10&I21,MostImpairedDays!$A$2:$AN$2753,MATCH($B$11,MostImpairedDays!$A$1:$AN$1,0),FALSE),NA()) -> 46.22641585 | I21: 2007 | J21: 19.91432445 | K21: 42.78446845 | T21: 20.32325732 | U21: 46.22641585
A22: 2008 | B22: 19.91432445 | C22: =IF($B$11="Tbext",10*EXP(Glidepath_DV!C21/10),($C$78-$C$18)/($A$78-$A$18)+C21) -> 42.15527459 | D22: =IF($B$11="Tbext",10*EXP(Glidepath_DV!D21/10),($D$78-$D$18)/($A$78-$A$18)+D21) ->  | E22: =_xlfn.IFNA(VLOOKUP($A22,Data_Summary!$A$20:$J$23,MATCH($B$11,Data_Summary!$A$18:$J$18,0),FALSE),IF(ISNUMBER(E21),E21,"")) -> 18.62832334 | F22: =_xlfn.IFNA(VLOOKUP($A22,Data_Summary!$A$25:$J$28,MATCH($B$11,Data_Summary!$A$18:$J$18,0),FALSE),IF(ISNUMBER(F21),F21,"")) -> 43.21080801 | G22: =_xlfn.IFNA(VLOOKUP($B$10&I22,ClearestDays!$A$2:$AF$2811,MATCH($B$11,ClearestDays!$A$1:$AF$1,0),FALSE),NA()) -> 21.52768821 | H22: =_xlfn.IFNA(VLOOKUP($B$10&I22,MostImpairedDays!$A$2:$AN$2753,MATCH($B$11,MostImpairedDays!$A$1:$AN$1,0),FALSE),NA()) -> 45.44829253 | I22: 2008 | J22: 19.91432445 | K22: 42.15527459 | M22: 18.62832334 | N22: 43.21080801 | T22: 21.52768821 | U22: 45.44829253
A23: 2009 | B23: 19.91432445 | C23: =IF($B$11="Tbext",10*EXP(Glidepath_DV!C22/10),($C$78-$C$18)/($A$78-$A$18)+C22) -> 41.53533374 | D23: =IF($B$11="Tbext",10*EXP(Glidepath_DV!D22/10),($D$78-$D$18)/($A$78-$A$18)+D22) ->  | E23: =_xlfn.IFNA(VLOOKUP($A23,Data_Summary!$A$20:$J$23,MATCH($B$11,Data_Summary!$A$18:$J$18,0),FALSE),IF(ISNUMBER(E22),E22,"")) -> 18.62832334 | F23: =_xlfn.IFNA(VLOOKUP($A23,Data_Summary!$A$25:$J$28,MATCH($B$11,Data_Summary!$A$18:$J$18,0),FALSE),IF(ISNUMBER(F22),F22,"")) -> 43.21080801 | G23: =_xlfn.IFNA(VLOOKUP($B$10&I23,ClearestDays!$A$2:$AF$2811,MATCH($B$11,ClearestDays!$A$1:$AF$1,0),FALSE),NA()) -> 18.45705572 | H23: =_xlfn.IFNA(VLOOKUP($B$10&I23,MostImpairedDays!$A$2:$AN$2753,MATCH($B$11,MostImpairedDays!$A$1:$AN$1,0),FALSE),NA()) -> 43.54870214 | I23: 2009 | J23: 19.91432445 | K23: 41.53533374 | M23: 18.62832334 | N23: 43.21080801 | T23: 18.45705572 | U23: 43.54870214
A24: 2010 | B24: 19.91432445 | C24: =IF($B$11="Tbext",10*EXP(Glidepath_DV!C23/10),($C$78-$C$18)/($A$78-$A$18)+C23) -> 40.92450982 | D24: =IF($B$11="Tbext",10*EXP(Glidepath_DV!D23/10),($D$78-$D$18)/($A$78-$A$18)+D23) ->  | E24: =_xlfn.IFNA(VLOOKUP($A24,Data_Summary!$A$20:$J$23,MATCH($B$11,Data_Summary!$A$18:$J$18,0),FALSE),IF(ISNUMBER(E23),E23,"")) -> 18.62832334 | F24: =_xlfn.IFNA(VLOOKUP($A24,Data_Summary!$A$25:$J$28,MATCH($B$11,Data_Summary!$A$18:$J$18,0),FALSE),IF(ISNUMBER(F23),F23,"")) -> 43.21080801 | G24: =_xlfn.IFNA(VLOOKUP($B$10&I24,ClearestDays!$A$2:$AF$2811,MATCH($B$11,ClearestDays!$A$1:$AF$1,0),FALSE),NA()) -> 19.06398498 | H24: =_xlfn.IFNA(VLOOKUP($B$10&I24,MostImpairedDays!$A$2:$AN$2753,MATCH($B$11,MostImpairedDays!$A$1:$AN$1,0),FALSE),NA()) -> 50.84654389 | I24: 2010 | J24: 19.91432445 | K24: 40.92450982 | M24: 18.62832334 | N24: 43.21080801 | T24: 19.06398498 | U24: 50.84654389
A25: 2011 | B25: 19.91432445 | C25: =IF($B$11="Tbext",10*EXP(Glidepath_DV!C24/10),($C$78-$C$18)/($A$78-$A$18)+C24) -> 40.32266876 | D25: =IF($B$11="Tbext",10*EXP(Glidepath_DV!D24/10),($D$78-$D$18)/($A$78-$A$18)+D24) ->  | E25: =_xlfn.IFNA(VLOOKUP($A25,Data_Summary!$A$20:$J$23,MATCH($B$11,Data_Summary!$A$18:$J$18,0),FALSE),IF(ISNUMBER(E24),E24,"")) -> 18.62832334 | F25: =_xlfn.IFNA(VLOOKUP($A25,Data_Summary!$A$25:$J$28,MATCH($B$11,Data_Summary!$A$18:$J$18,0),FALSE),IF(ISNUMBER(F24),F24,"")) -> 43.21080801 | G25: =_xlfn.IFNA(VLOOKUP($B$10&I25,ClearestDays!$A$2:$AF$2811,MATCH($B$11,ClearestDays!$A$1:$AF$1,0),FALSE),NA()) -> 17.49093601 | H25: =_xlfn.IFNA(VLOOKUP($B$10&I25,MostImpairedDays!$A$2:$AN$2753,MATCH($B$11,MostImpairedDays!$A$1:$AN$1,0),FALSE),NA()) -> 43.91174095 | I25: 2011 | J25: 19.91432445 | K25: 40.32266876 | M25: 18.62832334 | N25: 43.21080801 | T25: 17.49093601 | U25: 43.91174095
A26: 2012 | B26: 19.91432445 | C26: =IF($B$11="Tbext",10*EXP(Glidepath_DV!C25/10),($C$78-$C$18)/($A$78-$A$18)+C25) -> 39.72967844 | D26: =IF($B$11="Tbext",10*EXP(Glidepath_DV!D25/10),($D$78-$D$18)/($A$78-$A$18)+D25) ->  | E26: =_xlfn.IFNA(VLOOKUP($A26,Data_Summary!$A$20:$J$23,MATCH($B$11,Data_Summary!$A$18:$J$18,0),FALSE),IF(ISNUMBER(E25),E25,"")) -> 18.62832334 | F26: =_xlfn.IFNA(VLOOKUP($A26,Data_Summary!$A$25:$J$28,MATCH($B$11,Data_Summary!$A$18:$J$18,0),FALSE),IF(ISNUMBER(F25),F25,"")) -> 43.21080801 | G26: =_xlfn.IFNA(VLOOKUP($B$10&I26,ClearestDays!$A$2:$AF$2811,MATCH($B$11,ClearestDays!$A$1:$AF$1,0),FALSE),NA()) -> 17.3216331 | H26: =_xlfn.IFNA(VLOOKUP($B$10&I26,MostImpairedDays!$A$2:$AN$2753,MATCH($B$11,MostImpairedDays!$A$1:$AN$1,0),FALSE),NA()) -> 40.44448296 | I26: 2012 | J26: 19.91432445 | K26: 39.72967844 | M26: 18.62832334 | N26: 43.21080801 | T26: 17.3216331 | U26: 40.44448296
A27: 2013 | B27: 19.91432445 | C27: =IF($B$11="Tbext",10*EXP(Glidepath_DV!C26/10),($C$78-$C$18)/($A$78-$A$18)+C26) -> 39.14540872 | D27: =IF($B$11="Tbext",10*EXP(Glidepath_DV!D26/10),($D$78-$D$18)/($A$78-$A$18)+D26) ->  | E27: =NA() ->  | F27: =NA() ->  | G27: =_xlfn.IFNA(VLOOKUP($B$10&I27,ClearestDays!$A$2:$AF$2811,MATCH($B$11,ClearestDays!$A$1:$AF$1,0),FALSE),NA()) -> 17.2669378 | H27: =_xlfn.IFNA(VLOOKUP($B$10&I27,MostImpairedDays!$A$2:$AN$2753,MATCH($B$11,MostImpairedDays!$A$1:$AN$1,0),FALSE),NA()) -> 39.37269181 | I27: 2013 | J27: 19.91432445 | K27: 39.14540872 | T27: 17.2669378 | U27: 39.37269181
A28: 2014 | B28: 19.91432445 | C28: =IF($B$11="Tbext",10*EXP(Glidepath_DV!C27/10),($C$78-$C$18)/($A$78-$A$18)+C27) -> 38.56973134 | D28: =IF($B$11="Tbext",10*EXP(Glidepath_DV!D27/10),($D$78-$D$18)/($A$78-$A$18)+D27) ->  | E28: =_xlfn.IFNA(VLOOKUP($A28,Data_Summary!$A$20:$J$23,MATCH($B$11,Data_Summary!$A$18:$J$18,0),FALSE),IF(ISNUMBER(E27),E27,"")) -> 17.14634081 | F28: =_xlfn.IFNA(VLOOKUP($A28,Data_Summary!$A$25:$J$28,MATCH($B$11,Data_Summary!$A$18:$J$18,0),FALSE),IF(ISNUMBER(F27),F27,"")) -> 34.31632937 | G28: =_xlfn.IFNA(VLOOKUP($B$10&I28,ClearestDays!$A$2:$AF$2811,MATCH($B$11,ClearestDays!$A$1:$AF$1,0),FALSE),NA()) -> 17.61428109 | H28: =_xlfn.IFNA(VLOOKUP($B$10&I28,MostImpairedDays!$A$2:$AN$2753,MATCH($B$11,MostImpairedDays!$A$1:$AN$1,0),FALSE),NA()) -> 34.67111027 | I28: 2014 | J28: 19.91432445 | K28: 38.56973134 | M28: 17.14634081 | N28: 34.31632937 | T28: 17.61428109 | U28: 34.67111027
A29: 2015 | B29: 19.91432445 | C29: =IF($B$11="Tbext",10*EXP(Glidepath_DV!C28/10),($C$78-$C$18)/($A$78-$A$18)+C28) -> 38.00251995 | D29: =IF($B$11="Tbext",10*EXP(Glidepath_DV!D28/10),($D$78-$D$18)/($A$78-$A$18)+D28) ->  | E29: =_xlfn.IFNA(VLOOKUP($A29,Data_Summary!$A$20:$J$23,MATCH($B$11,Data_Summary!$A$18:$J$18,0),FALSE),IF(ISNUMBER(E28),E28,"")) -> 17.14634081 | F29: =_xlfn.IFNA(VLOOKUP($A29,Data_Summary!$A$25:$J$28,MATCH($B$11,Data_Summary!$A$18:$J$18,0),FALSE),IF(ISNUMBER(F28),F28,"")) -> 34.31632937 | G29: =_xlfn.IFNA(VLOOKUP($B$10&I29,ClearestDays!$A$2:$AF$2811,MATCH($B$11,ClearestDays!$A$1:$AF$1,0),FALSE),NA()) -> 17.72542061 | H29: =_xlfn.IFNA(VLOOKUP($B$10&I29,MostImpairedDays!$A$2:$AN$2753,MATCH($B$11,MostImpairedDays!$A$1:$AN$1,0),FALSE),NA()) -> 31.9321237 | I29: 2015 | J29: 19.91432445 | K29: 38.00251995 | M29: 17.14634081 | N29: 34.31632937 | T29: 17.72542061 | U29: 31.9321237
A30: 2016 | B30: 19.91432445 | C30: =IF($B$11="Tbext",10*EXP(Glidepath_DV!C29/10),($C$78-$C$18)/($A$78-$A$18)+C29) -> 37.44365004 | D30: =IF($B$11="Tbext",10*EXP(Glidepath_DV!D29/10),($D$78-$D$18)/($A$78-$A$18)+D29) ->  | E30: =_xlfn.IFNA(VLOOKUP($A30,Data_Summary!$A$20:$J$23,MATCH($B$11,Data_Summary!$A$18:$J$18,0),FALSE),IF(ISNUMBER(E29),E29,"")) -> 17.14634081 | F30: =_xlfn.IFNA(VLOOKUP($A30,Data_Summary!$A$25:$J$28,MATCH($B$11,Data_Summary!$A$18:$J$18,0),FALSE),IF(ISNUMBER(F29),F29,"")) -> 34.31632937 | G30: =_xlfn.IFNA(VLOOKUP($B$10&I30,ClearestDays!$A$2:$AF$2811,MATCH($B$11,ClearestDays!$A$1:$AF$1,0),FALSE),NA()) -> 16.92402483 | H30: =_xlfn.IFNA(VLOOKUP($B$10&I30,MostImpairedDays!$A$2:$AN$2753,MATCH($B$11,MostImpairedDays!$A$1:$AN$1,0),FALSE),NA()) -> 34.15596767 | I30: 2016 | J30: 19.91432445 | K30: 37.44365004 | M30: 17.14634081 | N30: 34.31632937 | T30: 16.92402483 | U30: 34.15596767
A31: 2017 | B31: 19.91432445 | C31: =IF($B$11="Tbext",10*EXP(Glidepath_DV!C30/10),($C$78-$C$18)/($A$78-$A$18)+C30) -> 36.89299894 | D31: =IF($B$11="Tbext",10*EXP(Glidepath_DV!D30/10),($D$78-$D$18)/($A$78-$A$18)+D30) ->  | E31: =_xlfn.IFNA(VLOOKUP($A31,Data_Summary!$A$20:$J$23,MATCH($B$11,Data_Summary!$A$18:$J$18,0),FALSE),IF(ISNUMBER(E30),E30,"")) -> 17.14634081 | F31: =_xlfn.IFNA(VLOOKUP($A31,Data_Summary!$A$25:$J$28,MATCH($B$11,Data_Summary!$A$18:$J$18,0),FALSE),IF(ISNUMBER(F30),F30,"")) -> 34.31632937 | G31: =_xlfn.IFNA(VLOOKUP($B$10&I31,ClearestDays!$A$2:$AF$2811,MATCH($B$11,ClearestDays!$A$1:$AF$1,0),FALSE),NA()) -> 16.84609492 | H31: =_xlfn.IFNA(VLOOKUP($B$10&I31,MostImpairedDays!$A$2:$AN$2753,MATCH($B$11,MostImpairedDays!$A$1:$AN$1,0),FALSE),NA()) -> 37.15536342 | I31: 2017 | J31: 19.91432445 | K31: 36.89299894 | M31: 17.14634081 | N31: 34.31632937 | T31: 16.84609492 | U31: 37.15536342
A32: 2018 | B32: 19.91432445 | C32: =IF($B$11="Tbext",10*EXP(Glidepath_DV!C31/10),($C$78-$C$18)/($A$78-$A$18)+C31) -> 36.35044579 | D32: =IF($B$11="Tbext",10*EXP(Glidepath_DV!D31/10),($D$78-$D$18)/($A$78-$A$18)+D31) ->  | E32: =_xlfn.IFNA(VLOOKUP($A32,Data_Summary!$A$20:$J$23,MATCH($B$11,Data_Summary!$A$18:$J$18,0),FALSE),IF(ISNUMBER(E31),E31,"")) -> 17.14634081 | F32: =_xlfn.IFNA(VLOOKUP($A32,Data_Summary!$A$25:$J$28,MATCH($B$11,Data_Summary!$A$18:$J$18,0),FALSE),IF(ISNUMBER(F31),F31,"")) -> 34.31632937 | G32: =_xlfn.IFNA(VLOOKUP($B$10&I32,ClearestDays!$A$2:$AF$2811,MATCH($B$11,ClearestDays!$A$1:$AF$1,0),FALSE),NA()) -> 17.06053498 | H32: =_xlfn.IFNA(VLOOKUP($B$10&I32,MostImpairedDays!$A$2:$AN$2753,MATCH($B$11,MostImpairedDays!$A$1:$AN$1,0),FALSE),NA()) -> 37.48994753 | I32: 2018 | J32: 19.91432445 | K32: 36.35044579 | M32: 17.14634081 | N32: 34.31632937 | T32: =IF($B$8="No",NA(),G32) -> 17.06053498 | U32: 37.48994753
A33: 2019 | B33: 19.91432445 | C33: =IF($B$11="Tbext",10*EXP(Glidepath_DV!C32/10),($C$78-$C$18)/($A$78-$A$18)+C32) -> 35.81587149 | D33: =IF($B$11="Tbext",10*EXP(Glidepath_DV!D32/10),($D$78-$D$18)/($A$78-$A$18)+D32) ->  | I33: 2019 | J33: 19.91432445 | K33: 35.81587149
A34: 2020 | B34: 19.91432445 | C34: =IF($B$11="Tbext",10*EXP(Glidepath_DV!C33/10),($C$78-$C$18)/($A$78-$A$18)+C33) -> 35.28915871 | D34: =IF($B$11="Tbext",10*EXP(Glidepath_DV!D33/10),($D$78-$D$18)/($A$78-$A$18)+D33) ->  | I34: 2020 | J34: 19.91432445 | K34: 35.28915871
A35: 2021 | B35: 19.91432445 | C35: =IF($B$11="Tbext",10*EXP(Glidepath_DV!C34/10),($C$78-$C$18)/($A$78-$A$18)+C34) -> 34.77019184 | D35: =IF($B$11="Tbext",10*EXP(Glidepath_DV!D34/10),($D$78-$D$18)/($A$78-$A$18)+D34) ->  | I35: 2021 | J35: 19.91432445 | K35: 34.77019184
A36: 2022 | B36: 19.91432445 | C36: =IF($B$11="Tbext",10*EXP(Glidepath_DV!C35/10),($C$78-$C$18)/($A$78-$A$18)+C35) -> 34.25885696 | D36: =IF($B$11="Tbext",10*EXP(Glidepath_DV!D35/10),($D$78-$D$18)/($A$78-$A$18)+D35) ->  | I36: 2022 | J36: 19.91432445 | K36: 34.25885696
A37: 2023 | B37: 19.91432445 | C37: =IF($B$11="Tbext",10*EXP(Glidepath_DV!C36/10),($C$78-$C$18)/($A$78-$A$18)+C36) -> 33.75504184 | D37: =IF($B$11="Tbext",10*EXP(Glidepath_DV!D36/10),($D$78-$D$18)/($A$78-$A$18)+D36) ->  | I37: 2023 | J37: 19.91432445 | K37: 33.75504184
A38: 2024 | B38: 19.91432445 | C38: =IF($B$11="Tbext",10*EXP(Glidepath_DV!C37/10),($C$78-$C$18)/($A$78-$A$18)+C37) -> 33.25863588 | D38: =IF($B$11="Tbext",10*EXP(Glidepath_DV!D37/10),($D$78-$D$18)/($A$78-$A$18)+D37) ->  | I38: 2024 | J38: 19.91432445 | K38: 33.25863588
A39: 2025 | B39: 19.91432445 | C39: =IF($B$11="Tbext",10*EXP(Glidepath_DV!C38/10),($C$78-$C$18)/($A$78-$A$18)+C38) -> 32.76953014 | D39: =IF($B$11="Tbext",10*EXP(Glidepath_DV!D38/10),($D$78-$D$18)/($A$78-$A$18)+D38) ->  | I39: 2025 | J39: 19.91432445 | K39: 32.76953014
A40: 2026 | B40: 19.91432445 | C40: =IF($B$11="Tbext",10*EXP(Glidepath_DV!C39/10),($C$78-$C$18)/($A$78-$A$18)+C39) -> 32.28761724 | D40: =IF($B$11="Tbext",10*EXP(Glidepath_DV!D39/10),($D$78-$D$18)/($A$78-$A$18)+D39) ->  | I40: 2026 | J40: 19.91432445 | K40: 32.28761724
A41: 2027 | B41: 19.91432445 | C41: =IF($B$11="Tbext",10*EXP(Glidepath_DV!C40/10),($C$78-$C$18)/($A$78-$A$18)+C40) -> 31.81279142 | D41: =IF($B$11="Tbext",10*EXP(Glidepath_DV!D40/10),($D$78-$D$18)/($A$78-$A$18)+D40) ->  | I41: 2027 | J41: 19.91432445 | K41: 31.81279142
A42: 2028 | B42: 19.91432445 | C42: =IF($B$11="Tbext",10*EXP(Glidepath_DV!C41/10),($C$78-$C$18)/($A$78-$A$18)+C41) -> 31.34494845 | D42: =IF($B$11="Tbext",10*EXP(Glidepath_DV!D41/10),($D$78-$D$18)/($A$78-$A$18)+D41) ->  | I42: 2028 | J42: 19.91432445 | K42: 31.34494845 | P42: =IF(B9="No",NA(),HLOOKUP($B$11,Data_Summary!$A$48:$J$49,2,FALSE)) -> 34.53887541 | Q42: =IF(B8="No",NA(),HLOOKUP($B$11,Data_Summary!$A$53:$J$54,2,FALSE)) -> 16.91856641 | R42: =IF($B$9="No",NA(),HLOOKUP($B$11,Data_Summary!$A$48:$J$50,3,FALSE)) -> 30.28748052 | S42: =IF($B$8="No",NA(),HLOOKUP($B$11,Data_Summary!$A$53:$J$55,3,FALSE)) -> 16.51626252
A43: 2029 | B43: 19.91432445 | C43: =IF($B$11="Tbext",10*EXP(Glidepath_DV!C42/10),($C$78-$C$18)/($A$78-$A$18)+C42) -> 30.88398564 | D43: =IF($B$11="Tbext",10*EXP(Glidepath_DV!D42/10),($D$78-$D$18)/($A$78-$A$18)+D42) -> 
A44: 2030 | B44: 19.91432445 | C44: =IF($B$11="Tbext",10*EXP(Glidepath_DV!C43/10),($C$78-$C$18)/($A$78-$A$18)+C43) -> 30.4298018 | D44: =IF($B$11="Tbext",10*EXP(Glidepath_DV!D43/10),($D$78-$D$18)/($A$78-$A$18)+D43) -> 
A45: 2031 | B45: 19.91432445 | C45: =IF($B$11="Tbext",10*EXP(Glidepath_DV!C44/10),($C$78-$C$18)/($A$78-$A$18)+C44) -> 29.98229725 | D45: =IF($B$11="Tbext",10*EXP(Glidepath_DV!D44/10),($D$78-$D$18)/($A$78-$A$18)+D44) -> 
A46: 2032 | B46: 19.91432445 | C46: =IF($B$11="Tbext",10*EXP(Glidepath_DV!C45/10),($C$78-$C$18)/($A$78-$A$18)+C45) -> 29.54137376 | D46: =IF($B$11="Tbext",10*EXP(Glidepath_DV!D45/10),($D$78-$D$18)/($A$78-$A$18)+D45) -> 
A47: 2033 | B47: 19.91432445 | C47: =IF($B$11="Tbext",10*EXP(Glidepath_DV!C46/10),($C$78-$C$18)/($A$78-$A$18)+C46) -> 29.10693455 | D47: =IF($B$11="Tbext",10*EXP(Glidepath_DV!D46/10),($D$78-$D$18)/($A$78-$A$18)+D46) -> 
A48: 2034 | B48: 19.91432445 | C48: =IF($B$11="Tbext",10*EXP(Glidepath_DV!C47/10),($C$78-$C$18)/($A$78-$A$18)+C47) -> 28.67888425 | D48: =IF($B$11="Tbext",10*EXP(Glidepath_DV!D47/10),($D$78-$D$18)/($A$78-$A$18)+D47) -> 
A49: 2035 | B49: 19.91432445 | C49: =IF($B$11="Tbext",10*EXP(Glidepath_DV!C48/10),($C$78-$C$18)/($A$78-$A$18)+C48) -> 28.25712892 | D49: =IF($B$11="Tbext",10*EXP(Glidepath_DV!D48/10),($D$78-$D$18)/($A$78-$A$18)+D48) -> 
A50: 2036 | B50: 19.91432445 | C50: =IF($B$11="Tbext",10*EXP(Glidepath_DV!C49/10),($C$78-$C$18)/($A$78-$A$18)+C49) -> 27.84157597 | D50: =IF($B$11="Tbext",10*EXP(Glidepath_DV!D49/10),($D$78-$D$18)/($A$78-$A$18)+D49) -> 
A51: 2037 | B51: 19.91432445 | C51: =IF($B$11="Tbext",10*EXP(Glidepath_DV!C50/10),($C$78-$C$18)/($A$78-$A$18)+C50) -> 27.4321342 | D51: =IF($B$11="Tbext",10*EXP(Glidepath_DV!D50/10),($D$78-$D$18)/($A$78-$A$18)+D50) -> 
A52: 2038 | B52: 19.91432445 | C52: =IF($B$11="Tbext",10*EXP(Glidepath_DV!C51/10),($C$78-$C$18)/($A$78-$A$18)+C51) -> 27.02871374 | D52: =IF($B$11="Tbext",10*EXP(Glidepath_DV!D51/10),($D$78-$D$18)/($A$78-$A$18)+D51) -> 
A53: 2039 | B53: 19.91432445 | C53: =IF($B$11="Tbext",10*EXP(Glidepath_DV!C52/10),($C$78-$C$18)/($A$78-$A$18)+C52) -> 26.63122602 | D53: =IF($B$11="Tbext",10*EXP(Glidepath_DV!D52/10),($D$78-$D$18)/($A$78-$A$18)+D52) -> 
A54: 2040 | B54: 19.91432445 | C54: =IF($B$11="Tbext",10*EXP(Glidepath_DV!C53/10),($C$78-$C$18)/($A$78-$A$18)+C53) -> 26.23958381 | D54: =IF($B$11="Tbext",10*EXP(Glidepath_DV!D53/10),($D$78-$D$18)/($A$78-$A$18)+D53) -> 
A55: 2041 | B55: 19.91432445 | C55: =IF($B$11="Tbext",10*EXP(Glidepath_DV!C54/10),($C$78-$C$18)/($A$78-$A$18)+C54) -> 25.85370114 | D55: =IF($B$11="Tbext",10*EXP(Glidepath_DV!D54/10),($D$78-$D$18)/($A$78-$A$18)+D54) -> 
A56: 2042 | B56: 19.91432445 | C56: =IF($B$11="Tbext",10*EXP(Glidepath_DV!C55/10),($C$78-$C$18)/($A$78-$A$18)+C55) -> 25.47349331 | D56: =IF($B$11="Tbext",10*EXP(Glidepath_DV!D55/10),($D$78-$D$18)/($A$78-$A$18)+D55) -> 
A57: 2043 | B57: 19.91432445 | C57: =IF($B$11="Tbext",10*EXP(Glidepath_DV!C56/10),($C$78-$C$18)/($A$78-$A$18)+C56) -> 25.09887687 | D57: =IF($B$11="Tbext",10*EXP(Glidepath_DV!D56/10),($D$78-$D$18)/($A$78-$A$18)+D56) -> 
A58: 2044 | B58: 19.91432445 | C58: =IF($B$11="Tbext",10*EXP(Glidepath_DV!C57/10),($C$78-$C$18)/($A$78-$A$18)+C57) -> 24.72976958 | D58: =IF($B$11="Tbext",10*EXP(Glidepath_DV!D57/10),($D$78-$D$18)/($A$78-$A$18)+D57) -> 
A59: 2045 | B59: 19.91432445 | C59: =IF($B$11="Tbext",10*EXP(Glidepath_DV!C58/10),($C$78-$C$18)/($A$78-$A$18)+C58) -> 24.36609043 | D59: =IF($B$11="Tbext",10*EXP(Glidepath_DV!D58/10),($D$78-$D$18)/($A$78-$A$18)+D58) -> 
A60: 2046 | B60: 19.91432445 | C60: =IF($B$11="Tbext",10*EXP(Glidepath_DV!C59/10),($C$78-$C$18)/($A$78-$A$18)+C59) -> 24.0077596 | D60: =IF($B$11="Tbext",10*EXP(Glidepath_DV!D59/10),($D$78-$D$18)/($A$78-$A$18)+D59) -> 
A61: 2047 | B61: 19.91432445 | C61: =IF($B$11="Tbext",10*EXP(Glidepath_DV!C60/10),($C$78-$C$18)/($A$78-$A$18)+C60) -> 23.65469842 | D61: =IF($B$11="Tbext",10*EXP(Glidepath_DV!D60/10),($D$78-$D$18)/($A$78-$A$18)+D60) -> 
A62: 2048 | B62: 19.91432445 | C62: =IF($B$11="Tbext",10*EXP(Glidepath_DV!C61/10),($C$78-$C$18)/($A$78-$A$18)+C61) -> 23.3068294 | D62: =IF($B$11="Tbext",10*EXP(Glidepath_DV!D61/10),($D$78-$D$18)/($A$78-$A$18)+D61) -> 
A63: 2049 | B63: 19.91432445 | C63: =IF($B$11="Tbext",10*EXP(Glidepath_DV!C62/10),($C$78-$C$18)/($A$78-$A$18)+C62) -> 22.96407619 | D63: =IF($B$11="Tbext",10*EXP(Glidepath_DV!D62/10),($D$78-$D$18)/($A$78-$A$18)+D62) ->  | O63: Source
A64: 2050 | B64: 19.91432445 | C64: =IF($B$11="Tbext",10*EXP(Glidepath_DV!C63/10),($C$78-$C$18)/($A$78-$A$18)+C63) -> 22.62636356 | D64: =IF($B$11="Tbext",10*EXP(Glidepath_DV!D63/10),($D$78-$D$18)/($A$78-$A$18)+D63) -> 
A65: 2051 | B65: 19.91432445 | C65: =IF($B$11="Tbext",10*EXP(Glidepath_DV!C64/10),($C$78-$C$18)/($A$78-$A$18)+C64) -> 22.29361737 | D65: =IF($B$11="Tbext",10*EXP(Glidepath_DV!D64/10),($D$78-$D$18)/($A$78-$A$18)+D64) -> 
A66: 2052 | B66: 19.91432445 | C66: =IF($B$11="Tbext",10*EXP(Glidepath_DV!C65/10),($C$78-$C$18)/($A$78-$A$18)+C65) -> 21.96576458 | D66: =IF($B$11="Tbext",10*EXP(Glidepath_DV!D65/10),($D$78-$D$18)/($A$78-$A$18)+D65) -> 
A67: 2053 | B67: 19.91432445 | C67: =IF($B$11="Tbext",10*EXP(Glidepath_DV!C66/10),($C$78-$C$18)/($A$78-$A$18)+C66) -> 21.64273325 | D67: =IF($B$11="Tbext",10*EXP(Glidepath_DV!D66/10),($D$78-$D$18)/($A$78-$A$18)+D66) -> 
A68: 2054 | B68: 19.91432445 | C68: =IF($B$11="Tbext",10*EXP(Glidepath_DV!C67/10),($C$78-$C$18)/($A$78-$A$18)+C67) -> 21.32445245 | D68: =IF($B$11="Tbext",10*EXP(Glidepath_DV!D67/10),($D$78-$D$18)/($A$78-$A$18)+D67) -> 
A69: 2055 | B69: 19.91432445 | C69: =IF($B$11="Tbext",10*EXP(Glidepath_DV!C68/10),($C$78-$C$18)/($A$78-$A$18)+C68) -> 21.01085233 | D69: =IF($B$11="Tbext",10*EXP(Glidepath_DV!D68/10),($D$78-$D$18)/($A$78-$A$18)+D68) -> 
A70: 2056 | B70: 19.91432445 | C70: =IF($B$11="Tbext",10*EXP(Glidepath_DV!C69/10),($C$78-$C$18)/($A$78-$A$18)+C69) -> 20.70186405 | D70: =IF($B$11="Tbext",10*EXP(Glidepath_DV!D69/10),($D$78-$D$18)/($A$78-$A$18)+D69) -> 
A71: 2057 | B71: 19.91432445 | C71: =IF($B$11="Tbext",10*EXP(Glidepath_DV!C70/10),($C$78-$C$18)/($A$78-$A$18)+C70) -> 20.3974198 | D71: =IF($B$11="Tbext",10*EXP(Glidepath_DV!D70/10),($D$78-$D$18)/($A$78-$A$18)+D70) -> 
A72: 2058 | B72: 19.91432445 | C72: =IF($B$11="Tbext",10*EXP(Glidepath_DV!C71/10),($C$78-$C$18)/($A$78-$A$18)+C71) -> 20.09745274 | D72: =IF($B$11="Tbext",10*EXP(Glidepath_DV!D71/10),($D$78-$D$18)/($A$78-$A$18)+D71) -> 
A73: 2059 | B73: 19.91432445 | C73: =IF($B$11="Tbext",10*EXP(Glidepath_DV!C72/10),($C$78-$C$18)/($A$78-$A$18)+C72) -> 19.80189703 | D73: =IF($B$11="Tbext",10*EXP(Glidepath_DV!D72/10),($D$78-$D$18)/($A$78-$A$18)+D72) -> 
A74: 2060 | B74: 19.91432445 | C74: =IF($B$11="Tbext",10*EXP(Glidepath_DV!C73/10),($C$78-$C$18)/($A$78-$A$18)+C73) -> 19.51068781 | D74: =IF($B$11="Tbext",10*EXP(Glidepath_DV!D73/10),($D$78-$D$18)/($A$78-$A$18)+D73) -> 
A75: 2061 | B75: 19.91432445 | C75: =IF($B$11="Tbext",10*EXP(Glidepath_DV!C74/10),($C$78-$C$18)/($A$78-$A$18)+C74) -> 19.22376114 | D75: =IF($B$11="Tbext",10*EXP(Glidepath_DV!D74/10),($D$78-$D$18)/($A$78-$A$18)+D74) -> 
A76: 2062 | B76: 19.91432445 | C76: =IF($B$11="Tbext",10*EXP(Glidepath_DV!C75/10),($C$78-$C$18)/($A$78-$A$18)+C75) -> 18.94105405 | D76: =IF($B$11="Tbext",10*EXP(Glidepath_DV!D75/10),($D$78-$D$18)/($A$78-$A$18)+D75) -> 
A77: 2063 | B77: 19.91432445 | C77: =IF($B$11="Tbext",10*EXP(Glidepath_DV!C76/10),($C$78-$C$18)/($A$78-$A$18)+C76) -> 18.6625045 | D77: =IF($B$11="Tbext",10*EXP(Glidepath_DV!D76/10),($D$78-$D$18)/($A$78-$A$18)+D76) -> 
A78: 2064 | B78: 19.91432445 | C78: =INDEX(Data_Summary!$B$36:$J$36,1,MATCH(Glidepath_Bext!$B$11,Data_Summary!$B$35:$J$35,0)) -> 18.38805132 | D78: =IF($B$11="TBext",10*EXP(Glidepath_DV!D77/10),C78+INDEX(Data_Summary!$B$45:$J$45,1,MATCH(Glidepath_Bext!$B$11,Data_Summary!$B$44:$J$44,0))) ->  | I78: =A78 -> 2064 | J78: =IF($B$8="No",NA(),B78) -> 19.91432445 | K78: =IF($B$9="No",NA(),C78) -> 18.38805132 | L78: =IF($B$9="No",NA(),D78) -> 

Sheet Source&Composition (hidden)
A1: Total Extinction Composition and Source Contribution Plot | F1: ="2028 Non-TX US Anthro ("&ROUND(P70/SUM(P69:P77,P63)*100,0)&"% of Total)" -> 
A2: Description: | B2: Source and Composition Breakdown | F2: ="2028 TX Anthro ("&ROUND(P69/SUM(P69:P77,P63)*100,0)&"% of Total)" -> 
A3: Units: | B3: Extinction (Mm-1) | C3: Select Site in Tab Glidepath_DV
A4: Pollutant: | B4: Tbext
A5: =IF(Glidepath_Bext!B11<>"Tbext","Please Change Glidepath_Bext to Tbext before viewing this tab","") -> 
A47: Scenario | B47: 2014 | C47: =B47+1 -> 2015 | D47: =C47+1 -> 2016 | E47: 2017 | F47: 2018 | G47: 2019 | H47: 2020 | I47: 2021 | J47: 2022 | K47: 2023 | L47: 2024 | M47: 2025 | N47: 2026 | O47: 2027 | P47: =O47+1 -> 2028 | Q47: 2064
A48: Obs Data | B48: =SUMIFS(Data_Summary!$W$81:$W$323,Data_Summary!$M$81:$M$323,Glidepath_DV!$B$10,Data_Summary!$N$81:$N$323,B$47) -> 34.67111027 | C48: =SUMIFS(Data_Summary!$W$81:$W$323,Data_Summary!$M$81:$M$323,Glidepath_DV!$B$10,Data_Summary!$N$81:$N$323,C$47) -> 31.9321237 | D48: =SUMIFS(Data_Summary!$W$81:$W$323,Data_Summary!$M$81:$M$323,Glidepath_DV!$B$10,Data_Summary!$N$81:$N$323,D$47) -> 34.15596767 | E48: =SUMIFS(Data_Summary!$W$81:$W$323,Data_Summary!$M$81:$M$323,Glidepath_DV!$B$10,Data_Summary!$N$81:$N$323,E$47) -> 37.15536342
A49: 2014-2017 Average | B49: =AVERAGE($B$48:$E$48) -> 34.47864126 | C49: =AVERAGE($B$48:$E$48) -> 34.47864126 | D49: =AVERAGE($B$48:$E$48) -> 34.47864126 | E49: =AVERAGE($B$48:$E$48) -> 34.47864126
A50: Unadjusted Glidepath | B50: =10*EXP(Glidepath_DV!$C27/10) -> 38.56973134 | C50: =10*EXP(Glidepath_DV!$C28/10) -> 38.00251995 | D50: =10*EXP(Glidepath_DV!$C29/10) -> 37.44365004 | E50: =10*EXP(Glidepath_DV!$C30/10) -> 36.89299894 | F50: =10*EXP(Glidepath_DV!$C31/10) -> 36.35044579 | G50: =10*EXP(Glidepath_DV!$C32/10) -> 35.81587149 | H50: =10*EXP(Glidepath_DV!$C33/10) -> 35.28915871 | I50: =10*EXP(Glidepath_DV!$C34/10) -> 34.77019184 | J50: =10*EXP(Glidepath_DV!$C35/10) -> 34.25885696 | K50: =10*EXP(Glidepath_DV!$C36/10) -> 33.75504184 | L50: =10*EXP(Glidepath_DV!$C37/10) -> 33.25863588 | M50: =10*EXP(Glidepath_DV!$C38/10) -> 32.76953014 | N50: =10*EXP(Glidepath_DV!$C39/10) -> 32.28761724 | O50: =10*EXP(Glidepath_DV!$C40/10) -> 31.81279142 | P50: =10*EXP(Glidepath_DV!$C41/10) -> 31.34494845
A51: Adjusted Glidepath | B51: =10*EXP(Glidepath_DV!$D27/10) ->  | C51: =10*EXP(Glidepath_DV!$D28/10) ->  | D51: =10*EXP(Glidepath_DV!$D29/10) ->  | E51: =10*EXP(Glidepath_DV!$D30/10) ->  | F51: =10*EXP(Glidepath_DV!$D31/10) ->  | G51: =10*EXP(Glidepath_DV!$D32/10) ->  | H51: =10*EXP(Glidepath_DV!$D33/10) ->  | I51: =10*EXP(Glidepath_DV!$D34/10) ->  | J51: =10*EXP(Glidepath_DV!$D35/10) ->  | K51: =10*EXP(Glidepath_DV!$D36/10) ->  | L51: =10*EXP(Glidepath_DV!$D37/10) ->  | M51: =10*EXP(Glidepath_DV!$D38/10) ->  | N51: =10*EXP(Glidepath_DV!$D39/10) ->  | O51: =10*EXP(Glidepath_DV!$D40/10) ->  | P51: =10*EXP(Glidepath_DV!$D41/10) -> 
A52: Unadjusted 2064 | P52: =P50 -> 31.34494845 | Q52: =10*EXP(Glidepath_DV!$C77/10) -> 18.38805132
A53: Adjusted 2064 | P53: =P51 ->  | Q53: =10*EXP(Glidepath_DV!$D77/10) -> 
D54: Comp - 2016 | E54: Mod - 2016 | P54: SMAT 2028
A55: AmmNO3 | D55: =Data_Summary!B63 -> 5.639294588 | E55: =Data_Summary!C63 -> 6.740185266
A56: AmmSO4 | D56: =Data_Summary!B64 -> 10.7520642 | E56: =Data_Summary!C64 -> 6.866671409
A57: CM | D57: =Data_Summary!B65 -> 1.799891 | E57: =Data_Summary!C65 -> 0.8322845217
A58: OMC | D58: =Data_Summary!B66 -> 3.558490288 | E58: =Data_Summary!C66 -> 3.895446415
A59: EC | D59: =Data_Summary!B67 -> 0.9634708333 | E59: =Data_Summary!C67 -> 1.013703043
A60: Soil | D60: =Data_Summary!B68 -> 0.3904091667 | E60: =Data_Summary!C68 -> 0.3368278696
A61: SeaSalt | D61: =Data_Summary!B69 -> 0.0523475985 | E61: =Data_Summary!C69 -> 0.04003190699
A62: Rayleigh | D62: =Data_Summary!B70 -> 0.1006695347 | E62: =Data_Summary!C70 -> 11
A63: Rayleigh | P63: =D62 -> 0.1006695347
A64: =Data_Summary!E63 -> TX EGU | P64: =Data_Summary!F63 -> 
A65: =Data_Summary!E64 -> TX non-EGU | P65: =Data_Summary!F64 -> 
A66: =Data_Summary!E65 -> TX Oil&Gas | P66: =Data_Summary!F65 -> 
A67: =Data_Summary!E66 -> TX on-road | P67: =Data_Summary!F66 -> 
A68: =Data_Summary!E67 -> TX other anthro | P68: =Data_Summary!F67 -> 
A69: Texas Sources | P69: =SUM(P64:P68) -> 
A70: =Data_Summary!E68 -> Non-Texas US anthro | P70: =Data_Summary!F68 -> 
A71: =Data_Summary!E69 -> Can/Mex anthro | P71: =Data_Summary!F69 -> 
A72: =Data_Summary!E70 -> Other non-US anthro | P72: =Data_Summary!F70 -> 
A73: =Data_Summary!E71 -> Fire | P73: =Data_Summary!F71 -> 
A74: =Data_Summary!E72 -> Natural | P74: =Data_Summary!F72 -> 
A75: =Data_Summary!E73 -> BC/IC | P75: =Data_Summary!F73 -> 
A76: Bio SOA | P76: =Data_Summary!F74 -> 
A77: Anthro SOA | P77: =Data_Summary!F75 -> 
A78: SMAT2028 | P78: =SUM(P62:P68,P70:P77) -> 
A79: =Data_Summary!I63 -> AR | B79: =Data_Summary!J63 -> 
A80: =Data_Summary!I64 -> CO | B80: =Data_Summary!J64 -> 
A81: =Data_Summary!I65 -> LA | B81: =Data_Summary!J65 -> 
A82: =Data_Summary!I66 -> MO | B82: =Data_Summary!J66 -> 
A83: =Data_Summary!I67 -> NM | B83: =Data_Summary!J67 -> 
A84: =Data_Summary!I68 -> OK | B84: =Data_Summary!J68 -> 
A85: =Data_Summary!I69 -> Other | B85: =Data_Summary!J69 -> 

Sheet Data_Summary
A1: Baseline
A2: Data Source: | B2: Clearest Days
B3: Most Impaired Days
A4: Data Methodology: | B4: Average of 2000-2004 Period, range may value based on data availability
A5: Units: | B5: Deciview for dv, Extinction (Mm-1) for PM Species
A7: SiteCode | B7: Aggregation | C7: =RIGHT(C$80,LEN(C$80)-7) -> EAmm_NO3 | D7: EAmm_SO4 | E7: ECM | F7: EOMC | G7: ELAC | H7: ESoil | I7: ESea_Salt | J7: DV | K7: Tbext
A8: =Glidepath_DV!$B$10 -> BADL1 | B8: 10 | C8: =AVERAGEIFS(C$81:C$2890,$B$81:$B$2890,"<"&2005,$B$81:$B$2890,">"&1999,$A$81:$A$2890,$A8) -> 1.199663676 | D8: 3.356572934 | E8: 1.508114551 | F8: 1.809856969 | G8: 0.7877039855 | H8: 0.3327575755 | I8: 0.02358293404 | J8: 6.888542015 | K8: 20.01825262
A9: =A8 -> BADL1 | B9: 90 | C9: =AVERAGEIFS(O$81:O$2890,$N$81:$N$2890,"<"&2005,$N$81:$N$2890,">"&1999,$M$81:$M$2890,$A9) -> 7.709089851 | D9: 18.70480944 | E9: 2.15173468 | F9: 4.259366081 | G9: 1.755672662 | H9: 0.4948655849 | I9: 0.02619014986 | J9: 14.98036061 | K9: 46.10172845
A11: 5-Year Average
A12: Data Source: | B12: Clearest Days
B13: Most Impaired Days
A14: Data Methodology: | B14: Average of 5-year period, range may value based on data availability
A15: Units: | B15: Deciview for dv, Extinction (Mm-1) for PM Species
A17: 5-Year Average
A18: Year | B18: EAmm_NO3 | C18: EAmm_SO4 | D18: ECM | E18: EOMC | F18: ELAC | G18: ESoil | H18: ESea_Salt | I18: DV | J18: Tbext
A19: Clearest Days
A20: 2000 | B20: =AVERAGEIFS(Data_Summary!C$81:C$2890,Data_Summary!$A$81:$A$2890,Glidepath_DV!$B$10,Data_Summary!$B$81:$B$2890,">"&$A20-1,Data_Summary!$B$81:$B$2890,"<"&$A20+5) -> 1.199663676 | C20: =AVERAGEIFS(Data_Summary!D$81:D$2890,Data_Summary!$A$81:$A$2890,Glidepath_DV!$B$10,Data_Summary!$B$81:$B$2890,">"&$A20-1,Data_Summary!$B$81:$B$2890,"<"&$A20+5) -> 3.356572934 | D20: =AVERAGEIFS(Data_Summary!E$81:E$2890,Data_Summary!$A$81:$A$2890,Glidepath_DV!$B$10,Data_Summary!$B$81:$B$2890,">"&$A20-1,Data_Summary!$B$81:$B$2890,"<"&$A20+5) -> 1.508114551 | E20: =AVERAGEIFS(Data_Summary!F$81:F$2890,Data_Summary!$A$81:$A$2890,Glidepath_DV!$B$10,Data_Summary!$B$81:$B$2890,">"&$A20-1,Data_Summary!$B$81:$B$2890,"<"&$A20+5) -> 1.809856969 | F20: =AVERAGEIFS(Data_Summary!G$81:G$2890,Data_Summary!$A$81:$A$2890,Glidepath_DV!$B$10,Data_Summary!$B$81:$B$2890,">"&$A20-1,Data_Summary!$B$81:$B$2890,"<"&$A20+5) -> 0.7877039855 | G20: =AVERAGEIFS(Data_Summary!H$81:H$2890,Data_Summary!$A$81:$A$2890,Glidepath_DV!$B$10,Data_Summary!$B$81:$B$2890,">"&$A20-1,Data_Summary!$B$81:$B$2890,"<"&$A20+5) -> 0.3327575755 | H20: =AVERAGEIFS(Data_Summary!I$81:I$2890,Data_Summary!$A$81:$A$2890,Glidepath_DV!$B$10,Data_Summary!$B$81:$B$2890,">"&$A20-1,Data_Summary!$B$81:$B$2890,"<"&$A20+5) -> 0.02358293404 | I20: =AVERAGEIFS(Data_Summary!J$81:J$2890,Data_Summary!$A$81:$A$2890,Glidepath_DV!$B$10,Data_Summary!$B$81:$B$2890,">"&$A20-1,Data_Summary!$B$81:$B$2890,"<"&$A20+5) -> 6.888542015 | J20: =10*EXP(I20/10) -> 19.91432445 | K20: 2000-2004
A21: 2008 | B21: =AVERAGEIFS(Data_Summary!C$81:C$2890,Data_Summary!$A$81:$A$2890,Glidepath_DV!$B$10,Data_Summary!$B$81:$B$2890,">"&$A21-1,Data_Summary!$B$81:$B$2890,"<"&$A21+5) -> 0.9704624849 | C21: =AVERAGEIFS(Data_Summary!D$81:D$2890,Data_Summary!$A$81:$A$2890,Glidepath_DV!$B$10,Data_Summary!$B$81:$B$2890,">"&$A21-1,Data_Summary!$B$81:$B$2890,"<"&$A21+5) -> 3.07478222 | D21: =AVERAGEIFS(Data_Summary!E$81:E$2890,Data_Summary!$A$81:$A$2890,Glidepath_DV!$B$10,Data_Summary!$B$81:$B$2890,">"&$A21-1,Data_Summary!$B$81:$B$2890,"<"&$A21+5) -> 1.122017334 | E21: =AVERAGEIFS(Data_Summary!F$81:F$2890,Data_Summary!$A$81:$A$2890,Glidepath_DV!$B$10,Data_Summary!$B$81:$B$2890,">"&$A21-1,Data_Summary!$B$81:$B$2890,"<"&$A21+5) -> 1.852295031 | F21: =AVERAGEIFS(Data_Summary!G$81:G$2890,Data_Summary!$A$81:$A$2890,Glidepath_DV!$B$10,Data_Summary!$B$81:$B$2890,">"&$A21-1,Data_Summary!$B$81:$B$2890,"<"&$A21+5) -> 0.4220624835 | G21: =AVERAGEIFS(Data_Summary!H$81:H$2890,Data_Summary!$A$81:$A$2890,Glidepath_DV!$B$10,Data_Summary!$B$81:$B$2890,">"&$A21-1,Data_Summary!$B$81:$B$2890,"<"&$A21+5) -> 0.2813021015 | H21: =AVERAGEIFS(Data_Summary!I$81:I$2890,Data_Summary!$A$81:$A$2890,Glidepath_DV!$B$10,Data_Summary!$B$81:$B$2890,">"&$A21-1,Data_Summary!$B$81:$B$2890,"<"&$A21+5) -> 0.0493379497 | I21: =AVERAGEIFS(Data_Summary!J$81:J$2890,Data_Summary!$A$81:$A$2890,Glidepath_DV!$B$10,Data_Summary!$B$81:$B$2890,">"&$A21-1,Data_Summary!$B$81:$B$2890,"<"&$A21+5) -> 6.220980896 | J21: =10*EXP(I21/10) -> 18.62832334 | K21: 2008-2012
A22: 2014 | B22: =AVERAGEIFS(Data_Summary!C$81:C$2890,Data_Summary!$A$81:$A$2890,Glidepath_DV!$B$10,Data_Summary!$B$81:$B$2890,">"&$A22-1,Data_Summary!$B$81:$B$2890,"<"&$A22+5) -> 0.9282928353 | C22: =AVERAGEIFS(Data_Summary!D$81:D$2890,Data_Summary!$A$81:$A$2890,Glidepath_DV!$B$10,Data_Summary!$B$81:$B$2890,">"&$A22-1,Data_Summary!$B$81:$B$2890,"<"&$A22+5) -> 2.154706115 | D22: =AVERAGEIFS(Data_Summary!E$81:E$2890,Data_Summary!$A$81:$A$2890,Glidepath_DV!$B$10,Data_Summary!$B$81:$B$2890,">"&$A22-1,Data_Summary!$B$81:$B$2890,"<"&$A22+5) -> 1.064788993 | E22: =AVERAGEIFS(Data_Summary!F$81:F$2890,Data_Summary!$A$81:$A$2890,Glidepath_DV!$B$10,Data_Summary!$B$81:$B$2890,">"&$A22-1,Data_Summary!$B$81:$B$2890,"<"&$A22+5) -> 1.363219125 | F22: =AVERAGEIFS(Data_Summary!G$81:G$2890,Data_Summary!$A$81:$A$2890,Glidepath_DV!$B$10,Data_Summary!$B$81:$B$2890,">"&$A22-1,Data_Summary!$B$81:$B$2890,"<"&$A22+5) -> 0.3967566172 | G22: =AVERAGEIFS(Data_Summary!H$81:H$2890,Data_Summary!$A$81:$A$2890,Glidepath_DV!$B$10,Data_Summary!$B$81:$B$2890,">"&$A22-1,Data_Summary!$B$81:$B$2890,"<"&$A22+5) -> 0.2786299772 | H22: =AVERAGEIFS(Data_Summary!I$81:I$2890,Data_Summary!$A$81:$A$2890,Glidepath_DV!$B$10,Data_Summary!$B$81:$B$2890,">"&$A22-1,Data_Summary!$B$81:$B$2890,"<"&$A22+5) -> 0.04767762204 | I22: =AVERAGEIFS(Data_Summary!J$81:J$2890,Data_Summary!$A$81:$A$2890,Glidepath_DV!$B$10,Data_Summary!$B$81:$B$2890,">"&$A22-1,Data_Summary!$B$81:$B$2890,"<"&$A22+5) -> 5.39199694 | J22: 17.14634081 | K22: 2014-2018
A24: Most Impaired Days
A25: =A20 -> 2000 | B25: =AVERAGEIFS(Data_Summary!O$81:O$2890,Data_Summary!$M$81:$M$2890,Glidepath_DV!$B$10,Data_Summary!$N$81:$N$2890,">"&$A25-1,Data_Summary!$N$81:$N$2890,"<"&$A25+5) -> 7.709089851 | C25: =AVERAGEIFS(Data_Summary!P$81:P$2890,Data_Summary!$M$81:$M$2890,Glidepath_DV!$B$10,Data_Summary!$N$81:$N$2890,">"&$A25-1,Data_Summary!$N$81:$N$2890,"<"&$A25+5) -> 18.70480944 | D25: =AVERAGEIFS(Data_Summary!Q$81:Q$2890,Data_Summary!$M$81:$M$2890,Glidepath_DV!$B$10,Data_Summary!$N$81:$N$2890,">"&$A25-1,Data_Summary!$N$81:$N$2890,"<"&$A25+5) -> 2.15173468 | E25: =AVERAGEIFS(Data_Summary!R$81:R$2890,Data_Summary!$M$81:$M$2890,Glidepath_DV!$B$10,Data_Summary!$N$81:$N$2890,">"&$A25-1,Data_Summary!$N$81:$N$2890,"<"&$A25+5) -> 4.259366081 | F25: =AVERAGEIFS(Data_Summary!S$81:S$2890,Data_Summary!$M$81:$M$2890,Glidepath_DV!$B$10,Data_Summary!$N$81:$N$2890,">"&$A25-1,Data_Summary!$N$81:$N$2890,"<"&$A25+5) -> 1.755672662 | G25: =AVERAGEIFS(Data_Summary!T$81:T$2890,Data_Summary!$M$81:$M$2890,Glidepath_DV!$B$10,Data_Summary!$N$81:$N$2890,">"&$A25-1,Data_Summary!$N$81:$N$2890,"<"&$A25+5) -> 0.4948655849 | H25: =AVERAGEIFS(Data_Summary!U$81:U$2890,Data_Summary!$M$81:$M$2890,Glidepath_DV!$B$10,Data_Summary!$N$81:$N$2890,">"&$A25-1,Data_Summary!$N$81:$N$2890,"<"&$A25+5) -> 0.02619014986 | I25: =AVERAGEIFS(Data_Summary!V$81:V$2890,Data_Summary!$M$81:$M$2890,Glidepath_DV!$B$10,Data_Summary!$N$81:$N$2890,">"&$A25-1,Data_Summary!$N$81:$N$2890,"<"&$A25+5) -> 14.98036061 | J25: 44.72895945
A26: =A21 -> 2008 | B26: =AVERAGEIFS(Data_Summary!O$81:O$2890,Data_Summary!$M$81:$M$2890,Glidepath_DV!$B$10,Data_Summary!$N$81:$N$2890,">"&$A26-1,Data_Summary!$N$81:$N$2890,"<"&$A26+5) -> 7.466952934 | C26: =AVERAGEIFS(Data_Summary!P$81:P$2890,Data_Summary!$M$81:$M$2890,Glidepath_DV!$B$10,Data_Summary!$N$81:$N$2890,">"&$A26-1,Data_Summary!$N$81:$N$2890,"<"&$A26+5) -> 18.60002293 | D26: =AVERAGEIFS(Data_Summary!Q$81:Q$2890,Data_Summary!$M$81:$M$2890,Glidepath_DV!$B$10,Data_Summary!$N$81:$N$2890,">"&$A26-1,Data_Summary!$N$81:$N$2890,"<"&$A26+5) -> 1.840615674 | E26: =AVERAGEIFS(Data_Summary!R$81:R$2890,Data_Summary!$M$81:$M$2890,Glidepath_DV!$B$10,Data_Summary!$N$81:$N$2890,">"&$A26-1,Data_Summary!$N$81:$N$2890,"<"&$A26+5) -> 4.312824405 | F26: =AVERAGEIFS(Data_Summary!S$81:S$2890,Data_Summary!$M$81:$M$2890,Glidepath_DV!$B$10,Data_Summary!$N$81:$N$2890,">"&$A26-1,Data_Summary!$N$81:$N$2890,"<"&$A26+5) -> 1.050543362 | G26: =AVERAGEIFS(Data_Summary!T$81:T$2890,Data_Summary!$M$81:$M$2890,Glidepath_DV!$B$10,Data_Summary!$N$81:$N$2890,">"&$A26-1,Data_Summary!$N$81:$N$2890,"<"&$A26+5) -> 0.4986625432 | H26: =AVERAGEIFS(Data_Summary!U$81:U$2890,Data_Summary!$M$81:$M$2890,Glidepath_DV!$B$10,Data_Summary!$N$81:$N$2890,">"&$A26-1,Data_Summary!$N$81:$N$2890,"<"&$A26+5) -> 0.0703306442 | I26: =AVERAGEIFS(Data_Summary!V$81:V$2890,Data_Summary!$M$81:$M$2890,Glidepath_DV!$B$10,Data_Summary!$N$81:$N$2890,">"&$A26-1,Data_Summary!$N$81:$N$2890,"<"&$A26+5) -> 14.63505556 | J26: 43.21080801
A27: =A22 -> 2014 | B27: =AVERAGEIFS(Data_Summary!O$81:O$2890,Data_Summary!$M$81:$M$2890,Glidepath_DV!$B$10,Data_Summary!$N$81:$N$2890,">"&$A27-1,Data_Summary!$N$81:$N$2890,"<"&$A27+5) -> 6.079678363 | C27: =AVERAGEIFS(Data_Summary!P$81:P$2890,Data_Summary!$M$81:$M$2890,Glidepath_DV!$B$10,Data_Summary!$N$81:$N$2890,">"&$A27-1,Data_Summary!$N$81:$N$2890,"<"&$A27+5) -> 10.927008 | D27: =AVERAGEIFS(Data_Summary!Q$81:Q$2890,Data_Summary!$M$81:$M$2890,Glidepath_DV!$B$10,Data_Summary!$N$81:$N$2890,">"&$A27-1,Data_Summary!$N$81:$N$2890,"<"&$A27+5) -> 1.925152833 | E27: =AVERAGEIFS(Data_Summary!R$81:R$2890,Data_Summary!$M$81:$M$2890,Glidepath_DV!$B$10,Data_Summary!$N$81:$N$2890,">"&$A27-1,Data_Summary!$N$81:$N$2890,"<"&$A27+5) -> 3.508958337 | F27: =AVERAGEIFS(Data_Summary!S$81:S$2890,Data_Summary!$M$81:$M$2890,Glidepath_DV!$B$10,Data_Summary!$N$81:$N$2890,">"&$A27-1,Data_Summary!$N$81:$N$2890,"<"&$A27+5) -> 1.118773514 | G27: =AVERAGEIFS(Data_Summary!T$81:T$2890,Data_Summary!$M$81:$M$2890,Glidepath_DV!$B$10,Data_Summary!$N$81:$N$2890,">"&$A27-1,Data_Summary!$N$81:$N$2890,"<"&$A27+5) -> 0.4615224566 | H27: =AVERAGEIFS(Data_Summary!U$81:U$2890,Data_Summary!$M$81:$M$2890,Glidepath_DV!$B$10,Data_Summary!$N$81:$N$2890,">"&$A27-1,Data_Summary!$N$81:$N$2890,"<"&$A27+5) -> 0.05980901148 | I27: =AVERAGEIFS(Data_Summary!V$81:V$2890,Data_Summary!$M$81:$M$2890,Glidepath_DV!$B$10,Data_Summary!$N$81:$N$2890,">"&$A27-1,Data_Summary!$N$81:$N$2890,"<"&$A27+5) -> 12.33036223 | J27: 34.31632937
A30: Endpoint 2064 Values
A31: Data Source: | B31: EndPoint
A32: Data Methodology: | B32: Unadjusted
A33: Units: | B33: Deciview for dv, Extinction (Mm-1) for PM Species
J34: converted from DV | K34: Average TBEXT
A35: SiteCode | B35: =RIGHT(C$80,LEN(C$80)-7) -> EAmm_NO3 | C35: EAmm_SO4 | D35: ECM | E35: EOMC | F35: ELAC | G35: ESoil | H35: ESea_Salt | I35: DV | J35: TBext | K35: TBext_NAT
A36: =Glidepath_DV!$B$10 -> BADL1 | B36: =VLOOKUP($A$36,$Y$81:$AH$257,MATCH("Sum of "&B$35,$Y$80:$AH$80,0),FALSE) -> 1.847401522 | C36: 1.537775073 | D36: 1.412105303 | E36: 2.036224772 | F36: 0.328872953 | G36: 0.469032488 | H36: 0.055260542 | I36: 6.09115976 | J36: =10*EXP(I36/10) -> 18.38805132 | K36: =VLOOKUP($A$36,$Y$81:$AH$257,MATCH("Sum of "&J$35,$Y$80:$AH$80,0),FALSE) -> 18.68667265
A38: SMAT Values
A39: Data Source:
A40: Data Methodology:
A41: Units: | B41: Deciview for dv, Extinction (Mm-1) for PM Species
A43: International Contribution | I43: Bext_inter
A44: SiteCode | B44: =RIGHT(C$80,LEN(C$80)-7) -> EAmm_NO3 | C44: EAmm_SO4 | D44: ECM | E44: EOMC | F44: ELAC | G44: ESoil | H44: ESea_Salt | I44: tbext
A45: =Glidepath_DV!$B$10 -> BADL1 | B45: =VLOOKUP($A45,SMAT_2014v2_2028OTBb!$B$17:$DM$17,MATCH(B44,SMAT_2014v2_2028OTBb!$A$16:$DM$16,0),FALSE) ->  | C45: =VLOOKUP($A45,SMAT_2014v2_2028OTBb!$B$1:$DM$17,MATCH(C44,SMAT_2014v2_2028OTBb!$A$16:$DM$16,0),FALSE) ->  | D45: =VLOOKUP($A45,SMAT_2014v2_2028OTBb!$B$17:$DM$31,MATCH(D44,SMAT_2014v2_2028OTBb!$A$16:$DM$16,0),FALSE) ->  | E45: =VLOOKUP($A45,SMAT_2014v2_2028OTBb!$B$1:$DM$17,MATCH(E44,SMAT_2014v2_2028OTBb!$A$16:$DM$16,0),FALSE) ->  | F45: =VLOOKUP($A45,SMAT_2014v2_2028OTBb!$B$1:$DM$17,MATCH(F44,SMAT_2014v2_2028OTBb!$A$16:$DM$16,0),FALSE) ->  | G45: =VLOOKUP($A45,SMAT_2014v2_2028OTBb!$B$1:$DM$17,MATCH(G44,SMAT_2014v2_2028OTBb!$A$16:$DM$16,0),FALSE) ->  | H45: =VLOOKUP($A45,SMAT_2014v2_2028OTBb!$B$1:$DM$17,MATCH(H44,SMAT_2014v2_2028OTBb!$A$16:$DM$16,0),FALSE) ->  | I45: =VLOOKUP($A45,SMAT_2014v2_2028OTBb!$B$1:$DM$17,MATCH(I43,SMAT_2014v2_2028OTBb!$A$16:$DM$16,0),FALSE) ->  | J45: Total International Contribution
B46: E_amm_no3_g90_f | C46: E_amm_so4_g90_f | D46: E_cm_g90_f | E46: E_omc_g90_f | F46: E_ec_g90_f | G46: E_crustal_g90_f | H46: E_sea_salt_g90_f | I46: tbext_g90_f | J46: dv_worst_f
A47: 2028 MID Projection | I47: 2028 MID Extinction | J47: 2028 MID dv
A48: SiteCode | B48: =RIGHT(C$80,LEN(C$80)-7) -> EAmm_NO3 | C48: EAmm_SO4 | D48: ECM | E48: EOMC | F48: ELAC | G48: ESoil | H48: ESea_Salt | I48: tbext | J48: DV
A49: =Glidepath_DV!$B$10&" - 2014v2-2028OTBb" -> BADL1 - 2014v2-2028OTBb | B49: =VLOOKUP($A$45,SMAT_2014v2_2028OTBb!$A$16:$DM$133,MATCH(B$46,SMAT_2014v2_2028OTBb!$A$16:$DM$16,0),FALSE) -> 5.811271669 | C49: =VLOOKUP($A$45,SMAT_2014v2_2028OTBb!$A$16:$DM$133,MATCH(C$46,SMAT_2014v2_2028OTBb!$A$16:$DM$16,0),FALSE) -> 12.54556331 | D49: =VLOOKUP($A$45,SMAT_2014v2_2028OTBb!$A$16:$DM$133,MATCH(D$46,SMAT_2014v2_2028OTBb!$A$16:$DM$16,0),FALSE) -> 2.288735774 | E49: =VLOOKUP($A$45,SMAT_2014v2_2028OTBb!$A$16:$DM$133,MATCH(E$46,SMAT_2014v2_2028OTBb!$A$16:$DM$16,0),FALSE) -> 2.582862667 | F49: =VLOOKUP($A$45,SMAT_2014v2_2028OTBb!$A$16:$DM$133,MATCH(F$46,SMAT_2014v2_2028OTBb!$A$16:$DM$16,0),FALSE) -> 0.6985967439 | G49: =VLOOKUP($A$45,SMAT_2014v2_2028OTBb!$A$16:$DM$133,MATCH(G$46,SMAT_2014v2_2028OTBb!$A$16:$DM$16,0),FALSE) -> 0.5401592457 | H49: =VLOOKUP($A$45,SMAT_2014v2_2028OTBb!$A$16:$DM$133,MATCH(H$46,SMAT_2014v2_2028OTBb!$A$16:$DM$16,0),FALSE) -> 0.05917882246 | I49: =10*EXP(J49/10) -> 34.53887541 | J49: =VLOOKUP($A$45,SMAT_2014v2_2028OTBb!$A$16:$DM$133,MATCH(J$46,SMAT_2014v2_2028OTBb!$A$16:$DM$16,0),FALSE) -> 12.3950042
A50: =Glidepath_DV!$B$10&" - RepBase-2028OTBa" -> BADL1 - RepBase-2028OTBa | B50: =VLOOKUP($A$45,SMAT_RepBase_2028OTBa!$A$17:$DM$133,MATCH(B$46,SMAT_RepBase_2028OTBa!$A$16:$DM$16,0),FALSE) -> 4.359455894 | C50: =VLOOKUP($A$45,SMAT_RepBase_2028OTBa!$A$17:$DM$133,MATCH(C$46,SMAT_RepBase_2028OTBa!$A$16:$DM$16,0),FALSE) -> 9.035334961 | D50: =VLOOKUP($A$45,SMAT_RepBase_2028OTBa!$A$17:$DM$133,MATCH(D$46,SMAT_RepBase_2028OTBa!$A$16:$DM$16,0),FALSE) -> 1.94995264 | E50: =VLOOKUP($A$45,SMAT_RepBase_2028OTBa!$A$17:$DM$133,MATCH(E$46,SMAT_RepBase_2028OTBa!$A$16:$DM$16,0),FALSE) -> 3.217185115 | F50: =VLOOKUP($A$45,SMAT_RepBase_2028OTBa!$A$17:$DM$133,MATCH(F$46,SMAT_RepBase_2028OTBa!$A$16:$DM$16,0),FALSE) -> 0.8066390558 | G50: =VLOOKUP($A$45,SMAT_RepBase_2028OTBa!$A$17:$DM$133,MATCH(G$46,SMAT_RepBase_2028OTBa!$A$16:$DM$16,0),FALSE) -> 0.4603929201 | H50: =VLOOKUP($A$45,SMAT_RepBase_2028OTBa!$A$17:$DM$133,MATCH(H$46,SMAT_RepBase_2028OTBa!$A$16:$DM$16,0),FALSE) -> 0.05980895181 | I50: =10*EXP(J50/10) -> 30.28748052 | J50: =VLOOKUP($A$45,SMAT_RepBase_2028OTBa!$A$17:$DM$133,MATCH(J$46,SMAT_RepBase_2028OTBa!$A$16:$DM$16,0),FALSE) -> 11.0814935
A52: 2028 Clearest Day Projection | B52: E_amm_no3_g10_f | C52: E_amm_so4_g10_f | D52: E_cm_g10_f | E52: E_omc_g10_f | F52: E_ec_g10_f | G52: E_crustal_g10_f | H52: E_sea_salt_g10_f | I52: tbext_g10_f | J52: dv_best_f
A53: SiteCode | B53: =RIGHT(C$80,LEN(C$80)-7) -> EAmm_NO3 | C53: EAmm_SO4 | D53: ECM | E53: EOMC | F53: ELAC | G53: ESoil | H53: ESea_Salt | I53: tbext | J53: DV
A54: =Glidepath_DV!$B$10&" - 2014v2-2028OTBb" -> BADL1 - 2014v2-2028OTBb | B54: =VLOOKUP($A$45,SMAT_2014v2_2028OTBb!$A$16:$DM$133,MATCH(B$52,SMAT_2014v2_2028OTBb!$A$16:$DM$16,0),FALSE) -> 0.8197055717 | C54: =VLOOKUP($A$45,SMAT_2014v2_2028OTBb!$A$16:$DM$133,MATCH(C$52,SMAT_2014v2_2028OTBb!$A$16:$DM$16,0),FALSE) -> 2.354740241 | D54: =VLOOKUP($A$45,SMAT_2014v2_2028OTBb!$A$16:$DM$133,MATCH(D$52,SMAT_2014v2_2028OTBb!$A$16:$DM$16,0),FALSE) -> 1.178541228 | E54: =VLOOKUP($A$45,SMAT_2014v2_2028OTBb!$A$16:$DM$133,MATCH(E$52,SMAT_2014v2_2028OTBb!$A$16:$DM$16,0),FALSE) -> 1.063403609 | F54: =VLOOKUP($A$45,SMAT_2014v2_2028OTBb!$A$16:$DM$133,MATCH(F$52,SMAT_2014v2_2028OTBb!$A$16:$DM$16,0),FALSE) -> 0.2466799531 | G54: =VLOOKUP($A$45,SMAT_2014v2_2028OTBb!$A$16:$DM$133,MATCH(G$52,SMAT_2014v2_2028OTBb!$A$16:$DM$16,0),FALSE) -> 0.2886276192 | H54: =VLOOKUP($A$45,SMAT_2014v2_2028OTBb!$A$16:$DM$133,MATCH(H$52,SMAT_2014v2_2028OTBb!$A$16:$DM$16,0),FALSE) -> 0.04383239977 | I54: =10*EXP(J54/10) -> 16.91856641 | J54: =VLOOKUP($A$45,SMAT_2014v2_2028OTBb!$A$16:$DM$133,MATCH(J$52,SMAT_2014v2_2028OTBb!$A$16:$DM$16,0),FALSE) -> 5.2582653
A55: =Glidepath_DV!$B$10&" - RepBase-2028OTBa" -> BADL1 - RepBase-2028OTBa | B55: =VLOOKUP($A$45,SMAT_RepBase_2028OTBa!$A$17:$DM$133,MATCH(B$52,SMAT_RepBase_2028OTBa!$A$16:$DM$16,0),FALSE) -> 0.6810185933 | C55: =VLOOKUP($A$45,SMAT_RepBase_2028OTBa!$A$17:$DM$133,MATCH(C$52,SMAT_RepBase_2028OTBa!$A$16:$DM$16,0),FALSE) -> 1.976545179 | D55: =VLOOKUP($A$45,SMAT_RepBase_2028OTBa!$A$17:$DM$133,MATCH(D$52,SMAT_RepBase_2028OTBa!$A$16:$DM$16,0),FALSE) -> 1.071233749 | E55: =VLOOKUP($A$45,SMAT_RepBase_2028OTBa!$A$17:$DM$133,MATCH(E$52,SMAT_RepBase_2028OTBa!$A$16:$DM$16,0),FALSE) -> 1.250030277 | F55: =VLOOKUP($A$45,SMAT_RepBase_2028OTBa!$A$17:$DM$133,MATCH(F$52,SMAT_RepBase_2028OTBa!$A$16:$DM$16,0),FALSE) -> 0.2878599276 | G55: =VLOOKUP($A$45,SMAT_RepBase_2028OTBa!$A$17:$DM$133,MATCH(G$52,SMAT_RepBase_2028OTBa!$A$16:$DM$16,0),FALSE) -> 0.2764745279 | H55: =VLOOKUP($A$45,SMAT_RepBase_2028OTBa!$A$17:$DM$133,MATCH(H$52,SMAT_RepBase_2028OTBa!$A$16:$DM$16,0),FALSE) -> 0.0476776026 | I55: =10*EXP(J55/10) -> 16.51626252 | J55: =VLOOKUP($A$45,SMAT_RepBase_2028OTBa!$A$17:$DM$133,MATCH(J$52,SMAT_RepBase_2028OTBa!$A$16:$DM$16,0),FALSE) -> 5.0176041
A57: Bext Chart Values
A58: Data Source:
A59: Data Methodology:
A60: Units: | B60: Deciview for dv, Extinction (Mm-1) for PM Species
A62: Composition | B62: Obs 2016 | C62: Mod 2016 | E62: Source Contribution | F62: 2028 (SMAT-PSAT1) normalized | G62: 2028 (SMAT-PSAT1) | I62: Source Contribution | J62: 2028 (SMAT-PSAT2)
A63: EAmm_NO3 | B63: =SUMIFS(Data_Summary!$O$81:$O$2890,Data_Summary!$M$81:$M$2890,Glidepath_DV!$B$10,Data_Summary!$N$81:$N$2890,2016) -> 5.639294588 | C63: =VLOOKUP(Glidepath_DV!$B$10,'MOD2014'!$S$4:$AA$108,MATCH("Average of "&Data_Summary!$A63,'MOD2014'!$S$3:$AA$3,0),FALSE) -> 6.740185266 | E63: TX EGU | F63: =(G63/SUM($G$63:$G$75))*($I$49-$B$70) ->  | G63: =VLOOKUP(Glidepath_DV!$B$10,SMAT_PSAT1!$A$36:$P$50,16,FALSE) ->  | H63: Arkansas | I63: AR | J63: =VLOOKUP(Glidepath_DV!$B$10,SMAT_PSAT2!$A$35:$P$49,16,FALSE) -> 
A64: EAmm_SO4 | B64: =SUMIFS(Data_Summary!$P$81:$P$2890,Data_Summary!$M$81:$M$2890,Glidepath_DV!$B$10,Data_Summary!$N$81:$N$2890,2016) -> 10.7520642 | C64: =VLOOKUP(Glidepath_DV!$B$10,'MOD2014'!$S$4:$AA$108,MATCH("Average of "&Data_Summary!$A64,'MOD2014'!$S$3:$AA$3,0),FALSE) -> 6.866671409 | E64: TX non-EGU | F64: =(G64/SUM($G$63:$G$75))*($I$49-$B$70) ->  | G64: =VLOOKUP(Glidepath_DV!$B$10,SMAT_PSAT1!$A$54:$P$68,16,FALSE) ->  | H64: Colorado | I64: CO | J64: =VLOOKUP(Glidepath_DV!$B$10,SMAT_PSAT2!$A$53:$P$67,16,FALSE) -> 
A65: ECM | B65: =SUMIFS(Data_Summary!$Q$81:$Q$2890,Data_Summary!$M$81:$M$2890,Glidepath_DV!$B$10,Data_Summary!$N$81:$N$2890,2016) -> 1.799891 | C65: =VLOOKUP(Glidepath_DV!$B$10,'MOD2014'!$S$4:$AA$108,MATCH("Average of "&Data_Summary!$A65,'MOD2014'!$S$3:$AA$3,0),FALSE) -> 0.8322845217 | E65: TX Oil&Gas | G65: =VLOOKUP(Glidepath_DV!$B$10,SMAT_PSAT1!$A$72:$P$86,16,FALSE) ->  | H65: Louisiana | I65: LA | J65: =VLOOKUP(Glidepath_DV!$B$10,SMAT_PSAT2!$A$71:$P$85,16,FALSE) -> 
A66: EOMC | B66: =SUMIFS(Data_Summary!$R$81:$R$2890,Data_Summary!$M$81:$M$2890,Glidepath_DV!$B$10,Data_Summary!$N$81:$N$2890,2016) -> 3.558490288 | C66: =VLOOKUP(Glidepath_DV!$B$10,'MOD2014'!$S$4:$AA$108,MATCH("Average of "&Data_Summary!$A66,'MOD2014'!$S$3:$AA$3,0),FALSE) -> 3.895446415 | E66: TX on-road | G66: =VLOOKUP(Glidepath_DV!$B$10,SMAT_PSAT1!$A$90:$P$104,16,FALSE) ->  | H66: Missouri | I66: MO | J66: =VLOOKUP(Glidepath_DV!$B$10,SMAT_PSAT2!$A$89:$P$103,16,FALSE) -> 
A67: ELAC | B67: =SUMIFS(Data_Summary!$S$81:$S$2890,Data_Summary!$M$81:$M$2890,Glidepath_DV!$B$10,Data_Summary!$N$81:$N$2890,2016) -> 0.9634708333 | C67: =VLOOKUP(Glidepath_DV!$B$10,'MOD2014'!$S$4:$AA$108,MATCH("Average of "&Data_Summary!$A67,'MOD2014'!$S$3:$AA$3,0),FALSE) -> 1.013703043 | E67: TX other anthro | G67: =VLOOKUP(Glidepath_DV!$B$10,SMAT_PSAT1!$A$108:$P$122,16,FALSE) ->  | H67: New Mexico | I67: NM | J67: =VLOOKUP(Glidepath_DV!$B$10,SMAT_PSAT2!$A$107:$P$121,16,FALSE) -> 
A68: ESoil | B68: =SUMIFS(Data_Summary!$T$81:$T$2890,Data_Summary!$M$81:$M$2890,Glidepath_DV!$B$10,Data_Summary!$N$81:$N$2890,2016) -> 0.3904091667 | C68: =VLOOKUP(Glidepath_DV!$B$10,'MOD2014'!$S$4:$AA$108,MATCH("Average of "&Data_Summary!$A68,'MOD2014'!$S$3:$AA$3,0),FALSE) -> 0.3368278696 | E68: Non-Texas US anthro | G68: =VLOOKUP(Glidepath_DV!$B$10,SMAT_PSAT1!$A$126:$P$140,16,FALSE) ->  | H68: Oklahoma | I68: OK | J68: =VLOOKUP(Glidepath_DV!$B$10,SMAT_PSAT2!$A$125:$P$139,16,FALSE) -> 
A69: ESea_Salt | B69: =SUMIFS(Data_Summary!$U$81:$U$2890,Data_Summary!$M$81:$M$2890,Glidepath_DV!$B$10,Data_Summary!$N$81:$N$2890,2016) -> 0.0523475985 | C69: =VLOOKUP(Glidepath_DV!$B$10,'MOD2014'!$S$4:$AA$108,MATCH("Average of "&Data_Summary!$A69,'MOD2014'!$S$3:$AA$3,0),FALSE) -> 0.04003190699 | E69: Can/Mex anthro | G69: =VLOOKUP(Glidepath_DV!$B$10,SMAT_PSAT1!$A$144:$P$158,16,FALSE) ->  | H69: Other | I69: Other | J69: =G68-SUM(J63:J68) -> 
A70: Rayleigh | B70: =SUMIFS(MostImpairedDays!$L$2:$L$2811,MostImpairedDays!$C$2:$C$2811,2016,MostImpairedDays!$B$2:$B$2811,Glidepath_DV!$B$10) -> 0.1006695347 | C70: =VLOOKUP(Glidepath_DV!$B$10,'MOD2014'!$S$4:$AA$108,MATCH("Average of "&Data_Summary!$A70,'MOD2014'!$S$3:$AA$3,0),FALSE) -> 11 | E70: Other non-US anthro | G70: =VLOOKUP(Glidepath_DV!$B$10,SMAT_PSAT1!$A$162:$P$176,16,FALSE) ->  | J70: =SUM(J63:J69) -> 
B71: =SUM(B63:B70) -> 23.2566372 | C71: =SUM(C63:C70) -> 30.72515043 | E71: Fire | G71: =VLOOKUP(Glidepath_DV!$B$10,SMAT_PSAT1!$A$180:$P$194,16,FALSE) -> 
E72: Natural | G72: =VLOOKUP(Glidepath_DV!$B$10,SMAT_PSAT1!$A$198:$P$212,16,FALSE) -> 
E73: BC/IC | G73: =VLOOKUP(Glidepath_DV!$B$10,SMAT_PSAT1!$A$216:$P$230,16,FALSE) -> 
E74: Biogenic SOA | G74: =VLOOKUP(Glidepath_DV!$B$10,SMAT_PSAT1!$A$252:$P$266,16,FALSE) -> 
E75: Anthro SOA | F75: =(G75/SUM($G$63:$G$75))*($I$49-$B$70) ->  | G75: =VLOOKUP(Glidepath_DV!$B$10,SMAT_PSAT1!$A$234:$P$248,16,FALSE) -> 
F76: =SUM(F63:F75) ->  | G76: =SUM(G63:G75) -> 
A77: Raw Data
A78: Group | B78: 10 | M78: impairment_Group | N78: 90
Y79: endpoint
A80: site | B80: year | C80: Sum of EAmm_NO3 | D80: Sum of EAmm_SO4 | E80: Sum of ECM | F80: Sum of EOMC | G80: Sum of ELAC | H80: Sum of ESoil | I80: Sum of ESea_Salt | J80: Sum of DV | K80: Sum of TBext | M80: site | N80: year | O80: Sum of EAmm_NO3 | P80: Sum of EAmm_SO4 | Q80: Sum of ECM | R80: Sum of EOMC | S80: Sum of ELAC | T80: Sum of ESoil | U80: Sum of ESea_Salt | V80: Sum of haze_dv | W80: Sum of TBext | Y80: Row Labels | Z80: Sum of EAmm_SO4 | AA80: Sum of EAmm_NO3 | AB80: Sum of Esea_Salt | AC80: Sum of DV | AD80: Sum of EOMC | AE80: Sum of Esoil | AF80: Sum of ECM | AG80: Sum of ELAC | AH80: Sum of TBext
A81: ACAD1 | B81: 2000 | C81: 0.9890228869 | D81: 7.243904251 | E81: 0.671004 | F81: 2.207255481 | G81: 1.0977 | H81: 0.0981590025 | I81: 0.2676029517 | J81: 8.900969123 | K81: 24.57464857 | M81: ACAD1 | N81: 2000 | O81: 8.433560916 | P81: 48.49790323 | Q81: 1.902785714 | R81: 7.296745121 | S81: 4.152047619 | T81: 0.2886909333 | U81: 1.245854505 | V81: 20.75276792 | W81: 83.81758804 | Y81: ACAD1 | Z81: 5.122487164 | AA81: 1.612693027 | AB81: 0.771492278 | AC81: 10.38734098 | AD81: 7.28975497 | AE81: 0.330946873 | AF81: 1.535981214 | AG81: 0.907197251 | AH81: 29.57055278
A82: ACAD1 | B82: 2001 | C82: 1.366339097 | D82: 7.565613712 | E82: 0.610835 | F82: 1.816814118 | G82: 0.8588333333 | H82: 0.1345645042 | I82: 0.1218298136 | J82: 8.874270145 | K82: 24.47482958 | M82: ACAD1 | N82: 2001 | O82: 6.311476327 | P82: 73.27141125 | Q82: 1.36059192 | R82: 9.835747444 | S82: 4.04052 | T82: 0.57193403 | U82: 0.0236444731 | V82: 22.37429887 | W82: 107.4153254 | Y82: ADPI1 | Z82: 4.746627186 | AA82: 0.825999106 | AB82: 0.160269046 | AC82: 10.48111096 | AD82: 9.319639303 | AE82: 0.607670153 | AF82: 2.016196126 | AG82: 0.997015318 | AH82: 29.67341624
A83: ACAD1 | B83: 2002 | C83: 1.01395987 | D83: 6.292113344 | E83: 0.815747 | F83: 2.459000066 | G83: 0.8562916667 | H83: 0.0969320417 | I83: 0.6305155628 | J83: 8.770072368 | K83: 24.16455955 | M83: ACAD1 | N83: 2002 | O83: 7.475740492 | P83: 74.46332732 | Q83: 1.46809392 | R83: 9.3296285 | S83: 3.72312 | T83: 0.748880668 | U83: 0.310858209 | V83: 22.90975721 | W83: 109.5196491 | Y83: AGTI1 | Z83: 1.110369606 | AA83: 1.239966304 | AB83: 1.067335283 | AC83: 7.661196968 | AD83: 3.537806694 | AE83: 0.55535979 | AF83: 2.393693314 | AG83: 0.95236751 | AH83: 21.8568985
A84: ACAD1 | B84: 2003 | C84: 1.070070816 | D84: 6.841635198 | E84: 0.614145 | F84: 2.093678885 | G84: 0.7825 | H84: 0.1004601188 | I84: 0.670234911 | J84: 8.769720354 | K84: 24.17272493 | M84: ACAD1 | N84: 2003 | O84: 5.138217621 | P84: 82.8831639 | Q84: 1.3471625 | R84: 10.3710669 | S84: 4.286583333 | T84: 0.4281728833 | U84: 0.0646447504 | V84: 22.69669436 | W84: 116.5190119 | Y84: AREN1 | Z84: 3.810901376 | AA84: 1.197365091 | AB84: 0.738593499 | AC84: 10.17087769 | AD84: 8.405963904 | AE84: 0.671361994 | AF84: 2.036976448 | AG84: 0.607996304 | AH84: 28.46915862
A85: ACAD1 | B85: 2004 | C85: 0.9467341927 | D85: 5.857960388 | E85: 0.86631125 | F85: 2.604620979 | G85: 0.7522916667 | H85: 0.1234754667 | I85: 0.5066642111 | J85: 8.562797493 | K85: 23.65805815 | M85: ACAD1 | N85: 2004 | O85: 6.66072741 | P85: 62.969709 | Q85: 1.2953148 | R85: 7.255522962 | S85: 3.2798 | T85: 0.384750324 | U85: 1.011026326 | V85: 21.33764725 | W85: 94.85685082 | Y85: BADL1 | Z85: 1.537775073 | AA85: 1.847401522 | AB85: 0.055260542 | AC85: 6.09115976 | AD85: 2.036224772 | AE85: 0.469032488 | AF85: 1.412105303 | AG85: 0.328872953 | AH85: 18.68667265
A86: ACAD1 | B86: 2005 | C86: 0.9704431595 | D86: 4.744686744 | E86: 0.71397725 | F86: 1.803772065 | G86: 0.7750416667 | H86: 0.0731669483 | I86: 0.8166131921 | J86: 7.656127815 | K86: 21.89770102 | M86: ACAD1 | N86: 2005 | O86: 4.346686667 | P86: 70.55982002 | Q86: 1.22049552 | R86: 7.023665145 | S86: 3.72496 | T86: 0.2171662988 | U86: 0.4651441373 | V86: 21.85037189 | W86: 99.55793779 | Y86: BALA1 | Z86: 1.990112926 | AA86: 2.707935365 | AB86: 0.168367572 | AC86: 6.733403261 | AD86: 3.26501293 | AE86: 0.297396738 | AF86: 1.52639655 | AG86: 0.504546209 | AH86: 20.45976829
A87: ACAD1 | B87: 2006 | C87: 0.9134049824 | D87: 5.791118851 | E87: 0.81871 | F87: 2.007841404 | G87: 0.9063333333 | H87: 0.0757840104 | I87: 0.6178457029 | J87: 8.253902127 | K87: 23.13103828 | M87: ACAD1 | N87: 2006 | O87: 7.57441625 | P87: 70.2978914 | Q87: 2.2396325 | R87: 7.08392481 | S87: 3.533 | T87: 0.3091862396 | U87: 1.012025767 | V87: 22.68771142 | W87: 104.050077 | Y87: BALD1 | Z87: 0.880702591 | AA87: 0.509181873 | AB87: 0.034579484 | AC87: 4.181456391 | AD87: 2.535076445 | AE87: 0.488820454 | AF87: 1.6110238 | AG87: 0.302924467 | AH87: 15.36230911
A88: ACAD1 | B88: 2007 | C88: 0.712975081 | D88: 5.909357076 | E88: 0.7959025 | F88: 2.337693083 | G88: 0.7633333333 | H88: 0.1028418813 | I88: 0.3753918878 | J88: 8.275860958 | K88: 22.99749484 | M88: ACAD1 | N88: 2007 | O88: 5.029595602 | P88: 57.93730792 | Q88: 1.8316875 | R88: 7.92714422 | S88: 3.261958333 | T88: 0.3165792271 | U88: 1.112319913 | V88: 20.83577531 | W88: 89.41659271 | Y88: BAND1 | Z88: 0.962102913 | AA88: 0.984024542 | AB88: 0.047753635 | AC88: 4.587812327 | AD88: 2.567032499 | AE88: 0.487852927 | AF88: 1.65360811 | AG88: 0.397864698 | AH88: 16.10023932
A89: ACAD1 | B89: 2008 | C89: 0.6603558101 | D89: 4.909373791 | E89: 0.91054425 | F89: 1.976407433 | G89: 0.571625 | H89: 0.0898208875 | I89: 0.8242204669 | J89: 7.763495517 | K89: 21.94234764 | M89: ACAD1 | N89: 2008 | O89: 3.53882601 | P89: 45.56278286 | Q89: 1.9067808 | R89: 6.784874455 | S89: 2.26888 | T89: 0.30393958 | U89: 0.5328069062 | V89: 19.34938433 | W89: 72.89889062 | Y89: BIBE1 | Z89: 1.020820866 | AA89: 0.506763701 | AB89: 0.068127761 | AC89: 5.329389796 | AD89: 3.032864759 | AE89: 0.481981072 | AF89: 1.742732318 | AG89: 0.498232771 | AH89: 17.35152325
A90: ACAD1 | B90: 2009 | C90: 0.5181262226 | D90: 3.92619389 | E90: 0.9874025 | F90: 1.538698221 | G90: 0.461625 | H90: 0.0903877458 | I90: 0.5966191586 | J90: 6.920979545 | K90: 20.11905274 | M90: ACAD1 | N90: 2009 | O90: 3.450415243 | P90: 43.88244052 | Q90: 1.42463208 | R90: 5.539232461 | S90: 2.2404 | T90: 0.339776544 | U90: 0.4637835634 | V90: 18.16855245 | W90: 69.34068042 | Y90: BIRM1 | Z90: 3.386008937 | AA90: 1.005719152 | AB90: 0.738797521 | AC90: 9.245301529 | AD90: 6.785011669 | AE90: 0.541037632 | AF90: 1.927851278 | AG90: 0.390372551 | AH90: 25.77479874
A91: ACAD1 | B91: 2010 | C91: 0.6465685818 | D91: 3.847214349 | E91: 0.5350275 | F91: 1.692244018 | G91: 0.500375 | H91: 0.0745736958 | I91: 0.431757993 | J91: 6.706667064 | K91: 19.72776114 | M91: ACAD1 | N91: 2010 | O91: 3.531934237 | P91: 37.07543848 | Q91: 1.785203 | R91: 7.898029701 | S91: 2.485208333 | T91: 0.3995743 | U91: 0.4855393418 | V91: 17.51925163 | W91: 65.6609274 | Y91: BLIS1 | Z91: 0.986456014 | AA91: 0.913517019 | AB91: 0.049069534 | AC91: 4.906596459 | AD91: 2.988441569 | AE91: 0.618158177 | AF91: 1.582589951 | AG91: 0.369837832 | AH91: 16.5080701
A92: ACAD1 | B92: 2011 | C92: 0.5931097527 | D92: 4.643699641 | E92: 0.8808575 | F92: 1.865802079 | G92: 0.542 | H92: 0.049501175 | I92: 0.7507910048 | J92: 7.509341544 | K92: 21.32576115 | M92: ACAD1 | N92: 2011 | O92: 3.15971057 | P92: 31.16862055 | Q92: 2.04239544 | R92: 7.024961939 | S92: 2.461352 | T92: 0.1557143732 | U92: 0.8137234253 | V92: 17.38766232 | W92: 58.8264783 | Y92: BLMO1 | Z92: 2.828086134 | AA92: 2.401358865 | AB92: 0.69701236 | AC92: 8.538953993 | AD92: 5.144029845 | AE92: 0.344374051 | AF92: 1.34107772 | AG92: 0.305327127 | AH92: 24.0612661
A93: ACAD1 | B93: 2012 | C93: 0.6765384308 | D93: 4.913762662 | E93: 1.020439 | F93: 2.032215601 | G93: 0.61175 | H93: 0.0950877675 | I93: 0.5446745175 | J93: 7.752543493 | K93: 21.89446798 | M93: ACAD1 | N93: 2012 | O93: 4.323870646 | P93: 22.40200251 | Q93: 1.73969088 | R93: 5.795557577 | S93: 2.00932 | T93: 0.22040492 | U93: 1.315753733 | V93: 15.80991417 | W93: 49.80660027 | Y93: BOAP1 | Z93: 0.875970902 | AA93: 1.066635879 | AB93: 0.172936507 | AC93: 5.388214779 | AD93: 2.515837409 | AE93: 0.498126793 | AF93: 1.918034948 | AG93: 0.408095454 | AH93: 17.45563789
A94: ACAD1 | B94: 2013 | C94: 0.5339048685 | D94: 3.59742502 | E94: 0.5955078261 | F94: 1.233097816 | G94: 0.3073478261 | H94: 0.0421417174 | I94: 0.5328087566 | J94: 6.253866997 | K94: 18.84223383 | M94: ACAD1 | N94: 2013 | O94: 3.7478627 | P94: 21.80185629 | Q94: 1.8804625 | R94: 4.792440312 | S94: 1.900041667 | T94: 0.1791185583 | U94: 1.146947032 | V94: 15.3121835 | W94: 47.44872906 | Y94: BOLA1 | Z94: 1.116829443 | AA94: 0.897579007 | AB94: 0.04713354 | AC94: 3.731809312 | AD94: 1.607453617 | AE94: 0.74016761 | AF94: 1.105248036 | AG94: 0.228267273 | AH94: 14.74267853
A95: ACAD1 | B95: 2014 | C95: 0.6779107297 | D95: 4.311913822 | E95: 0.8942530435 | F95: 1.571459964 | G95: 0.367 | H95: 0.0466281217 | I95: 0.599880564 | J95: 7.032900466 | K95: 20.46904624 | M95: ACAD1 | N95: 2014 | O95: 5.409632854 | P95: 19.36921333 | Q95: 2.183435 | R95: 5.387783 | S95: 1.885333333 | T95: 0.1777365 | U95: 1.56831208 | V95: 15.36467664 | W95: 47.9814461 | Y95: BOND1 | Z95: 3.219851812 | AA95: 2.378693382 | AB95: 0.886957967 | AC95: 9.295897031 | AD95: 6.342601147 | AE95: 0.420628181 | AF95: 1.291496052 | AG95: 0.404558496 | AH95: 25.94478704
A96: ACAD1 | B96: 2015 | C96: 0.5997582119 | D96: 2.659279265 | E96: 0.8013203478 | F96: 1.461251925 | G96: 0.2484 | H96: 0.0331266 | I96: 0.6041337644 | J96: 6.049556944 | K96: 18.40727011 | M96: ACAD1 | N96: 2015 | O96: 5.271068396 | P96: 21.48530076 | Q96: 1.72633575 | R96: 7.698802945 | S96: 2.034295833 | T96: 0.2075806458 | U96: 1.224863659 | V96: 16.07257755 | W96: 51.64824799 | Y96: BOWA1 | Z96: 3.567852492 | AA96: 2.859015419 | AB96: 0.150399522 | AC96: 9.085033148 | AD96: 5.828288556 | AE96: 0.352797576 | AF96: 1.45564908 | AG96: 0.56766786 | AH96: 25.78167051
A97: ACAD1 | B97: 2016 | C97: 0.5093985728 | D97: 2.720775337 | E97: 0.7841375 | F97: 1.591852296 | G97: 0.3522416667 | H97: 0.0390583333 | I97: 0.4607449013 | J97: 6.08456812 | K97: 18.45820861 | M97: ACAD1 | N97: 2016 | O97: 4.656314723 | P97: 13.39553314 | Q97: 1.73196825 | R97: 5.700505589 | S97: 1.55475 | T97: 0.1436975875 | U97: 1.155305002 | V97: 13.72397149 | W97: 40.33807429 | Y97: BRCA1 | Z97: 0.800450564 | AA97: 1.22830679 | AB97: 0.067566036 | AC97: 4.079156343 | AD97: 1.900656884 | AE97: 0.53857893 | AF97: 1.429750179 | AG97: 0.29065767 | AH97: 15.25596705
A98: ACAD1 | B98: 2017 | C98: 0.7208122789 | D98: 3.501567787 | E98: 0.9775964348 | F98: 2.346862755 | G98: 0.6753217391 | H98: 0.0580682 | I98: 0.3366966428 | J98: 7.18248748 | K98: 20.61692584 | M98: ACAD1 | N98: 2017 | O98: 5.188528085 | P98: 12.61495218 | Q98: 2.311515 | R98: 7.020983446 | S98: 1.749420833 | T98: 0.1777237833 | U98: 1.714865042 | V98: 13.96605206 | W98: 42.77798837 | Y98: BRID1 | Z98: 1.091026563 | AA98: 0.882773054 | AB98: 0.032355052 | AC98: 3.915878615 | AD98: 1.918368761 | AE98: 0.659903284 | AF98: 1.12479566 | AG98: 0.299409946 | AH98: 15.00863232
A99: ACAD1 | B99: 2018 | C99: 0.6756971489 | D99: 2.772270151 | E99: 0.7852568455 | F99: 1.421531056 | G99: 0.5064363636 | H99: 0.0491188527 | I99: 1.082182923 | J99: 6.52658771 | K99: 19.29249334 | M99: ACAD1 | N99: 2018 | O99: 5.442534083 | P99: 12.27021736 | Q99: 1.4664 | R99: 5.000409139 | S99: 1.940286957 | T99: 0.1571653696 | U99: 1.607959886 | V99: 13.57671655 | W99: 39.88497279 | Y99: BRIG1 | Z99: 3.886017604 | AA99: 1.242733945 | AB99: 0.652498789 | AC99: 10.68198747 | AD99: 9.033411839 | AE99: 0.580874873 | AF99: 2.295647464 | AG99: 0.721317367 | AH99: 30.41250188
A100: ADPI1 | B100: 2002 | C100: 3.243904376 | D100: 14.30982067 | E100: 1.158631304 | F100: 3.241991003 | G100: 1.676478261 | H100: 0.1581251717 | I100: 0.047535743 | J100: 12.38246978 | K100: 34.83648652 | M100: ADPI1 | N100: 2002 | O100: 10.25742752 | P100: 147.2117587 | Q100: 2.1695075 | R100: 12.47252877 | S100: 5.762875 | T100: 0.8373281271 | U100: 0.0054194704 | V100: 28.45251603 | W100: 189.7168451 | Y100: BRIS1 | Z100: 3.779854881 | AA100: 1.378130641 | AB100: 0.830172423 | AC100: 9.271805215 | AD100: 6.335187572 | AE100: 0.569247713 | AF100: 1.525514617 | AG100: 0.348902759 | AH100: 25.76701061
A101: ADPI1 | B101: 2003 | C101: 3.557290305 | D101: 12.06726446 | E101: 0.8857325 | F101: 3.536456536 | G101: 1.62575 | H101: 0.1444809417 | I101: 0.1424433251 | J101: 11.78898615 | K101: 32.95941807 | M101: ADPI1 | N101: 2003 | O101: 8.428209539 | P101: 131.6618538 | Q101: 1.94696 | R101: 11.46172997 | S101: 5.023125 | T101: 0.53370775 | U101: 0.0544792328 | V101: 27.36665539 | W101: 170.1100653 | Y101: BRMA1 | Z101: 4.487140625 | AA101: 1.335429952 | AB101: 0.234408912 | AC101: 10.46456896 | AD101: 8.92334 | AE101: 0.359606539 | AF101: 1.446623919 | AG101: 0.971234552 | AH101: 29.7577845
A102: ADPI1 | B102: 2004 | C102: 3.017066754 | D102: 10.39159943 | E102: 0.98517 | F102: 3.326306736 | G102: 1.64075 | H102: 0.1307733854 | I102: 0.46770978 | J102: 11.18354283 | K102: 30.95937608 | M102: ADPI1 | N102: 2004 | O102: 5.782667536 | P102: 120.6700261 | Q102: 1.6514184 | R102: 8.952742288 | S102: 4.62784 | T102: 0.633950952 | U102: 0.2744571712 | V102: 26.46383393 | W102: 153.5931025 | Y102: CABA1 | Z102: 4.102503141 | AA102: 1.424274539 | AB102: 1.023419698 | AC102: 10.93342622 | AD102: 9.3088088 | AE102: 0.364005227 | AF102: 2.073919386 | AG102: 0.78619929 | AH102: 31.08313008
A103: ADPI1 | B103: 2005 | C103: 3.251719334 | D103: 12.98265126 | E103: 0.9345913043 | F103: 2.676393124 | G103: 1.808869565 | H103: 0.1189414413 | I103: 0.1855780106 | J103: 11.62699554 | K103: 32.95874404 | M103: ADPI1 | N103: 2005 | O103: 9.053546747 | P103: 170.1929127 | Q103: 1.884393437 | R103: 9.228754025 | S103: 5.567666667 | T103: 0.4780792813 | U103: 0.3189018398 | V103: 29.63967523 | W103: 207.7242547 | Y103: CABI1 | Z103: 1.406704939 | AA103: 1.171674112 | AB103: 0.054677115 | AC103: 5.639005559 | AD103: 3.084029939 | AE103: 0.475235417 | AF103: 1.260297253 | AG103: 0.394603244 | AH103: 17.84722202
A104: ADPI1 | B104: 2006 | C104: 1.726461557 | D104: 9.098905208 | E104: 1.29606625 | F104: 3.222730164 | G104: 1.507583333 | H104: 0.2099254113 | I104: 0.2364988958 | J104: 10.2727195 | K104: 28.29817082 | M104: ADPI1 | N104: 2006 | O104: 5.358348725 | P104: 108.486107 | Q104: 2.0983344 | R104: 8.968450703 | S104: 4.5444 | T104: 0.53064642 | U104: 0.198015097 | V104: 25.78768798 | W104: 141.1843023 | Y104: CACO1 | Z104: 4.223449764 | AA104: 1.228887035 | AB104: 1.295820405 | AC104: 11.00077259 | AD104: 8.974683619 | AE104: 0.454726627 | AF104: 1.942332394 | AG104: 1.010469039 | AH104: 31.13036888
A105: ADPI1 | B105: 2007 | C105: 2.521675727 | D105: 9.663302738 | E105: 1.220394546 | F105: 2.909985375 | G105: 1.481636364 | H105: 0.1668802364 | I105: 0.1937310758 | J105: 10.65392321 | K105: 29.15760606 | M105: ADPI1 | N105: 2007 | O105: 6.406940307 | P105: 120.4900349 | Q105: 2.919435652 | R105: 11.79531773 | S105: 5.53826087 | T105: 0.7114385413 | U105: 0.1519920892 | V105: 26.79397205 | W105: 159.0134201 | Y105: CACR1 | Z105: 3.509919813 | AA105: 1.542291833 | AB105: 0.313070906 | AC105: 9.542874552 | AD105: 8.032897177 | AE105: 0.480775071 | AF105: 1.70503565 | AG105: 0.584192314 | AH105: 27.16818276
A106: ADPI1 | B106: 2008 | C106: 2.642052954 | D106: 10.16522845 | E106: 1.24739 | F106: 3.522462556 | G106: 1.523666667 | H106: 0.2106771229 | I106: 0.1715989159 | J106: 10.98704469 | K106: 30.48307666 | M106: ADPI1 | N106: 2008 | O106: 8.786221016 | P106: 89.34934021 | Q106: 2.11506 | R106: 9.152285756 | S106: 4.410384 | T106: 0.625275852 | U106: 0.132091326 | V106: 24.74229173 | W106: 125.5706582 | Y106: CADI1 | Z106: 3.917548023 | AA106: 1.489382937 | AB106: 0.298205103 | AC106: 9.450023212 | AD106: 6.860879421 | AE106: 0.634614281 | AF106: 1.75263842 | AG106: 0.402165471 | AH106: 26.35543365
A107: ADPI1 | B107: 2009 | C107: 1.479855061 | D107: 8.820315988 | E107: 1.212094435 | F107: 2.371196513 | G107: 1.026782609 | H107: 0.1352755652 | I107: 0.199941624 | J107: 9.567365338 | K107: 26.24546179 | M107: ADPI1 | N107: 2009 | O107: 10.74758698 | P107: 61.66273134 | Q107: 1.847489 | R107: 6.411041224 | S107: 3.262208333 | T107: 0.5140394 | U107: 0.1467961433 | V107: 21.93534284 | W107: 95.59189243 | Y107: CANY1 | Z107: 0.772912776 | AA107: 1.550488118 | AB107: 0.06419576 | AC107: 4.125650525 | AD107: 1.992515165 | AE107: 0.384657096 | AF107: 1.239503503 | AG107: 0.339374567 | AH107: 15.34364699
A108: AGTI1 | B108: 2001 | C108: 4.475785272 | D108: 3.895706519 | E108: 2.3928 | F108: 3.330220824 | G108: 2.0237 | H108: 0.315254485 | I108: 0.8473511714 | J108: 10.1748379 | K108: 28.28081827 | M108: AGTI1 | N108: 2001 | O108: 32.80738013 | P108: 24.2343022 | Q108: 4.943737143 | R108: 8.484440381 | S108: 4.901476191 | T108: 0.4486385762 | U108: 0.305015547 | V108: 21.39075725 | W108: 87.12499017 | Y108: CAPI1 | Z108: 0.842175232 | AA108: 1.480509133 | AB108: 0.047817429 | AC108: 4.000954462 | AD108: 1.777861597 | AE108: 0.460526564 | AF108: 1.186939902 | AG108: 0.311423761 | AH108: 15.10725362
A109: AGTI1 | B109: 2002 | C109: 3.805879895 | D109: 4.821300911 | E109: 2.795598947 | F109: 3.013059705 | G109: 2.12968421 | H109: 0.5927711789 | I109: 0.6878380817 | J109: 10.41180309 | K109: 28.84613293 | M109: AGTI1 | N109: 2002 | O109: 40.03995278 | P109: 25.36591522 | Q109: 7.483599 | R109: 8.359299449 | S109: 5.23215 | T109: 0.764452965 | U109: 0.3044575458 | V109: 22.44156887 | W109: 98.54982696 | Y109: CEBL1 | Z109: 1.309325985 | AA109: 2.155019722 | AB109: 0.221607838 | AC109: 6.530062684 | AD109: 2.503420486 | AE109: 0.399817169 | AF109: 1.51416393 | AG109: 0.444280036 | AH109: 19.54763517
A110: AGTI1 | B110: 2003 | C110: 3.092696224 | D110: 3.268343999 | E110: 2.147196 | F110: 3.166451504 | G110: 2.0591 | H110: 0.541989335 | I110: 0.9407924789 | J110: 9.388936981 | K110: 26.21656954 | M110: AGTI1 | N110: 2003 | O110: 27.09069307 | P110: 28.08670061 | Q110: 5.037723 | R110: 10.548508 | S110: 5.521 | T110: 0.5997364625 | U110: 0.2349672408 | V110: 21.31530798 | W110: 88.11932839 | Y110: CHAS1 | Z110: 3.854733153 | AA110: 0.811321427 | AB110: 0.674606576 | AC110: 9.029067163 | AD110: 6.168552444 | AE110: 0.571763357 | AF110: 1.628571555 | AG110: 0.283956622 | AH110: 24.99350513
A111: AGTI1 | B111: 2004 | C111: 1.719446492 | D111: 3.616424053 | E111: 2.294562857 | F111: 2.456450232 | G111: 1.270571429 | H111: 0.4264424857 | I111: 0.6940683257 | J111: 8.362796357 | K111: 23.47796587 | M111: AGTI1 | N111: 2004 | O111: 27.05240069 | P111: 25.99820593 | Q111: 6.147957273 | R111: 9.35397585 | S111: 4.356090909 | T111: 0.8165417045 | U111: 1.094743653 | V111: 21.25287189 | W111: 85.81991601 | Y111: CHER1 | Z111: 2.661893935 | AA111: 1.989961237 | AB111: 0.320209567 | AC111: 8.777663054 | AD111: 6.557304165 | AE111: 0.410878109 | AF111: 1.620971463 | AG111: 0.3458073 | AH111: 24.90702578
A112: AGTI1 | B112: 2005 | C112: 1.192586823 | D112: 2.605100271 | E112: 1.76156 | F112: 1.703682363 | G112: 1.264611111 | H112: 0.2290804 | I112: 0.4368116 | J112: 6.882652286 | K112: 20.19343257 | M112: AGTI1 | N112: 2005 | O112: 15.42417796 | P112: 32.0144495 | Q112: 5.482373684 | R112: 7.841929033 | S112: 5.161473684 | T112: 0.6865841789 | U112: 0.7818113179 | V112: 20.39255674 | W112: 78.39279935 | Y112: CHIR1 | Z112: 0.909252273 | AA112: 0.474895352 | AB112: 0.057838461 | AC112: 4.93079206 | AD112: 2.435803577 | AE112: 0.476415999 | AF112: 1.876007937 | AG112: 0.342443318 | AH112: 16.57265692
A113: AGTI1 | B113: 2006 | C113: 1.831168722 | D113: 3.309954228 | E113: 2.104812 | F113: 2.188048653 | G113: 1.49325 | H113: 0.29782675 | I113: 1.046451609 | J113: 8.3460884 | K113: 23.27151196 | M113: AGTI1 | N113: 2006 | O113: 14.22224962 | P113: 36.48825896 | Q113: 5.395048571 | R113: 8.339579951 | S113: 5.162666667 | T113: 0.7696134048 | U113: 0.7607324657 | V113: 20.89591212 | W113: 82.13814964 | Y113: CLPE1 | Z113: 1.205609623 | AA113: 1.18685939 | AB113: 0.050284043 | AC113: 4.443585802 | AD113: 2.035854274 | AE113: 0.617472686 | AF113: 1.498754734 | AG113: 0.296194519 | AH113: 15.89102927
A114: AGTI1 | B114: 2007 | C114: 2.230888361 | D114: 3.091058053 | E114: 3.732003333 | F114: 2.394622116 | G114: 1.558777778 | H114: 0.5896941 | I114: 0.484679605 | J114: 9.029954345 | K114: 25.08172335 | M114: AGTI1 | N114: 2007 | O114: 30.7004332 | P114: 23.99848563 | Q114: 6.540429474 | R114: 7.271305962 | S114: 4.506631579 | T114: 0.6250209158 | U114: 1.586044222 | V114: 21.20850723 | W114: 86.22835098 | Y114: COGO1 | Z114: 1.968792495 | AA114: 3.126863285 | AB114: 0.592901838 | AC114: 8.369753721 | AD114: 3.595490581 | AE114: 0.396879934 | AF114: 1.853128719 | AG114: 0.530576087 | AH114: 24.06463294
A115: AGTI1 | B115: 2008 | C115: 1.621213409 | D115: 2.054993443 | E115: 2.264770909 | F115: 1.908358205 | G115: 1.283227273 | H115: 0.3633691386 | I115: 0.8582458987 | J115: 7.483156444 | K115: 21.35417828 | M115: AGTI1 | N115: 2008 | O115: 16.64361719 | P115: 20.67424296 | Q115: 6.333114783 | R115: 7.122328904 | S115: 3.119608696 | T115: 0.7492146478 | U115: 1.567046156 | V115: 18.88293267 | W115: 67.20917334 | Y115: COHU1 | Z115: 4.354431742 | AA115: 0.686045752 | AB115: 0.12371238 | AC115: 9.879266646 | AD115: 8.894378927 | AE115: 0.56647494 | AF115: 1.549499062 | AG115: 0.660956523 | AH115: 27.83549933
A116: AGTI1 | B116: 2009 | C116: 1.257262705 | D116: 2.174574343 | E116: 1.901251429 | F116: 1.220719205 | G116: 0.8224761905 | H116: 0.2959294381 | I116: 0.4412376253 | J116: 6.347446126 | K116: 19.11345093 | M116: AGTI1 | N116: 2009 | O116: 13.62641916 | P116: 22.70484803 | Q116: 6.175630909 | R116: 6.707266788 | S116: 3.080227273 | T116: 0.9451594318 | U116: 0.8972071609 | V116: 18.59469072 | W116: 65.13675875 | Y116: CORI1 | Z116: 2.265002802 | AA116: 4.425684257 | AB116: 0.332279121 | AC116: 8.634917536 | AD116: 3.599044884 | AE116: 0.372810201 | AF116: 1.19539766 | AG116: 0.684964616 | AH116: 24.87518354
A117: AGTI1 | B117: 2010 | C117: 1.279235765 | D117: 1.988112181 | E117: 1.86156 | F117: 1.950518198 | G117: 0.92425 | H117: 0.290237535 | I117: 0.7452330656 | J117: 6.874679043 | K117: 20.03914675 | M117: AGTI1 | N117: 2010 | O117: 14.45310004 | P117: 16.43995906 | Q117: 5.522357143 | R117: 6.692130624 | S117: 2.998761905 | T117: 0.6571573095 | U117: 0.9127760044 | V117: 17.61328859 | W117: 58.67624208 | Y117: CRES1 | Z117: 1.261614394 | AA117: 2.081721408 | AB117: 0.12898301 | AC117: 5.816396692 | AD117: 2.191158267 | AE117: 0.45381744 | AF117: 1.788735278 | AG117: 0.373468588 | AH117: 18.27949839
A118: AGTI1 | B118: 2011 | C118: 0.8593797791 | D118: 1.902534815 | E118: 1.492143158 | F118: 1.591623471 | G118: 0.8915789474 | H118: 0.2013202684 | I118: 0.5410390832 | J118: 6.050636876 | K118: 18.47961952 | M118: AGTI1 | N118: 2011 | O118: 9.887832723 | P118: 19.03448035 | Q118: 5.083644 | R118: 7.767678869 | S118: 3.1724 | T118: 0.52108106 | U118: 1.076572107 | V118: 17.43445488 | W118: 57.54368911 | Y118: CRLA1 | Z118: 2.040957769 | AA118: 1.225491114 | AB118: 0.138450643 | AC118: 5.159872923 | AD118: 2.648444339 | AE118: 0.657058615 | AF118: 1.064825845 | AG118: 0.374322777 | AH118: 17.1495511
A119: AGTI1 | B119: 2012 | C119: 1.18119964 | D119: 2.281460769 | E119: 1.987430526 | F119: 1.698005985 | G119: 0.9348421053 | H119: 0.3551686 | I119: 0.4426474244 | J119: 6.7509524 | K119: 19.88075505 | M119: AGTI1 | N119: 2012 | O119: 13.24409619 | P119: 16.14760444 | Q119: 6.500313 | R119: 6.624519678 | S119: 2.7303 | T119: 0.817615135 | U119: 1.99892052 | V119: 17.63334622 | W119: 59.06336896 | Y119: CRMO1 | Z119: 1.037806822 | AA119: 2.48589985 | AB119: 0.130327853 | AC119: 4.97260311 | AD119: 1.555452405 | AE119: 0.311394596 | AF119: 0.857494187 | AG119: 0.280931395 | AH119: 16.65930711
A120: AGTI1 | B120: 2013 | C120: 1.256768372 | D120: 1.718295523 | E120: 1.823592 | F120: 1.651817003 | G120: 0.8611 | H120: 0.28235742 | I120: 0.193953663 | J120: 6.223682653 | K120: 18.78788398 | M120: AGTI1 | N120: 2013 | O120: 12.46390631 | P120: 14.15943602 | Q120: 6.27246 | R120: 6.279716017 | S120: 3.144904762 | T120: 0.6436980143 | U120: 1.426058503 | V120: 17.01578928 | W120: 55.39017962 | Y120: DENA1 | Z120: 1.37680749 | AA120: 0.47780617 | AB120: 0.28449159 | AC120: 4.72274135 | AD120: 1.717319338 | AE120: 0.220587626 | AF120: 0.784622795 | AG120: 0.390098799 | AH120: 16.25173381
A121: AGTI1 | B121: 2014 | C121: 1.139426004 | D121: 2.117588619 | E121: 2.273823 | F121: 2.005239975 | G121: 1.12785 | H121: 0.369418195 | I121: 0.37701189 | J121: 7.074995399 | K121: 20.41035768 | M121: AGTI1 | N121: 2014 | O121: 14.94552451 | P121: 13.53358255 | Q121: 6.772854286 | R121: 5.648194945 | S121: 2.136952381 | T121: 0.7580538333 | U121: 1.996341523 | V121: 17.2749091 | W121: 56.79150403 | Y121: DEVA1 | Z121: 0.947207406 | AA121: 0.916118341 | AB121: 0.093650977 | AC121: 6.908617038 | AD121: 3.153293936 | AE121: 0.904615908 | AF121: 2.71846781 | AG121: 0.467917021 | AH121: 20.2012714
A122: AGTI1 | B122: 2015 | C122: 0.8152616893 | D122: 1.674785994 | E122: 2.2247736 | F122: 1.955326176 | G122: 0.85364 | H122: 0.39841824 | I122: 0.383633424 | J122: 6.506531132 | K122: 19.30583912 | M122: AGTI1 | N122: 2015 | O122: 8.680097439 | P122: 12.72279727 | Q122: 5.134174286 | R122: 5.973520852 | S122: 2.015557143 | T122: 0.4900533524 | U122: 1.303392225 | V122: 15.32467685 | W122: 47.31959257 | Y122: DOME1 | Z122: 0.906587456 | AA122: 1.575511734 | AB122: 0.168270464 | AC122: 6.18685222 | AD122: 2.802869637 | AE122: 0.62702341 | AF122: 2.416011756 | AG122: 0.380085069 | AH122: 18.87635953
A123: AGTI1 | B123: 2016 | C123: 1.501968359 | D123: 2.198116645 | E123: 2.444305143 | F123: 1.969524706 | G123: 0.8908952381 | H123: 0.3695158571 | I123: 0.729107832 | J123: 7.41053723 | K123: 21.10343378 | M123: AGTI1 | N123: 2016 | O123: 9.548064388 | P123: 14.06025032 | Q123: 6.992406571 | R123: 6.675875442 | S123: 2.108342857 | T123: 0.5962239571 | U123: 0.964755882 | V123: 16.38000296 | W123: 51.94591941 | Y123: DOSO1 | Z123: 4.522942252 | AA123: 0.526846649 | AB123: 0.104506407 | AC123: 8.916760581 | AD123: 7.427873403 | AE123: 0.574169863 | AF123: 1.414337362 | AG123: 0.547990197 | AH123: 25.11866613
A124: AGTI1 | B124: 2017 | C124: 1.199805759 | D124: 1.631604077 | E124: 2.71223713 | F124: 2.391910844 | G124: 1.019891304 | H124: 0.4563042039 | I124: 0.2235572716 | J124: 7.10497474 | K124: 20.63531059 | M124: AGTI1 | N124: 2017 | O124: 8.904025145 | P124: 13.87211486 | Q124: 6.85610725 | R124: 7.280406993 | S124: 2.444716667 | T124: 0.5885845542 | U124: 0.8810291253 | V124: 16.34976701 | W124: 51.8269846 | Y124: DOUG1 | Z124: 0.566696101 | AA124: 0.372736114 | AB124: 0.227158844 | AC124: 5.218989768 | AD124: 2.082911563 | AE124: 0.733827992 | AF124: 2.638056109 | AG124: 0.296856804 | AH124: 16.91824353
A125: AREN1 | B125: 2002 | C125: 6.467755367 | D125: 22.00219496 | E125: 1.33563 | F125: 4.585228211 | G125: 2.435208333 | H125: 0.22296595 | I125: 0.0394596818 | J125: 15.49448167 | K125: 48.0884425 | M125: AREN1 | N125: 2002 | O125: 15.36814482 | P125: 153.4380164 | Q125: 2.8930975 | R125: 15.16736543 | S125: 5.747333333 | T125: 1.254265175 | U125: 0.3889749409 | V125: 29.19446881 | W125: 205.2571976 | Y125: EGBE1 | Z125: 4.012417728 | AA125: 2.688213379 | AB125: 0.906337531 | AC125: 10.80563974 | AD125: 7.43434748 | AE125: 0.406837122 | AF125: 2.133493161 | AG125: 0.658636097 | AH125: 30.2402825
A126: AREN1 | B126: 2003 | C126: 6.29256816 | D126: 16.19864965 | E126: 1.536573913 | F126: 4.870699997 | G126: 2.33326087 | H126: 0.2085112674 | I126: 0.082961782 | J126: 14.31952138 | K126: 42.52322564 | M126: AREN1 | N126: 2003 | O126: 29.24501522 | P126: 126.3763929 | Q126: 2.797465 | R126: 12.38766628 | S126: 6.161291667 | T126: 0.5454267188 | U126: 0.6718299551 | V126: 28.6827018 | W126: 189.1850877 | Y126: ELDO1 | Z126: 2.799060091 | AA126: 2.212183143 | AB126: 0.367758905 | AC126: 8.831106462 | AD126: 6.306728991 | AE126: 0.407290283 | AF126: 1.492159456 | AG126: 0.359993089 | AH126: 24.94517396
A127: AREN1 | B127: 2004 | C127: 5.087971138 | D127: 12.07152624 | E127: 1.407645 | F127: 4.485567781 | G127: 2.139916667 | H127: 0.1879859188 | I127: 0.4677374156 | J127: 12.86927565 | K127: 36.84835016 | M127: AREN1 | N127: 2004 | O127: 25.89592637 | P127: 139.8008991 | Q127: 2.8723152 | R127: 13.77798339 | S127: 6.24324 | T127: 0.76795562 | U127: 1.092021013 | V127: 29.4355285 | W127: 201.4503407 | Y127: ELLI1 | Z127: 1.382563996 | AA127: 1.925750697 | AB127: 0.24255999 | AC127: 6.68314644 | AD127: 2.701817025 | AE127: 0.416215181 | AF127: 1.639279982 | AG127: 0.484723743 | AH127: 19.79291061
A128: AREN1 | B128: 2005 | C128: 6.958853339 | D128: 17.93071859 | E128: 1.518266087 | F128: 3.697118562 | G128: 2.703130435 | H128: 0.1592014957 | I128: 0.5123087922 | J128: 14.4066427 | K128: 44.4795973 | M128: AREN1 | N128: 2005 | O128: 27.47049326 | P128: 167.7738205 | Q128: 3.4615525 | R128: 11.25782926 | S128: 6.5765 | T128: 0.6263153021 | U128: 0.9172080656 | V128: 30.99093115 | W128: 229.0837189 | Y128: EVER1 | Z128: 2.733344464 | AA128: 0.725769755 | AB128: 1.096675848 | AC128: 8.327943365 | AD128: 5.262382899 | AE128: 0.42812431 | AF128: 1.569225522 | AG128: 0.566741393 | AH128: 23.38226419
A129: AREN1 | B129: 2006 | C129: 3.605241578 | D129: 15.0882523 | E129: 2.02659913 | F129: 3.653399846 | G129: 2.296043478 | H129: 0.3636513152 | I129: 0.3327854639 | J129: 13.2924778 | K129: 38.36597311 | M129: AREN1 | N129: 2006 | O129: 22.52714623 | P129: 129.2889149 | Q129: 2.7275145 | R129: 13.31410742 | S129: 6.878208333 | T129: 0.5205513417 | U129: 0.9272905744 | V129: 28.84122144 | W129: 187.1837333 | Y129: FLAT1 | Z129: 1.539401939 | AA129: 1.472198913 | AB129: 0.034658877 | AC129: 6.125751801 | AD129: 3.210575644 | AE129: 0.458795023 | AF129: 1.554621739 | AG129: 0.393648229 | AH129: 18.66390037
A130: AREN1 | B130: 2007 | C130: 4.430332181 | D130: 14.03873307 | E130: 2.03267 | F130: 3.83192472 | G130: 2.271291667 | H130: 0.1952212354 | I130: 0.4272686925 | J130: 13.22095744 | K130: 38.22744157 | M130: AREN1 | N130: 2007 | O130: 16.46665332 | P130: 114.5123396 | Q130: 3.2036136 | R130: 12.69436674 | S130: 5.93108 | T130: 0.588561016 | U130: 0.5699096633 | V130: 27.50694115 | W130: 164.966524 | Y130: FLTO1 | Z130: 0.955496714 | AA130: 0.823101735 | AB130: 0.032910052 | AC130: 3.889208005 | AD130: 1.863023124 | AE130: 0.633925936 | AF130: 1.334857779 | AG130: 0.264505548 | AH130: 14.90782089
A131: AREN1 | B131: 2008 | C131: 4.678831067 | D131: 16.3690179 | E131: 1.52595913 | F131: 3.976151782 | G131: 1.92673913 | H131: 0.2849284565 | I131: 0.4150340397 | J131: 13.68672278 | K131: 40.1766615 | M131: AREN1 | N131: 2008 | O131: 28.97199208 | P131: 84.63704253 | Q131: 2.760527 | R131: 10.47221423 | S131: 5.497875 | T131: 0.6205754333 | U131: 1.026188206 | V131: 26.33010377 | W131: 144.9864145 | Y131: FOPE1 | Z131: 1.474695572 | AA131: 2.430323968 | AB131: 0.168078887 | AC131: 5.967808685 | AD131: 1.677483234 | AE131: 0.299087773 | AF131: 1.049073303 | AG131: 0.291833516 | AH131: 18.39057625
A132: AREN1 | B132: 2009 | C132: 2.573545145 | D132: 11.97053409 | E132: 1.479602727 | F132: 3.475155538 | G132: 1.5925 | H132: 0.2354396591 | I132: 0.3480259496 | J132: 11.70242907 | K132: 32.67480311 | M132: AREN1 | N132: 2009 | O132: 30.38330249 | P132: 68.02845914 | Q132: 2.192389565 | R132: 8.808523064 | S132: 4.803 | T132: 0.5799915913 | U132: 0.6941566761 | V132: 24.97357003 | W132: 126.4898225 | Y132: FRES1 | Z132: 0.963414533 | AA132: 2.530006656 | AB132: 2.688423403 | AC132: 8.986733265 | AD132: 6.377696917 | AE132: 0.403377191 | AF132: 1.639819434 | AG132: 1.448661092 | AH132: 27.05139923
A133: AREN1 | B133: 2010 | C133: 3.076052604 | D133: 11.16753135 | E133: 1.8221675 | F133: 3.550967207 | G133: 1.605958333 | H133: 0.2213422125 | I133: 0.1832994315 | J133: 11.74310596 | K133: 32.62731864 | M133: AREN1 | N133: 2010 | O133: 23.11598874 | P133: 64.7452462 | Q133: 3.2007084 | R133: 10.71140571 | S133: 4.53428 | T133: 0.641178612 | U133: 0.3597623946 | V133: 24.25087971 | W133: 118.3085701 | Y133: FRRE1 | Z133: 4.06202394 | AA133: 0.846285563 | AB133: 0.106733572 | AC133: 9.605879166 | AD133: 7.644339924 | AE133: 0.526080328 | AF133: 2.020919454 | AG133: 0.484463776 | AH133: 26.69084656
A134: BADL1 | B134: 2000 | C134: 1.396956024 | D134: 4.326761786 | E134: 1.301496667 | F134: 1.921766814 | G134: 0.8383333333 | H134: 0.2637838444 | I134: 0.0510462825 | J134: 7.378665471 | K134: 21.10014475 | M134: BADL1 | N134: 2000 | O134: 5.462399094 | P134: 17.51847046 | Q134: 1.633213263 | R134: 5.111947759 | S134: 2.156947368 | T134: 0.3797638474 | U134: 0.0118486099 | V134: 14.34045485 | W134: 43.2745904 | Y134: GAMO1 | Z134: 1.34662326 | AA134: 1.17043135 | AB134: 0.019024499 | AC134: 4.534852606 | AD134: 2.564896869 | AE134: 0.487848589 | AF134: 1.054776093 | AG134: 0.34090413 | AH134: 15.98450479
A135: BADL1 | B135: 2001 | C135: 1.582883595 | D135: 3.851677811 | E135: 1.5616975 | F135: 1.872853351 | G135: 0.887875 | H135: 0.391940775 | I135: 0.0087701002 | J135: 7.454412819 | K135: 21.15769813 | M135: BADL1 | N135: 2001 | O135: 10.25914972 | P135: 21.86448776 | Q135: 1.97743 | R135: 4.046871093 | S135: 1.954125 | T135: 0.497106225 | U135: 0.0128369486 | V135: 16.05383224 | W135: 51.61200675 | Y135: GICL1 | Z135: 0.88460416 | AA135: 0.429597742 | AB135: 0.027553295 | AC135: 4.203207928 | AD135: 2.936920687 | AE135: 0.45139685 | AF135: 1.393857321 | AG135: 0.397448184 | AH135: 15.52137824
A136: BADL1 | B136: 2002 | C136: 0.9143950915 | D136: 2.570458866 | E136: 1.927643478 | F136: 1.817507498 | G136: 0.9059130435 | H136: 0.4421282174 | I136: 0.004851151 | J136: 6.693752758 | K136: 19.58289735 | M136: BADL1 | N136: 2002 | O136: 6.023208856 | P136: 17.18397951 | Q136: 3.115750435 | R136: 3.82895758 | S136: 1.468782609 | T136: 0.6350990783 | U136: 0.0025018693 | V136: 14.44224366 | W136: 43.25827993 | Y136: GLAC1 | Z136: 1.679999298 | AA136: 2.571580452 | AB136: 0.096223563 | AC136: 6.895529623 | AD136: 3.197435127 | AE136: 0.351141549 | AF136: 1.132922557 | AG136: 0.451221586 | AH136: 20.48052413
A137: BADL1 | B137: 2003 | C137: 0.787191513 | D137: 3.026442284 | E137: 1.317662609 | F137: 1.79386927 | G137: 0.6495652174 | H137: 0.2333491783 | I137: 0.001517148 | J137: 6.295305946 | K137: 18.80959722 | M137: BADL1 | N137: 2003 | O137: 9.855507018 | P137: 17.41956848 | Q137: 2.0373925 | R137: 4.353707424 | S137: 1.872708333 | T137: 0.4456435417 | U137: 0.0019463258 | V137: 15.21438912 | W137: 46.98647362 | Y137: GRBA1 | Z137: 0.795320273 | AA137: 0.842924638 | AB137: 0.043822915 | AC137: 4.296331866 | AD137: 2.139148284 | AE137: 0.681854335 | AF137: 1.759817087 | AG137: 0.351862673 | AH137: 15.61475021
A138: BADL1 | B138: 2004 | C138: 1.316892154 | D138: 3.007523921 | E138: 1.4320725 | F138: 1.643287911 | G138: 0.6568333333 | H138: 0.3325858625 | I138: 0.0517299885 | J138: 6.620573081 | K138: 19.44092567 | M138: BADL1 | N138: 2004 | O138: 6.945184565 | P138: 19.53754098 | Q138: 1.9948872 | R138: 3.955346549 | S138: 1.3258 | T138: 0.516715232 | U138: 0.1018169957 | V138: 14.85088319 | W138: 45.37729152 | Y138: GRCA2 | Z138: 0.822173358 | AA138: 0.863958292 | AB138: 0.074926854 | AC138: 4.164136663 | AD138: 2.137169036 | AE138: 0.590043076 | AF138: 1.592451978 | AG138: 0.316902447 | AH138: 15.39762504
A139: BADL1 | B139: 2005 | C139: 1.193897947 | D139: 4.018970228 | E139: 1.080949565 | F139: 1.959951902 | G139: 0.782 | H139: 0.319209613 | I139: 0.0426225404 | J139: 7.049260638 | K139: 20.3976018 | M139: BADL1 | N139: 2005 | O139: 6.595028949 | P139: 21.28453019 | Q139: 2.573255 | R139: 4.61308808 | S139: 1.900166667 | T139: 0.7125848542 | U139: 0.072135369 | V139: 15.70643335 | W139: 48.75078911 | Y139: GRGU1 | Z139: 4.758800931 | AA139: 1.104932386 | AB139: 0.130653127 | AC139: 9.775481534 | AD139: 7.925693339 | AE139: 0.336006461 | AF139: 2.066758278 | AG139: 0.757621731 | AH139: 28.08046625
A140: BADL1 | B140: 2006 | C140: 0.8359529422 | D140: 2.994340561 | E140: 1.4383475 | F140: 1.389214232 | G140: 0.6095 | H140: 0.3926081917 | I140: 0.0427325494 | J140: 6.204569608 | K140: 18.70269598 | M140: BADL1 | N140: 2006 | O140: 7.452996903 | P140: 19.42171479 | Q140: 2.3262984 | R140: 3.828364866 | S140: 1.5226 | T140: 0.596807368 | U140: 0.0212236459 | V140: 14.84114783 | W140: 46.17000597 | Y140: GRRI1 | Z140: 2.915298148 | AA140: 2.506264038 | AB140: 0.735607185 | AC140: 9.596399264 | AD140: 7.149958843 | AE140: 0.358064914 | AF140: 1.801791732 | AG140: 0.545098054 | AH140: 27.01208291
A141: BADL1 | B141: 2007 | C141: 1.487838895 | D141: 3.619651798 | E141: 1.492885 | F141: 1.76509708 | G141: 0.5511666667 | H141: 0.3936014792 | I141: 0.0130163985 | J141: 7.067549105 | K141: 20.32325732 | M141: BADL1 | N141: 2007 | O141: 7.504418415 | P141: 19.432295 | Q141: 2.3241096 | R141: 3.707238281 | S141: 1.36992 | T141: 0.75318835 | U141: 0.1352461982 | V141: 15.14437127 | W141: 46.22641585 | Y141: GRSA1 | Z141: 0.986993243 | AA141: 0.872799287 | AB141: 0.039080222 | AC141: 4.453146393 | AD141: 2.269792146 | AE141: 0.544430605 | AF141: 1.760685947 | AG141: 0.301905941 | AH141: 15.77568739
A142: BADL1 | B142: 2008 | C142: 1.085659427 | D142: 3.532373754 | E142: 1.111458261 | F142: 4.137466616 | G142: 0.3110434783 | H142: 0.3324471174 | I142: 0.017239561 | J142: 7.618619259 | K142: 21.52768821 | M142: BADL1 | N142: 2008 | O142: 4.752901631 | P142: 19.0743294 | Q142: 1.93010875 | R142: 7.283540262 | S142: 0.7470833333 | T142: 0.6546932413 | U142: 0.0056359144 | V142: 14.90288337 | W142: 45.44829253 | Y142: GRSM1 | Z142: 4.411441303 | AA142: 0.683274618 | AB142: 0.202526828 | AC142: 10.05211951 | AD142: 8.736689826 | AE142: 0.564960275 | AF142: 1.733831337 | AG142: 0.777317543 | AH142: 28.11004173
A143: BADL1 | B143: 2009 | C143: 1.022291979 | D143: 3.173514488 | E143: 0.9786375 | F143: 1.50639101 | G143: 0.5079583333 | H143: 0.2572056167 | I143: 0.0110567936 | J143: 6.073006223 | K143: 18.45705572 | M143: BADL1 | N143: 2009 | O143: 5.689937332 | P143: 20.04256142 | Q143: 2.0503776 | R143: 3.235662149 | S143: 0.92752 | T143: 0.494642936 | U143: 0.1080007049 | V143: 14.44739048 | W143: 43.54870214 | Y143: GUMO1 | Z143: 1.249651834 | AA143: 0.861864306 | AB143: 0.062407942 | AC143: 4.828861714 | AD143: 2.780898097 | AE143: 0.492308434 | AF143: 1.623116992 | AG143: 0.387438401 | AH143: 16.457686
A144: BADL1 | B144: 2010 | C144: 1.062717977 | D144: 3.437572477 | E144: 1.2336375 | F144: 1.475312081 | G144: 0.4545833333 | H144: 0.3828438583 | I144: 0.0173177512 | J144: 6.415857009 | K144: 19.06398498 | M144: BADL1 | N144: 2010 | O144: 11.39535408 | P144: 22.56105589 | Q144: 0.994308 | R144: 3.290186009 | S144: 1.16732 | T144: 0.436583744 | U144: 0.0017361644 | V144: 15.88898973 | W144: 50.84654389 | Y144: HACR1 | Z144: 1.946485057 | AA144: 0.688087773 | AB144: 0.530674136 | AC144: 3.322426077 | AD144: 0.523643421 | AE144: 0.229553459 | AF144: 0.913890639 | AG144: 0.336547682 | AH144: 14.16888217
A145: BADL1 | B145: 2011 | C145: 0.8828257728 | D145: 2.533432679 | E145: 1.1016725 | F145: 1.194036729 | G145: 0.4415 | H145: 0.1849422833 | I145: 0.1525260443 | J145: 5.561390807 | K145: 17.49093601 | M145: BADL1 | N145: 2011 | O145: 7.953178784 | P145: 17.7088436 | Q145: 1.5337675 | R145: 4.074649183 | S145: 1.18875 | T145: 0.297191925 | U145: 0.1553599613 | V145: 14.38713392 | W145: 43.91174095 | Y145: HALE1 | Z145: 1.875781142 | AA145: 0.80580996 | AB145: 0.933842081 | AC145: 5.620870439 | AD145: 1.767648884 | AE145: 0.261362518 | AF145: 1.688307027 | AG145: 0.352091836 | AH145: 17.68484345
A146: BADL1 | B146: 2012 | C146: 0.7988172679 | D146: 2.697017699 | E146: 1.184680909 | F146: 0.9482687177 | G146: 0.3952272727 | H146: 0.2490716318 | I146: 0.0485495984 | J146: 5.436031182 | K146: 17.3216331 | M146: BADL1 | N146: 2012 | O146: 7.543392842 | P146: 13.61332435 | Q146: 2.694516522 | R146: 3.680084422 | S146: 1.222043478 | T146: 0.6102008696 | U146: 0.080920476 | V146: 13.54888033 | W146: 40.44448296 | Y146: HAVO1 | Z146: 3.121031628 | AA146: 0.541115346 | AB146: 1.060294375 | AC146: 5.634072109 | AD146: 1.4541419 | AE146: 0.303249892 | AF146: 0.753592862 | AG146: 0.667231298 | AH146: 17.9006573
A147: BADL1 | B147: 2013 | C147: 0.9917012391 | D147: 2.238857513 | E147: 1.16369 | F147: 1.175102243 | G147: 0.428125 | H147: 0.236595975 | I147: 0.032865828 | J147: 5.427430523 | K147: 17.2669378 | M147: BADL1 | N147: 2013 | O147: 5.970663982 | P147: 15.40452082 | Q147: 2.4314325 | R147: 3.051658496 | S147: 0.90475 | T147: 0.535356425 | U147: 0.0743095883 | V147: 13.37344786 | W147: 39.37269181 | Y147: HECA1 | Z147: 1.396883229 | AA147: 3.599077893 | AB147: 0.141404932 | AC147: 6.567848839 | AD147: 2.146082362 | AE147: 0.300993088 | AF147: 0.914730005 | AG147: 0.338856111 | AH147: 19.83802762
A148: BADL1 | B148: 2014 | C148: 0.8899567459 | D148: 2.741654215 | E148: 1.28496 | F148: 1.08204912 | G148: 0.3151818182 | H148: 0.2669236045 | I148: 0.0335555845 | J148: 5.624652573 | K148: 17.61428109 | M148: BADL1 | N148: 2014 | O148: 6.109275466 | P148: 11.47689501 | Q148: 1.721193913 | R148: 2.854826276 | S148: 1.005521739 | T148: 0.4600084957 | U148: 0.0433893631 | V148: 12.24126175 | W148: 34.67111027 | Y148: HEGL1 | Z148: 3.350063572 | AA148: 1.815517406 | AB148: 0.24331551 | AC148: 9.298365832 | AD148: 7.060431519 | AE148: 0.434137518 | AF148: 1.669160375 | AG148: 0.413587088 | AH148: 25.98621299
A149: BADL1 | B149: 2015 | C149: 1.087956309 | D149: 2.208238999 | E149: 1.025494174 | F149: 1.65811835 | G149: 0.3811173913 | H149: 0.3233217565 | I149: 0.0411736304 | J149: 5.692538437 | K149: 17.72542061 | M149: BADL1 | N149: 2015 | O149: 4.058862855 | P149: 9.990290431 | Q149: 2.0706475 | R149: 3.209700583 | S149: 0.9578166667 | T149: 0.5998783875 | U149: 0.044927277 | V149: 11.52572012 | W149: 31.9321237 | Y149: HOOV1 | Z149: 1.060889805 | AA149: 0.910231268 | AB149: 0.043687923 | AC149: 4.902004967 | AD149: 2.787107694 | AE149: 0.869194482 | AF149: 1.584812588 | AG149: 0.350368114 | AH149: 16.60629187
A150: BADL1 | B150: 2016 | C150: 0.8544007337 | D150: 1.865106488 | E150: 1.08198175 | F150: 1.4525611 | G150: 0.2883708333 | H150: 0.318586525 | I150: 0.0630173978 | J150: 5.187005131 | K150: 16.92402483 | M150: BADL1 | N150: 2016 | O150: 5.639294588 | P150: 10.7520642 | Q150: 1.799891 | R150: 3.558490288 | S150: 0.9634708333 | T150: 0.3904091667 | U150: 0.0523475985 | V150: 12.09330046 | W150: 34.15596767 | Y150: IKBA1 | Z150: 0.756463201 | AA150: 0.888373043 | AB150: 0.117240123 | AC150: 5.222515611 | AD150: 2.300431366 | AE150: 0.601848111 | AF150: 2.117597341 | AG150: 0.350457951 | AH150: 17.13241114
A151: BADL1 | B151: 2017 | C151: 0.7097382458 | D151: 1.941075198 | E151: 1.169325652 | F151: 1.253773537 | G151: 0.4364217391 | H151: 0.3022058652 | I151: 0.0335546828 | J151: 5.185377964 | K151: 16.84609492 | M151: BADL1 | N151: 2017 | O151: 6.553132613 | P151: 11.39919968 | Q151: 1.9826785 | R151: 4.327024832 | S151: 1.3136375 | T151: 0.5003411208 | U151: 0.079349166 | V151: 12.82943853 | W151: 37.15536342 | Y151: INGA1 | Z151: 0.877501181 | AA151: 0.817634842 | AB151: 0.085757139 | AC151: 5.617191557 | AD151: 2.35378486 | AE151: 0.787327343 | AF151: 2.548146984 | AG151: 0.339529828 | AH151: 17.80968218
A152: BADL1 | B152: 2018 | C152: 1.099412142 | D152: 2.017455677 | E152: 0.7621833913 | F152: 1.369593518 | G152: 0.5626913043 | H152: 0.1821121348 | I152: 0.0670868147 | J152: 5.270410594 | K152: 17.06053498 | M152: BADL1 | N152: 2018 | O152: 8.037826292 | P152: 11.01659069 | Q152: 2.05135325 | R152: 3.594749704 | S152: 1.353420833 | T152: 0.3569751125 | U152: 0.0790316528 | V152: 12.96209028 | W152: 37.48994753 | Y152: ISLE1 | Z152: 4.163295269 | AA152: 3.14467604 | AB152: 0.15882105 | AC152: 10.17329667 | AD152: 6.281250317 | AE152: 0.328239099 | AF152: 2.120120322 | AG152: 0.679414409 | AH152: 28.87581651
A153: BALA1 | B153: 2011 | C153: 0.1158587154 | D153: 0.9880244643 | E153: 0.4847084211 | F153: 0.7887962647 | G153: 0.2035263158 | H153: 0.0537522947 | I153: 0.1356699015 | J153: 2.396347771 | K153: 12.77033638 | M153: BALA1 | N153: 2011 | O153: 7.593261286 | P153: 13.22266921 | Q153: 1.640703 | R153: 5.287239442 | S153: 1.61465 | T153: 0.31024804 | U153: 0.2507347697 | V153: 13.11724032 | W153: 39.91950574 | Y153: JARB1 | Z153: 1.070767251 | AA153: 1.030911272 | AB153: 0.047649275 | AC153: 5.233384803 | AD153: 2.141096317 | AE153: 0.649103682 | AF153: 1.953615166 | AG153: 0.305092048 | AH153: 17.19823501
A154: BALA1 | B154: 2012 | C154: 0.1273750308 | D154: 0.9049379722 | E154: 0.4045695652 | F154: 0.4768018055 | G154: 0.1664782609 | H154: 0.0604121522 | I154: 0.0430075394 | J154: 1.960020713 | K154: 12.18358233 | M154: BALA1 | N154: 2012 | O154: 11.82953027 | P154: 13.08411172 | Q154: 1.7941825 | R154: 5.550928044 | S154: 1.757833333 | T154: 0.2917860083 | U154: 0.2007188108 | V154: 13.82249875 | W154: 44.50909069 | Y154: JARI1 | Z154: 3.774278891 | AA154: 0.690350102 | AB154: 0.212988397 | AC154: 9.466839827 | AD154: 7.343196894 | AE154: 0.586255665 | AF154: 2.32308153 | AG154: 0.444889333 | AH154: 26.37504081
A155: BALA1 | B155: 2013 | C155: 0.1733308082 | D155: 1.000064419 | E155: 0.32529 | F155: 0.417094625 | G155: 0.1073333333 | H155: 0.0654233389 | I155: 0.0170934434 | J155: 1.890267339 | K155: 12.10562997 | M155: BALA1 | N155: 2013 | O155: 8.207868674 | P155: 13.32404432 | Q155: 1.5415008 | R155: 4.014202989 | S155: 1.51372 | T155: 0.313533816 | U155: 0.2389280567 | V155: 12.70112883 | W155: 39.15379866 | Y155: JOSH1 | Z155: 0.81131764 | AA155: 1.520155017 | AB155: 0.294224805 | AC155: 6.094995046 | AD155: 2.822045002 | AE155: 0.566141207 | AF155: 2.079270769 | AG155: 0.587768729 | AH155: 18.68092317
A156: BALA1 | B156: 2014 | C156: 0.1144079732 | D156: 0.8030553971 | E156: 0.461585 | F156: 0.6529634791 | G156: 0.1727916667 | H156: 0.0905029083 | I156: 0.0490040903 | J156: 2.076157963 | K156: 12.34431052 | M156: BALA1 | N156: 2014 | O156: 6.081204214 | P156: 12.34970006 | Q156: 1.2773375 | R156: 5.387742349 | S156: 1.610333333 | T156: 0.2706029583 | U156: 0.1246198955 | V156: 12.81766476 | W156: 37.10154031 | Y156: KAIS1 | Z156: 1.063482746 | AA156: 1.419515161 | AB156: 0.165689133 | AC156: 6.061037176 | AD156: 3.275917148 | AE156: 0.758445944 | AF156: 2.6317982 | AG156: 0.40286163 | AH156: 18.71770996
A157: BALA1 | B157: 2015 | C157: 0.2047008714 | D157: 1.192283774 | E157: 0.38358 | F157: 1.022687697 | G157: 0.1548217391 | H157: 0.0776040043 | I157: 0.0345292936 | J157: 2.655620337 | K157: 13.07020738 | M157: BALA1 | N157: 2015 | O157: 9.179838081 | P157: 12.23668203 | Q157: 1.54988275 | R157: 5.609976695 | S157: 1.623870833 | T157: 0.3776984667 | U157: 0.1171815951 | V157: 13.05112841 | W157: 40.69513045 | Y157: KALM1 | Z157: 1.855495221 | AA157: 1.554638643 | AB157: 1.473132614 | AC157: 7.778145944 | AD157: 2.781598137 | AE157: 0.332236923 | AF157: 1.740151199 | AG157: 0.36048514 | AH157: 22.09773788
A158: BALA1 | B158: 2016 | C158: 0.1242477792 | D158: 0.4788535146 | E158: 0.2762590435 | F158: 0.4732278929 | G158: 0.0864826087 | H158: 0.0544127522 | I158: 0.0542236711 | J158: 1.425577476 | K158: 11.54770726 | M158: BALA1 | N158: 2016 | O158: 6.164076763 | P158: 11.82261714 | Q158: 1.35477275 | R158: 5.975624739 | S158: 1.464958333 | T158: 0.2704000958 | U158: 0.0780223031 | V158: 12.34636994 | W158: 37.13047212 | Y158: LABE1 | Z158: 1.583060657 | AA158: 1.466316224 | AB158: 0.099528036 | AC158: 6.17581338 | AD158: 2.931509611 | AE158: 0.650183701 | AF158: 1.691597234 | AG158: 0.391216131 | AH158: 18.81341159
A159: BALD1 | B159: 2001 | C159: 0.6389349386 | D159: 2.057973852 | E159: 0.5503691374 | F159: 1.332106805 | G159: 0.6543552791 | H159: 0.2349536649 | I159: 0.0033458173 | J159: 3.651454471 | K159: 14.4720395 | M159: BALD1 | N159: 2001 | O159: 0.8948311855 | P159: 7.911826521 | Q159: 1.700178225 | R159: 3.782919075 | S159: 1.341224922 | T159: 0.6772368632 | U159: 0.0071238458 | V159: 9.110556119 | W159: 25.31534064 | Y159: LASU2 | Z159: 2.733746645 | AA159: 2.582211642 | AB159: 0.681347119 | AC159: 8.807457095 | AD159: 5.921320406 | AE159: 0.338647642 | AF159: 1.067449414 | AG159: 0.369518362 | AH159: 24.69424123
A160: BALD1 | B160: 2002 | C160: 0.3373033897 | D160: 1.353845345 | E160: 0.5630875 | F160: 1.144382093 | G160: 0.6846666667 | H160: 0.2575591167 | I160: 0.0024140213 | J160: 2.846205399 | K160: 13.34325813 | M160: BALD1 | N160: 2002 | O160: 0.978618116 | P160: 7.019256332 | Q160: 1.541583113 | R160: 4.326627478 | S160: 1.365341336 | T160: 0.7255137638 | U160: 0.0014717498 | V160: 9.01972966 | W160: 24.95841189 | Y160: LAVO1 | Z160: 1.346279546 | AA160: 1.386099434 | AB160: 0.063833647 | AC160: 6.104108171 | AD160: 3.035004118 | AE160: 0.699864364 | AF160: 1.743690029 | AG160: 0.397260035 | AH160: 18.67203117
A161: BALD1 | B161: 2003 | C161: 0.3268447369 | D161: 1.396295762 | E161: 0.40287 | F161: 1.179131976 | G161: 0.6071363636 | H161: 0.1298593955 | I161: 0.0011431812 | J161: 2.613749625 | K161: 13.04328142 | M161: BALD1 | N161: 2003 | O161: 1.33856637 | P161: 6.583711549 | Q161: 1.868407826 | R161: 4.443996277 | S161: 1.253521739 | T161: 0.7207409261 | U161: 0.0019742189 | V161: 9.129964038 | W161: 25.21091891 | Y161: LIGO1 | Z161: 4.610285109 | AA161: 0.562753999 | AB161: 0.20889974 | AC161: 9.698304083 | AD161: 7.716973801 | AE161: 0.485628587 | AF161: 1.861043425 | AG161: 0.495023262 | AH161: 26.94060792
A162: BALD1 | B162: 2004 | C162: 0.347214705 | D162: 1.692387831 | E162: 0.327866087 | F162: 1.244178458 | G162: 0.5484347826 | H162: 0.143665413 | I162: 0.0107157807 | J162: 2.8180393 | K162: 13.31446306 | M162: BALD1 | N162: 2004 | O162: 0.8318442463 | P162: 6.17389868 | Q162: 1.353885 | R162: 3.441768118 | S162: 1.17025 | T162: 0.445279425 | U162: 0.0186492146 | V162: 7.9461507 | W162: 22.43557468 | Y162: LIVO1 | Z162: 3.702363754 | AA162: 1.358484625 | AB162: 0.510571231 | AC162: 9.435148842 | AD162: 6.846316678 | AE162: 0.577028326 | AF162: 1.800034894 | AG162: 0.343533517 | AH162: 26.13833303
A163: BALD1 | B163: 2005 | C163: 0.302500385 | D163: 1.717815204 | E163: 0.5657334375 | F163: 1.046403696 | G163: 0.5923333333 | H163: 0.2050957891 | I163: 0.0090193245 | J163: 2.887416036 | K163: 13.43890117 | M163: BALD1 | N163: 2005 | O163: 0.583782095 | P163: 9.85756788 | Q163: 1.3932672 | R163: 3.216572073 | S163: 1.4884 | T163: 0.440550608 | U163: 0.0204377584 | V163: 9.329961349 | W163: 26.00057762 | Y163: LOND1 | Z163: 3.230909803 | AA163: 1.793689836 | AB163: 0.658785724 | AC163: 10.44525621 | AD163: 8.634022036 | AE163: 0.258346571 | AF163: 1.938911433 | AG163: 0.516709439 | AH163: 29.03137484
A164: BALD1 | B164: 2006 | C164: 0.2472069953 | D164: 1.674315702 | E164: 0.6324949091 | F164: 1.308973402 | G164: 0.7134545455 | H164: 0.1783683727 | I164: 0.0442112486 | J164: 3.192081025 | K164: 13.79902518 | M164: BALD1 | N164: 2006 | O164: 0.6596938327 | P164: 6.564596463 | Q164: 1.657400455 | R164: 2.941574711 | S164: 1.275 | T164: 0.4132403273 | U164: 0.0291720023 | V164: 8.002286248 | W164: 22.54067779 | Y164: LOST1 | Z164: 1.473376394 | AA164: 2.289442993 | AB164: 0.157179469 | AC164: 5.869580433 | AD164: 1.666004179 | AE164: 0.322145977 | AF164: 0.973966256 | AG164: 0.2733706 | AH164: 18.15548587
A165: BALD1 | B165: 2007 | C165: 0.2586900941 | D165: 1.370997221 | E165: 0.6682881818 | F165: 1.045868506 | G165: 0.5759090909 | H165: 0.1884134773 | I165: 0.0224035744 | J165: 2.664821458 | K165: 13.13057015 | M165: BALD1 | N165: 2007 | O165: 0.9380248832 | P165: 8.166757779 | Q165: 1.659224348 | R165: 3.652854917 | S165: 1.124565217 | T165: 0.4795872261 | U165: 0.0470928545 | V165: 9.007134123 | W165: 25.06810722 | Y165: LYBR_RHTS | Z165: 5.090759805 | AA165: 1.494693308 | AB165: 0.169380337 | AC165: 10.24306624 | AD165: 8.372019401 | AE165: 0.42868003 | AF165: 1.666264644 | AG165: 1.078212634 | AH165: 29.30001016
A166: BALD1 | B166: 2008 | C166: 0.2852856603 | D166: 1.217773816 | E166: 0.5542617391 | F166: 1.333910567 | G166: 0.5373478261 | H166: 0.1763767522 | I166: 0.039927053 | J166: 2.664766463 | K166: 13.14488341 | M166: BALD1 | N166: 2008 | O166: 0.6499853042 | P166: 6.405747617 | Q166: 1.445985 | R166: 5.235935524 | S166: 1.202166667 | T166: 0.6164643167 | U166: 0.0893590571 | V166: 8.899364254 | W166: 24.64564349 | Y166: LYBR1 | Z166: 5.355450881 | AA166: 1.381684058 | AB166: 0.154772051 | AC166: 10.56615559 | AD166: 9.109577392 | AE166: 0.474653009 | AF166: 1.672244899 | AG166: 1.241704542 | AH166: 30.39008683
A167: BALD1 | B167: 2009 | C167: 0.4255538829 | D167: 1.874201849 | E167: 0.5801885714 | F167: 0.9872887424 | G167: 0.4528571429 | H167: 0.2629824571 | I167: 0.011586435 | J167: 3.030839766 | K167: 13.59465908 | M167: BALD1 | N167: 2009 | O167: 0.6983138238 | P167: 5.328871767 | Q167: 1.440962727 | R167: 3.482346978 | S167: 1.043590909 | T167: 0.5757605409 | U167: 0.0264024937 | V167: 7.53071152 | W167: 21.59624924 | Y167: LYEB1 | Z167: 3.470056128 | AA167: 2.05780277 | AB167: 0.264068607 | AC167: 8.502825252 | AD167: 5.097563927 | AE167: 0.20538674 | AF167: 1.499793029 | AG167: 0.444314834 | AH167: 24.03898603
A168: BALD1 | B168: 2010 | C168: 0.4540532921 | D168: 1.65996859 | E168: 0.8069912727 | F168: 0.9625062088 | G168: 0.3575 | H168: 0.1898868455 | I168: 0.0389429787 | J168: 2.949920299 | K168: 13.46984919 | M168: BALD1 | N168: 2010 | O168: 0.7037814069 | P168: 6.729610592 | Q168: 1.902567273 | R168: 3.421825844 | S168: 1.153090909 | T168: 0.4227977364 | U168: 0.0280119285 | V168: 8.354663312 | W168: 23.36168569 | Y168: MACA1 | Z168: 4.544554362 | AA168: 1.219425698 | AB168: 0.157970335 | AC168: 9.798117556 | AD168: 7.735325466 | AE168: 0.584705245 | AF168: 1.60430277 | AG168: 0.615188375 | AH168: 27.46147225
A169: BALD1 | B169: 2011 | C169: 0.3411482728 | D169: 1.683043367 | E169: 0.6757231579 | F169: 1.070435694 | G169: 0.4481052632 | H169: 0.2029482632 | I169: 0.1407811623 | J169: 3.013587692 | K169: 13.56218518 | M169: BALD1 | N169: 2011 | O169: 0.8497558961 | P169: 6.983507441 | Q169: 1.988004 | R169: 3.377844819 | S169: 1.0271 | T169: 0.859757905 | U169: 0.0498043611 | V169: 8.622255718 | W169: 24.13577442 | Y169: MAKA2 | Z169: 2.448891193 | AA169: 2.028484978 | AB169: 2.018835676 | AC169: 7.469350477 | AD169: 2.388342569 | AE169: 0.114340529 | AF169: 1.285983583 | AG169: 0.370231389 | AH169: 21.65510992
A170: BALD1 | B170: 2012 | C170: 0.2961767073 | D170: 1.405225739 | E170: 0.5750945455 | F170: 0.914038935 | G170: 0.3778636364 | H170: 0.1810367 | I170: 0.0235786353 | J170: 2.390670198 | K170: 12.7730149 | M170: BALD1 | N170: 2012 | O170: 0.7981095681 | P170: 7.068393913 | Q170: 2.077917391 | R170: 3.802654142 | S170: 1.079478261 | T170: 0.6852178696 | U170: 0.0702524911 | V170: 8.887494483 | W170: 24.58202364 | Y170: MAVI1 | Z170: 4.238141922 | AA170: 1.29565742 | AB170: 2.201325584 | AC170: 11.10561803 | AD170: 8.541554494 | AE170: 0.442198231 | AF170: 2.119070323 | AG170: 0.917708542 | AH170: 31.75565652
A171: BALD1 | B171: 2013 | C171: 0.2751622766 | D171: 1.229298484 | E171: 0.31617 | F171: 1.154289149 | G171: 0.3803636364 | H171: 0.2500518409 | I171: 0.0266228485 | J171: 2.315100624 | K171: 12.63195824 | M171: BALD1 | N171: 2013 | O171: 0.6648541658 | P171: 6.626554538 | Q171: 1.451506957 | R171: 2.877187154 | S171: 0.7320869565 | T171: 0.9356056391 | U171: 0.0517379212 | V171: 7.908903709 | W171: 22.33953333 | Y171: MEAD1 | Z171: 0.707369492 | AA171: 0.636219084 | AB171: 0.125175596 | AC171: 5.479209819 | AD171: 2.28599655 | AE171: 0.782754988 | AF171: 2.635822523 | AG171: 0.305715394 | AH171: 17.47905363
A172: BALD1 | B172: 2014 | C172: 0.1492370659 | D172: 1.170193899 | E172: 0.3098684211 | F172: 0.9283915825 | G172: 0.3495263158 | H172: 0.1925463421 | I172: 0.0135264884 | J172: 1.890042218 | K172: 12.11329011 | M172: BALD1 | N172: 2014 | O172: 0.6584350559 | P172: 5.599598162 | Q172: 1.550565 | R172: 2.076316085 | S172: 0.6489 | T172: 0.65786958 | U172: 0.0426228777 | V172: 6.877662649 | W172: 20.23430676 | Y172: MELA1 | Z172: 1.48081981 | AA172: 2.402057578 | AB172: 0.073571975 | AC172: 5.945790358 | AD172: 1.773745999 | AE172: 0.295767554 | AF172: 1.005537812 | AG172: 0.323584524 | AH172: 18.35508525
A173: BALD1 | B173: 2015 | C173: 0.2794950603 | D173: 1.225529204 | E173: 0.4015598182 | F173: 1.01054985 | G173: 0.2424590909 | H173: 0.1106219364 | I173: 0.0272611784 | J173: 2.03999069 | K173: 12.29747614 | M173: BALD1 | N173: 2015 | O173: 0.5846010739 | P173: 5.82044278 | Q173: 1.42224913 | R173: 3.180125463 | S173: 0.7801913043 | T173: 0.3509275261 | U173: 0.0447996905 | V173: 7.3834634 | W173: 21.18333697 | Y173: MEVE1 | Z173: 0.960583431 | AA173: 1.042199431 | AB173: 0.02554379 | AC173: 4.200094514 | AD173: 2.143704032 | AE173: 0.522080498 | AF173: 1.412889853 | AG173: 0.326698605 | AH173: 15.43369964
A174: BALD1 | B174: 2016 | C174: 0.3024634339 | D174: 0.8370133032 | E174: 0.3731348182 | F174: 0.6545240756 | G174: 0.2249727273 | H174: 0.1052189909 | I174: 0.0159705434 | J174: 1.384189857 | K174: 11.51329789 | M174: BALD1 | N174: 2016 | O174: 0.5492649988 | P174: 5.040655167 | Q174: 1.545034435 | R174: 2.636649662 | S174: 0.605573913 | T174: 0.3374334522 | U174: 0.0634845428 | V174: 6.738333382 | W174: 19.77809617 | Y174: MING1 | Z174: 3.382600575 | AA174: 1.58874062 | AB174: 0.252421806 | AC174: 9.18289666 | AD174: 6.110981781 | AE174: 0.454105426 | AF174: 1.421524158 | AG174: 0.334826853 | AH174: 25.54520122
A175: BALD1 | B175: 2017 | C175: 0.2303853986 | D175: 0.9123545574 | E175: 0.4245518182 | F175: 0.9688091163 | G175: 0.3005909091 | H175: 0.1423278591 | I175: 0.067869423 | J175: 1.820461417 | K175: 12.04688908 | M175: BALD1 | N175: 2017 | O175: 0.6556590785 | P175: 5.388868345 | Q175: 1.629285548 | R175: 4.344755441 | S175: 1.089430435 | T175: 0.4896240974 | U175: 0.0128500043 | V175: 7.929469026 | W175: 22.61047295 | Y175: MKGO1 | Z175: 4.632527732 | AA175: 1.241041452 | AB175: 0.358002363 | AC175: 10.18005501 | AD175: 7.837575054 | AE175: 0.679651159 | AF175: 2.132341201 | AG175: 0.44753865 | AH175: 28.32867761
A176: BALD1 | B176: 2018 | C176: 0.1972017486 | D176: 0.9015815725 | E176: 0.4827657143 | F176: 0.7655519456 | G176: 0.4173 | H176: 0.168472519 | I176: 0.0126215383 | J176: 1.751878912 | K176: 11.94549504 | M176: BALD1 | N176: 2018 | O176: 0.7301236468 | P176: 3.981846641 | Q176: 1.682917418 | R176: 4.354859831 | S176: 1.224954545 | T176: 0.5300266318 | U176: 0.0695176642 | V176: 7.535694479 | W176: 21.57424638 | Y176: MOHO1 | Z176: 2.105929769 | AA176: 2.226910109 | AB176: 0.295892074 | AC176: 6.586990439 | AD176: 3.266581963 | AE176: 0.393100995 | AF176: 1.071201549 | AG176: 0.455175891 | AH176: 19.81479235
A177: BALT1 | B177: 2005 | C177: 6.709089932 | D177: 20.71439292 | E177: 2.852637391 | F177: 5.277284317 | G177: 3.967521739 | H177: 0.3080621478 | I177: 1.027311509 | J177: 16.35308086 | K177: 52.85629996 | M177: BAND1 | N177: 2000 | O177: 3.0482304 | P177: 8.932760059 | Q177: 1.345723429 | R177: 3.714176749 | S177: 1.851380952 | T177: 0.3638812952 | U177: 0.0506165893 | V177: 10.26311197 | W177: 28.30676947 | Y177: MOMO1 | Z177: 4.54083719 | AA177: 1.380322888 | AB177: 0.36854268 | AC177: 10.90172352 | AD177: 10.63027693 | AE177: 0.500274332 | AF177: 1.876397635 | AG177: 1.083363793 | AH177: 31.38001545
A178: BALT1 | B178: 2006 | C178: 6.05816586 | D178: 15.6950297 | E178: 2.8208325 | F178: 5.159935346 | G178: 3.631272727 | H178: 0.4318905409 | I178: 0.470306387 | J178: 15.12534553 | K178: 46.26743306 | M178: BAND1 | N178: 2001 | O178: 2.337905933 | P178: 8.129677379 | Q178: 1.37593032 | R178: 3.32924954 | S178: 1.47088 | T178: 0.422325064 | U178: 0.0921275669 | V178: 9.487896556 | W178: 26.1580958 | Y178: MONT1 | Z178: 1.307630982 | AA178: 0.864794106 | AB178: 0.018595416 | AC178: 5.528400915 | AD178: 3.343259075 | AE178: 0.483041504 | AF178: 1.242876769 | AG178: 0.425057103 | AH178: 17.68525495
A179: BAND1 | B179: 2000 | C179: 0.7559067674 | D179: 2.43062067 | E179: 1.0187226 | F179: 2.043649014 | G179: 0.9236 | H179: 0.2689951 | I179: 0.0093561107 | J179: 4.950724242 | K179: 16.45085026 | M179: BAND1 | N179: 2002 | O179: 2.577210967 | P179: 8.490439967 | Q179: 1.3249575 | R179: 3.75983512 | S179: 1.520208333 | T179: 0.5468256167 | U179: 0.0178845334 | V179: 9.798785747 | W179: 27.23736204 | Y179: MOOS1 | Z179: 4.533747947 | AA179: 1.393919101 | AB179: 0.629997744 | AC179: 9.976087341 | AD179: 7.297383671 | AE179: 0.278872095 | AF179: 1.481455364 | AG179: 0.68550718 | AH179: 28.3008831
A180: BAND1 | B180: 2001 | C180: 0.5770325678 | D180: 2.889233351 | E180: 1.0253175 | F180: 1.734841203 | G180: 0.7522916667 | H180: 0.3733258917 | I180: 0.0070934179 | J180: 4.893607852 | K180: 16.3591356 | M180: BAND1 | N180: 2003 | O180: 2.432917064 | P180: 8.107226381 | Q180: 1.34391475 | R180: 5.095431803 | S180: 1.54175 | T180: 0.4927027208 | U180: 0.0365297063 | V180: 10.03925282 | W180: 28.05047242 | Y180: MORA1 | Z180: 2.557278869 | AA180: 2.114343407 | AB180: 0.237003959 | AC180: 7.662481558 | AD180: 3.387380073 | AE180: 0.329524362 | AF180: 1.69696287 | AG180: 0.53547726 | AH180: 21.8579708
A181: BAND1 | B181: 2002 | C181: 0.7940567209 | D181: 2.48539461 | E181: 0.9889956522 | F181: 2.095871118 | G181: 0.877173913 | H181: 0.3735212652 | I181: 0.0014095225 | J181: 5.029933099 | K181: 16.6164228 | M181: BAND1 | N181: 2004 | O181: 2.598532393 | P181: 6.122464231 | Q181: 1.097067 | R181: 3.732152392 | S181: 1.576958333 | T181: 0.3558101358 | U181: 0.0400262663 | V181: 8.927256498 | W181: 24.52301075 | Y181: MOZI1 | Z181: 0.988422565 | AA181: 0.928680272 | AB181: 0.030503835 | AC181: 3.159192729 | AD181: 1.912617243 | AE181: 0.585429022 | AF181: 1.186795028 | AG181: 0.272301452 | AH181: 13.90474942
A182: BAND1 | B182: 2003 | C182: 0.8408686423 | D182: 2.007650684 | E182: 0.956462087 | F182: 2.403774128 | G182: 0.966 | H182: 0.2440881217 | I182: 0.0016725494 | J182: 4.941599314 | K182: 16.42051621 | M182: BAND1 | N182: 2005 | O182: 1.459464809 | P182: 10.54265291 | Q182: 1.596460696 | R182: 4.400713981 | S182: 1.72273913 | T182: 0.4550086261 | U182: 0.0624779624 | V182: 10.50652833 | W182: 29.23951811 | Y182: NEBR1 | Z182: 1.454661593 | AA182: 2.34037668 | AB182: 0.163707342 | AC182: 6.881524512 | AD182: 2.427948081 | AE182: 0.492441467 | AF182: 2.140737318 | AG182: 0.40411012 | AH182: 20.4239826
A183: BAND1 | B183: 2004 | C183: 0.720884243 | D183: 2.385919585 | E183: 0.6821425 | F183: 2.516514384 | G183: 0.9205416667 | H183: 0.2518832313 | I183: 0.0523303669 | J183: 4.985458599 | K183: 16.53021598 | M183: BAND1 | N183: 2006 | O183: 1.495483595 | P183: 7.973241806 | Q183: 1.918271429 | R183: 4.058905633 | S183: 1.561714286 | T183: 0.6193009476 | U183: 0.0053624169 | V183: 9.605666038 | W183: 26.63228011 | Y183: NEYO1 | Z183: 3.615250853 | AA183: 1.298478287 | AB183: 1.29306673 | AC183: 10.86422042 | AD183: 8.658811186 | AE183: 0.713217897 | AF183: 2.231153343 | AG183: 0.602695323 | AH183: 30.41267362
A184: BAND1 | B184: 2005 | C184: 0.5878934796 | D184: 1.999794463 | E184: 0.9079596522 | F184: 1.56698959 | G184: 0.8776956522 | H184: 0.1829941565 | I184: 0.0009467973 | J184: 4.085931362 | K184: 15.12427379 | M184: BAND1 | N184: 2007 | O184: 4.508751805 | P184: 8.77607364 | Q184: 1.20004525 | R184: 4.344473194 | S184: 1.552708333 | T184: 0.3911443542 | U184: 0.052541577 | V184: 10.54236104 | W184: 29.82573815 | Y184: NOAB1 | Z184: 1.134017476 | AA184: 1.107822849 | AB184: 0.035468476 | AC184: 4.547836992 | AD184: 2.267332647 | AE184: 0.624470569 | AF184: 1.507244083 | AG184: 0.310354756 | AH184: 15.98671086
A185: BAND1 | B185: 2006 | C185: 0.4899220448 | D185: 2.505640616 | E185: 0.9700914286 | F185: 1.749393688 | G185: 0.9665238095 | H185: 0.253879119 | I185: 0.0080326676 | J185: 4.633620651 | K185: 15.94348337 | M185: BAND1 | N185: 2008 | O185: 2.123768018 | P185: 7.77620906 | Q185: 2.051265913 | R185: 3.282077708 | S185: 1.063695652 | T185: 1.11183857 | U185: 0.0192369295 | V185: 9.567261 | W185: 26.42809185 | Y185: NOCA1 | Z185: 2.131832984 | AA185: 1.712757181 | AB185: 0.14320649 | AC185: 6.893399106 | AD185: 3.605712194 | AE185: 0.281973165 | AF185: 1.080008436 | AG185: 0.465558162 | AH185: 20.42104861
A186: BAND1 | B186: 2007 | C186: 0.5710396768 | D186: 2.360034987 | E186: 0.7808402609 | F186: 2.006344678 | G186: 0.7583043478 | H186: 0.2170388457 | I186: 0.0618118736 | J186: 4.492292745 | K186: 15.75541467 | M186: BAND1 | N186: 2009 | O186: 2.129334591 | P186: 8.310750274 | Q186: 2.074270909 | R186: 4.735613208 | S186: 1.6425 | T186: 0.7052486909 | U186: 0.0271544887 | V186: 9.674640241 | W186: 28.62487216 | Y186: NOCH1 | Z186: 1.225663712 | AA186: 1.634982829 | AB186: 0.051645388 | AC186: 4.969847955 | AD186: 1.724049203 | AE186: 0.501059478 | AF186: 1.293467298 | AG186: 0.271892958 | AH186: 16.70276087
A187: BAND1 | B187: 2008 | C187: 0.6875684785 | D187: 1.689577749 | E187: 0.591327913 | F187: 1.933571863 | G187: 0.7033043478 | H187: 0.1923837783 | I187: 0.0436866421 | J187: 3.914259069 | K187: 14.84142077 | M187: BAND1 | N187: 2010 | O187: 1.26331368 | P187: 6.014646091 | Q187: 1.488576522 | R187: 3.594946451 | S187: 1.172608696 | T187: 0.4792026391 | U187: 0.0120436544 | V187: 8.252536948 | W187: 23.02533773 | Y187: OKEF1 | Z187: 4.001402346 | AA187: 0.895278788 | AB187: 0.52309339 | AC187: 9.452014377 | AD187: 7.541588621 | AE187: 0.491040312 | AF187: 1.607263133 | AG187: 0.448416344 | AH187: 26.50808294
A188: BAND1 | B188: 2009 | C188: 0.4312715241 | D188: 1.90465571 | E188: 0.6633485714 | F188: 1.513652902 | G188: 0.6387619048 | H188: 0.2720113286 | I188: 0.0123266053 | J188: 3.635648563 | K188: 14.43602855 | M188: BAND1 | N188: 2011 | O188: 1.7831667 | P188: 6.824898597 | Q188: 2.283758182 | R188: 3.713111715 | S188: 1.326045454 | T188: 0.8276339182 | U188: 0.1268735114 | V188: 9.266839119 | W188: 25.88548808 | Y188: OLYM1 | Z188: 2.012033634 | AA188: 1.762036047 | AB188: 0.625630652 | AC188: 6.898116031 | AD188: 2.952153653 | AE188: 0.227475343 | AF188: 1.199924833 | AG188: 0.429551378 | AH188: 20.20880554
A189: BAND1 | B189: 2010 | C189: 0.5304075791 | D189: 1.829868535 | E189: 0.7580154545 | F189: 1.338551289 | G189: 0.5389545455 | H189: 0.2609192182 | I189: 0.0008826292 | J189: 3.521362415 | K189: 14.25759925 | M189: BAND1 | N189: 2012 | O189: 2.478233518 | P189: 7.934435786 | Q189: 2.656090435 | R189: 3.430378201 | S189: 1.103869565 | T189: 0.7528163565 | U189: 0.0419202438 | V189: 9.893342749 | W189: 27.39774411 | Y189: ORPI1 | Z189: 0.744956459 | AA189: 0.517314817 | AB189: 0.367787382 | AC189: 5.797115329 | AD189: 2.102760232 | AE189: 0.614332649 | AF189: 2.422870826 | AG189: 0.294861525 | AH189: 18.06488389
A190: BAND1 | B190: 2011 | C190: 0.5334578007 | D190: 1.952098529 | E190: 1.034858182 | F190: 1.56560318 | G190: 0.5908181818 | H190: 0.2913557591 | I190: 0.0910697032 | J190: 4.067341913 | K190: 15.05926134 | M190: BAND1 | N190: 2013 | O190: 1.717757641 | P190: 6.988752395 | Q190: 1.8490475 | R190: 3.337799556 | S190: 1.095958333 | T190: 0.3989526708 | U190: 0.0889702012 | V190: 8.762168214 | W190: 24.4772383 | Y190: OWVL1 | Z190: 1.000756356 | AA190: 0.729513096 | AB190: 0.088443824 | AC190: 5.996377946 | AD190: 2.925172893 | AE190: 0.800913212 | AF190: 2.609824796 | AG190: 0.299965076 | AH190: 18.45458925
A191: BAND1 | B191: 2012 | C191: 0.5608302699 | D191: 1.75247233 | E191: 1.444492174 | F191: 1.548325228 | G191: 0.7233478261 | H191: 0.3452877565 | I191: 0.013373903 | J191: 4.277666342 | K191: 15.38812949 | M191: BAND1 | N191: 2014 | O191: 2.990407124 | P191: 6.876907073 | Q191: 2.3112225 | R191: 3.068460261 | S191: 1.052375 | T191: 0.5506075333 | U191: 0.0425388833 | V191: 9.232191936 | W191: 25.89251838 | Y191: PACK1 | Z191: 4.360604485 | AA191: 1.479428546 | AB191: 0.13333323 | AC191: 9.546292209 | AD191: 7.36583979 | AE191: 0.32896839 | AF191: 1.613074467 | AG191: 0.580472381 | AH191: 26.86172129
A192: BAND1 | B192: 2013 | C192: 0.9856487148 | D192: 2.10016349 | E192: 0.7237252174 | F192: 1.811148065 | G192: 0.7286521739 | H192: 0.2547470826 | I192: 0.0247395412 | J192: 4.447971061 | K192: 15.62882429 | M192: BAND1 | N192: 2015 | O192: 2.361949448 | P192: 6.655474571 | Q192: 1.772369182 | R192: 3.904085838 | S192: 0.9491409091 | T192: 0.4965364 | U192: 0.0421385228 | V192: 9.055982326 | W192: 25.18169487 | Y192: PASA1 | Z192: 2.095107046 | AA192: 1.55928852 | AB192: 0.087940282 | AC192: 5.964707784 | AD192: 2.953312343 | AE192: 0.436651365 | AF192: 1.115199462 | AG192: 0.397056739 | AH192: 18.64455576
A193: BAND1 | B193: 2014 | C193: 0.4087018531 | D193: 1.384905876 | E193: 0.842066087 | F193: 1.406448383 | G193: 0.4570869565 | H193: 0.2755924348 | I193: 0.0155591421 | J193: 3.189845237 | K193: 13.79036073 | M193: BAND1 | N193: 2016 | O193: 1.466816428 | P193: 4.611026278 | Q193: 1.6931785 | R193: 3.291628523 | S193: 0.9539083333 | T193: 0.392955875 | U193: 0.025917894 | V193: 7.470613359 | W193: 21.43543183 | Y193: PEFO1 | Z193: 0.80249363 | AA193: 0.691578976 | AB193: 0.061030781 | AC193: 4.206639815 | AD193: 2.328688807 | AE193: 0.476743337 | AF193: 1.641956134 | AG193: 0.392086743 | AH193: 15.39457841
A194: BAND1 | B194: 2015 | C194: 0.541870045 | D194: 1.650912668 | E194: 0.7938567273 | F194: 1.62501192 | G194: 0.3477227273 | H194: 0.2271992409 | I194: 0.0090542618 | J194: 3.468888699 | K194: 14.19562759 | M194: BAND1 | N194: 2017 | O194: 0.5990971339 | P194: 5.009774167 | Q194: 1.698758087 | R194: 3.665061613 | S194: 0.8856608696 | T194: 0.4393811783 | U194: 0.0149276113 | V194: 7.472521354 | W194: 21.31266066 | Y194: PENO1 | Z194: 3.975584795 | AA194: 1.361485579 | AB194: 0.594602499 | AC194: 10.33967451 | AD194: 8.348068875 | AE194: 0.350349151 | AF194: 2.090949635 | AG194: 0.437995512 | AH194: 29.15903605
A195: BAND1 | B195: 2016 | C195: 0.4591591573 | D195: 1.202355397 | E195: 0.7374993913 | F195: 1.259371319 | G195: 0.3234478261 | H195: 0.1938957 | I195: 0.0097443571 | J195: 2.741466618 | K195: 13.18547315 | M195: BAND1 | N195: 2018 | O195: 1.355603615 | P195: 5.200673004 | Q195: 2.27057875 | R195: 4.85819552 | S195: 1.529658333 | T195: 0.8247538125 | U195: 0.0701811128 | V195: 8.988260761 | W195: 25.10964415 | Y195: PHOE1 | Z195: 0.376109788 | AA195: 0.952745656 | AB195: 0.558132573 | AC195: 6.528070556 | AD195: 3.662860624 | AE195: 0.4625217 | AF195: 1.914607136 | AG195: 0.676113893 | AH195: 19.60309137
A196: BAND1 | B196: 2017 | C196: 0.3383716181 | D196: 1.181789117 | E196: 0.8560459091 | F196: 1.430202541 | G196: 0.4380954545 | H196: 0.2032542636 | I196: 0.0139842974 | J196: 2.938672009 | K196: 13.4617432 | M196: BIBE1 | N196: 2001 | O196: 1.16234205 | P196: 27.92034186 | Q196: 2.978166 | R196: 4.212792659 | S196: 2.1766 | T196: 0.637093725 | U196: 0.0098939898 | V196: 15.68376957 | W196: 49.09723028 | Y196: PINN1 | Z196: 1.203920341 | AA196: 1.629995245 | AB196: 0.809766768 | AC196: 6.942691337 | AD196: 2.703402036 | AE196: 0.433773057 | AF196: 2.099576525 | AG196: 0.498957623 | AH196: 20.3793916
A197: BAND1 | B197: 2018 | C197: 0.3730563853 | D197: 1.270957756 | E197: 0.62049425 | F197: 1.150604116 | G197: 0.519025 | H197: 0.21979555 | I197: 0.0338695208 | J197: 2.748339844 | K197: 13.18780258 | M197: BIBE1 | N197: 2002 | O197: 1.197462897 | P197: 31.63116419 | Q197: 2.6217375 | R197: 5.254087501 | S197: 1.668291667 | T197: 1.302560242 | U197: 0.0027854861 | V197: 16.20462025 | W197: 53.67808948 | Y197: PMRF1 | Z197: 4.850141966 | AA197: 1.457125212 | AB197: 0.151828649 | AC197: 10.28532843 | AD197: 9.117868483 | AE197: 0.395719014 | AF197: 1.468767328 | AG197: 0.828229974 | AH197: 29.26968063
A198: BIBE1 | B198: 2001 | C198: 0.7038099509 | D198: 5.020106818 | E198: 1.629612632 | F198: 1.925274544 | G198: 0.8723684211 | H198: 0.3937350737 | I198: 0.013388877 | J198: 7.089528589 | K198: 20.55829632 | M198: BIBE1 | N198: 2003 | O198: 2.595680674 | P198: 22.10544135 | Q198: 2.327488696 | R198: 4.807872487 | S198: 1.835217391 | T198: 0.8712923217 | U198: 0.0019959914 | V198: 14.80301046 | W198: 44.54498892 | Y198: PORE1 | Z198: 1.233289127 | AA198: 2.71777814 | AB198: 4.169951328 | AC198: 9.744735343 | AD198: 5.002122863 | AE198: 0.275024192 | AF198: 1.528896174 | AG198: 1.392014834 | AH198: 28.31907666
A199: BIBE1 | B199: 2002 | C199: 0.5879484539 | D199: 3.512289563 | E199: 1.430029565 | F199: 1.228407584 | G199: 0.5984782609 | H199: 0.4992375935 | I199: 0.0015394328 | J199: 5.678270306 | K199: 17.85793045 | M199: BIBE1 | N199: 2004 | O199: 1.053487277 | P199: 27.34132851 | Q199: 2.8300825 | R199: 4.996991411 | S199: 1.730083333 | T199: 0.8474160708 | U199: 0.1261595033 | V199: 15.59795319 | W199: 48.9255486 | Y199: PRIS1 | Z199: 4.231098693 | AA199: 1.442709657 | AB199: 0.361825485 | AC199: 10.24276877 | AD199: 8.390561782 | AE199: 0.415379494 | AF199: 1.687653411 | AG199: 0.562669308 | AH199: 29.09189783
A200: BIBE1 | B200: 2003 | C200: 0.3610207137 | D200: 3.041414122 | E200: 1.62357 | F200: 1.444713932 | G200: 0.6092272727 | H200: 0.4503641682 | I200: 0.3540921005 | J200: 5.736405883 | K200: 17.88440231 | M200: BIBE1 | N200: 2005 | O200: 1.056983952 | P200: 35.17728067 | Q200: 2.939475 | R200: 6.171491485 | S200: 2.689208333 | T200: 0.8216269083 | U200: 0.0912492829 | V200: 17.40715004 | W200: 58.94731563 | Y200: PUSO1 | Z200: 1.639499693 | AA200: 2.04590455 | AB200: 1.264878293 | AC200: 8.423385988 | AD200: 3.285704336 | AE200: 0.521067133 | AF200: 2.274348173 | AG200: 0.597298393 | AH200: 23.62870057
A201: BIBE1 | B201: 2004 | C201: 0.365221307 | D201: 2.611996554 | E201: 0.89454 | F201: 1.308263488 | G201: 0.5370869565 | H201: 0.180975087 | I201: 0.0560198391 | J201: 4.619389154 | K201: 15.95410323 | M201: BIBE1 | N201: 2006 | O201: 1.443647119 | P201: 28.31268085 | Q201: 3.28536 | R201: 4.989098768 | S201: 2.1836 | T201: 0.82965296 | U201: 0.0806822321 | V201: 16.05593342 | W201: 51.12472193 | Y201: QUCI1 | Z201: 4.120684519 | AA201: 1.101290083 | AB201: 0.250610635 | AC201: 9.771411298 | AD201: 7.513486606 | AE201: 0.609291 | AF201: 1.969443067 | AG201: 0.624106879 | AH201: 27.18891279
A202: BIBE1 | B202: 2005 | C202: 0.5276324891 | D202: 3.717721692 | E202: 1.887104348 | F202: 1.56640093 | G202: 0.6832173913 | H202: 0.506231013 | I202: 0.0793345711 | J202: 6.32619829 | K202: 18.96764243 | M202: BIBE1 | N202: 2007 | O202: 1.100764416 | P202: 35.56149997 | Q202: 2.55792 | R202: 4.829757021 | S202: 1.934166667 | T202: 1.0881524 | U202: 0.0769092368 | V202: 16.59356878 | W202: 57.14916971 | Y202: QURE1 | Z202: 4.451546449 | AA202: 1.339898006 | AB202: 0.231736328 | AC202: 10.81093564 | AD202: 10.79406407 | AE202: 0.483063984 | AF202: 1.612629883 | AG202: 0.981649892 | AH202: 30.89458861
A203: BIBE1 | B203: 2006 | C203: 0.4837279941 | D203: 3.532269251 | E203: 2.121417 | F203: 1.4691775 | G203: 0.78015 | H203: 0.514648075 | I203: 0.0292063689 | J203: 6.322823389 | K203: 18.93059619 | M203: BIBE1 | N203: 2008 | O203: 0.9171636318 | P203: 24.38123365 | Q203: 2.93066 | R203: 4.346966177 | S203: 1.471625 | T203: 1.156379483 | U203: 0.0417336825 | V203: 14.70960961 | W203: 45.24576162 | Y203: QUVA1 | Z203: 0.697799039 | AA203: 1.0645818 | AB203: 0.142390245 | AC203: 6.056351059 | AD203: 2.417371392 | AE203: 0.566533858 | AF203: 2.185115681 | AG203: 0.493596349 | AH203: 18.56738836
A204: BIBE1 | B204: 2007 | C204: 0.3671189416 | D204: 3.251565928 | E204: 1.565255217 | F204: 1.479191222 | G204: 0.670826087 | H204: 0.355882747 | I204: 0.0580579787 | J204: 5.638583436 | K204: 17.74789812 | M204: BIBE1 | N204: 2009 | O204: 1.489954509 | P204: 20.54943291 | Q204: 2.97164087 | R204: 4.137198544 | S204: 1.339956522 | T204: 1.083752148 | U204: 0.0156543746 | V204: 14.09838671 | W204: 41.58758988 | Y204: RAFA1 | Z204: 1.318203026 | AA204: 1.31688237 | AB204: 0.79299585 | AC204: 6.797334198 | AD204: 3.098417766 | AE204: 0.614663035 | AF204: 2.379457383 | AG204: 0.537882832 | AH204: 20.05850226
A205: BIBE1 | B205: 2008 | C205: 0.3350008753 | D205: 2.825360729 | E205: 1.984831304 | F205: 1.427713146 | G205: 0.4766086957 | H205: 0.4395738391 | I205: 0.016500591 | J205: 5.509336923 | K205: 17.50558918 | M205: BIBE1 | N205: 2010 | O205: 1.081357712 | P205: 29.44100589 | Q205: 3.140957143 | R205: 7.114922329 | S205: 2.053190476 | T205: 0.9729833905 | U205: 0.012806253 | V205: 16.28651046 | W205: 53.81722319 | Y205: REDW1 | Z205: 2.164252127 | AA205: 1.596655197 | AB205: 5.427954437 | AC205: 8.590127896 | AD205: 2.39365455 | AE205: 0.175981061 | AF205: 1.770278961 | AG205: 0.37416708 | AH205: 24.90294341
A206: BIBE1 | B206: 2009 | C206: 0.3950046378 | D206: 2.867245587 | E206: 1.921557391 | F206: 1.485433715 | G206: 0.5107826087 | H206: 0.6370393304 | I206: 0.0263553143 | J206: 5.727920544 | K206: 17.84341858 | M206: BIBE1 | N206: 2011 | O206: 1.363559453 | P206: 17.06583051 | Q206: 4.851295 | R206: 4.414727888 | S206: 1.532375 | T206: 0.6544011542 | U206: 0.1606185585 | V206: 13.68789564 | W206: 40.04280756 | Y206: ROMA1 | Z206: 3.804591285 | AA206: 0.80589203 | AB206: 0.491679099 | AC206: 9.781122745 | AD206: 7.183451559 | AE206: 0.53981937 | AF206: 1.915980989 | AG206: 0.341911085 | AH206: 27.08332542
A207: BIBE1 | B207: 2010 | C207: 0.3040583494 | D207: 2.71179141 | E207: 1.420239 | F207: 1.053110601 | G207: 0.316 | H207: 0.41359849 | I207: 0.0034812932 | J207: 4.80601365 | K207: 16.22227914 | M207: BIBE1 | N207: 2012 | O207: 1.167309311 | P207: 21.3761679 | Q207: 4.075489565 | R207: 4.266952795 | S207: 1.677782609 | T207: 0.8920057348 | U207: 0.1059019701 | V207: 14.55080377 | W207: 43.56160989 | Y207: ROMO1 | Z207: 1.040424958 | AA207: 1.506009331 | AB207: 0.042974429 | AC207: 4.935575106 | AD207: 2.48669942 | AE207: 0.630379772 | AF207: 1.628178645 | AG207: 0.370972994 | AH207: 16.70563955
A208: BIBE1 | B208: 2011 | C208: 0.4870506962 | D208: 3.601155504 | E208: 2.5064675 | F208: 1.337534389 | G208: 0.64825 | H208: 0.5741402417 | I208: 0.0936261952 | J208: 6.362142343 | K208: 19.24822453 | M208: BIBE1 | N208: 2013 | O208: 1.518579102 | P208: 16.80465252 | Q208: 3.755323636 | R208: 3.957695921 | S208: 1.333454545 | T208: 0.8962050091 | U208: 0.15881094 | V208: 13.38588885 | W208: 38.42472168 | Y208: SACR1 | Z208: 0.99995516 | AA208: 1.261577897 | AB208: 0.248845498 | AC208: 5.491008773 | AD208: 2.460419357 | AE208: 0.490372037 | AF208: 1.714415248 | AG208: 0.407055181 | AH208: 17.58264038
A209: BIBE1 | B209: 2012 | C209: 0.4489510521 | D209: 3.586700225 | E209: 2.963784545 | F209: 1.519726256 | G209: 0.6297272727 | H209: 0.6795312909 | I209: 0.035441532 | J209: 6.777195632 | K209: 19.86386217 | M209: BIBE1 | N209: 2014 | O209: 0.8883015216 | P209: 24.85513826 | Q209: 3.14273 | R209: 3.749885205 | S209: 1.557416667 | T209: 0.7701719292 | U209: 0.0685871588 | V209: 14.86200468 | W209: 45.03223074 | Y209: SAFO1 | Z209: 2.838238334 | AA209: 2.241421395 | AB209: 0.43665122 | AC209: 8.804082163 | AD209: 6.210365778 | AE209: 0.385067308 | AF209: 1.467755398 | AG209: 0.313465515 | AH209: 24.89296495
A210: BIBE1 | B210: 2013 | C210: 0.4550617849 | D210: 2.485260876 | E210: 1.362755455 | F210: 1.018773492 | G210: 0.3751818182 | H210: 0.2303413045 | I210: 0.0382832845 | J210: 4.612474867 | K210: 15.96565801 | M210: BIBE1 | N210: 2015 | O210: 1.302621326 | P210: 21.49338906 | Q210: 3.800111217 | R210: 5.248792063 | S210: 1.249269565 | T210: 1.291312852 | U210: 0.1094276356 | V210: 14.83545286 | W210: 44.49492372 | Y210: SAGA1 | Z210: 0.935827908 | AA210: 1.594642535 | AB210: 0.442868564 | AC210: 6.120937077 | AD210: 3.296164301 | AE210: 0.60512707 | AF210: 2.298399739 | AG210: 0.715330455 | AH210: 18.88836057
A211: BIBE1 | B211: 2014 | C211: 0.4755541801 | D211: 3.590436543 | E211: 2.240522609 | F211: 1.384166336 | G211: 0.5806521739 | H211: 0.4094984652 | I211: 0.0537385625 | J211: 6.166373947 | K211: 18.73456887 | M211: BIBE1 | N211: 2016 | O211: 0.9523816672 | P211: 18.48728811 | Q211: 3.440414348 | R211: 4.718296114 | S211: 1.364373913 | T211: 0.6457071174 | U211: 0.1014465968 | V211: 13.63432832 | W211: 39.70990786 | Y211: SAGO1 | Z211: 0.808358043 | AA211: 1.496942176 | AB211: 0.467283645 | AC211: 6.204839076 | AD211: 2.806650892 | AE211: 0.637658181 | AF211: 2.230001005 | AG211: 0.52409983 | AH211: 18.97099377
... 2679 more rows

Sheet Results Table (hidden)
C1: Unit in DV unless noted
A2: Site | B2: Class I Area | C2: 2004 Clear | D2: 2004 MID | E2: 2014-2017 Clear | F2: 2028 Clear | G2: 2014-2017 MID | H2: 2028 MID | J2: 2004 MID | K2: 2064 Unadjusted MID | L2: 2064 Adjusted | M2: 2028 Unadjusted RPG | N2: 2028 Adjusted RPG | O2: 2028 MID | P2: International (Ext; Mm-1) | Q2: natural (Ext, Mm-1)
A3: BIBE1 | B3: Big Bend | C3: =AVERAGEIFS(Data_Summary!$J$81:$J$323,Data_Summary!$B$81:$B$323,">1999",Data_Summary!$B$81:$B$323,"<2005",Data_Summary!$A$81:$A$323,$A3) -> 5.780898483 | D3: =J3 -> 15.57233837 | E3: =VLOOKUP($A3,SMAT_PSAT1!$A$16:$DM$31,17,FALSE) -> 5.22 | F3: =VLOOKUP($A3,SMAT_PSAT1!$A$16:$DM$31,18,FALSE) -> 4.96 | G3: =VLOOKUP($A3,SMAT_PSAT1!$A$17:$DM$31,19,FALSE) -> 14.28 | H3: =VLOOKUP($A3,SMAT_PSAT1!$A$17:$DM$31,20,FALSE) -> 14.1 | J3: =AVERAGEIFS(Data_Summary!$V$81:$V$323,Data_Summary!$N$81:$N$323,">1999",Data_Summary!$N$81:$N$323,"<2005",Data_Summary!$M$81:$M$323,$A3) -> 15.57233837 | K3: =VLOOKUP($A3,Data_Summary!$Y$81:$AH$95,MATCH("Sum of "&Data_Summary!I$35,Data_Summary!$Y$80:$AH$80,0),FALSE) -> 5.329389796 | L3: =K3+10*LN((P3+Q3)/Q3) -> 5.329389796 | M3: =(K3-J3)/(2064-2004)*(2028-2004)+J3 -> 11.47515894 | N3: =(L3-J3)/(2064-2004)*(2028-2004)+J3 -> 11.47515894 | O3: =H3 -> 14.1 | P3: =VLOOKUP($A3,SMAT_2014v2_2028OTBb!$A$17:$DM$31,MATCH(Data_Summary!I$43,SMAT_2014v2_2028OTBb!$A$16:$DM$16,0),FALSE) -> 0 | Q3: =10*EXP(K3/10) -> 17.03932781
A4: BOAP1 | B4: Bosque del Apache | C4: =AVERAGEIFS(Data_Summary!$J$81:$J$323,Data_Summary!$B$81:$B$323,">1999",Data_Summary!$B$81:$B$323,"<2005",Data_Summary!$A$81:$A$323,$A4) -> 6.278452319 | D4: 11.60630973 | E4: =VLOOKUP($A4,SMAT_PSAT1!$A$16:$DM$31,17,FALSE) -> 4.59 | F4: =VLOOKUP($A4,SMAT_PSAT1!$A$16:$DM$31,18,FALSE) -> 4.2 | G4: =VLOOKUP($A4,SMAT_PSAT1!$A$17:$DM$31,19,FALSE) -> 10.36 | H4: =VLOOKUP($A4,SMAT_PSAT1!$A$17:$DM$31,20,FALSE) -> 9.6 | J4: =AVERAGEIFS(Data_Summary!$V$81:$V$323,Data_Summary!$N$81:$N$323,">1999",Data_Summary!$N$81:$N$323,"<2005",Data_Summary!$M$81:$M$323,$A4) -> 11.60630973 | K4: =VLOOKUP($A4,Data_Summary!$Y$81:$AH$95,MATCH("Sum of "&Data_Summary!I$35,Data_Summary!$Y$80:$AH$80,0),FALSE) -> 5.388214779 | L4: 5.388214779 | M4: 9.119071752 | N4: 9.119071752 | O4: =H4 -> 9.6 | P4: =VLOOKUP($A4,SMAT_2014v2_2028OTBb!$A$17:$DM$31,MATCH(Data_Summary!I$43,SMAT_2014v2_2028OTBb!$A$16:$DM$16,0),FALSE) -> 0 | Q4: 17.13985701
A5: BRIS1 | B5: Breton Island | C5: =AVERAGEIFS(Data_Summary!$J$81:$J$323,Data_Summary!$B$81:$B$323,">1999",Data_Summary!$B$81:$B$323,"<2005",Data_Summary!$A$81:$A$323,$A5) ->  | E5: =VLOOKUP($A5,SMAT_PSAT1!$A$16:$DM$31,17,FALSE) -> 11.8 | F5: =VLOOKUP($A5,SMAT_PSAT1!$A$16:$DM$31,18,FALSE) -> 11.32 | G5: =VLOOKUP($A5,SMAT_PSAT1!$A$17:$DM$31,19,FALSE) -> 19.15 | H5: =VLOOKUP($A5,SMAT_PSAT1!$A$17:$DM$31,20,FALSE) -> 18.3 | J5: =AVERAGEIFS(Data_Summary!$V$81:$V$323,Data_Summary!$N$81:$N$323,">1999",Data_Summary!$N$81:$N$323,"<2005",Data_Summary!$M$81:$M$323,$A5) ->  | K5: =VLOOKUP($A5,Data_Summary!$Y$81:$AH$95,MATCH("Sum of "&Data_Summary!I$35,Data_Summary!$Y$80:$AH$80,0),FALSE) ->  | O5: 18.3 | P5: =VLOOKUP($A5,SMAT_2014v2_2028OTBb!$A$17:$DM$31,MATCH(Data_Summary!I$43,SMAT_2014v2_2028OTBb!$A$16:$DM$16,0),FALSE) -> 
A6: CACR1 | B6: Caney Creek | C6: =AVERAGEIFS(Data_Summary!$J$81:$J$323,Data_Summary!$B$81:$B$323,">1999",Data_Summary!$B$81:$B$323,"<2005",Data_Summary!$A$81:$A$323,$A6) ->  | E6: =VLOOKUP($A6,SMAT_PSAT1!$A$16:$DM$31,17,FALSE) -> 8.24 | F6: =VLOOKUP($A6,SMAT_PSAT1!$A$16:$DM$31,18,FALSE) -> 7.81 | G6: =VLOOKUP($A6,SMAT_PSAT1!$A$17:$DM$31,19,FALSE) -> 18.54 | H6: =VLOOKUP($A6,SMAT_PSAT1!$A$17:$DM$31,20,FALSE) -> 17.05 | J6: =AVERAGEIFS(Data_Summary!$V$81:$V$323,Data_Summary!$N$81:$N$323,">1999",Data_Summary!$N$81:$N$323,"<2005",Data_Summary!$M$81:$M$323,$A6) ->  | K6: =VLOOKUP($A6,Data_Summary!$Y$81:$AH$95,MATCH("Sum of "&Data_Summary!I$35,Data_Summary!$Y$80:$AH$80,0),FALSE) ->  | O6: 17.05 | P6: =VLOOKUP($A6,SMAT_2014v2_2028OTBb!$A$17:$DM$31,MATCH(Data_Summary!I$43,SMAT_2014v2_2028OTBb!$A$16:$DM$16,0),FALSE) -> 
A7: GRSA1 | B7: Great Sand Dunes | C7: =AVERAGEIFS(Data_Summary!$J$81:$J$323,Data_Summary!$B$81:$B$323,">1999",Data_Summary!$B$81:$B$323,"<2005",Data_Summary!$A$81:$A$323,$A7) ->  | E7: =VLOOKUP($A7,SMAT_PSAT1!$A$16:$DM$31,17,FALSE) -> 2.88 | F7: =VLOOKUP($A7,SMAT_PSAT1!$A$16:$DM$31,18,FALSE) -> 2.6 | G7: =VLOOKUP($A7,SMAT_PSAT1!$A$17:$DM$31,19,FALSE) -> 7.91 | H7: =VLOOKUP($A7,SMAT_PSAT1!$A$17:$DM$31,20,FALSE) -> 7.31 | J7: =AVERAGEIFS(Data_Summary!$V$81:$V$323,Data_Summary!$N$81:$N$323,">1999",Data_Summary!$N$81:$N$323,"<2005",Data_Summary!$M$81:$M$323,$A7) ->  | K7: =VLOOKUP($A7,Data_Summary!$Y$81:$AH$95,MATCH("Sum of "&Data_Summary!I$35,Data_Summary!$Y$80:$AH$80,0),FALSE) ->  | O7: 7.31 | P7: =VLOOKUP($A7,SMAT_2014v2_2028OTBb!$A$17:$DM$31,MATCH(Data_Summary!I$43,SMAT_2014v2_2028OTBb!$A$16:$DM$16,0),FALSE) -> 
A8: GUMO1 | B8: Guadalupe Mountains | C8: =AVERAGEIFS(Data_Summary!$J$81:$J$323,Data_Summary!$B$81:$B$323,">1999",Data_Summary!$B$81:$B$323,"<2005",Data_Summary!$A$81:$A$323,$A8) ->  | E8: =VLOOKUP($A8,SMAT_PSAT1!$A$16:$DM$31,17,FALSE) -> 4.51 | F8: =VLOOKUP($A8,SMAT_PSAT1!$A$16:$DM$31,18,FALSE) -> 4.08 | G8: =VLOOKUP($A8,SMAT_PSAT1!$A$17:$DM$31,19,FALSE) -> 12.63 | H8: =VLOOKUP($A8,SMAT_PSAT1!$A$17:$DM$31,20,FALSE) -> 12.35 | J8: =AVERAGEIFS(Data_Summary!$V$81:$V$323,Data_Summary!$N$81:$N$323,">1999",Data_Summary!$N$81:$N$323,"<2005",Data_Summary!$M$81:$M$323,$A8) ->  | K8: =VLOOKUP($A8,Data_Summary!$Y$81:$AH$95,MATCH("Sum of "&Data_Summary!I$35,Data_Summary!$Y$80:$AH$80,0),FALSE) ->  | O8: 12.35 | P8: =VLOOKUP($A8,SMAT_2014v2_2028OTBb!$A$17:$DM$31,MATCH(Data_Summary!I$43,SMAT_2014v2_2028OTBb!$A$16:$DM$16,0),FALSE) -> 
A9: HEGL1 | B9: Hercules-Glades | C9: =AVERAGEIFS(Data_Summary!$J$81:$J$323,Data_Summary!$B$81:$B$323,">1999",Data_Summary!$B$81:$B$323,"<2005",Data_Summary!$A$81:$A$323,$A9) ->  | E9: =VLOOKUP($A9,SMAT_PSAT1!$A$16:$DM$31,17,FALSE) -> 9.75 | F9: =VLOOKUP($A9,SMAT_PSAT1!$A$16:$DM$31,18,FALSE) -> 9.1 | G9: =VLOOKUP($A9,SMAT_PSAT1!$A$17:$DM$31,19,FALSE) -> 18.76 | H9: =VLOOKUP($A9,SMAT_PSAT1!$A$17:$DM$31,20,FALSE) -> 17.49 | J9: =AVERAGEIFS(Data_Summary!$V$81:$V$323,Data_Summary!$N$81:$N$323,">1999",Data_Summary!$N$81:$N$323,"<2005",Data_Summary!$M$81:$M$323,$A9) ->  | K9: =VLOOKUP($A9,Data_Summary!$Y$81:$AH$95,MATCH("Sum of "&Data_Summary!I$35,Data_Summary!$Y$80:$AH$80,0),FALSE) ->  | O9: 17.49 | P9: =VLOOKUP($A9,SMAT_2014v2_2028OTBb!$A$17:$DM$31,MATCH(Data_Summary!I$43,SMAT_2014v2_2028OTBb!$A$16:$DM$16,0),FALSE) -> 
A10: MING1 | B10: Mingo | C10: =AVERAGEIFS(Data_Summary!$J$81:$J$323,Data_Summary!$B$81:$B$323,">1999",Data_Summary!$B$81:$B$323,"<2005",Data_Summary!$A$81:$A$323,$A10) ->  | E10: =VLOOKUP($A10,SMAT_PSAT1!$A$16:$DM$31,17,FALSE) -> 11.21 | F10: =VLOOKUP($A10,SMAT_PSAT1!$A$16:$DM$31,18,FALSE) -> 10.53 | G10: =VLOOKUP($A10,SMAT_PSAT1!$A$17:$DM$31,19,FALSE) -> 20.14 | H10: =VLOOKUP($A10,SMAT_PSAT1!$A$17:$DM$31,20,FALSE) -> 18.65 | J10: =AVERAGEIFS(Data_Summary!$V$81:$V$323,Data_Summary!$N$81:$N$323,">1999",Data_Summary!$N$81:$N$323,"<2005",Data_Summary!$M$81:$M$323,$A10) ->  | K10: =VLOOKUP($A10,Data_Summary!$Y$81:$AH$95,MATCH("Sum of "&Data_Summary!I$35,Data_Summary!$Y$80:$AH$80,0),FALSE) ->  | O10: 18.65 | P10: =VLOOKUP($A10,SMAT_2014v2_2028OTBb!$A$17:$DM$31,MATCH(Data_Summary!I$43,SMAT_2014v2_2028OTBb!$A$16:$DM$16,0),FALSE) -> 
A11: ROMO1 | B11: Rocky Mountain | C11: =AVERAGEIFS(Data_Summary!$J$81:$J$323,Data_Summary!$B$81:$B$323,">1999",Data_Summary!$B$81:$B$323,"<2005",Data_Summary!$A$81:$A$323,$A11) ->  | E11: =VLOOKUP($A11,SMAT_PSAT1!$A$16:$DM$31,17,FALSE) -> 1.33 | F11: =VLOOKUP($A11,SMAT_PSAT1!$A$16:$DM$31,18,FALSE) -> 1.14 | G11: =VLOOKUP($A11,SMAT_PSAT1!$A$17:$DM$31,19,FALSE) -> 8.42 | H11: =VLOOKUP($A11,SMAT_PSAT1!$A$17:$DM$31,20,FALSE) -> 7.28 | J11: =AVERAGEIFS(Data_Summary!$V$81:$V$323,Data_Summary!$N$81:$N$323,">1999",Data_Summary!$N$81:$N$323,"<2005",Data_Summary!$M$81:$M$323,$A11) ->  | K11: =VLOOKUP($A11,Data_Summary!$Y$81:$AH$95,MATCH("Sum of "&Data_Summary!I$35,Data_Summary!$Y$80:$AH$80,0),FALSE) ->  | O11: 7.28 | P11: =VLOOKUP($A11,SMAT_2014v2_2028OTBb!$A$17:$DM$31,MATCH(Data_Summary!I$43,SMAT_2014v2_2028OTBb!$A$16:$DM$16,0),FALSE) -> 
A12: SACR1 | B12: Salt Creek | C12: =AVERAGEIFS(Data_Summary!$J$81:$J$323,Data_Summary!$B$81:$B$323,">1999",Data_Summary!$B$81:$B$323,"<2005",Data_Summary!$A$81:$A$323,$A12) ->  | E12: =VLOOKUP($A12,SMAT_PSAT1!$A$16:$DM$31,17,FALSE) -> 6.67 | F12: =VLOOKUP($A12,SMAT_PSAT1!$A$16:$DM$31,18,FALSE) -> 6.16 | G12: =VLOOKUP($A12,SMAT_PSAT1!$A$17:$DM$31,19,FALSE) -> 15.04 | H12: =VLOOKUP($A12,SMAT_PSAT1!$A$17:$DM$31,20,FALSE) -> 13.95 | J12: =AVERAGEIFS(Data_Summary!$V$81:$V$323,Data_Summary!$N$81:$N$323,">1999",Data_Summary!$N$81:$N$323,"<2005",Data_Summary!$M$81:$M$323,$A12) ->  | K12: =VLOOKUP($A12,Data_Summary!$Y$81:$AH$95,MATCH("Sum of "&Data_Summary!I$35,Data_Summary!$Y$80:$AH$80,0),FALSE) ->  | O12: 13.95 | P12: =VLOOKUP($A12,SMAT_2014v2_2028OTBb!$A$17:$DM$31,MATCH(Data_Summary!I$43,SMAT_2014v2_2028OTBb!$A$16:$DM$16,0),FALSE) -> 
A13: UPBU1 | B13: Upper Buffalo | C13: =AVERAGEIFS(Data_Summary!$J$81:$J$323,Data_Summary!$B$81:$B$323,">1999",Data_Summary!$B$81:$B$323,"<2005",Data_Summary!$A$81:$A$323,$A13) ->  | E13: =VLOOKUP($A13,SMAT_PSAT1!$A$16:$DM$31,17,FALSE) -> 8.42 | F13: =VLOOKUP($A13,SMAT_PSAT1!$A$16:$DM$31,18,FALSE) -> 7.86 | G13: =VLOOKUP($A13,SMAT_PSAT1!$A$17:$DM$31,19,FALSE) -> 18.18 | H13: =VLOOKUP($A13,SMAT_PSAT1!$A$17:$DM$31,20,FALSE) -> 16.74 | J13: =AVERAGEIFS(Data_Summary!$V$81:$V$323,Data_Summary!$N$81:$N$323,">1999",Data_Summary!$N$81:$N$323,"<2005",Data_Summary!$M$81:$M$323,$A13) ->  | K13: =VLOOKUP($A13,Data_Summary!$Y$81:$AH$95,MATCH("Sum of "&Data_Summary!I$35,Data_Summary!$Y$80:$AH$80,0),FALSE) ->  | O13: 16.74 | P13: =VLOOKUP($A13,SMAT_2014v2_2028OTBb!$A$17:$DM$31,MATCH(Data_Summary!I$43,SMAT_2014v2_2028OTBb!$A$16:$DM$16,0),FALSE) -> 
A14: WHIT1 | B14: White Mountain | C14: =AVERAGEIFS(Data_Summary!$J$81:$J$323,Data_Summary!$B$81:$B$323,">1999",Data_Summary!$B$81:$B$323,"<2005",Data_Summary!$A$81:$A$323,$A14) ->  | E14: =VLOOKUP($A14,SMAT_PSAT1!$A$16:$DM$31,17,FALSE) -> 2.57 | F14: =VLOOKUP($A14,SMAT_PSAT1!$A$16:$DM$31,18,FALSE) -> 2.27 | G14: =VLOOKUP($A14,SMAT_PSAT1!$A$17:$DM$31,19,FALSE) -> 10.04 | H14: =VLOOKUP($A14,SMAT_PSAT1!$A$17:$DM$31,20,FALSE) -> 9.49 | J14: =AVERAGEIFS(Data_Summary!$V$81:$V$323,Data_Summary!$N$81:$N$323,">1999",Data_Summary!$N$81:$N$323,"<2005",Data_Summary!$M$81:$M$323,$A14) ->  | K14: =VLOOKUP($A14,Data_Summary!$Y$81:$AH$95,MATCH("Sum of "&Data_Summary!I$35,Data_Summary!$Y$80:$AH$80,0),FALSE) ->  | O14: 9.49 | P14: =VLOOKUP($A14,SMAT_2014v2_2028OTBb!$A$17:$DM$31,MATCH(Data_Summary!I$43,SMAT_2014v2_2028OTBb!$A$16:$DM$16,0),FALSE) -> 
A15: WHPE1 | B15: Wheeler Peak | C15: =AVERAGEIFS(Data_Summary!$J$81:$J$323,Data_Summary!$B$81:$B$323,">1999",Data_Summary!$B$81:$B$323,"<2005",Data_Summary!$A$81:$A$323,$A15) ->  | E15: =VLOOKUP($A15,SMAT_PSAT1!$A$16:$DM$31,17,FALSE) -> 0.3069428 | F15: =VLOOKUP($A15,SMAT_PSAT1!$A$16:$DM$31,18,FALSE) -> 0.0854347 | G15: =VLOOKUP($A15,SMAT_PSAT1!$A$17:$DM$31,19,FALSE) -> 6.0279062 | H15: =VLOOKUP($A15,SMAT_PSAT1!$A$17:$DM$31,20,FALSE) -> 5.2886441 | J15: =AVERAGEIFS(Data_Summary!$V$81:$V$323,Data_Summary!$N$81:$N$323,">1999",Data_Summary!$N$81:$N$323,"<2005",Data_Summary!$M$81:$M$323,$A15) ->  | K15: =VLOOKUP($A15,Data_Summary!$Y$81:$AH$95,MATCH("Sum of "&Data_Summary!I$35,Data_Summary!$Y$80:$AH$80,0),FALSE) ->  | O15: 5.2886441 | P15: =VLOOKUP($A15,SMAT_2014v2_2028OTBb!$A$17:$DM$31,MATCH(Data_Summary!I$43,SMAT_2014v2_2028OTBb!$A$16:$DM$16,0),FALSE) -> 
A16: WIMO1 | B16: Wichita Mountains | C16: =AVERAGEIFS(Data_Summary!$J$81:$J$323,Data_Summary!$B$81:$B$323,">1999",Data_Summary!$B$81:$B$323,"<2005",Data_Summary!$A$81:$A$323,$A16) ->  | E16: =VLOOKUP($A16,SMAT_PSAT1!$A$16:$DM$31,17,FALSE) -> 8.39 | F16: =VLOOKUP($A16,SMAT_PSAT1!$A$16:$DM$31,18,FALSE) -> 7.73 | G16: =VLOOKUP($A16,SMAT_PSAT1!$A$17:$DM$31,19,FALSE) -> 18.11 | H16: =VLOOKUP($A16,SMAT_PSAT1!$A$17:$DM$31,20,FALSE) -> 16.7 | J16: =AVERAGEIFS(Data_Summary!$V$81:$V$323,Data_Summary!$N$81:$N$323,">1999",Data_Summary!$N$81:$N$323,"<2005",Data_Summary!$M$81:$M$323,$A16) ->  | K16: =VLOOKUP($A16,Data_Summary!$Y$81:$AH$95,MATCH("Sum of "&Data_Summary!I$35,Data_Summary!$Y$80:$AH$80,0),FALSE) ->  | O16: 16.7 | P16: =VLOOKUP($A16,SMAT_2014v2_2028OTBb!$A$17:$DM$31,MATCH(Data_Summary!I$43,SMAT_2014v2_2028OTBb!$A$16:$DM$16,0),FALSE) -> 
A18: Non-normalized source contribution (Extinction)
A19: Site | B19: Class I Area | C19: TX EGU | D19: TX non-EGU | E19: TX Oil&Gas | F19: TX on-road | G19: TX other anthro | H19: Non-Texas US anthro | I19: Can/Mex anthro | J19: Other non-US anthro | K19: Fire | L19: Natural | M19: BC/IC | N19: Biogenic SOA | O19: Anthro SOA | P19: Rayleigh | Q19: Total BEXT
A20: BIBE1 | B20: Big Bend | C20: =VLOOKUP(A20,SMAT_PSAT1!$A$36:$P$50,16,FALSE) -> 1.707968756 | D20: =VLOOKUP(A20,SMAT_PSAT1!$A$54:$P$68,16,FALSE) -> 0.3732875117 | E20: =VLOOKUP(A20,SMAT_PSAT1!$A$72:$P$86,16,FALSE) -> 0.07966177533 | F20: =VLOOKUP(A20,SMAT_PSAT1!$A$90:$P$104,16,FALSE) -> 0.07359012222 | G20: =VLOOKUP(A20,SMAT_PSAT1!$A$108:$P$122,16,FALSE) -> 2.309034176 | H20: =VLOOKUP(A20,SMAT_PSAT1!$A$126:$P$140,16,FALSE) -> 2.007850823 | I20: =VLOOKUP(A20,SMAT_PSAT1!$A$144:$P$158,16,FALSE) -> 16.71844821 | J20: =VLOOKUP(A20,SMAT_PSAT1!$A$162:$P$176,16,FALSE) -> 0.3705833628 | K20: =VLOOKUP(A20,SMAT_PSAT1!$A$180:$P$194,16,FALSE) -> 2.125552518 | L20: =VLOOKUP(A20,SMAT_PSAT1!$A$198:$P$212,16,FALSE) -> 0.886754702 | M20: =VLOOKUP(A20,SMAT_PSAT1!$A$216:$P$230,16,FALSE) -> 2.196932348 | N20: =VLOOKUP(A20,SMAT_PSAT1!$A$252:$P$266,16,FALSE) -> 2.463547291 | O20: =VLOOKUP(A20,SMAT_PSAT1!$A$234:$P$248,16,FALSE) -> 0.2852617877 | P20: =SUMIFS(MostImpairedDays!$L$2:$L$244,MostImpairedDays!$C$2:$C$244,2016,MostImpairedDays!$B$2:$B$244,A20) -> 0.2526251142 | Q20: =10*EXP(VLOOKUP(A20,SMAT_PSAT1!$A$17:$DM$31,20,FALSE)/10) -> 40.95955404
A21: BOAP1 | B21: Bosque del Apache | C21: =VLOOKUP(A21,SMAT_PSAT1!$A$36:$P$50,16,FALSE) -> 0.6795077896 | D21: =VLOOKUP(A21,SMAT_PSAT1!$A$54:$P$68,16,FALSE) -> 0.4297073335 | E21: =VLOOKUP(A21,SMAT_PSAT1!$A$72:$P$86,16,FALSE) -> 0.2595254871 | F21: =VLOOKUP(A21,SMAT_PSAT1!$A$90:$P$104,16,FALSE) -> 0.05556409858 | G21: =VLOOKUP(A21,SMAT_PSAT1!$A$108:$P$122,16,FALSE) -> 0.4705032937 | H21: =VLOOKUP(A21,SMAT_PSAT1!$A$126:$P$140,16,FALSE) -> 5.910184608 | I21: =VLOOKUP(A21,SMAT_PSAT1!$A$144:$P$158,16,FALSE) -> 3.323618661 | J21: =VLOOKUP(A21,SMAT_PSAT1!$A$162:$P$176,16,FALSE) -> 0.02301710436 | K21: =VLOOKUP(A21,SMAT_PSAT1!$A$180:$P$194,16,FALSE) -> 0.3571764417 | L21: =VLOOKUP(A21,SMAT_PSAT1!$A$198:$P$212,16,FALSE) -> 0.3323638391 | M21: =VLOOKUP(A21,SMAT_PSAT1!$A$216:$P$230,16,FALSE) -> 1.169471845 | N21: =VLOOKUP(A21,SMAT_PSAT1!$A$252:$P$266,16,FALSE) -> 2.924976403 | O21: =VLOOKUP(A21,SMAT_PSAT1!$A$234:$P$248,16,FALSE) -> 0.3196596341 | P21: =SUMIFS(MostImpairedDays!$L$2:$L$244,MostImpairedDays!$C$2:$C$244,2016,MostImpairedDays!$B$2:$B$244,A21) -> 0.2872221815 | Q21: =10*EXP(VLOOKUP(A21,SMAT_PSAT1!$A$17:$DM$31,20,FALSE)/10) -> 26.11696473
A22: BRIS1 | B22: Breton Island | C22: =VLOOKUP(A22,SMAT_PSAT1!$A$36:$P$50,16,FALSE) -> 0.9641337545 | D22: =VLOOKUP(A22,SMAT_PSAT1!$A$54:$P$68,16,FALSE) -> 0.7498285455 | E22: =VLOOKUP(A22,SMAT_PSAT1!$A$72:$P$86,16,FALSE) -> 0.04368532906 | F22: =VLOOKUP(A22,SMAT_PSAT1!$A$90:$P$104,16,FALSE) -> 0.02809711909 | G22: =VLOOKUP(A22,SMAT_PSAT1!$A$108:$P$122,16,FALSE) -> 0.150384901 | H22: =VLOOKUP(A22,SMAT_PSAT1!$A$126:$P$140,16,FALSE) -> 30.46798107 | I22: =VLOOKUP(A22,SMAT_PSAT1!$A$144:$P$158,16,FALSE) -> 3.313783907 | J22: =VLOOKUP(A22,SMAT_PSAT1!$A$162:$P$176,16,FALSE) -> 3.734807531 | K22: =VLOOKUP(A22,SMAT_PSAT1!$A$180:$P$194,16,FALSE) -> 1.818139644 | L22: =VLOOKUP(A22,SMAT_PSAT1!$A$198:$P$212,16,FALSE) -> 4.361627408 | M22: =VLOOKUP(A22,SMAT_PSAT1!$A$216:$P$230,16,FALSE) -> 3.083293906 | N22: =VLOOKUP(A22,SMAT_PSAT1!$A$252:$P$266,16,FALSE) -> 3.188700066 | O22: =VLOOKUP(A22,SMAT_PSAT1!$A$234:$P$248,16,FALSE) -> 0.3005126419 | P22: =SUMIFS(MostImpairedDays!$L$2:$L$244,MostImpairedDays!$C$2:$C$244,2016,MostImpairedDays!$B$2:$B$244,A22) -> 0 | Q22: =10*EXP(VLOOKUP(A22,SMAT_PSAT1!$A$17:$DM$31,20,FALSE)/10) -> 62.33886659
A23: CACR1 | B23: Caney Creek | C23: =VLOOKUP(A23,SMAT_PSAT1!$A$36:$P$50,16,FALSE) -> 8.673752919 | D23: =VLOOKUP(A23,SMAT_PSAT1!$A$54:$P$68,16,FALSE) -> 2.212767414 | E23: =VLOOKUP(A23,SMAT_PSAT1!$A$72:$P$86,16,FALSE) -> 0.2354831502 | F23: =VLOOKUP(A23,SMAT_PSAT1!$A$90:$P$104,16,FALSE) -> 0.1498961175 | G23: =VLOOKUP(A23,SMAT_PSAT1!$A$108:$P$122,16,FALSE) -> 1.278518242 | H23: =VLOOKUP(A23,SMAT_PSAT1!$A$126:$P$140,16,FALSE) -> 17.07860719 | I23: =VLOOKUP(A23,SMAT_PSAT1!$A$144:$P$158,16,FALSE) -> 2.778108597 | J23: =VLOOKUP(A23,SMAT_PSAT1!$A$162:$P$176,16,FALSE) -> 0.6933374853 | K23: =VLOOKUP(A23,SMAT_PSAT1!$A$180:$P$194,16,FALSE) -> 2.292863936 | L23: =VLOOKUP(A23,SMAT_PSAT1!$A$198:$P$212,16,FALSE) -> 2.142704197 | M23: =VLOOKUP(A23,SMAT_PSAT1!$A$216:$P$230,16,FALSE) -> 2.03008438 | N23: =VLOOKUP(A23,SMAT_PSAT1!$A$252:$P$266,16,FALSE) -> 5.231318196 | O23: =VLOOKUP(A23,SMAT_PSAT1!$A$234:$P$248,16,FALSE) -> 0.243662178 | P23: =SUMIFS(MostImpairedDays!$L$2:$L$244,MostImpairedDays!$C$2:$C$244,2016,MostImpairedDays!$B$2:$B$244,A23) -> 0 | Q23: =10*EXP(VLOOKUP(A23,SMAT_PSAT1!$A$17:$DM$31,20,FALSE)/10) -> 55.01385667
A24: GRSA1 | B24: Great Sand Dunes | C24: =VLOOKUP(A24,SMAT_PSAT1!$A$36:$P$50,16,FALSE) -> 0.1742740358 | D24: =VLOOKUP(A24,SMAT_PSAT1!$A$54:$P$68,16,FALSE) -> 0.09148273945 | E24: =VLOOKUP(A24,SMAT_PSAT1!$A$72:$P$86,16,FALSE) -> 0.04894134213 | F24: =VLOOKUP(A24,SMAT_PSAT1!$A$90:$P$104,16,FALSE) -> 0.007967447099 | G24: =VLOOKUP(A24,SMAT_PSAT1!$A$108:$P$122,16,FALSE) -> 0.08809913348 | H24: =VLOOKUP(A24,SMAT_PSAT1!$A$126:$P$140,16,FALSE) -> 4.118859082 | I24: =VLOOKUP(A24,SMAT_PSAT1!$A$144:$P$158,16,FALSE) -> 1.823243453 | J24: =VLOOKUP(A24,SMAT_PSAT1!$A$162:$P$176,16,FALSE) -> 0.01169789608 | K24: =VLOOKUP(A24,SMAT_PSAT1!$A$180:$P$194,16,FALSE) -> 0.3886480326 | L24: =VLOOKUP(A24,SMAT_PSAT1!$A$198:$P$212,16,FALSE) -> 0.2275675559 | M24: =VLOOKUP(A24,SMAT_PSAT1!$A$216:$P$230,16,FALSE) -> 1.619106229 | N24: =VLOOKUP(A24,SMAT_PSAT1!$A$252:$P$266,16,FALSE) -> 3.149521196 | O24: =VLOOKUP(A24,SMAT_PSAT1!$A$234:$P$248,16,FALSE) -> 0.2539544723 | P24: =SUMIFS(MostImpairedDays!$L$2:$L$244,MostImpairedDays!$C$2:$C$244,2016,MostImpairedDays!$B$2:$B$244,A24) -> 0 | Q24: =10*EXP(VLOOKUP(A24,SMAT_PSAT1!$A$17:$DM$31,20,FALSE)/10) -> 20.77156726
A25: GUMO1 | B25: Guadalupe Mountains | C25: =VLOOKUP(A25,SMAT_PSAT1!$A$36:$P$50,16,FALSE) -> 0.7465916891 | D25: =VLOOKUP(A25,SMAT_PSAT1!$A$54:$P$68,16,FALSE) -> 0.6535115393 | E25: =VLOOKUP(A25,SMAT_PSAT1!$A$72:$P$86,16,FALSE) -> 0.6924137309 | F25: =VLOOKUP(A25,SMAT_PSAT1!$A$90:$P$104,16,FALSE) -> 0.07780251349 | G25: =VLOOKUP(A25,SMAT_PSAT1!$A$108:$P$122,16,FALSE) -> 2.287432969 | H25: =VLOOKUP(A25,SMAT_PSAT1!$A$126:$P$140,16,FALSE) -> 3.672255957 | I25: =VLOOKUP(A25,SMAT_PSAT1!$A$144:$P$158,16,FALSE) -> 11.18645284 | J25: =VLOOKUP(A25,SMAT_PSAT1!$A$162:$P$176,16,FALSE) -> 0.2348379498 | K25: =VLOOKUP(A25,SMAT_PSAT1!$A$180:$P$194,16,FALSE) -> 0.7242487821 | L25: =VLOOKUP(A25,SMAT_PSAT1!$A$198:$P$212,16,FALSE) -> 0.8566753247 | M25: =VLOOKUP(A25,SMAT_PSAT1!$A$216:$P$230,16,FALSE) -> 2.056469641 | N25: =VLOOKUP(A25,SMAT_PSAT1!$A$252:$P$266,16,FALSE) -> 2.516639313 | O25: =VLOOKUP(A25,SMAT_PSAT1!$A$234:$P$248,16,FALSE) -> 0.2310330427 | P25: =SUMIFS(MostImpairedDays!$L$2:$L$244,MostImpairedDays!$C$2:$C$244,2016,MostImpairedDays!$B$2:$B$244,A25) -> 0 | Q25: =10*EXP(VLOOKUP(A25,SMAT_PSAT1!$A$17:$DM$31,20,FALSE)/10) -> 34.38378521
A26: HEGL1 | B26: Hercules-Glades | C26: =VLOOKUP(A26,SMAT_PSAT1!$A$36:$P$50,16,FALSE) -> 3.182939731 | D26: =VLOOKUP(A26,SMAT_PSAT1!$A$54:$P$68,16,FALSE) -> 1.159070634 | E26: =VLOOKUP(A26,SMAT_PSAT1!$A$72:$P$86,16,FALSE) -> 0.207023228 | F26: =VLOOKUP(A26,SMAT_PSAT1!$A$90:$P$104,16,FALSE) -> 0.1694751908 | G26: =VLOOKUP(A26,SMAT_PSAT1!$A$108:$P$122,16,FALSE) -> 0.6012968837 | H26: =VLOOKUP(A26,SMAT_PSAT1!$A$126:$P$140,16,FALSE) -> 28.70653551 | I26: =VLOOKUP(A26,SMAT_PSAT1!$A$144:$P$158,16,FALSE) -> 4.170671919 | J26: =VLOOKUP(A26,SMAT_PSAT1!$A$162:$P$176,16,FALSE) -> 0.1938068 | K26: =VLOOKUP(A26,SMAT_PSAT1!$A$180:$P$194,16,FALSE) -> 1.381534905 | L26: =VLOOKUP(A26,SMAT_PSAT1!$A$198:$P$212,16,FALSE) -> 2.153471425 | M26: =VLOOKUP(A26,SMAT_PSAT1!$A$216:$P$230,16,FALSE) -> 2.591746806 | N26: =VLOOKUP(A26,SMAT_PSAT1!$A$252:$P$266,16,FALSE) -> 3.176479516 | O26: =VLOOKUP(A26,SMAT_PSAT1!$A$234:$P$248,16,FALSE) -> 0.4285686438 | P26: =SUMIFS(MostImpairedDays!$L$2:$L$244,MostImpairedDays!$C$2:$C$244,2016,MostImpairedDays!$B$2:$B$244,A26) -> 0 | Q26: =10*EXP(VLOOKUP(A26,SMAT_PSAT1!$A$17:$DM$31,20,FALSE)/10) -> 57.4885095
A27: MING1 | B27: Mingo | C27: =VLOOKUP(A27,SMAT_PSAT1!$A$36:$P$50,16,FALSE) -> 1.108131152 | D27: =VLOOKUP(A27,SMAT_PSAT1!$A$54:$P$68,16,FALSE) -> 0.4415747681 | E27: =VLOOKUP(A27,SMAT_PSAT1!$A$72:$P$86,16,FALSE) -> 0.08509778114 | F27: =VLOOKUP(A27,SMAT_PSAT1!$A$90:$P$104,16,FALSE) -> 0.05849509847 | G27: =VLOOKUP(A27,SMAT_PSAT1!$A$108:$P$122,16,FALSE) -> 0.1972984948 | H27: =VLOOKUP(A27,SMAT_PSAT1!$A$126:$P$140,16,FALSE) -> 40.32825217 | I27: =VLOOKUP(A27,SMAT_PSAT1!$A$144:$P$158,16,FALSE) -> 3.620915425 | J27: =VLOOKUP(A27,SMAT_PSAT1!$A$162:$P$176,16,FALSE) -> 0.04541578684 | K27: =VLOOKUP(A27,SMAT_PSAT1!$A$180:$P$194,16,FALSE) -> 1.505331844 | L27: =VLOOKUP(A27,SMAT_PSAT1!$A$198:$P$212,16,FALSE) -> 1.639690745 | M27: =VLOOKUP(A27,SMAT_PSAT1!$A$216:$P$230,16,FALSE) -> 2.726948845 | N27: =VLOOKUP(A27,SMAT_PSAT1!$A$252:$P$266,16,FALSE) -> 2.377340513 | O27: =VLOOKUP(A27,SMAT_PSAT1!$A$234:$P$248,16,FALSE) -> 0.5994555016 | P27: =SUMIFS(MostImpairedDays!$L$2:$L$244,MostImpairedDays!$C$2:$C$244,2016,MostImpairedDays!$B$2:$B$244,A27) -> 0 | Q27: =10*EXP(VLOOKUP(A27,SMAT_PSAT1!$A$17:$DM$31,20,FALSE)/10) -> 64.55935886
A28: ROMO1 | B28: Rocky Mountain | C28: =VLOOKUP(A28,SMAT_PSAT1!$A$36:$P$50,16,FALSE) -> 0.08578744873 | D28: =VLOOKUP(A28,SMAT_PSAT1!$A$54:$P$68,16,FALSE) -> 0.05207882897 | E28: =VLOOKUP(A28,SMAT_PSAT1!$A$72:$P$86,16,FALSE) -> 0.02427351757 | F28: =VLOOKUP(A28,SMAT_PSAT1!$A$90:$P$104,16,FALSE) -> 0.003106037615 | G28: =VLOOKUP(A28,SMAT_PSAT1!$A$108:$P$122,16,FALSE) -> 0.03624220596 | H28: =VLOOKUP(A28,SMAT_PSAT1!$A$126:$P$140,16,FALSE) -> 5.690992939 | I28: =VLOOKUP(A28,SMAT_PSAT1!$A$144:$P$158,16,FALSE) -> 1.423808548 | J28: =VLOOKUP(A28,SMAT_PSAT1!$A$162:$P$176,16,FALSE) -> 0.008528040805 | K28: =VLOOKUP(A28,SMAT_PSAT1!$A$180:$P$194,16,FALSE) -> 0.219216979 | L28: =VLOOKUP(A28,SMAT_PSAT1!$A$198:$P$212,16,FALSE) -> 0.4107938136 | M28: =VLOOKUP(A28,SMAT_PSAT1!$A$216:$P$230,16,FALSE) -> 1.835287358 | N28: =VLOOKUP(A28,SMAT_PSAT1!$A$252:$P$266,16,FALSE) -> 2.128510164 | O28: =VLOOKUP(A28,SMAT_PSAT1!$A$234:$P$248,16,FALSE) -> 0.3679006405 | P28: =SUMIFS(MostImpairedDays!$L$2:$L$244,MostImpairedDays!$C$2:$C$244,2016,MostImpairedDays!$B$2:$B$244,A28) -> 0 | Q28: =10*EXP(VLOOKUP(A28,SMAT_PSAT1!$A$17:$DM$31,20,FALSE)/10) -> 20.70934594
A29: SACR1 | B29: Salt Creek | C29: =VLOOKUP(A29,SMAT_PSAT1!$A$36:$P$50,16,FALSE) -> 1.847297867 | D29: =VLOOKUP(A29,SMAT_PSAT1!$A$54:$P$68,16,FALSE) -> 1.129754516 | E29: =VLOOKUP(A29,SMAT_PSAT1!$A$72:$P$86,16,FALSE) -> 1.055413123 | F29: =VLOOKUP(A29,SMAT_PSAT1!$A$90:$P$104,16,FALSE) -> 0.1349721094 | G29: =VLOOKUP(A29,SMAT_PSAT1!$A$108:$P$122,16,FALSE) -> 0.7150400853 | H29: =VLOOKUP(A29,SMAT_PSAT1!$A$126:$P$140,16,FALSE) -> 13.91953392 | I29: =VLOOKUP(A29,SMAT_PSAT1!$A$144:$P$158,16,FALSE) -> 6.550240434 | J29: =VLOOKUP(A29,SMAT_PSAT1!$A$162:$P$176,16,FALSE) -> 0.05430869372 | K29: =VLOOKUP(A29,SMAT_PSAT1!$A$180:$P$194,16,FALSE) -> 0.3443108903 | L29: =VLOOKUP(A29,SMAT_PSAT1!$A$198:$P$212,16,FALSE) -> 0.9557154003 | M29: =VLOOKUP(A29,SMAT_PSAT1!$A$216:$P$230,16,FALSE) -> 1.716237017 | N29: =VLOOKUP(A29,SMAT_PSAT1!$A$252:$P$266,16,FALSE) -> 2.341835823 | O29: =VLOOKUP(A29,SMAT_PSAT1!$A$234:$P$248,16,FALSE) -> 0.3057118734 | P29: =SUMIFS(MostImpairedDays!$L$2:$L$244,MostImpairedDays!$C$2:$C$244,2016,MostImpairedDays!$B$2:$B$244,A29) -> 0 | Q29: =10*EXP(VLOOKUP(A29,SMAT_PSAT1!$A$17:$DM$31,20,FALSE)/10) -> 40.34974573
A30: UPBU1 | B30: Upper Buffalo | C30: =VLOOKUP(A30,SMAT_PSAT1!$A$36:$P$50,16,FALSE) -> 4.620484434 | D30: =VLOOKUP(A30,SMAT_PSAT1!$A$54:$P$68,16,FALSE) -> 1.303374676 | E30: =VLOOKUP(A30,SMAT_PSAT1!$A$72:$P$86,16,FALSE) -> 0.2102536004 | F30: =VLOOKUP(A30,SMAT_PSAT1!$A$90:$P$104,16,FALSE) -> 0.1516445698 | G30: =VLOOKUP(A30,SMAT_PSAT1!$A$108:$P$122,16,FALSE) -> 0.7132845368 | H30: =VLOOKUP(A30,SMAT_PSAT1!$A$126:$P$140,16,FALSE) -> 20.71791035 | I30: =VLOOKUP(A30,SMAT_PSAT1!$A$144:$P$158,16,FALSE) -> 5.224767612 | J30: =VLOOKUP(A30,SMAT_PSAT1!$A$162:$P$176,16,FALSE) -> 0.2972438761 | K30: =VLOOKUP(A30,SMAT_PSAT1!$A$180:$P$194,16,FALSE) -> 1.620986651 | L30: =VLOOKUP(A30,SMAT_PSAT1!$A$198:$P$212,16,FALSE) -> 1.787337038 | M30: =VLOOKUP(A30,SMAT_PSAT1!$A$216:$P$230,16,FALSE) -> 2.534846132 | N30: =VLOOKUP(A30,SMAT_PSAT1!$A$252:$P$266,16,FALSE) -> 4.037888879 | O30: =VLOOKUP(A30,SMAT_PSAT1!$A$234:$P$248,16,FALSE) -> 0.4426881359 | P30: =SUMIFS(MostImpairedDays!$L$2:$L$244,MostImpairedDays!$C$2:$C$244,2016,MostImpairedDays!$B$2:$B$244,A30) -> 0 | Q30: =10*EXP(VLOOKUP(A30,SMAT_PSAT1!$A$17:$DM$31,20,FALSE)/10) -> 53.33459022
A31: WHIT1 | B31: White Mountain | C31: =VLOOKUP(A31,SMAT_PSAT1!$A$36:$P$50,16,FALSE) -> 0.5009686496 | D31: =VLOOKUP(A31,SMAT_PSAT1!$A$54:$P$68,16,FALSE) -> 0.3841804874 | E31: =VLOOKUP(A31,SMAT_PSAT1!$A$72:$P$86,16,FALSE) -> 0.323269769 | F31: =VLOOKUP(A31,SMAT_PSAT1!$A$90:$P$104,16,FALSE) -> 0.04032493722 | G31: =VLOOKUP(A31,SMAT_PSAT1!$A$108:$P$122,16,FALSE) -> 0.4247794586 | H31: =VLOOKUP(A31,SMAT_PSAT1!$A$126:$P$140,16,FALSE) -> 5.138729863 | I31: =VLOOKUP(A31,SMAT_PSAT1!$A$144:$P$158,16,FALSE) -> 5.417430836 | J31: =VLOOKUP(A31,SMAT_PSAT1!$A$162:$P$176,16,FALSE) -> 0.06422064988 | K31: =VLOOKUP(A31,SMAT_PSAT1!$A$180:$P$194,16,FALSE) -> 0.3763048347 | L31: =VLOOKUP(A31,SMAT_PSAT1!$A$198:$P$212,16,FALSE) -> 0.5338835195 | M31: =VLOOKUP(A31,SMAT_PSAT1!$A$216:$P$230,16,FALSE) -> 1.686193842 | N31: =VLOOKUP(A31,SMAT_PSAT1!$A$252:$P$266,16,FALSE) -> 2.288936909 | O31: =VLOOKUP(A31,SMAT_PSAT1!$A$234:$P$248,16,FALSE) -> 0.2446222205 | P31: =SUMIFS(MostImpairedDays!$L$2:$L$244,MostImpairedDays!$C$2:$C$244,2016,MostImpairedDays!$B$2:$B$244,A31) -> 0 | Q31: =10*EXP(VLOOKUP(A31,SMAT_PSAT1!$A$17:$DM$31,20,FALSE)/10) -> 25.83125242
A32: WHPE1 | B32: Wheeler Peak | C32: =VLOOKUP(A32,SMAT_PSAT1!$A$36:$P$50,16,FALSE) -> 0.1310831553 | D32: =VLOOKUP(A32,SMAT_PSAT1!$A$54:$P$68,16,FALSE) -> 0.0881529198 | E32: =VLOOKUP(A32,SMAT_PSAT1!$A$72:$P$86,16,FALSE) -> 0.04917619688 | F32: =VLOOKUP(A32,SMAT_PSAT1!$A$90:$P$104,16,FALSE) -> 0.005913315517 | G32: =VLOOKUP(A32,SMAT_PSAT1!$A$108:$P$122,16,FALSE) -> 0.05360502548 | H32: =VLOOKUP(A32,SMAT_PSAT1!$A$126:$P$140,16,FALSE) -> 3.332661798 | I32: =VLOOKUP(A32,SMAT_PSAT1!$A$144:$P$158,16,FALSE) -> 1.975854979 | J32: =VLOOKUP(A32,SMAT_PSAT1!$A$162:$P$176,16,FALSE) -> 0.01789083254 | K32: =VLOOKUP(A32,SMAT_PSAT1!$A$180:$P$194,16,FALSE) -> 0.1596566823 | L32: =VLOOKUP(A32,SMAT_PSAT1!$A$198:$P$212,16,FALSE) -> 0.2438107539 | M32: =VLOOKUP(A32,SMAT_PSAT1!$A$216:$P$230,16,FALSE) -> 1.474112394 | N32: =VLOOKUP(A32,SMAT_PSAT1!$A$252:$P$266,16,FALSE) -> 1.571493908 | O32: =VLOOKUP(A32,SMAT_PSAT1!$A$234:$P$248,16,FALSE) -> 0.1322599133 | P32: =SUMIFS(MostImpairedDays!$L$2:$L$244,MostImpairedDays!$C$2:$C$244,2016,MostImpairedDays!$B$2:$B$244,A32) -> 0 | Q32: =10*EXP(VLOOKUP(A32,SMAT_PSAT1!$A$17:$DM$31,20,FALSE)/10) -> 16.97004113
A33: WIMO1 | B33: Wichita Mountains | C33: =VLOOKUP(A33,SMAT_PSAT1!$A$36:$P$50,16,FALSE) -> 4.575399383 | D33: =VLOOKUP(A33,SMAT_PSAT1!$A$54:$P$68,16,FALSE) -> 1.819177801 | E33: =VLOOKUP(A33,SMAT_PSAT1!$A$72:$P$86,16,FALSE) -> 0.5033310726 | F33: =VLOOKUP(A33,SMAT_PSAT1!$A$90:$P$104,16,FALSE) -> 0.3133127115 | G33: =VLOOKUP(A33,SMAT_PSAT1!$A$108:$P$122,16,FALSE) -> 2.085450846 | H33: =VLOOKUP(A33,SMAT_PSAT1!$A$126:$P$140,16,FALSE) -> 18.44712656 | I33: =VLOOKUP(A33,SMAT_PSAT1!$A$144:$P$158,16,FALSE) -> 6.128952015 | J33: =VLOOKUP(A33,SMAT_PSAT1!$A$162:$P$176,16,FALSE) -> 0.1845066494 | K33: =VLOOKUP(A33,SMAT_PSAT1!$A$180:$P$194,16,FALSE) -> 1.322650732 | L33: =VLOOKUP(A33,SMAT_PSAT1!$A$198:$P$212,16,FALSE) -> 2.158349917 | M33: =VLOOKUP(A33,SMAT_PSAT1!$A$216:$P$230,16,FALSE) -> 2.097679984 | N33: =VLOOKUP(A33,SMAT_PSAT1!$A$252:$P$266,16,FALSE) -> 3.010854882 | O33: =VLOOKUP(A33,SMAT_PSAT1!$A$234:$P$248,16,FALSE) -> 0.5336958702 | P33: =SUMIFS(MostImpairedDays!$L$2:$L$244,MostImpairedDays!$C$2:$C$244,2016,MostImpairedDays!$B$2:$B$244,A33) -> 0 | Q33: =10*EXP(VLOOKUP(A33,SMAT_PSAT1!$A$17:$DM$31,20,FALSE)/10) -> 53.12167797
A34: Normalized source contribution (%)
A35: Site | B35: Class I Area | C35: 2028 Extintion (Mm-1) | D35: TX Sources | E35: Non-Texas US anthro | F35: Can/Mex anthro | G35: BC/IC | H35: Natural (Fire, Bio SOA) | I35: Others | J35: components>> | K35: Fire | L35: Other non-US anthro | M35: Anthro SOA | N35: Rayleigh | O35: Total
A36: BIBE1 | B36: Big Bend | C36: =Q20 -> 40.95955404 | D36: =SUM($C20:$G20)*($Q20-$P20)/SUM($C20:$O20)/$Q20 -> 0.1429030829 | E36: =H20*($Q20-$P20)/SUM($C20:$O20)/$Q20 -> 0.06315074254 | F36: =I20*($Q20-$P20)/SUM($C20:$O20)/$Q20 -> 0.5258271213 | G36: =M20*($Q20-$P20)/SUM($C20:$O20)/$Q20 -> 0.06909771754 | H36: =L20*($Q20-$P20)/SUM($C20:$O20)/$Q20+N20*($Q20-$P20)/SUM($C20:$O20)/$Q20+K20*($Q20-$P20)/SUM($C20:$O20)/$Q20 -> 0.1722260809 | I36: =J20*($Q20-$P20)/SUM($C20:$O20)/$Q20+O20*($Q20-$P20)/SUM($C20:$O20)/$Q20 -> 0.02062758237 | K36: =K20*($Q20-$P20)/SUM($C20:$O20)/$Q20 -> 0.06685268559 | M36: =O20*($Q20-$P20)/SUM($C20:$O20)/$Q20 -> 0.008972027953 | N36: =P20/Q20 -> 0.006167672479 | O36: =SUM(D36:I36)+N36 -> 1
A37: BOAP1 | B37: Bosque del Apache | C37: =Q21 -> 26.11696473 | D37: =SUM($C21:$G21)*($Q21-$P21)/SUM($C21:$O21)/$Q21 -> 0.115283784 | E37: 0.3595870635 | F37: 0.2022153882 | G37: 0.07115292917 | H37: =L21*($Q21-$P21)/SUM($C21:$O21)/$Q21+N21*($Q21-$P21)/SUM($C21:$O21)/$Q21+K21*($Q21-$P21)/SUM($C21:$O21)/$Q21 -> 0.2199141866 | I37: 0.0208491156 | K37: 0.02173130559 | L37: =J21*($Q21-$P21)/SUM($C21:$O21)/$Q21 -> 0.001400405151 | M37: 0.01944871045 | N37: 0.010997533 | O37: 1
A38: BRIS1 | B38: Breton Island | C38: 62.33886659 | D38: 0.03708707108 | E38: 0.5836221661 | F38: 0.0634763996 | G38: 0.0590613032 | H38: 0.179455444 | I38: 0.07729761596 | K38: 0.0348269416 | L38: 0.07154121751 | M38: 0.005756398449 | N38: 0 | O38: 1
A39: CACR1 | B39: Caney Creek | C39: 55.01385667 | D39: 0.278643655 | E39: 0.3791782543 | F39: 0.06167940727 | G39: 0.04507181662 | H39: 0.2146236542 | I39: 0.02080321262 | K39: 0.05090603321 | L39: 0.01539343896 | M39: 0.00540977366 | N39: 0 | O39: 1
A40: GRSA1 | B40: Great Sand Dunes | C40: 20.77156726 | D40: 0.03422080222 | E40: 0.3431421022 | F40: 0.1518943909 | G40: 0.1348877211 | H40: 0.3137234878 | I40: 0.02213149573 | K40: 0.03237826308 | L40: 0.0009745515864 | M40: 0.02115694414 | N40: 0 | O40: 1
A41: GUMO1 | B41: Guadalupe Mountains | C41: 34.38378521 | D41: 0.1718726734 | E41: 0.1415871467 | F41: 0.4313037973 | G41: 0.07928904525 | H41: 0.1579852602 | I41: 0.01796207708 | K41: 0.02792406623 | L41: 0.009054389354 | M41: 0.008907687723 | N41: 0 | O41: 1
A42: HEGL1 | B42: Hercules-Glades | C42: 57.4885095 | D42: 0.1105468808 | E42: 0.5965289254 | F42: 0.08666759657 | G42: 0.05385714123 | H42: 0.1394663399 | I42: 0.01293311604 | K42: 0.02870863787 | L42: 0.004027353357 | M42: 0.00890576268 | N42: 0 | O42: 1
A43: MING1 | B43: Mingo | C43: 64.55935886 | D43: 0.0345415845 | E43: 0.7368051009 | F43: 0.06615483716 | G43: 0.04982189187 | H43: 0.1008946603 | I43: 0.0117819253 | K43: 0.02750270894 | L43: 0.0008297553603 | M43: 0.01095216994 | N43: 0 | O43: 1
A44: ROMO1 | B44: Rocky Mountain | C44: 20.70934594 | D44: 0.01639910503 | E44: 0.463189733 | F44: 0.1158837321 | G44: 0.1493739793 | H44: 0.2245159323 | I44: 0.03063751831 | K44: 0.0178420629 | L44: 0.000694096968 | M44: 0.02994342134 | N44: 0 | O44: 1
A45: SACR1 | B45: Salt Creek | C45: 40.34974573 | D45: 0.1571425582 | E45: 0.4480002374 | F45: 0.2108195063 | G45: 0.0552370931 | H45: 0.1172133421 | I45: 0.01158726294 | K45: 0.01108164695 | L45: 0.001747925456 | M45: 0.009839337483 | N45: 0 | O45: 1
A46: UPBU1 | B46: Upper Buffalo | C46: 53.33459022 | D46: 0.1602979233 | E46: 0.4744989515 | F46: 0.119662008 | G46: 0.05805517119 | H46: 0.1705394027 | I46: 0.01694654326 | K46: 0.03712519524 | L46: 0.006807728443 | M46: 0.01013881481 | N46: 0 | O46: 1
A47: WHIT1 | B47: White Mountain | C47: 25.83125242 | D47: 0.09604787049 | E47: 0.2949251199 | F47: 0.3109204962 | G47: 0.09677506586 | H47: 0.1836061492 | I47: 0.01772529847 | K47: 0.02159711669 | L47: 0.003685790724 | M47: 0.01403950774 | N47: 0 | O47: =SUM(D47:I47)+N47 -> 1
A48: WHPE1 | B48: Wheeler Peak | C48: 16.97004113 | D48: 0.03550695797 | E48: 0.3608467087 | F48: 0.2139373297 | G48: 0.1596107369 | H48: 0.2138405707 | I48: 0.01625769602 | K48: 0.01728695914 | L48: 0.001937144669 | M48: 0.01432055135 | N48: 0 | O48: =SUM(D48:I48)+N48 -> 1
A49: WIMO1 | B49: Wichita Mountains | C49: 53.12167797 | D49: 0.2152979772 | E49: 0.4272097707 | F49: 0.1419379965 | G49: 0.04857934824 | H49: 0.1503423367 | I49: 0.01663257054 | K49: 0.03063074967 | L49: 0.004272917147 | M49: 0.01235965339 | N49: 0 | O49: 1

Sheet ClearestDays
A1: helper | B1: site | C1: year | D1: Group | E1: Amm_SO4 | F1: Amm_NO3 | G1: OMC | H1: LAC | I1: Soil | J1: CM | K1: Sea_Salt | L1: EAmm_SO4 | M1: EAmm_NO3 | N1: EOMC | O1: ELAC | P1: ESoil | Q1: ECM | R1: ESea_Salt | S1: ABext | T1: TBext | U1: DV | V1: SVR | W1: FMass | X1: TMass | Y1: RCFM | Z1: ucd_file | AA1: p20 | AB1: p40 | AC1: p60 | AD1: p80 | AE1: good_year | AF1: method
A2: =B2&C2 -> ACAD12000 | B2: ACAD1 | C2: 2000 | D2: 10 | E2: 0.8149246875 | F2: 0.1030065 | G2: 0.745461 | H2: 0.10977 | I2: 0.0981590025 | J2: 1.11834 | K2: 0.0376164 | L2: 7.243904251 | M2: 0.9890228869 | N2: 2.207255481 | O2: 1.0977 | P2: 0.0981590025 | Q2: 0.671004 | R2: 0.2676029517 | S2: 12.57464857 | T2: 24.57464857 | U2: 8.900969123 | V2: 177.1161192 | W2: 1.81222 | X2: 2.92549 | Y2: 1.90893759 | Z2: ucdall_12_19 | AA2: 10.85154536 | AB2: 12.85874082 | AC2: 14.8883963 | AD2: 18.94938832 | AE2: 1 | AF2: Second IMPROVE Algorithm
A3: =B3&C3 -> ACAD12001 | B3: ACAD1 | C3: 2001 | D3: 10 | E3: 0.8408709375 | F3: 0.141475375 | G3: 0.6225 | H3: 0.0858833333 | I3: 0.1345645042 | J3: 1.018058333 | K3: 0.02060325 | L3: 7.565613712 | M3: 1.366339097 | N3: 1.816814118 | O3: 0.8588333333 | P3: 0.1345645042 | Q3: 0.610835 | R3: 0.1218298136 | S3: 12.47482958 | T3: 24.47482958 | U3: 8.874270145 | V3: 177.2700932 | W3: 1.762341667 | X3: 2.770945833 | Y3: 1.8458974 | Z3: ucdall_12_19 | AA3: 10.55969775 | AB3: 12.56810481 | AC3: 14.86556207 | AD3: 19.44179674 | AE3: 1 | AF3: Second IMPROVE Algorithm
A4: ACAD12002 | B4: ACAD1 | C4: 2002 | D4: 10 | E4: 0.7221878125 | F4: 0.109590875 | G4: 0.8266875 | H4: 0.0856291667 | I4: 0.0969320417 | J4: 1.359578333 | K4: 0.09702075 | L4: 6.292113344 | M4: 1.01395987 | N4: 2.459000066 | O4: 0.8562916667 | P4: 0.0969320417 | Q4: 0.815747 | R4: 0.6305155628 | S4: 12.16455955 | T4: 24.16455955 | U4: 8.770072368 | V4: 178.7360276 | W4: 1.792983333 | X4: 3.054236364 | Y4: 1.938048146 | Z4: ucdall_12_19 | AA4: 10.0489019 | AB4: 12.27856754 | AC4: 14.99915003 | AD4: 19.900813 | AE4: 1 | AF4: Second IMPROVE Algorithm
A5: ACAD12003 | B5: ACAD1 | C5: 2003 | D5: 10 | E5: 0.8002001563 | F5: 0.117406125 | G5: 0.7133175 | H5: 0.07825 | I5: 0.1004601188 | J5: 1.023575 | K5: 0.097718625 | L5: 6.841635198 | M5: 1.070070816 | N5: 2.093678885 | O5: 0.7825 | P5: 0.1004601188 | Q5: 0.614145 | R5: 0.670234911 | S5: 12.17272493 | T5: 24.17272493 | U5: 8.769720354 | V5: 178.8318481 | W5: 1.735666667 | X5: 2.740566667 | Y5: 1.907352525 | Z5: ucdall_12_19 | AA5: 10.30861931 | AB5: 12.14343338 | AC5: 14.26804676 | AD5: 18.39085565 | AE5: 1 | AF5: Second IMPROVE Algorithm
A6: ACAD12004 | B6: ACAD1 | C6: 2004 | D6: 10 | E6: 0.6692795313 | F6: 0.10198525 | G6: 0.877095 | H6: 0.0752291667 | I6: 0.1234754667 | J6: 1.443852083 | K6: 0.075589875 | L6: 5.857960388 | M6: 0.9467341927 | N6: 2.604620979 | O6: 0.7522916667 | P6: 0.1234754667 | Q6: 0.86631125 | R6: 0.5066642111 | S6: 11.65805816 | T6: 23.65805815 | U6: 8.562797493 | V6: 182.7188411 | W6: 1.668033333 | X6: 3.065847826 | Y6: 1.92265429 | Z6: ucdall_12_19 | AA6: 10.00250225 | AB6: 11.74716602 | AC6: 14.10528699 | AD6: 17.56179644 | AE6: 1 | AF6: Second IMPROVE Algorithm
A7: ACAD12005 | B7: ACAD1 | C7: 2005 | D7: 10 | E7: 0.5330594271 | F7: 0.099464375 | G7: 0.612195 | H7: 0.0775041667 | I7: 0.0731669483 | J7: 1.189962083 | K7: 0.118828875 | L7: 4.744686744 | M7: 0.9704431595 | N7: 1.803772065 | O7: 0.7750416667 | P7: 0.0731669483 | Q7: 0.71397725 | R7: 0.8166131921 | S7: 9.897701025 | T7: 21.89770102 | U7: 7.656127815 | V7: 205.9946786 | W7: 1.366234783 | X7: 2.660675 | Y7: 1.514218792 | Z7: ucdall_12_19 | AA7: 10.59670623 | AB7: 12.58455109 | AC7: 14.62533698 | AD7: 19.19706885 | AE7: 1 | AF7: Second IMPROVE Algorithm
A8: ACAD12006 | B8: ACAD1 | C8: 2006 | D8: 10 | E8: 0.6553542188 | F8: 0.098765625 | G8: 0.6813825 | H8: 0.0906333333 | I8: 0.0757840104 | J8: 1.364516667 | K8: 0.093240375 | L8: 5.791118851 | M8: 0.9134049824 | N8: 2.007841404 | O8: 0.9063333333 | P8: 0.0757840104 | Q8: 0.81871 | R8: 0.6178457029 | S8: 11.13103828 | T8: 23.13103828 | U8: 8.253902127 | V8: 191.6028453 | W8: 1.609629167 | X8: 2.974145833 | Y8: 1.695160063 | Z8: ucdall_12_19 | AA8: 10.11722829 | AB8: 11.7900932 | AC8: 13.85997229 | AD8: 19.68011775 | AE8: 1 | AF8: Second IMPROVE Algorithm
A9: ACAD12007 | B9: ACAD1 | C9: 2007 | D9: 10 | E9: 0.6632346875 | F9: 0.075685375 | G9: 0.7885875 | H9: 0.0763333333 | I9: 0.1028418813 | J9: 1.326504167 | K9: 0.05767425 | L9: 5.909357076 | M9: 0.712975081 | N9: 2.337693083 | O9: 0.7633333333 | P9: 0.1028418813 | Q9: 0.7959025 | R9: 0.3753918878 | S9: 10.99749484 | T9: 22.99749484 | U9: 8.275860958 | V9: 188.6112814 | W9: 1.877508333 | X9: 3.2040125 | Y9: 1.764357027 | Z9: ucdall_12_19 | AA9: 9.852983392 | AB9: 11.64747947 | AC9: 14.03505733 | AD9: 18.53326184 | AE9: 1 | AF9: Second IMPROVE Algorithm
A10: ACAD12008 | B10: ACAD1 | C10: 2008 | D10: 10 | E10: 0.5715960938 | F10: 0.072578625 | G10: 0.6711375 | H10: 0.0571625 | I10: 0.0898208875 | J10: 1.51757375 | K10: 0.128940375 | L10: 4.909373791 | M10: 0.6603558101 | N10: 1.976407433 | O10: 0.571625 | P10: 0.0898208875 | Q10: 0.91054425 | R10: 0.8242204669 | S10: 9.942347639 | T10: 21.94234764 | U10: 7.763495517 | V10: 200.9023668 | W10: 1.538045833 | X10: 2.992756522 | Y10: 1.591235981 | Z10: ucdall_12_19 | AA10: 9.486422551 | AB10: 11.19884296 | AC10: 13.63263389 | AD10: 16.63124916 | AE10: 1 | AF10: Second IMPROVE Algorithm
A11: ACAD12009 | B11: ACAD1 | C11: 2009 | D11: 10 | E11: 0.4408542188 | F11: 0.054432625 | G11: 0.529035 | H11: 0.0461625 | I11: 0.0903877458 | J11: 1.645670833 | K11: 0.085878 | L11: 3.92619389 | M11: 0.5181262226 | N11: 1.538698221 | O11: 0.461625 | P11: 0.0903877458 | Q11: 0.9874025 | R11: 0.5966191586 | S11: 8.119052738 | T11: 20.11905274 | U11: 6.920979545 | V11: 219.9392807 | W11: 1.337429167 | X11: 2.9831 | Y11: 1.24675009 | Z11: ucdall_12_19 | AA11: 8.206052375 | AB11: 10.06770578 | AC11: 13.31946425 | AD11: 16.15927191 | AE11: 1 | AF11: Second IMPROVE Algorithm
A12: ACAD12010 | B12: ACAD1 | C12: 2010 | D12: 10 | E12: 0.4477309375 | F12: 0.070084625 | G12: 0.5789025 | H12: 0.0500375 | I12: 0.0745736958 | J12: 0.8917125 | K12: 0.066585375 | L12: 3.847214349 | M12: 0.6465685818 | N12: 1.692244018 | O12: 0.500375 | P12: 0.0745736958 | Q12: 0.5350275 | R12: 0.431757993 | S12: 7.727761138 | T12: 19.72776114 | U12: 6.706667064 | V12: 225.7089421 | W12: 1.322320833 | X12: 2.214033333 | Y12: 1.287914633 | Z12: ucdall_12_19 | AA12: 8.176152721 | AB12: 9.69748299 | AC12: 11.2545721 | AD12: 13.50119843 | AE12: 1 | AF12: Second IMPROVE Algorithm
A13: ACAD12011 | B13: ACAD1 | C13: 2011 | D13: 10 | E13: 0.5376370313 | F13: 0.065231 | G13: 0.637335 | H13: 0.0542 | I13: 0.049501175 | J13: 1.468095833 | K13: 0.1122765 | L13: 4.643699641 | M13: 0.5931097527 | N13: 1.865802079 | O13: 0.542 | P13: 0.049501175 | Q13: 0.8808575 | R13: 0.7507910048 | S13: 9.325761152 | T13: 21.32576115 | U13: 7.509341544 | V13: 205.7063253 | W13: 1.500566667 | X13: 2.9261 | Y13: 1.456180706 | Z13: ucdall_12_19 | AA13: 8.861401325 | AB13: 11.01971618 | AC13: 13.13085731 | AD13: 17.23976342 | AE13: 1 | AF13: Second IMPROVE Algorithm
A14: ACAD12012 | B14: ACAD1 | C14: 2012 | D14: 10 | E14: 0.5642100521 | F14: 0.07184225 | G14: 0.69087 | H14: 0.061175 | I14: 0.0950877675 | J14: 1.700731667 | K14: 0.0802725 | L14: 4.913762662 | M14: 0.6765384308 | N14: 2.032215601 | O14: 0.61175 | P14: 0.0950877675 | Q14: 1.020439 | R14: 0.5446745175 | S14: 9.894467979 | T14: 21.89446798 | U14: 7.752543493 | V14: 201.1975605 | W14: 1.715447826 | X14: 3.300845833 | Y14: 1.56345757 | Z14: ucdall_12_19 | AA14: 8.937779789 | AB14: 9.962689277 | AC14: 12.1820047 | AD14: 14.59067563 | AE14: 1 | AF14: Second IMPROVE Algorithm
A15: ACAD12013 | B15: ACAD1 | C15: 2013 | D15: 10 | E15: 0.42768 | F15: 0.0583753043 | G15: 0.4271947826 | H15: 0.0307347826 | I15: 0.0421417174 | J15: 0.9925130435 | K15: 0.082047913 | L15: 3.59742502 | M15: 0.5339048685 | N15: 1.233097816 | O15: 0.3073478261 | P15: 0.0421417174 | Q15: 0.5955078261 | R15: 0.5328087566 | S15: 6.842233831 | T15: 18.84223383 | U15: 6.253866997 | V15: 237.0738288 | W15: 1.159965217 | X15: 2.120169565 | Y15: 1.0681745 | Z15: ucdall_12_19 | AA15: 8.19953415 | AB15: 9.625141098 | AC15: 11.36752827 | AD15: 14.6325414 | AE15: 1 | AF15: Second IMPROVE Algorithm
A16: ACAD12014 | B16: ACAD1 | C16: 2014 | D16: 10 | E16: 0.4902634239 | F16: 0.0735412174 | G16: 0.5393269565 | H16: 0.0367 | I16: 0.0466281217 | J16: 1.490421739 | K16: 0.0912106957 | L16: 4.311913822 | M16: 0.6779107297 | N16: 1.571459964 | O16: 0.367 | P16: 0.0466281217 | Q16: 0.8942530435 | R16: 0.599880564 | S16: 8.469046244 | T16: 20.46904624 | U16: 7.032900466 | V16: 219.4005515 | W16: 1.325030435 | X16: 2.815452174 | Y16: 1.277670415 | Z16: ucdall_12_19 | AA16: 8.837005109 | AB16: 10.7218977 | AC16: 12.44996019 | AD16: 14.64454734 | AE16: 1 | AF16: Second IMPROVE Algorithm
A17: ACAD12015 | B17: ACAD1 | C17: 2015 | D17: 10 | E17: 0.2930830435 | F17: 0.0608526652 | G17: 0.5040117391 | H17: 0.02484 | I17: 0.0331266 | J17: 1.335533913 | K17: 0.0852190435 | L17: 2.659279265 | M17: 0.5997582119 | N17: 1.461251925 | O17: 0.2484 | P17: 0.0331266 | Q17: 0.8013203478 | R17: 0.6041337644 | S17: 6.407270114 | T17: 18.40727011 | U17: 6.049556944 | V17: 241.5471018 | W17: 1.039716956 | X17: 2.367185652 | Y17: 1.001133091 | Z17: ucdall_12_19 | AA17: 7.522199929 | AB17: 9.42455953 | AC17: 11.87356612 | AD17: 15.6254923 | AE17: 1 | AF17: Second IMPROVE Algorithm
A18: ACAD12016 | B18: ACAD1 | C18: 2016 | D18: 10 | E18: 0.31543875 | F18: 0.0551475 | G18: 0.5465505 | H18: 0.0352241667 | I18: 0.0390583333 | J18: 1.306895833 | K18: 0.0694215 | L18: 2.720775337 | M18: 0.5093985728 | N18: 1.591852296 | O18: 0.3522416667 | P18: 0.0390583333 | Q18: 0.7841375 | R18: 0.4607449013 | S18: 6.458208607 | T18: 18.45820861 | U18: 6.08456812 | V18: 240.4307454 | W18: 1.09732875 | X18: 2.404224583 | Y18: 1.06084075 | Z18: ucdall_12_19 | AA18: 7.468788351 | AB18: 8.679629632 | AC18: 10.21998891 | AD18: 12.83711706 | AE18: 1 | AF18: Second IMPROVE Algorithm
A19: ACAD12017 | B19: ACAD1 | C19: 2017 | D19: 10 | E19: 0.4129268478 | F19: 0.0790540043 | G19: 0.7954051304 | H19: 0.0675321739 | I19: 0.0580682 | J19: 1.629327391 | K19: 0.0520927826 | L19: 3.501567787 | M19: 0.7208122789 | N19: 2.346862755 | O19: 0.6753217391 | P19: 0.0580682 | Q19: 0.9775964348 | R19: 0.3366966428 | S19: 8.616925838 | T19: 20.61692584 | U19: 7.18248748 | V19: 212.8856701 | W19: 1.429234783 | X19: 3.058562174 | Y19: 1.465079139 | Z19: ucdall_12_19 | AA19: 8.398315969 | AB19: 10.31529283 | AC19: 11.59116426 | AD19: 13.22278077 | AE19: 1 | AF19: Second IMPROVE Algorithm
A20: ACAD12018 | B20: ACAD1 | C20: 2018 | D20: 10 | E20: 0.328451875 | F20: 0.0753782182 | G20: 0.4910023636 | H20: 0.0506436364 | I20: 0.0491188527 | J20: 1.308761409 | K20: 0.1726150909 | L20: 2.772270151 | M20: 0.6756971489 | N20: 1.421531056 | O20: 0.5064363636 | P20: 0.0491188527 | Q20: 0.7852568455 | R20: 1.082182923 | S20: 7.29249334 | T20: 19.29249334 | U20: 6.52658771 | V20: 228.8468175 | W20: 1.108891905 | X20: 2.377329545 | Y20: 1.167210037 | Z20: ucdall_12_19 | AA20: 7.709866105 | AB20: 9.006350006 | AC20: 10.50785075 | AD20: 12.99419515 | AE20: 1 | AF20: Second IMPROVE Algorithm
A21: ADPI12002 | B21: ADPI1 | C21: 2002 | D21: 10 | E21: 1.739648804 | F21: 0.378744 | G21: 1.077933913 | H21: 0.1676478261 | I21: 0.1581251717 | J21: 1.931052174 | K21: 0.0073369565 | L21: 14.30982067 | M21: 3.243904376 | N21: 3.241991003 | O21: 1.676478261 | P21: 0.1581251717 | Q21: 1.158631304 | R21: 0.047535743 | S21: 23.83648653 | T21: 34.83648652 | U21: 12.38246978 | V21: 118.0266711 | W21: 3.271091304 | X21: 5.202143478 | Y21: 3.529436672 | Z21: ucdall_12_19 | AA21: 14.55342592 | AB21: 17.06937708 | AC21: 20.49492279 | AD21: 24.17963714 | AE21: 1 | AF21: Second IMPROVE Algorithm
A22: ADPI12003 | B22: ADPI1 | C22: 2003 | D22: 10 | E22: 1.482243125 | F22: 0.41519725 | G22: 1.16727 | H22: 0.162575 | I22: 0.1444809417 | J22: 1.476220833 | K22: 0.022216875 | L22: 12.06726446 | M22: 3.557290305 | N22: 3.536456536 | O22: 1.62575 | P22: 0.1444809417 | Q22: 0.8857325 | R22: 0.1424433251 | S22: 21.95941807 | T22: 32.95941807 | U22: 11.78898615 | V22: 126.1291657 | W22: 2.979045833 | X22: 4.455266667 | Y22: 3.393983192 | Z22: ucdall_12_19 | AA22: 14.09357192 | AB22: 17.13781803 | AC22: 20.84639591 | AD22: 24.10669141 | AE22: 1 | AF22: Second IMPROVE Algorithm
A23: ADPI12004 | B23: ADPI1 | C23: 2004 | D23: 10 | E23: 1.26501375 | F23: 0.34891275 | G23: 1.10568 | H23: 0.164075 | I23: 0.1307733854 | J23: 1.64195 | K23: 0.072772125 | L23: 10.39159943 | M23: 3.017066754 | N23: 3.326306736 | O23: 1.64075 | P23: 0.1307733854 | Q23: 0.98517 | R23: 0.46770978 | S23: 19.95937608 | T23: 30.95937608 | U23: 11.18354283 | V23: 133.9148682 | W23: 2.709408333 | X23: 4.216438095 | Y23: 3.08722701 | Z23: ucdall_12_19 | AA23: 13.64002178 | AB23: 15.9612671 | AC23: 20.52984606 | AD23: 24.12003588 | AE23: 1 | AF23: Second IMPROVE Algorithm
A24: ADPI12005 | B24: ADPI1 | C24: 2005 | D24: 10 | E24: 1.624193641 | F24: 0.3867812609 | G24: 0.8963765217 | H24: 0.1808869565 | I24: 0.1189414413 | J24: 1.557652174 | K24: 0.0302916522 | L24: 12.98265126 | M24: 3.251719334 | N24: 2.676393124 | O24: 1.808869565 | P24: 0.1189414413 | Q24: 0.9345913043 | R24: 0.1855780106 | S24: 21.95874404 | T24: 32.95874404 | U24: 11.62699554 | V24: 131.8428195 | W24: 2.669013044 | X24: 4.223169565 | Y24: 3.237471474 | Z24: ucdall_12_19 | AA24: 14.64934017 | AB24: 18.07848641 | AC24: 21.20542413 | AD24: 25.15013445 | AE24: 1 | AF24: Second IMPROVE Algorithm
A25: ADPI12006 | B25: ADPI1 | C25: 2006 | D25: 10 | E25: 1.130315313 | F25: 0.207518 | G25: 1.068045 | H25: 0.1507583333 | I25: 0.2099254113 | J25: 2.160110417 | K25: 0.038145 | L25: 9.098905208 | M25: 1.726461557 | N25: 3.222730164 | O25: 1.507583333 | P25: 0.2099254113 | Q25: 1.29606625 | R25: 0.2364988958 | S25: 17.29817082 | T25: 28.29817082 | U25: 10.2727195 | V25: 147.3779614 | W25: 2.417286956 | X25: 4.656152174 | Y25: 2.804707057 | Z25: ucdall_12_19 | AA25: 12.4626031 | AB25: 15.65118642 | AC25: 19.55440851 | AD25: 23.16231442 | AE25: 1 | AF25: Second IMPROVE Algorithm
A26: ADPI12007 | B26: ADPI1 | C26: 2007 | D26: 10 | E26: 1.218204375 | F26: 0.3034314545 | G26: 0.9769090909 | H26: 0.1481636364 | I26: 0.1668802364 | J26: 2.033990909 | K26: 0.0314443636 | L26: 9.663302738 | M26: 2.521675727 | N26: 2.909985375 | O26: 1.481636364 | P26: 0.1668802364 | Q26: 1.220394546 | R26: 0.1937310758 | S26: 18.15760606 | T26: 29.15760606 | U26: 10.65392321 | V26: 140.2936413 | W26: 2.604527273 | X26: 4.638518182 | Y26: 2.845033157 | Z26: ucdall_12_19 | AA26: 12.39548668 | AB26: 15.13703724 | AC26: 19.42095447 | AD26: 23.93677763 | AE26: 1 | AF26: Second IMPROVE Algorithm
A27: ADPI12008 | B27: ADPI1 | C27: 2008 | D27: 10 | E27: 1.257764062 | F27: 0.312959375 | G27: 1.1663625 | H27: 0.1523666667 | I27: 0.2106771229 | J27: 2.078983333 | K27: 0.027884625 | L27: 10.16522845 | M27: 2.642052954 | N27: 3.522462556 | O27: 1.523666667 | P27: 0.2106771229 | Q27: 1.24739 | R27: 0.1715989159 | S27: 19.48307666 | T27: 30.48307666 | U27: 10.98704469 | V27: 137.7395728 | W27: 2.885545833 | X27: 4.964529167 | Y27: 3.128014352 | Z27: ucdall_12_19 | AA27: 12.65510003 | AB27: 16.07651208 | AC27: 18.3874929 | AD27: 21.73276995 | AE27: 1 | AF27: Second IMPROVE Algorithm
A28: ADPI12009 | B28: ADPI1 | C28: 2009 | D28: 10 | E28: 1.113278315 | F28: 0.1732245652 | G28: 0.8025104348 | H28: 0.1026782609 | I28: 0.1352755652 | J28: 2.020157391 | K28: 0.0315371739 | L28: 8.820315988 | M28: 1.479855061 | N28: 2.371196513 | O28: 1.026782609 | P28: 0.1352755652 | Q28: 1.212094435 | R28: 0.199941624 | S28: 15.24546179 | T28: 26.24546179 | U28: 9.567365338 | V28: 157.73244 | W28: 2.276656522 | X28: 4.314990909 | Y28: 2.358504315 | Z28: ucdall_12_19 | AA28: 11.31870543 | AB28: 14.03790825 | AC28: 16.93289969 | AD28: 19.75502161 | AE28: 1 | AF28: Second IMPROVE Algorithm
A29: AGTI12001 | B29: AGTI1 | C29: 2001 | D29: 10 | E29: 0.6974075625 | F29: 0.7291338 | G29: 1.107432 | H29: 0.20237 | I29: 0.315254485 | J29: 3.988 | K29: 0.1787778 | L29: 3.895706519 | M29: 4.475785272 | N29: 3.330220824 | O29: 2.0237 | P29: 0.315254485 | Q29: 2.3928 | R29: 0.8473511714 | S29: 17.28081827 | T29: 28.28081827 | U29: 10.1748379 | V29: 150.5642183 | W29: 2.563245 | X29: 6.551245 | Y29: 3.230375647 | Z29: ucdall_12_19 | AA29: 12.94502896 | AB29: 16.46433257 | AC29: 19.06201496 | AD29: 21.57905543 | AE29: 1 | AF29: Second IMPROVE Algorithm
A30: AGTI12002 | B30: AGTI1 | C30: 2002 | D30: 10 | E30: 0.8604120395 | F30: 0.6142301053 | G30: 1.004021053 | H30: 0.2129684211 | I30: 0.5927711789 | J30: 4.659331579 | K30: 0.1389012632 | L30: 4.821300911 | M30: 3.805879895 | N30: 3.013059705 | O30: 2.12968421 | P30: 0.5927711789 | Q30: 2.795598947 | R30: 0.6878380817 | S30: 17.84613293 | T30: 28.84613293 | U30: 10.41180309 | V30: 146.2907062 | W30: 2.987031579 | X30: 7.646363158 | Y30: 3.423304061 | Z30: ucdall_12_19 | AA30: 12.65955649 | AB30: 16.75073647 | AC30: 19.32067733 | AD30: 22.91885236 | AE30: 1 | AF30: Second IMPROVE Algorithm
A31: AGTI12003 | B31: AGTI1 | C31: 2003 | D31: 10 | E31: 0.57377925 | F31: 0.50099085 | G31: 1.051218 | H31: 0.20591 | I31: 0.541989335 | J31: 3.57866 | K31: 0.19591335 | L31: 3.268343999 | M31: 3.092696224 | N31: 3.166451504 | O31: 2.0591 | P31: 0.541989335 | Q31: 2.147196 | R31: 0.9407924789 | S31: 15.21656954 | T31: 26.21656954 | U31: 9.388936981 | V31: 164.0552971 | W31: 2.528005 | X31: 6.106665 | Y31: 3.069800785 | Z31: ucdall_12_19 | AA31: 12.12805149 | AB31: 16.65934021 | AC31: 18.47936765 | AD31: 21.68372574 | AE31: 1 | AF31: Second IMPROVE Algorithm
A32: AGTI12004 | B32: AGTI1 | C32: 2004 | D32: 10 | E32: 0.63174375 | F32: 0.2790822857 | G32: 0.8276657143 | H32: 0.1270571429 | I32: 0.4264424857 | J32: 3.824271429 | K32: 0.1418914286 | L32: 3.616424053 | M32: 1.719446492 | N32: 2.456450232 | O32: 1.270571429 | P32: 0.4264424857 | Q32: 2.294562857 | R32: 0.6940683257 | S32: 12.47796587 | T32: 23.47796587 | U32: 8.362796357 | V32: 181.113699 | W32: 2.170642857 | X32: 5.994914286 | Y32: 2.433882807 | Z32: ucdall_12_19 | AA32: 10.58896933 | AB32: 15.5279318 | AC32: 18.45592324 | AD32: 20.28125367 | AE32: 1 | AF32: Second IMPROVE Algorithm
A33: AGTI12005 | B33: AGTI1 | C33: 2005 | D33: 10 | E33: 0.4538554167 | F33: 0.1904255 | G33: 0.58465 | H33: 0.1264611111 | I33: 0.2290804 | J33: 2.935933333 | K33: 0.08947 | L33: 2.605100271 | M33: 1.192586823 | N33: 1.703682363 | O33: 1.264611111 | P33: 0.2290804 | Q33: 1.76156 | R33: 0.4368116 | S33: 9.193432568 | T33: 20.19343257 | U33: 6.882652286 | V33: 210.6985676 | W33: 1.45615 | X33: 4.392083333 | Y33: 1.673942428 | Z33: ucdall_12_19 | AA33: 8.870761274 | AB33: 14.54988759 | AC33: 17.35680639 | AD33: 19.6573067 | AE33: 1 | AF33: Second IMPROVE Algorithm
A34: AGTI12006 | B34: AGTI1 | C34: 2006 | D34: 10 | E34: 0.5880496875 | F34: 0.29902845 | G34: 0.746118 | H34: 0.149325 | I34: 0.29782675 | J34: 3.50802 | K34: 0.215217 | L34: 3.309954228 | M34: 1.831168722 | N34: 2.188048653 | O34: 1.49325 | P34: 0.29782675 | Q34: 2.104812 | R34: 1.046451609 | S34: 12.27151196 | T34: 23.27151196 | U34: 8.3460884 | V34: 179.5476313 | W34: 1.916815 | X34: 5.424835 | Y34: 2.295564887 | Z34: ucdall_12_19 | AA34: 10.2665684 | AB34: 13.66949908 | AC34: 16.8144414 | AD34: 19.84830328 | AE34: 1 | AF34: Second IMPROVE Algorithm
A35: AGTI12007 | B35: AGTI1 | C35: 2007 | D35: 10 | E35: 0.5469979167 | F35: 0.3585483333 | G35: 0.811 | H35: 0.1558777778 | I35: 0.5896941 | J35: 6.220005556 | K35: 0.0998825 | L35: 3.091058053 | M35: 2.230888361 | N35: 2.394622116 | O35: 1.558777778 | P35: 0.5896941 | Q35: 3.732003333 | R35: 0.484679605 | S35: 14.08172335 | T35: 25.08172335 | U35: 9.029954345 | V35: 168.5621513 | W35: 2.226827778 | X35: 8.446833333 | Y35: 2.562000628 | Z35: ucdall_12_19 | AA35: 10.98340545 | AB35: 15.61999809 | AC35: 18.20295019 | AD35: 19.89373473 | AE35: 1 | AF35: Second IMPROVE Algorithm
A36: AGTI12008 | B36: AGTI1 | C36: 2008 | D36: 10 | E36: 0.361153125 | F36: 0.2596594091 | G36: 0.6502663636 | H36: 0.1283227273 | I36: 0.3633691386 | J36: 3.774618182 | K36: 0.1748139545 | L36: 2.054993443 | M36: 1.621213409 | N36: 1.908358205 | O36: 1.283227273 | P36: 0.3633691386 | Q36: 2.264770909 | R36: 0.8582458987 | S36: 10.35417828 | T36: 21.35417828 | U36: 7.483156444 | V36: 196.6257674 | W36: 1.831768182 | X36: 5.606386364 | Y36: 1.937584718 | Z36: ucdall_12_19 | AA36: 10.26271053 | AB36: 14.5389901 | AC36: 16.65261852 | AD36: 19.04232763 | AE36: 1 | AF36: Second IMPROVE Algorithm
A37: AGTI12009 | B37: AGTI1 | C37: 2009 | D37: 10 | E37: 0.3912975 | F37: 0.2078804286 | G37: 0.42048 | H37: 0.082247619 | I37: 0.2959294381 | J37: 3.168752381 | K37: 0.0899528571 | L37: 2.174574343 | M37: 1.257262705 | N37: 1.220719205 | O37: 0.8224761905 | P37: 0.2959294381 | Q37: 1.901251429 | R37: 0.4412376253 | S37: 8.113450935 | T37: 19.11345093 | U37: 6.347446126 | V37: 222.2979854 | W37: 1.512366667 | X37: 4.681119048 | Y37: 1.487787843 | Z37: ucdall_12_19 | AA37: 9.062917325 | AB37: 11.96696321 | AC37: 15.50182138 | AD37: 18.17887283 | AE37: 1 | AF37: Second IMPROVE Algorithm
A38: AGTI12010 | B38: AGTI1 | C38: 2010 | D38: 10 | E38: 0.356527875 | F38: 0.20872845 | G38: 0.666783 | H38: 0.092425 | I38: 0.290237535 | J38: 3.1026 | K38: 0.15618195 | L38: 1.988112181 | M38: 1.279235765 | N38: 1.950518198 | O38: 0.92425 | P38: 0.290237535 | Q38: 1.86156 | R38: 0.7452330656 | S38: 9.039146745 | T38: 20.03914675 | U38: 6.874679043 | V38: 209.0095404 | W38: 1.708735 | X38: 4.811335 | Y38: 1.77088381 | Z38: ucdall_12_19 | AA38: 8.532260288 | AB38: 12.26437538 | AC38: 14.85375302 | AD38: 16.96364309 | AE38: 1 | AF38: Second IMPROVE Algorithm
A39: AGTI12011 | B39: AGTI1 | C39: 2011 | D39: 10 | E39: 0.3425508553 | F39: 0.1393132105 | G39: 0.5457789474 | H39: 0.0891578947 | I39: 0.2013202684 | J39: 2.486905263 | K39: 0.1086678947 | L39: 1.902534815 | M39: 0.8593797791 | N39: 1.591623471 | O39: 0.8915789474 | P39: 0.2013202684 | Q39: 1.492143158 | R39: 0.5410390832 | S39: 7.479619523 | T39: 18.47961952 | U39: 6.050636876 | V39: 228.1917878 | W39: 1.524821053 | X39: 4.011726316 | Y39: 1.426789071 | Z39: ucdall_12_19 | AA39: 8.805450005 | AB39: 11.93843715 | AC39: 15.44581633 | AD39: 17.01558484 | AE39: 1 | AF39: Second IMPROVE Algorithm
A40: AGTI12012 | B40: AGTI1 | C40: 2012 | D40: 10 | E40: 0.4097319079 | F40: 0.1951973684 | G40: 0.5801968421 | H40: 0.0934842105 | I40: 0.3551686 | J40: 3.31238421 | K40: 0.0914655789 | L40: 2.281460769 | M40: 1.18119964 | N40: 1.698005985 | O40: 0.9348421053 | P40: 0.3551686 | Q40: 1.987430526 | R40: 0.4426474244 | S40: 8.88075505 | T40: 19.88075505 | U40: 6.7509524 | V40: 212.9057069 | W40: 1.784431579 | X40: 5.096815789 | Y40: 1.725244508 | Z40: ucdall_12_19 | AA40: 9.006773773 | AB40: 11.84128249 | AC40: 13.59543902 | AD40: 16.53686739 | AE40: 1 | AF40: Second IMPROVE Algorithm
A41: AGTI12013 | B41: AGTI1 | C41: 2013 | D41: 10 | E41: 0.3081766875 | F41: 0.2059872 | G41: 0.566532 | H41: 0.08611 | I41: 0.28235742 | J41: 3.03932 | K41: 0.0403884 | L41: 1.718295523 | M41: 1.256768372 | N41: 1.651817003 | O41: 0.8611 | P41: 0.28235742 | Q41: 1.823592 | R41: 0.193953663 | S41: 7.787883981 | T41: 18.78788398 | U41: 6.223682653 | V41: 224.0525242 | W41: 1.39952 | X41: 4.43884 | Y41: 1.489551707 | Z41: ucdall_12_19 | AA41: 7.875127467 | AB41: 12.76952767 | AC41: 14.81372306 | AD41: 16.51474331 | AE41: 1 | AF41: Second IMPROVE Algorithm
A42: AGTI12014 | B42: AGTI1 | C42: 2014 | D42: 10 | E42: 0.3800094375 | F42: 0.1866114 | G42: 0.684693 | H42: 0.112785 | I42: 0.369418195 | J42: 3.789705 | K42: 0.07983 | L42: 2.117588619 | M42: 1.139426004 | N42: 2.005239975 | O42: 1.12785 | P42: 0.369418195 | Q42: 2.273823 | R42: 0.37701189 | S42: 9.410357683 | T42: 20.41035768 | U42: 7.074995399 | V42: 204.1915889 | W42: 1.722695 | X42: 5.5124 | Y42: 1.813347033 | Z42: ucdall_12_19 | AA42: 8.687030039 | AB42: 11.64939554 | AC42: 14.08383924 | AD42: 16.66998295 | AE42: 1 | AF42: Second IMPROVE Algorithm
A43: AGTI12015 | B43: AGTI1 | C43: 2015 | D43: 10 | E43: 0.3089975625 | F43: 0.14039844 | G43: 0.6683598 | H43: 0.085364 | I43: 0.39841824 | J43: 3.707956 | K43: 0.0841248 | L43: 1.674785994 | M43: 0.8152616893 | N43: 1.955326176 | O43: 0.85364 | P43: 0.39841824 | Q43: 2.2247736 | R43: 0.383633424 | S43: 8.305839123 | T43: 19.30583912 | U43: 6.506531132 | V43: 217.1407064 | W43: 1.7377375 | X43: 5.310927222 | Y43: 1.685662842 | Z43: ucdall_12_19 | AA43: 8.424693326 | AB43: 10.9830244 | AC43: 13.01387915 | AD43: 15.0005314 | AE43: 1 | AF43: Second IMPROVE Algorithm
A44: AGTI12016 | B44: AGTI1 | C44: 2016 | D44: 10 | E44: 0.3902957143 | F44: 0.2376739 | G44: 0.67218 | H44: 0.0890895238 | I44: 0.3695158571 | J44: 4.073841905 | K44: 0.1458265714 | L44: 2.198116645 | M44: 1.501968359 | N44: 1.969524706 | O44: 0.8908952381 | P44: 0.3695158571 | Q44: 2.444305143 | R44: 0.729107832 | S44: 10.10343378 | T44: 21.10343378 | U44: 7.41053723 | V44: 197.1253003 | W44: 1.87301 | X44: 5.946851905 | Y44: 1.904581567 | Z44: ucdall_12_19 | AA44: 8.904009661 | AB44: 11.51097148 | AC44: 13.67722521 | AD44: 15.70311328 | AE44: 1 | AF44: Second IMPROVE Algorithm
A45: AGTI12017 | B45: AGTI1 | C45: 2017 | D45: 10 | E45: 0.2898121196 | F45: 0.1939791043 | G45: 0.8090271304 | H45: 0.1019891304 | I45: 0.4563042039 | J45: 4.520395217 | K45: 0.0461515652 | L45: 1.631604077 | M45: 1.199805759 | N45: 2.391910844 | O45: 1.019891304 | P45: 0.4563042039 | Q45: 2.71223713 | R45: 0.2235572716 | S45: 9.63531059 | T45: 20.63531059 | U45: 7.10497474 | V45: 205.8979355 | W45: 1.69052 | X45: 6.397722778 | Y45: 1.897263254 | Z45: ucdall_12_19 | AA45: 8.932722935 | AB45: 11.75009048 | AC45: 14.51876465 | AD45: 16.0462516 | AE45: 2 | AF45: Second IMPROVE Algorithm
A46: AREN12002 | B46: AREN1 | C46: 2002 | D46: 10 | E46: 2.83559375 | F46: 0.81834375 | G46: 1.4931675 | H46: 0.2435208333 | I46: 0.22296595 | J46: 2.22605 | K46: 0.007204125 | L46: 22.00219496 | M46: 6.467755367 | N46: 4.585228211 | O46: 2.435208333 | P46: 0.22296595 | Q46: 1.33563 | R46: 0.0394596818 | S46: 37.0884425 | T46: 48.0884425 | U46: 15.49448167 | V46: 86.91232603 | W46: 4.788608333 | X46: 7.014658333 | Y46: 5.620795908 | Z46: ucdall_12_19 | AA46: 18.19915784 | AB46: 20.70257283 | AC46: 23.55633942 | AD46: 26.5868995 | AE46: 1 | AF46: Second IMPROVE Algorithm
A47: AREN12003 | B47: AREN1 | C47: 2003 | D47: 10 | E47: 2.137793804 | F47: 0.7961543478 | G47: 1.572777391 | H47: 0.233326087 | I47: 0.2085112674 | J47: 2.560956522 | K47: 0.014774087 | L47: 16.19864965 | M47: 6.29256816 | N47: 4.870699997 | O47: 2.33326087 | P47: 0.2085112674 | Q47: 1.536573913 | R47: 0.082961782 | S47: 31.52322563 | T47: 42.52322564 | U47: 14.31952138 | V47: 97.38942991 | W47: 4.418508696 | X47: 6.925769565 | Y47: 4.963336985 | Z47: ucdall_12_19 | AA47: 16.90379966 | AB47: 20.67887834 | AC47: 23.86119226 | AD47: 27.55319 | AE47: 1 | AF47: Second IMPROVE Algorithm
A48: AREN12004 | B48: AREN1 | C48: 2004 | D48: 10 | E48: 1.588015 | F48: 0.640227 | G48: 1.465125 | H48: 0.2139916667 | I48: 0.1879859188 | J48: 2.346075 | K48: 0.07923225 | L48: 12.07152624 | M48: 5.087971138 | N48: 4.485567781 | O48: 2.139916667 | P48: 0.1879859188 | Q48: 1.407645 | R48: 0.4677374156 | S48: 25.84835016 | T48: 36.84835016 | U48: 12.86927565 | V48: 113.3350543 | W48: 3.450191667 | X48: 5.796266667 | Y48: 4.174576835 | Z48: ucdall_12_19 | AA48: 15.44058263 | AB48: 19.94109765 | AC48: 23.87706497 | AD48: 26.90301984 | AE48: 1 | AF48: Second IMPROVE Algorithm
A49: AREN12005 | B49: AREN1 | C49: 2005 | D49: 10 | E49: 2.313518804 | F49: 0.8710023913 | G49: 1.217003478 | H49: 0.2703130435 | I49: 0.1592014957 | J49: 2.530443478 | K49: 0.0876873913 | L49: 17.93071859 | M49: 6.958853339 | N49: 3.697118562 | O49: 2.703130435 | P49: 0.1592014957 | Q49: 1.518266087 | R49: 0.5123087922 | S49: 33.4795973 | T49: 44.4795973 | U49: 14.4066427 | V49: 102.3636838 | W49: 4.147386957 | X49: 6.677830435 | Y49: 4.918726604 | Z49: ucdall_12_19 | AA49: 17.83136925 | AB49: 21.41206886 | AC49: 25.77818291 | AD49: 28.79624569 | AE49: 1 | AF49: Second IMPROVE Algorithm
A50: AREN12006 | B50: AREN1 | C50: 2006 | D50: 10 | E50: 1.976041794 | F50: 0.4574227826 | G50: 1.202407826 | H50: 0.2296043478 | I50: 0.3636513152 | J50: 3.377665217 | K50: 0.0567481304 | L50: 15.0882523 | M50: 3.605241578 | N50: 3.653399846 | O50: 2.296043478 | P50: 0.3636513152 | Q50: 2.02659913 | R50: 0.3327854639 | S50: 27.36597311 | T50: 38.36597311 | U50: 13.2924778 | V50: 108.3512946 | W50: 3.810591304 | X50: 7.188256522 | Y50: 4.285876196 | Z50: ucdall_12_19 | AA50: 15.18732423 | AB50: 18.31506421 | AC50: 21.70590202 | AD50: 26.67636883 | AE50: 1 | AF50: Second IMPROVE Algorithm
A51: AREN12007 | B51: AREN1 | C51: 2007 | D51: 10 | E51: 1.875797344 | F51: 0.575506625 | G51: 1.2610725 | H51: 0.2271291667 | I51: 0.1952212354 | J51: 3.387783333 | K51: 0.07593 | L51: 14.03873307 | M51: 4.430332181 | N51: 3.83192472 | O51: 2.271291667 | P51: 0.1952212354 | Q51: 2.03267 | R51: 0.4272686925 | S51: 27.22744157 | T51: 38.22744157 | U51: 13.22095744 | V51: 109.6439164 | W51: 3.805058333 | X51: 7.192841667 | Y51: 4.210656871 | Z51: ucdall_12_19 | AA51: 15.7825336 | AB51: 19.69009483 | AC51: 22.19411861 | AD51: 26.29632098 | AE51: 1 | AF51: Second IMPROVE Algorithm
A52: AREN12008 | B52: AREN1 | C52: 2008 | D52: 10 | E52: 2.110995652 | F52: 0.5973092609 | G52: 1.301556522 | H52: 0.192673913 | I52: 0.2849284565 | J52: 2.543265217 | K52: 0.0719874783 | L52: 16.3690179 | M52: 4.678831067 | N52: 3.976151782 | O52: 1.92673913 | P52: 0.2849284565 | Q52: 1.52595913 | R52: 0.4150340397 | S52: 29.1766615 | T52: 40.1766615 | U52: 13.68672278 | V52: 104.8962162 | W52: 4.088443478 | X52: 6.631708696 | Y52: 4.559451283 | Z52: ucdall_12_19 | AA52: 15.88722029 | AB52: 18.95371377 | AC52: 21.45763241 | AD52: 24.29416645 | AE52: 1 | AF52: Second IMPROVE Algorithm
A53: AREN12009 | B53: AREN1 | C53: 2009 | D53: 10 | E53: 1.59220125 | F53: 0.3256898182 | G53: 1.1475 | H53: 0.15925 | I53: 0.2354396591 | J53: 2.466004546 | K53: 0.0595190455 | L53: 11.97053409 | M53: 2.573545145 | N53: 3.475155538 | O53: 1.5925 | P53: 0.2354396591 | Q53: 1.479602727 | R53: 0.3480259496 | S53: 21.6748031 | T53: 32.67480311 | U53: 11.70242907 | V53: 127.4740842 | W53: 3.215918182 | X53: 5.681922727 | Y53: 3.519599773 | Z53: ucdall_12_19 | AA53: 13.59165374 | AB53: 17.98636027 | AC53: 19.78594587 | AD53: 22.99655773 | AE53: 1 | AF53: Second IMPROVE Algorithm
A54: AREN12010 | B54: AREN1 | C54: 2010 | D54: 10 | E54: 1.468372812 | F54: 0.39234275 | G54: 1.1787525 | H54: 0.1605958333 | I54: 0.2213422125 | J54: 3.036945833 | K54: 0.031083 | L54: 11.16753135 | M54: 3.076052604 | N54: 3.550967207 | O54: 1.605958333 | P54: 0.2213422125 | Q54: 1.8221675 | R54: 0.1832994315 | S54: 21.62731864 | T54: 32.62731864 | U54: 11.74310596 | V54: 125.8977953 | W54: 3.0509 | X54: 6.087845833 | Y54: 3.452489108 | Z54: ucdall_12_19 | AA54: 13.81490121 | AB54: 16.65229812 | AC54: 20.05684344 | AD54: 22.40080729 | AE54: 1 | AF54: Second IMPROVE Algorithm
A55: BADL12000 | B55: BADL1 | C55: 2000 | D55: 10 | E55: 0.6152277083 | F55: 0.1833735 | G55: 0.65743 | H55: 0.0838333333 | I55: 0.2637838444 | J55: 2.169161111 | K55: 0.0086525 | L55: 4.326761786 | M55: 1.396956024 | N55: 1.921766814 | O55: 0.8383333333 | P55: 0.2637838444 | Q55: 1.301496667 | R55: 0.0510462825 | S55: 10.10014475 | T55: 21.10014475 | U55: 7.378665471 | V55: 198.5190573 | W55: 1.576083333 | X55: 3.745244444 | Y55: 1.812300886 | Z55: ucdall_12_19 | AA55: 9.028447721 | AB55: 10.64607703 | AC55: 12.58066413 | AD55: 15.4387168 | AE55: 1 | AF55: Second IMPROVE Algorithm
A56: BADL12001 | B56: BADL1 | C56: 2001 | D56: 10 | E56: 0.5670104687 | F56: 0.213962625 | G56: 0.6397425 | H56: 0.0887875 | I56: 0.391940775 | J56: 2.602829167 | K56: 0.001556625 | L56: 3.851677811 | M56: 1.582883595 | N56: 1.872853351 | O56: 0.887875 | P56: 0.391940775 | Q56: 1.5616975 | R56: 0.0087701002 | S56: 10.15769813 | T56: 21.15769813 | U56: 7.454412819 | V56: 195.6815664 | W56: 1.652816667 | X56: 4.255645833 | Y56: 1.903000494 | Z56: ucdall_12_19 | AA56: 8.865415655 | AB56: 10.8892994 | AC56: 13.02615457 | AD56: 15.06365851 | AE56: 1 | AF56: Second IMPROVE Algorithm
A57: BADL12002 | B57: BADL1 | C57: 2002 | D57: 10 | E57: 0.370792663 | F57: 0.1215965217 | G57: 0.6215634783 | H57: 0.0905913043 | I57: 0.4421282174 | J57: 3.21273913 | K57: 0.0008135217 | L57: 2.570458866 | M57: 0.9143950915 | N57: 1.817507498 | O57: 0.9059130435 | P57: 0.4421282174 | Q57: 1.927643478 | R57: 0.004851151 | S57: 8.582897346 | T57: 19.58289735 | U57: 6.693752758 | V57: 211.6855111 | W57: 1.363404348 | X57: 4.576143478 | Y57: 1.647485706 | Z57: ucdall_12_19 | AA57: 7.847367216 | AB57: 9.855949029 | AC57: 11.78182092 | AD57: 13.70955982 | AE57: 1 | AF57: Second IMPROVE Algorithm
A58: BADL12003 | B58: BADL1 | C58: 2003 | D58: 10 | E58: 0.4474728261 | F58: 0.1050284348 | G58: 0.6166956522 | H58: 0.0649565217 | I58: 0.2333491783 | J58: 2.196104348 | K58: 0.0002723478 | L58: 3.026442284 | M58: 0.787191513 | N58: 1.79386927 | O58: 0.6495652174 | P58: 0.2333491783 | Q58: 1.317662609 | R58: 0.001517148 | S58: 7.80959722 | T58: 18.80959722 | U58: 6.295305946 | V58: 220.6770141 | W58: 1.225882609 | X58: 3.421986957 | Y58: 1.467774961 | Z58: ucdall_12_19 | AA58: 7.277835778 | AB58: 9.447979719 | AC58: 12.41063565 | AD58: 14.89405708 | AE58: 1 | AF58: Second IMPROVE Algorithm
A59: BADL12004 | B59: BADL1 | C59: 2004 | D59: 10 | E59: 0.4300845313 | F59: 0.17297825 | G59: 0.566955 | H59: 0.0656833333 | I59: 0.3325858625 | J59: 2.3867875 | K59: 0.00886575 | L59: 3.007523921 | M59: 1.316892154 | N59: 1.643287911 | O59: 0.6568333333 | P59: 0.3325858625 | Q59: 1.4320725 | R59: 0.0517299885 | S59: 8.44092567 | T59: 19.44092567 | U59: 6.620573081 | V59: 213.3436199 | W59: 1.287479167 | X59: 3.674266667 | Y59: 1.577152727 | Z59: ucdall_12_19 | AA59: 7.737883902 | AB59: 9.523308337 | AC59: 11.621047 | AD59: 13.5959987 | AE59: 1 | AF59: Second IMPROVE Algorithm
A60: BADL12005 | B60: BADL1 | C60: 2005 | D60: 10 | E60: 0.580226087 | F60: 0.15996 | G60: 0.6681521739 | H60: 0.0782 | I60: 0.319209613 | J60: 1.801582609 | K60: 0.0078996522 | L60: 4.018970228 | M60: 1.193897947 | N60: 1.959951902 | O60: 0.782 | P60: 0.319209613 | Q60: 1.080949565 | R60: 0.0426225404 | S60: 9.397601796 | T60: 20.3976018 | U60: 7.049260638 | V60: 205.2660897 | W60: 1.381043478 | X60: 3.182626087 | Y60: 1.813647526 | Z60: ucdall_12_19 | AA60: 8.591622834 | AB60: 9.723202856 | AC60: 12.43950639 | AD60: 14.35340764 | AE60: 1 | AF60: Second IMPROVE Algorithm
A61: BADL12006 | B61: BADL1 | C61: 2006 | D61: 10 | E61: 0.4369096875 | F61: 0.110999125 | G61: 0.481605 | H61: 0.06095 | I61: 0.3926081917 | J61: 2.397245833 | K61: 0.007195875 | L61: 2.994340561 | M61: 0.8359529422 | N61: 1.389214232 | O61: 0.6095 | P61: 0.3926081917 | Q61: 1.4383475 | R61: 0.0427325494 | S61: 7.702695976 | T61: 18.70269598 | U61: 6.204569608 | V61: 223.6983226 | W61: 1.2924875 | X61: 3.689733333 | Y61: 1.490267879 | Z61: ucdall_12_19 | AA61: 7.782631021 | AB61: 10.13503713 | AC61: 12.15838523 | AD61: 15.43829833 | AE61: 1 | AF61: Second IMPROVE Algorithm
A62: BADL12007 | B62: BADL1 | C62: 2007 | D62: 10 | E62: 0.5286325 | F62: 0.1972625 | G62: 0.6018675 | H62: 0.0551166667 | I62: 0.3936014792 | J62: 2.488141667 | K62: 0.00225225 | L62: 3.619651798 | M62: 1.487838895 | N62: 1.76509708 | O62: 0.5511666667 | P62: 0.3936014792 | Q62: 1.492885 | R62: 0.0130163985 | S62: 9.323257317 | T62: 20.32325732 | U62: 7.067549105 | V62: 203.4557811 | W62: 1.653875 | X62: 4.138420833 | Y62: 1.778732896 | Z62: ucdall_12_19 | AA62: 7.932301087 | AB62: 10.79740249 | AC62: 12.56399084 | AD62: 15.01538527 | AE62: 1 | AF62: Second IMPROVE Algorithm
A63: BADL12008 | B63: BADL1 | C63: 2008 | D63: 10 | E63: 0.5310668478 | F63: 0.1444351304 | G63: 1.354288696 | H63: 0.0311043478 | I63: 0.3324471174 | J63: 1.852430435 | K63: 0.0031151739 | L63: 3.532373754 | M63: 1.085659427 | N63: 4.137466616 | O63: 0.3110434783 | P63: 0.3324471174 | Q63: 1.111458261 | R63: 0.017239561 | S63: 10.52768821 | T63: 21.52768821 | U63: 7.618619259 | V63: 192.6137896 | W63: 1.467017391 | X63: 3.319447826 | Y63: 2.396457313 | Z63: ucdall_12_19 | AA63: 9.000768133 | AB63: 10.95532445 | AC63: 12.9169296 | AD63: 14.3519478 | AE63: 1 | AF63: Second IMPROVE Algorithm
A64: BADL12009 | B64: BADL1 | C64: 2009 | D64: 10 | E64: 0.476155625 | F64: 0.139938125 | G64: 0.5184525 | H64: 0.0507958333 | I64: 0.2572056167 | J64: 1.6310625 | K64: 0.00193425 | L64: 3.173514488 | M64: 1.022291979 | N64: 1.50639101 | O64: 0.5079583333 | P64: 0.2572056167 | Q64: 0.9786375 | R64: 0.0110567936 | S64: 7.457055721 | T64: 18.45705572 | U64: 6.073006223 | V64: 226.8149856 | W64: 1.292020833 | X64: 2.898920833 | Y64: 1.44448195 | Z64: ucdall_12_19 | AA64: 7.472154128 | AB64: 9.273862613 | AC64: 11.3100607 | AD64: 13.08963364 | AE64: 1 | AF64: Second IMPROVE Algorithm
A65: BADL12010 | B65: BADL1 | C65: 2010 | D65: 10 | E65: 0.4955414063 | F65: 0.140980875 | G65: 0.5080725 | H65: 0.0454583333 | I65: 0.3828438583 | J65: 2.0560625 | K65: 0.003230625 | L65: 3.437572477 | M65: 1.062717977 | N65: 1.475312081 | O65: 0.4545833333 | P65: 0.3828438583 | Q65: 1.2336375 | R65: 0.0173177512 | S65: 8.063984979 | T65: 19.06398498 | U65: 6.415857009 | V65: 218.241596 | W65: 1.512445833 | X65: 3.568104167 | Y65: 1.576127598 | Z65: ucdall_12_19 | AA65: 7.639008472 | AB65: 9.173847235 | AC65: 11.5677714 | AD65: 14.03864235 | AE65: 1 | AF65: Second IMPROVE Algorithm
A66: BADL12011 | B66: BADL1 | C66: 2011 | D66: 10 | E66: 0.36403125 | F66: 0.116449375 | G66: 0.41463 | H66: 0.04415 | I66: 0.1849422833 | J66: 1.836120833 | K66: 0.02578275 | L66: 2.533432679 | M66: 0.8828257728 | N66: 1.194036729 | O66: 0.4415 | P66: 0.1849422833 | Q66: 1.1016725 | R66: 0.1525260443 | S66: 6.490936009 | T66: 17.49093601 | U66: 5.561390807 | V66: 238.7068091 | W66: 1.144095833 | X66: 2.970441667 | Y66: 1.149985658 | Z66: ucdall_12_19 | AA66: 6.576592436 | AB66: 8.818285409 | AC66: 11.25178299 | AD66: 13.61909116 | AE66: 1 | AF66: Second IMPROVE Algorithm
A67: =B67&C67 -> BADL12012 | B67: BADL1 | C67: 2012 | D67: 10 | E67: 0.388441875 | F67: 0.1069292727 | G67: 0.3300627273 | H67: 0.0395227273 | I67: 0.2490716318 | J67: 1.974468182 | K67: 0.0082701818 | L67: 2.697017699 | M67: 0.7988172679 | N67: 0.9482687177 | O67: 0.3952272727 | P67: 0.2490716318 | Q67: 1.184680909 | R67: 0.0485495984 | S67: 6.321633097 | T67: 17.3216331 | U67: 5.436031182 | V67: 242.7429595 | W67: 1.203868182 | X67: 3.178336364 | Y67: 1.122298416 | Z67: ucdall_12_19 | AA67: 6.935625379 | AB67: 9.15178005 | AC67: 11.4158476 | AD67: 13.46241173 | AE67: 1 | AF67: Second IMPROVE Algorithm
A68: BADL12013 | B68: BADL1 | C68: 2013 | D68: 10 | E68: 0.3272826563 | F68: 0.132069125 | G68: 0.40851 | H68: 0.0428125 | I68: 0.236595975 | J68: 1.939483333 | K68: 0.0055845 | L68: 2.238857513 | M68: 0.9917012391 | N68: 1.175102243 | O68: 0.428125 | P68: 0.236595975 | Q68: 1.16369 | R68: 0.032865828 | S68: 6.266937798 | T68: 17.2669378 | U68: 5.427430523 | V68: 242.3120871 | W68: 1.105675 | X68: 3.045158333 | Y68: 1.152854756 | Z68: ucdall_12_19 | AA68: 6.518767598 | AB68: 8.256271825 | AC68: 10.61243419 | AD68: 12.76067228 | AE68: 1 | AF68: Second IMPROVE Algorithm
A69: BADL12014 | B69: BADL1 | C69: 2014 | D69: 10 | E69: 0.401255625 | F69: 0.1181874545 | G69: 0.3751281818 | H69: 0.0315181818 | I69: 0.2669236045 | J69: 2.1416 | K69: 0.0058164545 | L69: 2.741654215 | M69: 0.8899567459 | N69: 1.08204912 | O69: 0.3151818182 | P69: 0.2669236045 | Q69: 1.28496 | R69: 0.0335555845 | S69: 6.614281088 | T69: 17.61428109 | U69: 5.624652573 | V69: 237.304463 | W69: 1.21215 | X69: 3.35375 | Y69: 1.198829502 | Z69: ucdall_12_19 | AA69: 6.903930536 | AB69: 8.771791374 | AC69: 10.14973308 | AD69: 12.54810918 | AE69: 1 | AF69: Second IMPROVE Algorithm
A70: BADL12015 | B70: BADL1 | C70: 2015 | D70: 10 | E70: 0.3146478261 | F70: 0.1403194696 | G70: 0.5687796522 | H70: 0.0381117391 | I70: 0.3233217565 | J70: 1.709156956 | K70: 0.0073346087 | L70: 2.208238999 | M70: 1.087956309 | N70: 1.65811835 | O70: 0.3811173913 | P70: 0.3233217565 | Q70: 1.025494174 | R70: 0.0411736304 | S70: 6.72542061 | T70: 17.72542061 | U70: 5.692538437 | V70: 235.5329065 | W70: 1.23597087 | X70: 2.945127826 | Y70: 1.392515052 | Z70: ucdall_12_19 | AA70: 6.825145057 | AB70: 8.718988241 | AC70: 10.29540246 | AD70: 11.83210933 | AE70: 1 | AF70: Second IMPROVE Algorithm
A71: BADL12016 | B71: BADL1 | C71: 2016 | D71: 10 | E71: 0.2707478125 | F71: 0.1134555 | G71: 0.500535 | H71: 0.0288370833 | I71: 0.318586525 | J71: 1.803302917 | K71: 0.01093725 | L71: 1.865106488 | M71: 0.8544007337 | N71: 1.4525611 | O71: 0.2883708333 | P71: 0.318586525 | Q71: 1.08198175 | R71: 0.0630173978 | S71: 5.924024828 | T71: 16.92402483 | U71: 5.187005131 | V71: 249.8689409 | W71: 1.124164583 | X71: 2.9274675 | Y71: 1.243099171 | Z71: ucdall_12_19 | AA71: 6.836774754 | AB71: 8.466255807 | AC71: 9.998841811 | AD71: 12.03636342 | AE71: 1 | AF71: Second IMPROVE Algorithm
A72: BADL12017 | B72: BADL1 | C72: 2017 | D72: 10 | E72: 0.2914384239 | F72: 0.0977954609 | G72: 0.4358253913 | H72: 0.0436421739 | I72: 0.3022058652 | J72: 1.948876087 | K72: 0.0060331304 | L72: 1.941075198 | M72: 0.7097382458 | N72: 1.253773537 | O72: 0.4364217391 | P72: 0.3022058652 | Q72: 1.169325652 | R72: 0.0335546828 | S72: 5.84609492 | T72: 16.84609492 | U72: 5.185377964 | V72: 248.4509905 | W72: 1.05944087 | X72: 3.008316956 | Y72: 1.176940446 | Z72: ucdall_12_19 | AA72: 6.483762018 | AB72: 8.851220676 | AC72: 10.82917319 | AD72: 12.94947387 | AE72: 1 | AF72: Second IMPROVE Algorithm
A73: BADL12018 | B73: BADL1 | C73: 2018 | D73: 10 | E73: 0.3041488043 | F73: 0.1484419826 | G73: 0.4724405217 | H73: 0.0562691304 | I73: 0.1821121348 | J73: 1.270305652 | K73: 0.0115935652 | L73: 2.017455677 | M73: 1.099412142 | N73: 1.369593518 | O73: 0.5626913043 | P73: 0.1821121348 | Q73: 0.7621833913 | R73: 0.0670868147 | S73: 6.060534982 | T73: 17.06053498 | U73: 5.270410594 | V73: 247.5996607 | W73: 1.149305652 | X73: 2.419611304 | Y73: 1.175006139 | Z73: ucdall_12_19 | AA73: 6.552152603 | AB73: 9.358070371 | AC73: 11.34199936 | AD73: 13.61905764 | AE73: 1 | AF73: Second IMPROVE Algorithm
A74: BALA12011 | B74: BALA1 | C74: 2011 | D74: 10 | E74: 0.14738625 | F74: 0.0173063684 | G74: 0.2753621053 | H74: 0.0203526316 | I74: 0.0537522947 | J74: 0.8078473684 | K74: 0.0280752632 | L74: 0.9880244643 | M74: 0.1158587154 | N74: 0.7887962647 | O74: 0.2035263158 | P74: 0.0537522947 | Q74: 0.4847084211 | R74: 0.1356699015 | S74: 2.770336377 | T74: 12.77033638 | U74: 2.396347771 | V74: 309.1753041 | W74: 0.5223842105 | X74: 1.330811111 | Y74: 0.5422349132 | Z74: ucdall_12_19 | AA74: 4.281950063 | AB74: 5.94682503 | AC74: 8.091975487 | AD74: 10.54692306 | AE74: 1 | AF74: Second IMPROVE Algorithm
A75: BALA12012 | B75: BALA1 | C75: 2012 | D75: 10 | E75: 0.1576718478 | F75: 0.0206456087 | G75: 0.1679791304 | H75: 0.0166478261 | I75: 0.0604121522 | J75: 0.6742826087 | K75: 0.0090931304 | L75: 0.9049379722 | M75: 0.1273750308 | N75: 0.4768018055 | O75: 0.1664782609 | P75: 0.0604121522 | Q75: 0.4045695652 | R75: 0.0430075394 | S75: 2.183582326 | T75: 12.18358233 | U75: 1.960020713 | V75: 321.8883373 | W75: 0.5414478261 | X75: 1.215730435 | Y75: 0.4324496957 | Z75: ucdall_12_19 | AA75: 3.041410857 | AB75: 5.596176281 | AC75: 8.308516136 | AD75: 12.75207452 | AE75: 1 | AF75: Second IMPROVE Algorithm
A76: BALA12013 | B76: BALA1 | C76: 2013 | D76: 10 | E76: 0.1691341667 | F76: 0.027391 | G76: 0.14682 | H76: 0.0107333333 | I76: 0.0654233389 | J76: 0.54215 | K76: 0.0035535 | L76: 1.000064419 | M76: 0.1733308082 | N76: 0.417094625 | O76: 0.1073333333 | P76: 0.0654233389 | Q76: 0.32529 | R76: 0.0170934434 | S76: 2.105629968 | T76: 12.10562997 | U76: 1.890267339 | V76: 324.3284381 | W76: 0.5343956522 | X76: 1.068229167 | Y76: 0.4230553389 | Z76: ucdall_12_19 | AA76: 3.053352732 | AB76: 5.736802778 | AC76: 7.606940781 | AD76: 10.42502711 | AE76: 1 | AF76: Second IMPROVE Algorithm
A77: BALA12014 | B77: BALA1 | C77: 2014 | D77: 10 | E77: 0.1266684375 | F77: 0.017286 | G77: 0.22923 | H77: 0.0172791667 | I77: 0.0905029083 | J77: 0.7693083333 | K77: 0.010488 | L77: 0.8030553971 | M77: 0.1144079732 | N77: 0.6529634791 | O77: 0.1727916667 | P77: 0.0905029083 | Q77: 0.461585 | R77: 0.0490040903 | S77: 2.344310515 | T77: 12.34431052 | U77: 2.076157963 | V77: 318.6482024 | W77: 0.4947583333 | X77: 1.264066667 | Y77: 0.4914545125 | Z77: ucdall_12_19 | AA77: 3.324681986 | AB77: 5.743941566 | AC77: 8.601880192 | AD77: 12.09280041 | AE77: 1 | AF77: Second IMPROVE Algorithm
A78: BALA12015 | B78: BALA1 | C78: 2015 | D78: 10 | E78: 0.1785927717 | F78: 0.0281029304 | G78: 0.3561237391 | H78: 0.0154821739 | I78: 0.0776040043 | J78: 0.6393 | K78: 0.0066357391 | L78: 1.192283774 | M78: 0.2047008714 | N78: 1.022687697 | O78: 0.1548217391 | P78: 0.0776040043 | Q78: 0.38358 | R78: 0.0345292936 | S78: 3.070207379 | T78: 13.07020738 | U78: 2.655620337 | V78: 300.4667521 | W78: 0.6490078261 | X78: 1.278627826 | Y78: 0.6625413587 | Z78: ucdall_12_19 | AA78: 3.662526251 | AB78: 5.152727186 | AC78: 8.483890006 | AD78: 12.41773168 | AE78: 1 | AF78: Second IMPROVE Algorithm
A79: BALA12016 | B79: BALA1 | C79: 2016 | D79: 10 | E79: 0.0826560326 | F79: 0.0198727304 | G79: 0.1666205217 | H79: 0.0086482609 | I79: 0.0544127522 | J79: 0.4604317391 | K79: 0.0115098261 | L79: 0.4788535146 | M79: 0.1242477792 | N79: 0.4732278929 | O79: 0.0864826087 | P79: 0.0544127522 | Q79: 0.2762590435 | R79: 0.0542236711 | S79: 1.547707262 | T79: 11.54770726 | U79: 1.425577476 | V79: 339.5106012 | W79: 0.2852313043 | X79: 0.7456630435 | Y79: 0.3437201239 | Z79: ucdall_12_19 | AA79: 2.289873007 | AB79: 4.5300519 | AC79: 6.813193908 | AD79: 9.602433467 | AE79: 1 | AF79: Second IMPROVE Algorithm
A80: BALD12001 | B80: BALD1 | C80: 2001 | D80: 10 | E80: 0.4137971752 | F80: 0.1151555223 | G80: 0.4612829872 | H80: 0.0654355279 | I80: 0.2349536649 | J80: 0.9172818956 | K80: 0.0009293478 | L80: 2.057973852 | M80: 0.6389349386 | N80: 1.332106805 | O80: 0.6543552791 | P80: 0.2349536649 | Q80: 0.5503691374 | R80: 0.0033458173 | S80: 5.472039495 | T80: 14.4720395 | U80: 3.651454471 | V80: 254.7466137 | W80: 1.3384 | X80: 2.320973333 | Y80: 1.291554225 | Z80: ucdall_12_19 | AA80: 4.684768977 | AB80: 6.217683245 | AC80: 7.912876979 | AD80: 9.077063878 | AE80: 2 | AF80: Second IMPROVE Algorithm
A81: BALD12002 | B81: BALD1 | C81: 2002 | D81: 10 | E81: 0.2690789063 | F81: 0.062527375 | G81: 0.3979875 | H81: 0.0684666667 | I81: 0.2575591167 | J81: 0.9384791667 | K81: 0.000543 | L81: 1.353845345 | M81: 0.3373033897 | N81: 1.144382093 | O81: 0.6846666667 | P81: 0.2575591167 | Q81: 0.5630875 | R81: 0.0024140213 | S81: 4.343258133 | T81: 13.34325813 | U81: 2.846205399 | V81: 274.4101842 | W81: 0.9651125 | X81: 1.903591667 | Y81: 1.056162565 | Z81: ucdall_12_19 | AA81: 4.157882471 | AB81: 5.877250472 | AC81: 7.758236286 | AD81: 9.596329694 | AE81: 2 | AF81: Second IMPROVE Algorithm
A82: BALD12003 | B82: BALD1 | C82: 2003 | D82: 10 | E82: 0.277629375 | F82: 0.0617499545 | G82: 0.4084363636 | H82: 0.0607136364 | I82: 0.1298593955 | J82: 0.67145 | K82: 0.0002765455 | L82: 1.396295762 | M82: 0.3268447369 | N82: 1.179131976 | O82: 0.6071363636 | P82: 0.1298593955 | Q82: 0.40287 | R82: 0.0011431812 | S82: 4.043281416 | T82: 13.04328142 | U82: 2.613749625 | V82: 280.5439501 | W82: 0.8618590909 | X82: 1.53155 | Y82: 0.9386652705 | Z82: ucdall_12_19 | AA82: 3.754541916 | AB82: 5.874984869 | AC82: 8.241135025 | AD82: 10.24910288 | AE82: 1 | AF82: Second IMPROVE Algorithm
A83: BALD12004 | B83: BALD1 | C83: 2004 | D83: 10 | E83: 0.3565058152 | F83: 0.066749087 | G83: 0.431186087 | H83: 0.0548434783 | I83: 0.143665413 | J83: 0.5464434783 | K83: 0.0035577391 | L83: 1.692387831 | M83: 0.347214705 | N83: 1.244178458 | O83: 0.5484347826 | P83: 0.143665413 | Q83: 0.327866087 | R83: 0.0107157807 | S83: 4.314463057 | T83: 13.31446306 | U83: 2.8180393 | V83: 275.2875212 | W83: 0.9504956522 | X83: 1.49693913 | Y83: 1.05650762 | Z83: ucdall_12_19 | AA83: 4.12132708 | AB83: 5.57165782 | AC83: 7.216743787 | AD83: 8.632088903 | AE83: 1 | AF83: Second IMPROVE Algorithm
A84: BALD12005 | B84: BALD1 | C84: 2005 | D84: 10 | E84: 0.3465154688 | F84: 0.055077625 | G84: 0.3627825 | H84: 0.0592333333 | I84: 0.2050957891 | J84: 0.9428890625 | K84: 0.00198075 | L84: 1.717815204 | M84: 0.302500385 | N84: 1.046403696 | O84: 0.5923333333 | P84: 0.2050957891 | Q84: 0.5657334375 | R84: 0.0090193245 | S84: 4.43890117 | T84: 13.43890117 | U84: 2.887416036 | V84: 274.1198516 | W84: 0.8583047619 | X84: 1.716716667 | Y84: 1.030685466 | Z84: ucdall_12_19 | AA84: 4.183488973 | AB84: 6.264008852 | AC84: 7.625532612 | AD84: 9.718268869 | AE84: 1 | AF84: Second IMPROVE Algorithm
A85: BALD12006 | B85: BALD1 | C85: 2006 | D85: 10 | E85: 0.33610625 | F85: 0.0460881818 | G85: 0.4540909091 | H85: 0.0713454545 | I85: 0.1783683727 | J85: 1.054158182 | K85: 0.0128704091 | L85: 1.674315702 | M85: 0.2472069953 | N85: 1.308973402 | O85: 0.7134545455 | P85: 0.1783683727 | Q85: 0.6324949091 | R85: 0.0442112486 | S85: 4.799025175 | T85: 13.79902518 | U85: 3.192081025 | V85: 265.5192856 | W85: 0.8936285714 | X85: 1.836980952 | Y85: 1.098869577 | Z85: ucdall_12_19 | AA85: 4.057805608 | AB85: 5.979787513 | AC85: 6.742437126 | AD85: 8.06055445 | AE85: 1 | AF85: Second IMPROVE Algorithm
A86: BALD12007 | B86: BALD1 | C86: 2007 | D86: 10 | E86: 0.29273625 | F86: 0.0531186818 | G86: 0.36225 | H86: 0.0575909091 | I86: 0.1884134773 | J86: 1.113813636 | K86: 0.0050195455 | L86: 1.370997221 | M86: 0.2586900941 | N86: 1.045868506 | O86: 0.5759090909 | P86: 0.1884134773 | Q86: 0.6682881818 | R86: 0.0224035744 | S86: 4.130570145 | T86: 13.13057015 | U86: 2.664821458 | V86: 279.5504837 | W86: 1.054759091 | X86: 2.168572727 | Y86: 0.9591288636 | Z86: ucdall_12_19 | AA86: 4.147855621 | AB86: 5.999498622 | AC86: 7.38987686 | AD86: 9.185566814 | AE86: 1 | AF86: Second IMPROVE Algorithm
A87: BALD12008 | B87: BALD1 | C87: 2008 | D87: 10 | E87: 0.2294898913 | F87: 0.0487115217 | G87: 0.4590156522 | H87: 0.0537347826 | I87: 0.1763767522 | J87: 0.9237695652 | K87: 0.0087526957 | L87: 1.217773816 | M87: 0.2852856603 | N87: 1.333910567 | O87: 0.5373478261 | P87: 0.1763767522 | Q87: 0.5542617391 | R87: 0.039927053 | S87: 4.144883414 | T87: 13.14488341 | U87: 2.664766463 | V87: 279.7959044 | W87: 0.9337347826 | X87: 1.857504348 | Y87: 0.9760812957 | Z87: ucdall_12_19 | AA87: 4.389251898 | AB87: 6.561807331 | AC87: 8.597331146 | AD87: 10.7638899 | AE87: 1 | AF87: Second IMPROVE Algorithm
A88: BALD12009 | B88: BALD1 | C88: 2009 | D88: 10 | E88: 0.3857582143 | F88: 0.0784922 | G88: 0.3429171429 | H88: 0.0452857143 | I88: 0.2629824571 | J88: 0.9669809524 | K88: 0.0034264286 | L88: 1.874201849 | M88: 0.4255538829 | N88: 0.9872887424 | O88: 0.4528571429 | P88: 0.2629824571 | Q88: 0.5801885714 | R88: 0.011586435 | S88: 4.59465908 | T88: 13.59465908 | U88: 3.030839766 | V88: 269.795484 | W88: 1.169766667 | X88: 2.136747619 | Y88: 1.118862157 | Z88: ucdall_12_19 | AA88: 4.185763751 | AB88: 5.570832392 | AC88: 6.706751159 | AD88: 8.001115646 | AE88: 1 | AF88: Second IMPROVE Algorithm
A89: BALD12010 | B89: BALD1 | C89: 2010 | D89: 10 | E89: 0.3479925 | F89: 0.0893383636 | G89: 0.3356263636 | H89: 0.03575 | I89: 0.1898868455 | J89: 1.344985454 | K89: 0.0102947727 | L89: 1.65996859 | M89: 0.4540532921 | N89: 0.9625062088 | O89: 0.3575 | P89: 0.1898868455 | Q89: 0.8069912727 | R89: 0.0389429787 | S89: 4.469849188 | T89: 13.46984919 | U89: 2.949920299 | V89: 271.5993252 | W89: 1.031595454 | X89: 2.360185714 | Y89: 1.008888846 | Z89: ucdall_12_19 | AA89: 3.752609007 | AB89: 5.463142821 | AC89: 6.724546626 | AD89: 7.751152396 | AE89: 1 | AF89: Second IMPROVE Algorithm
A90: BALD12011 | B90: BALD1 | C90: 2011 | D90: 10 | E90: 0.3459225 | F90: 0.0627279474 | G90: 0.3720126316 | H90: 0.0448105263 | I90: 0.2029482632 | J90: 1.126205263 | K90: 0.0334174737 | L90: 1.683043367 | M90: 0.3411482728 | N90: 1.070435694 | O90: 0.4481052632 | P90: 0.2029482632 | Q90: 0.6757231579 | R90: 0.1407811623 | S90: 4.56218518 | T90: 13.56218518 | U90: 3.013587692 | V90: 270.0952392 | W90: 1.093578947 | X90: 2.21978421 | Y90: 1.061839342 | Z90: ucdall_12_19 | AA90: 3.892824341 | AB90: 5.285234789 | AC90: 7.27124297 | AD90: 8.532063581 | AE90: 2 | AF90: Second IMPROVE Algorithm
A91: BALD12012 | B91: BALD1 | C91: 2012 | D91: 10 | E91: 0.270885 | F91: 0.0533766818 | G91: 0.3185836364 | H91: 0.0377863636 | I91: 0.1810367 | J91: 0.9584909091 | K91: 0.005958 | L91: 1.405225739 | M91: 0.2961767073 | N91: 0.914038935 | O91: 0.3778636364 | P91: 0.1810367 | Q91: 0.5750945455 | R91: 0.0235786353 | S91: 3.773014898 | T91: 12.7730149 | U91: 2.390670198 | V91: 286.7757755 | W91: 0.9385454545 | X91: 1.897036364 | Y91: 0.8676263818 | Z91: ucdall_12_19 | AA91: 3.460383453 | AB91: 6.107252098 | AC91: 7.917527614 | AD91: 9.920484691 | AE91: 1 | AF91: Second IMPROVE Algorithm
A92: BALD12013 | B92: BALD1 | C92: 2013 | D92: 10 | E92: 0.254413125 | F92: 0.0513789409 | G92: 0.4009827273 | H92: 0.0380363636 | I92: 0.2500518409 | J92: 0.52695 | K92: 0.005706 | L92: 1.229298484 | M92: 0.2751622766 | N92: 1.154289149 | O92: 0.3803636364 | P92: 0.2500518409 | Q92: 0.31617 | R92: 0.0266228485 | S92: 3.631958235 | T92: 12.63195824 | U92: 2.315100624 | V92: 287.898302 | W92: 1.0356 | X92: 1.449327273 | Y92: 1.000568998 | Z92: ucdall_12_19 | AA92: 3.28894255 | AB92: 4.806925244 | AC92: 6.394638715 | AD92: 8.157954678 | AE92: 1 | AF92: Second IMPROVE Algorithm
A93: BALD12014 | B93: BALD1 | C93: 2014 | D93: 10 | E93: 0.2325631579 | F93: 0.0271986316 | G93: 0.3241989474 | H93: 0.0349526316 | I93: 0.1925463421 | J93: 0.5164473684 | K93: 0.0033944211 | L93: 1.170193899 | M93: 0.1492370659 | N93: 0.9283915825 | O93: 0.3495263158 | P93: 0.1925463421 | Q93: 0.3098684211 | R93: 0.0135264884 | S93: 3.113290115 | T93: 12.11329011 | U93: 1.890042218 | V93: 299.5671582 | W93: 0.8609947368 | X93: 1.343284211 | Y93: 0.8148541316 | Z93: ucdall_12_19 | AA93: 2.916799792 | AB93: 4.301920227 | AC93: 5.515755177 | AD93: 8.028722765 | AE93: 1 | AF93: Second IMPROVE Algorithm
A94: BALD12015 | B94: BALD1 | C94: 2015 | D94: 10 | E94: 0.264601875 | F94: 0.0545722773 | G94: 0.35109 | H94: 0.0242459091 | I94: 0.1106219364 | J94: 0.6692663636 | K94: 0.0064579091 | L94: 1.225529204 | M94: 0.2794950603 | N94: 1.01054985 | O94: 0.2424590909 | P94: 0.1106219364 | Q94: 0.4015598182 | R94: 0.0272611784 | S94: 3.297476138 | T94: 12.29747614 | U94: 2.03999069 | V94: 295.4926722 | W94: 0.8283281818 | X94: 1.496394546 | Y94: 0.8115899068 | Z94: ucdall_12_19 | AA94: 2.912571793 | AB94: 4.450177996 | AC94: 5.731067892 | AD94: 6.799228906 | AE94: 1 | AF94: Second IMPROVE Algorithm
A95: BALD12016 | B95: BALD1 | C95: 2016 | D95: 10 | E95: 0.165410625 | F95: 0.0537695455 | G95: 0.2298968182 | H95: 0.0224972727 | I95: 0.1052189909 | J95: 0.6218913636 | K95: 0.0036368182 | L95: 0.8370133032 | M95: 0.3024634339 | N95: 0.6545240756 | O95: 0.2249727273 | P95: 0.1052189909 | Q95: 0.3731348182 | R95: 0.0159705434 | S95: 2.513297892 | T95: 11.51329789 | U95: 1.384189857 | V95: 313.8104643 | W95: 0.5920009091 | X95: 1.213892273 | Y95: 0.5804300705 | Z95: ucdall_12_19 | AA95: 2.319395598 | AB95: 4.047897967 | AC95: 5.678017686 | AD95: 7.538985239 | AE95: 1 | AF95: Second IMPROVE Algorithm
A96: BALD12017 | B96: BALD1 | C96: 2017 | D96: 10 | E96: 0.17878125 | F96: 0.0411943909 | G96: 0.3357220909 | H96: 0.0300590909 | I96: 0.1423278591 | J96: 0.7075863636 | K96: 0.014652 | L96: 0.9123545574 | M96: 0.2303853986 | N96: 0.9688091163 | O96: 0.3005909091 | P96: 0.1423278591 | Q96: 0.4245518182 | R96: 0.067869423 | S96: 3.046889082 | T96: 12.04688908 | U96: 1.820461417 | V96: 301.8596807 | W96: 0.6654990909 | X96: 1.356272857 | Y96: 0.7427366818 | Z96: ucdall_12_19 | AA96: 3.250956471 | AB96: 4.859613343 | AC96: 6.35058389 | AD96: 8.612308588 | AE96: 1 | AF96: Second IMPROVE Algorithm
A97: BALD12018 | B97: BALD1 | C97: 2018 | D97: 10 | E97: 0.1845505357 | F97: 0.0383615286 | G97: 0.2679068571 | H97: 0.04173 | I97: 0.168472519 | J97: 0.8046095238 | K97: 0.003264 | L97: 0.9015815725 | M97: 0.1972017486 | N97: 0.7655519456 | O97: 0.4173 | P97: 0.168472519 | Q97: 0.4827657143 | R97: 0.0126215383 | S97: 2.945495038 | T97: 11.94549504 | U97: 1.751878912 | V97: 303.3651432 | W97: 0.7269404762 | X97: 1.53155 | Y97: 0.7042854405 | Z97: ucdall_12_19 | AA97: 2.839518695 | AB97: 4.073395738 | AC97: 5.589103051 | AD97: 7.359165866 | AE97: 1 | AF97: Second IMPROVE Algorithm
A98: BALT12005 | B98: BALT1 | C98: 2005 | D98: 10 | E98: 2.606860109 | F98: 0.8239510435 | G98: 1.685989565 | H98: 0.3967521739 | I98: 0.3080621478 | J98: 4.754395652 | K98: 0.1657365652 | L98: 20.71439292 | M98: 6.709089932 | N98: 5.277284317 | O98: 3.967521739 | P98: 0.3080621478 | Q98: 2.852637391 | R98: 1.027311509 | S98: 40.85629996 | T98: 52.85629996 | U98: 16.35308086 | V98: 82.74785329 | W98: 4.899056522 | X98: 9.635940909 | Y98: 5.987351604 | Z98: ucdall_12_19 | AA98: 19.10261607 | AB98: 22.28114391 | AC98: 25.78930724 | AD98: 28.91164798 | AE98: 1 | AF98: Second IMPROVE Algorithm
A99: BALT12006 | B99: BALT1 | C99: 2006 | D99: 10 | E99: 2.058553125 | F99: 0.7687696364 | G99: 1.655083636 | H99: 0.3631272727 | I99: 0.4318905409 | J99: 4.7013875 | K99: 0.0800955 | L99: 15.6950297 | M99: 6.05816586 | N99: 5.159935346 | O99: 3.631272727 | P99: 0.4318905409 | Q99: 2.8208325 | R99: 0.470306387 | S99: 34.26743306 | T99: 46.26743306 | U99: 15.12534553 | V99: 92.75300598 | W99: 4.424140909 | X99: 9.013528571 | Y99: 5.357519711 | Z99: ucdall_12_19 | AA99: 17.45515754 | AB99: 20.97952729 | AC99: 23.36680566 | AD99: 28.22446966 | AE99: 1 | AF99: Second IMPROVE Algorithm
A100: BAND12000 | B100: BAND1 | C100: 2000 | D100: 10 | E100: 0.48103275 | F100: 0.13762365 | G100: 0.697563 | H100: 0.09236 | I100: 0.2689951 | J100: 1.697871 | K100: 0.00219375 | L100: 2.43062067 | M100: 0.7559067674 | N100: 2.043649014 | O100: 0.9236 | P100: 0.2689951 | Q100: 1.0187226 | R100: 0.0093561107 | S100: 7.450850262 | T100: 16.45085026 | U100: 4.950724242 | V100: 225.1474149 | W100: 1.5166 | X100: 3.151694737 | Y100: 1.67976825 | Z100: ucdall_12_19 | AA100: 5.990738512 | AB100: 7.858924489 | AC100: 9.270992797 | AD100: 10.73429471 | AE100: 1 | AF100: Second IMPROVE Algorithm
A101: BAND12001 | B101: BAND1 | C101: 2001 | D101: 10 | E101: 0.5999039063 | F101: 0.111611875 | G101: 0.5961075 | H101: 0.0752291667 | I101: 0.3733258917 | J101: 1.7088625 | K101: 0.00185775 | L101: 2.889233351 | M101: 0.5770325678 | N101: 1.734841203 | O101: 0.7522916667 | P101: 0.3733258917 | Q101: 1.0253175 | R101: 0.0070934179 | S101: 7.359135598 | T101: 16.3591356 | U101: 4.893607852 | V101: 226.3937697 | W101: 1.673775 | X101: 3.370433333 | Y101: 1.75803609 | Z101: ucdall_12_19 | AA101: 6.060271125 | AB101: 7.093014452 | AC101: 8.130146492 | AD101: 9.639859459 | AE101: 1 | AF101: Second IMPROVE Algorithm
A102: BAND12002 | B102: BAND1 | C102: 2002 | D102: 10 | E102: 0.5113672826 | F102: 0.1459663043 | G102: 0.715046087 | H102: 0.0877173913 | I102: 0.3735212652 | J102: 1.648326087 | K102: 0.0003451304 | L102: 2.48539461 | M102: 0.7940567209 | N102: 2.095871118 | O102: 0.877173913 | P102: 0.3735212652 | Q102: 0.9889956522 | R102: 0.0014095225 | S102: 7.616422802 | T102: 16.6164228 | U102: 5.029933099 | V102: 223.9241197 | W102: 1.783656522 | X102: 3.431982609 | Y102: 1.833963461 | Z102: ucdall_12_19 | AA102: 6.072950663 | AB102: 7.629220176 | AC102: 8.662552114 | AD102: 10.10988217 | AE102: 1 | AF102: Second IMPROVE Algorithm
A103: BAND12003 | B103: BAND1 | C103: 2003 | D103: 10 | E103: 0.3924345652 | F103: 0.1477431391 | G103: 0.816213913 | H103: 0.0966 | I103: 0.2440881217 | J103: 1.594103478 | K103: 0.0004202609 | L103: 2.007650684 | M103: 0.8408686423 | N103: 2.403774128 | O103: 0.966 | P103: 0.2440881217 | Q103: 0.956462087 | R103: 0.0016725494 | S103: 7.420516212 | T103: 16.42051621 | U103: 4.941599314 | V103: 225.1689495 | W103: 1.496395652 | X103: 3.020509524 | Y103: 1.6975 | Z103: ucdall_12_19 | AA103: 5.781994577 | AB103: 7.280998909 | AC103: 8.664476213 | AD103: 10.34155064 | AE103: 1 | AF103: Second IMPROVE Algorithm
A104: BAND12004 | B104: BAND1 | C104: 2004 | D104: 10 | E104: 0.5058075 | F104: 0.13511675 | G104: 0.8515875 | H104: 0.0920541667 | I104: 0.2518832313 | J104: 1.136904167 | K104: 0.0155175 | L104: 2.385919585 | M104: 0.720884243 | N104: 2.516514384 | O104: 0.9205416667 | P104: 0.2518832313 | Q104: 0.6821425 | R104: 0.0523303669 | S104: 7.530215977 | T104: 16.53021598 | U104: 4.985458599 | V104: 224.6918113 | W104: 1.581875 | X104: 2.71695 | Y104: 1.851966648 | Z104: ucdall_12_19 | AA104: 5.902319539 | AB104: 7.186678038 | AC104: 8.522533877 | AD104: 9.609054929 | AE104: 1 | AF104: Second IMPROVE Algorithm
A105: BAND12005 | B105: BAND1 | C105: 2005 | D105: 10 | E105: 0.4133375543 | F105: 0.110109913 | G105: 0.5399765217 | H105: 0.0877695652 | I105: 0.1829941565 | J105: 1.513266087 | K105: 0.0002332174 | L105: 1.999794463 | M105: 0.5878934796 | N105: 1.56698959 | O105: 0.8776956522 | P105: 0.1829941565 | Q105: 0.9079596522 | R105: 0.0009467973 | S105: 6.124273791 | T105: 15.12427379 | U105: 4.085931362 | V105: 244.7589808 | W105: 0.9956608696 | X105: 2.5008 | Y105: 1.334420928 | Z105: ucdall_12_19 | AA105: 5.256660079 | AB105: 7.002528674 | AC105: 8.711440555 | AD105: 10.42169982 | AE105: 1 | AF105: Second IMPROVE Algorithm
A106: BAND12006 | B106: BAND1 | C106: 2006 | D106: 10 | E106: 0.5144385714 | F106: 0.0896857143 | G106: 0.6009942857 | H106: 0.096652381 | I106: 0.253879119 | J106: 1.616819048 | K106: 0.0018604286 | L106: 2.505640616 | M106: 0.4899220448 | N106: 1.749393688 | O106: 0.9665238095 | P106: 0.253879119 | Q106: 0.9700914286 | R106: 0.0080326676 | S106: 6.943483373 | T106: 15.94348337 | U106: 4.633620651 | V106: 232.0565268 | W106: 1.359928571 | X106: 2.976747619 | Y106: 1.5575105 | Z106: ucdall_12_19 | AA106: 5.570474119 | AB106: 6.78872354 | AC106: 7.944521004 | AD106: 9.953596778 | AE106: 1 | AF106: Second IMPROVE Algorithm
A107: BAND12007 | B107: BAND1 | C107: 2007 | D107: 10 | E107: 0.4853869565 | F107: 0.1054715217 | G107: 0.68292 | H107: 0.0758304348 | I107: 0.2170388457 | J107: 1.301400435 | K107: 0.0145236522 | L107: 2.360034987 | M107: 0.5710396768 | N107: 2.006344678 | O107: 0.7583043478 | P107: 0.2170388457 | Q107: 0.7808402609 | R107: 0.0618118736 | S107: 6.755414669 | T107: 15.75541467 | U107: 4.492292745 | V107: 235.6508357 | W107: 1.57336087 | X107: 2.865859091 | Y107: 1.581171411 | Z107: ucdall_12_19 | AA107: 5.483499672 | AB107: 7.137954076 | AC107: 8.657101275 | AD107: 10.11148078 | AE107: 1 | AF107: Second IMPROVE Algorithm
A108: BAND12008 | B108: BAND1 | C108: 2008 | D108: 10 | E108: 0.3221427717 | F108: 0.1149558261 | G108: 0.661233913 | H108: 0.0703304348 | I108: 0.1923837783 | J108: 0.9855465217 | K108: 0.0092707826 | L108: 1.689577749 | M108: 0.6875684785 | N108: 1.933571863 | O108: 0.7033043478 | P108: 0.1923837783 | Q108: 0.591327913 | R108: 0.0436866421 | S108: 5.841420772 | T108: 14.84142077 | U108: 3.914259069 | V108: 248.3192281 | W108: 1.225417391 | X108: 2.188763636 | Y108: 1.370317506 | Z108: ucdall_12_19 | AA108: 4.999322102 | AB108: 6.519567701 | AC108: 8.41919995 | AD108: 10.08627946 | AE108: 1 | AF108: Second IMPROVE Algorithm
A109: BAND12009 | B109: BAND1 | C109: 2009 | D109: 10 | E109: 0.4070726786 | F109: 0.0816017143 | G109: 0.5216571429 | H109: 0.0638761905 | I109: 0.2720113286 | J109: 1.105580952 | K109: 0.0032215714 | L109: 1.90465571 | M109: 0.4312715241 | N109: 1.513652902 | O109: 0.6387619048 | P109: 0.2720113286 | Q109: 0.6633485714 | R109: 0.0123266053 | S109: 5.436028546 | T109: 14.43602855 | U109: 3.635648563 | V109: 254.9332849 | W109: 1.358161905 | X109: 2.463742857 | Y109: 1.349440626 | Z109: ucdall_12_19 | AA109: 4.660232 | AB109: 6.437812051 | AC109: 7.622931481 | AD109: 8.712712549 | AE109: 1 | AF109: Second IMPROVE Algorithm
A110: BAND12010 | B110: BAND1 | C110: 2010 | D110: 10 | E110: 0.37065 | F110: 0.0974360455 | G110: 0.4643263636 | H110: 0.0538954545 | I110: 0.2609192182 | J110: 1.263359091 | K110: 0.0002151818 | L110: 1.829868535 | M110: 0.5304075791 | N110: 1.338551289 | O110: 0.5389545455 | P110: 0.2609192182 | Q110: 0.7580154545 | R110: 0.0008826292 | S110: 5.257599251 | T110: 14.25759925 | U110: 3.521362415 | V110: 257.4245546 | W110: 1.191245454 | X110: 2.454604546 | Y110: 1.247442264 | Z110: ucdall_12_19 | AA110: 4.468741251 | AB110: 6.229213695 | AC110: 7.110400204 | AD110: 8.154842728 | AE110: 1 | AF110: Second IMPROVE Algorithm
A111: BAND12011 | B111: BAND1 | C111: 2011 | D111: 10 | E111: 0.403771875 | F111: 0.0973774091 | G111: 0.5401963636 | H111: 0.0590818182 | I111: 0.2913557591 | J111: 1.724763636 | K111: 0.0218029091 | L111: 1.952098529 | M111: 0.5334578007 | N111: 1.56560318 | O111: 0.5908181818 | P111: 0.2913557591 | Q111: 1.034858182 | R111: 0.0910697032 | S111: 6.059261335 | T111: 15.05926134 | U111: 4.067341913 | V111: 244.6532397 | W111: 1.432913636 | X111: 3.157677273 | Y111: 1.413586134 | Z111: ucdall_12_19 | AA111: 4.900370745 | AB111: 5.852432531 | AC111: 8.236574045 | AD111: 9.331029864 | AE111: 1 | AF111: Second IMPROVE Algorithm
A112: BAND12012 | B112: BAND1 | C112: 2012 | D112: 10 | E112: 0.3398677174 | F112: 0.0973501304 | G112: 0.5331286957 | H112: 0.0723347826 | I112: 0.3452877565 | J112: 2.407486957 | K112: 0.0031085217 | L112: 1.75247233 | M112: 0.5608302699 | N112: 1.548325228 | O112: 0.7233478261 | P112: 0.3452877565 | Q112: 1.444492174 | R112: 0.013373903 | S112: 6.388129488 | T112: 15.38812949 | U112: 4.277666342 | V112: 239.9891092 | W112: 1.410778261 | X112: 3.818265217 | Y112: 1.391077604 | Z112: ucdall_12_19 | AA112: 5.287537198 | AB112: 7.326617796 | AC112: 8.77678482 | AD112: 10.57830926 | AE112: 1 | AF112: Second IMPROVE Algorithm
A113: BAND12013 | B113: BAND1 | C113: 2013 | D113: 10 | E113: 0.4185476087 | F113: 0.1724393478 | G113: 0.6218452174 | H113: 0.0728652174 | I113: 0.2547470826 | J113: 1.206208696 | K113: 0.0053577391 | L113: 2.10016349 | M113: 0.9856487148 | N113: 1.811148065 | O113: 0.7286521739 | P113: 0.2547470826 | Q113: 0.7237252174 | R113: 0.0247395412 | S113: 6.628824285 | T113: 15.62882429 | U113: 4.447971061 | V113: 235.863622 | W113: 1.405352174 | X113: 2.592947826 | Y113: 1.545802213 | Z113: ucdall_12_19 | AA113: 5.189799385 | AB113: 6.175835656 | AC113: 7.695543489 | AD113: 9.931662524 | AE113: 1 | AF113: Second IMPROVE Algorithm
A114: BAND12014 | B114: BAND1 | C114: 2014 | D114: 10 | E114: 0.2869296196 | F114: 0.0751789565 | G114: 0.4851 | H114: 0.0457086957 | I114: 0.2755924348 | J114: 1.403443478 | K114: 0.0035287826 | L114: 1.384905876 | M114: 0.4087018531 | N114: 1.406448383 | O114: 0.4570869565 | P114: 0.2755924348 | Q114: 0.842066087 | R114: 0.0155591421 | S114: 4.790360732 | T114: 13.79036073 | U114: 3.189845237 | V114: 265.4839146 | W114: 1.20516087 | X114: 2.59066087 | Y114: 1.172038489 | Z114: ucdall_12_19 | AA114: 4.143225697 | AB114: 5.449436304 | AC114: 6.652615541 | AD114: 8.106517168 | AE114: 1 | AF114: Second IMPROVE Algorithm
A115: BAND12015 | B115: BAND1 | C115: 2015 | D115: 10 | E115: 0.349130625 | F115: 0.0984410727 | G115: 0.5580122727 | H115: 0.0347722727 | I115: 0.2271992409 | J115: 1.323094546 | K115: 0.0022311818 | L115: 1.650912668 | M115: 0.541870045 | N115: 1.62501192 | O115: 0.3477227273 | P115: 0.2271992409 | Q115: 0.7938567273 | R115: 0.0090542618 | S115: 5.19562759 | T115: 14.19562759 | U115: 3.468888699 | V115: 258.8809704 | W115: 1.265853636 | X115: 2.588948182 | Y115: 1.269786666 | Z115: ucdall_12_19 | AA115: 4.592024346 | AB115: 5.390477046 | AC115: 6.661130497 | AD115: 8.610196225 | AE115: 1 | AF115: Second IMPROVE Algorithm
A116: BAND12016 | B116: BAND1 | C116: 2016 | D116: 10 | E116: 0.2525611957 | F116: 0.0867037043 | G116: 0.4357111304 | H116: 0.0323447826 | I116: 0.1938957 | J116: 1.229165652 | K116: 0.0022562609 | L116: 1.202355397 | M116: 0.4591591573 | N116: 1.259371319 | O116: 0.3234478261 | P116: 0.1938957 | Q116: 0.7374993913 | R116: 0.0097443571 | S116: 4.185473148 | T116: 13.18547315 | U116: 2.741466618 | V116: 276.780213 | W116: 1.054021304 | X116: 2.282466522 | Y116: 1.003472774 | Z116: ucdall_12_19 | AA116: 3.765060577 | AB116: 4.836501257 | AC116: 6.067865152 | AD116: 7.464467769 | AE116: 1 | AF116: Second IMPROVE Algorithm
A117: BAND12017 | B117: BAND1 | C117: 2017 | D117: 10 | E117: 0.236848125 | F117: 0.0610269682 | G117: 0.4941343636 | H117: 0.0438095455 | I117: 0.2032542636 | J117: 1.426743182 | K117: 0.0033455455 | L117: 1.181789117 | M117: 0.3383716181 | N117: 1.430202541 | O117: 0.4380954545 | P117: 0.2032542636 | Q117: 0.8560459091 | R117: 0.0139842974 | S117: 4.461743201 | T117: 13.4617432 | U117: 2.938672009 | V117: 271.9951457 | W117: 0.9218413636 | X117: 2.342742273 | Y117: 1.042418811 | Z117: ucdall_12_19 | AA117: 3.936015429 | AB117: 5.622451064 | AC117: 6.854686755 | AD117: 8.261812713 | AE117: 1 | AF117: Second IMPROVE Algorithm
A118: BAND12018 | B118: BAND1 | C118: 2018 | D118: 10 | E118: 0.2614235938 | F118: 0.0688757875 | G118: 0.40042425 | H118: 0.0519025 | I118: 0.21979555 | J118: 1.034157083 | K118: 0.00843375 | L118: 1.270957756 | M118: 0.3730563853 | N118: 1.150604116 | O118: 0.519025 | P118: 0.21979555 | Q118: 0.62049425 | R118: 0.0338695208 | S118: 4.187802578 | T118: 13.18780258 | U118: 2.748339844 | V118: 276.4860846 | W118: 1.168059583 | X118: 2.194187917 | Y118: 1.010855431 | Z118: ucdall_12_19 | AA118: 3.678027524 | AB118: 5.317317322 | AC118: 6.617573729 | AD118: 8.708081143 | AE118: 1 | AF118: Second IMPROVE Algorithm
A119: BIBE12001 | B119: BIBE1 | C119: 2001 | D119: 10 | E119: 1.18212079 | F119: 0.1569386842 | G119: 0.6581842105 | H119: 0.0872368421 | I119: 0.3937350737 | J119: 2.716021053 | K119: 0.0037610526 | L119: 5.020106818 | M119: 0.7038099509 | N119: 1.925274544 | O119: 0.8723684211 | P119: 0.3937350737 | Q119: 1.629612632 | R119: 0.013388877 | S119: 10.55829632 | T119: 20.55829632 | U119: 7.089528589 | V119: 195.0421328 | W119: 2.433189474 | X119: 5.149210526 | Y119: 2.481976653 | Z119: ucdall_12_19 | AA119: 9.12322411 | AB119: 11.80100482 | AC119: 13.24185475 | AD119: 15.23580268 | AE119: 1 | AF119: Second IMPROVE Algorithm
A120: BIBE12002 | B120: BIBE1 | C120: 2002 | D120: 10 | E120: 0.8075261413 | F120: 0.1267621304 | G120: 0.4238295652 | H120: 0.0598478261 | I120: 0.4992375935 | J120: 2.383382609 | K120: 0.0004374783 | L120: 3.512289563 | M120: 0.5879484539 | N120: 1.228407584 | O120: 0.5984782609 | P120: 0.4992375935 | Q120: 1.430029565 | R120: 0.0015394328 | S120: 7.857930453 | T120: 17.85793045 | U120: 5.678270306 | V120: 224.3241034 | W120: 1.968278261 | X120: 4.35166087 | Y120: 1.917640735 | Z120: ucdall_12_19 | AA120: 8.14125699 | AB120: 10.66143018 | AC120: 13.07473876 | AD120: 15.05497997 | AE120: 1 | AF120: Second IMPROVE Algorithm
A121: BIBE12003 | B121: BIBE1 | C121: 2003 | D121: 10 | E121: 0.7132725 | F121: 0.0815749091 | G121: 0.4966118182 | H121: 0.0609227273 | I121: 0.4503641682 | J121: 2.70595 | K121: 0.1007836364 | L121: 3.041414122 | M121: 0.3610207137 | N121: 1.444713932 | O121: 0.6092272727 | P121: 0.4503641682 | Q121: 1.62357 | R121: 0.3540921005 | S121: 7.884402309 | T121: 17.88440231 | U121: 5.736405883 | V121: 222.0811872 | W121: 1.973763636 | X121: 4.679713636 | Y121: 1.903529759 | Z121: ucdall_12_19 | AA121: 7.723993552 | AB121: 10.28542535 | AC121: 12.49237194 | AD121: 14.82569726 | AE121: 1 | AF121: Second IMPROVE Algorithm
A122: BIBE12004 | B122: BIBE1 | C122: 2004 | D122: 10 | E122: 0.6198655435 | F122: 0.0825263478 | G122: 0.4534747826 | H122: 0.0537086957 | I122: 0.180975087 | J122: 1.4909 | K122: 0.016781087 | L122: 2.611996554 | M122: 0.365221307 | N122: 1.308263488 | O122: 0.5370869565 | P122: 0.180975087 | Q122: 0.89454 | R122: 0.0560198391 | S122: 5.954103231 | T122: 15.95410323 | U122: 4.619389154 | V122: 247.6934146 | W122: 1.310926087 | X122: 2.801826087 | Y122: 1.407331544 | Z122: ucdall_12_19 | AA122: 5.935960972 | AB122: 9.784208999 | AC122: 11.99311042 | AD122: 14.18453933 | AE122: 1 | AF122: Second IMPROVE Algorithm
A123: BIBE12005 | B123: BIBE1 | C123: 2005 | D123: 10 | E123: 0.9010703804 | F123: 0.120816913 | G123: 0.5383956522 | H123: 0.0683217391 | I123: 0.506231013 | J123: 3.145173913 | K123: 0.0227066087 | L123: 3.717721692 | M123: 0.5276324891 | N123: 1.56640093 | O123: 0.6832173913 | P123: 0.506231013 | Q123: 1.887104348 | R123: 0.0793345711 | S123: 8.967642435 | T123: 18.96764243 | U123: 6.32619829 | V123: 209.3351177 | W123: 2.100491304 | X123: 5.245665217 | Y123: 2.157542306 | Z123: ucdall_12_19 | AA123: 7.860221628 | AB123: 10.55768231 | AC123: 12.75229753 | AD123: 15.68724 | AE123: 1 | AF123: Second IMPROVE Algorithm
A124: BIBE12006 | B124: BIBE1 | C124: 2006 | D124: 10 | E124: 0.8049793125 | F124: 0.10378695 | G124: 0.506538 | H124: 0.078015 | I124: 0.514648075 | J124: 3.535695 | K124: 0.0086022 | L124: 3.532269251 | M124: 0.4837279941 | N124: 1.4691775 | O124: 0.78015 | P124: 0.514648075 | Q124: 2.121417 | R124: 0.0292063689 | S124: 8.930596189 | T124: 18.93059619 | U124: 6.322823389 | V124: 209.0156763 | W124: 2.002425 | X124: 5.53812 | Y124: 2.016569538 | Z124: ucdall_12_19 | AA124: 8.044320433 | AB124: 10.25019155 | AC124: 12.53121638 | AD124: 14.95034038 | AE124: 1 | AF124: Second IMPROVE Algorithm
A125: BIBE12007 | B125: BIBE1 | C125: 2007 | D125: 10 | E125: 0.7498610326 | F125: 0.0811073478 | G125: 0.5072869565 | H125: 0.0670826087 | I125: 0.355882747 | J125: 2.608758696 | K125: 0.0169693043 | L125: 3.251565928 | M125: 0.3671189416 | N125: 1.479191222 | O125: 0.670826087 | P125: 0.355882747 | Q125: 1.565255217 | R125: 0.0580579787 | S125: 7.747898122 | T125: 17.74789812 | U125: 5.638583436 | V125: 224.7336667 | W125: 1.889509091 | X125: 4.535147826 | Y125: 1.778189997 | Z125: ucdall_12_19 | AA125: 7.537841654 | AB125: 9.940500122 | AC125: 11.83920678 | AD125: 14.16570884 | AE125: 1 | AF125: Second IMPROVE Algorithm
A126: BIBE12008 | B126: BIBE1 | C126: 2008 | D126: 10 | E126: 0.6511420109 | F126: 0.0723241304 | G126: 0.4929182609 | H126: 0.0476608696 | I126: 0.4395738391 | J126: 3.308052174 | K126: 0.0047011304 | L126: 2.825360729 | M126: 0.3350008753 | N126: 1.427713146 | O126: 0.4766086957 | P126: 0.4395738391 | Q126: 1.984831304 | R126: 0.016500591 | S126: 7.50558918 | T126: 17.50558918 | U126: 5.509336923 | V126: 227.6103932 | W126: 1.861591304 | X126: 5.169643478 | Y126: 1.708320241 | Z126: ucdall_12_19 | AA126: 7.152570072 | AB126: 9.484342655 | AC126: 11.2252356 | AD126: 13.38629941 | AE126: 1 | AF126: Second IMPROVE Algorithm
A127: BIBE12009 | B127: BIBE1 | C127: 2009 | D127: 10 | E127: 0.67918125 | F127: 0.0895372174 | G127: 0.5131721739 | H127: 0.0510782609 | I127: 0.6370393304 | J127: 3.202595652 | K127: 0.0081246522 | L127: 2.867245587 | M127: 0.3950046378 | N127: 1.485433715 | O127: 0.5107826087 | P127: 0.6370393304 | Q127: 1.921557391 | R127: 0.0263553143 | S127: 7.843418584 | T127: 17.84341858 | U127: 5.727920544 | V127: 222.0101679 | W127: 2.068652174 | X127: 5.271247826 | Y127: 1.978132885 | Z127: ucdall_12_19 | AA127: 6.984312602 | AB127: 8.661584623 | AC127: 10.66000197 | AD127: 13.07686434 | AE127: 1 | AF127: Second IMPROVE Algorithm
A128: BIBE12010 | B128: BIBE1 | C128: 2010 | D128: 10 | E128: 0.65284725 | F128: 0.06911175 | G128: 0.362943 | H128: 0.0316 | I128: 0.41359849 | J128: 2.367065 | K128: 0.00112545 | L128: 2.71179141 | M128: 0.3040583494 | N128: 1.053110601 | O128: 0.316 | P128: 0.41359849 | Q128: 1.420239 | R128: 0.0034812932 | S128: 6.222279144 | T128: 16.22227914 | U128: 4.80601365 | V128: 242.6114334 | W128: 1.669945 | X128: 4.03701 | Y128: 1.53122594 | Z128: ucdall_12_19 | AA128: 5.948723796 | AB128: 8.064027875 | AC128: 10.6221602 | AD128: 13.50746559 | AE128: 1 | AF128: Second IMPROVE Algorithm
A129: BIBE12011 | B129: BIBE1 | C129: 2011 | D129: 10 | E129: 0.85100125 | F129: 0.109010375 | G129: 0.461205 | H129: 0.064825 | I129: 0.5741402417 | J129: 4.177445833 | K129: 0.02809575 | L129: 3.601155504 | M129: 0.4870506962 | N129: 1.337534389 | O129: 0.64825 | P129: 0.5741402417 | Q129: 2.5064675 | R129: 0.0936261952 | S129: 9.248224526 | T129: 19.24822453 | U129: 6.362142343 | V129: 210.859966 | W129: 2.584129167 | X129: 6.761575 | Y129: 2.088277617 | Z129: ucdall_12_19 | AA129: 9.297149808 | AB129: 11.17145006 | AC129: 12.91546503 | AD129: 15.65888961 | AE129: 1 | AF129: Second IMPROVE Algorithm
A130: BIBE12012 | B130: BIBE1 | C130: 2012 | D130: 10 | E130: 0.85718625 | F130: 0.1016930455 | G130: 0.5205763636 | H130: 0.0629727273 | I130: 0.6795312909 | J130: 4.939640909 | K130: 0.0107427273 | L130: 3.586700225 | M130: 0.4489510521 | N130: 1.519726256 | O130: 0.6297272727 | P130: 0.6795312909 | Q130: 2.963784545 | R130: 0.035441532 | S130: 9.863862174 | T130: 19.86386217 | U130: 6.777195632 | V130: 200.1980316 | W130: 2.385954546 | X130: 7.325595455 | Y130: 2.232702404 | Z130: ucdall_12_19 | AA130: 8.851300029 | AB130: 10.57452996 | AC130: 12.33563593 | AD130: 13.6372944 | AE130: 1 | AF130: Second IMPROVE Algorithm
A131: =B131&C131 -> BIBE12013 | B131: BIBE1 | C131: 2013 | D131: 10 | E131: 0.559130625 | F131: 0.0959349545 | G131: 0.3553854545 | H131: 0.0375181818 | I131: 0.2303413045 | J131: 2.271259091 | K131: 0.0103180909 | L131: 2.485260876 | M131: 0.4550617849 | N131: 1.018773492 | O131: 0.3751818182 | P131: 0.2303413045 | Q131: 1.362755455 | R131: 0.0382832845 | S131: 5.965658014 | T131: 15.96565801 | U131: 4.612474867 | V131: 248.2807975 | W131: 1.396027273 | X131: 3.667286364 | Y131: 1.288628611 | Z131: ucdall_12_19 | AA131: 6.069305086 | AB131: 9.325353535 | AC131: 11.84723637 | AD131: 13.86159674 | AE131: 1 | AF131: Second IMPROVE Algorithm
A132: BIBE12014 | B132: BIBE1 | C132: 2014 | D132: 10 | E132: 0.8187013043 | F132: 0.1043217391 | G132: 0.4780095652 | H132: 0.0580652174 | I132: 0.4094984652 | J132: 3.734204348 | K132: 0.0153665217 | L132: 3.590436543 | M132: 0.4755541801 | N132: 1.384166336 | O132: 0.5806521739 | P132: 0.4094984652 | Q132: 2.240522609 | R132: 0.0537385625 | S132: 8.73456887 | T132: 18.73456887 | U132: 6.166373947 | V132: 213.6128602 | W132: 2.156891304 | X132: 5.891095652 | Y132: 1.883962813 | Z132: ucdall_12_19 | AA132: 7.87366664 | AB132: 10.81019684 | AC132: 12.58796784 | AD132: 14.14784951 | AE132: 1 | AF132: Second IMPROVE Algorithm
A133: BIBE12015 | B133: BIBE1 | C133: 2015 | D133: 10 | E133: 0.6319266848 | F133: 0.0975150261 | G133: 0.5208847826 | H133: 0.035956087 | I133: 0.2168554304 | J133: 1.987758261 | K133: 0.0089561739 | L133: 2.524335479 | M133: 0.4407991743 | N133: 1.508239772 | O133: 0.3595608696 | P133: 0.2168554304 | Q133: 1.192654956 | R133: 0.0310006604 | S133: 6.273446342 | T133: 16.27344634 | U133: 4.800665758 | V133: 243.6990654 | W133: 1.535594348 | X133: 3.523352609 | Y133: 1.512094185 | Z133: ucdall_12_19 | AA133: 6.171516164 | AB133: 9.086045205 | AC133: 11.17461337 | AD133: 13.993741 | AE133: 1 | AF133: Second IMPROVE Algorithm
A134: BIBE12016 | B134: BIBE1 | C134: 2016 | D134: 10 | E134: 0.5314434783 | F134: 0.0902809304 | G134: 0.4543716522 | H134: 0.0431530435 | I134: 0.2080414043 | J134: 2.499266087 | K134: 0.0081931304 | L134: 2.258724688 | M134: 0.414499989 | N134: 1.319006155 | O134: 0.4315304348 | P134: 0.2080414043 | Q134: 1.499559652 | R134: 0.028438549 | S134: 6.159800873 | T134: 16.15980087 | U134: 4.760385271 | V134: 243.8578376 | W134: 1.425328696 | X134: 3.924594783 | Y134: 1.335483639 | Z134: ucdall_12_19 | AA134: 6.056989695 | AB134: 8.705693521 | AC134: 10.58757253 | AD134: 12.49621863 | AE134: 1 | AF134: Second IMPROVE Algorithm
A135: BIBE12017 | B135: BIBE1 | C135: 2017 | D135: 10 | E135: 0.446881875 | F135: 0.0920063182 | G135: 0.5119085455 | H135: 0.0507659091 | I135: 0.3811340591 | J135: 3.556084091 | K135: 0.0117523636 | L135: 1.904132933 | M135: 0.4215216165 | N135: 1.489761463 | O135: 0.5076590909 | P135: 0.3811340591 | Q135: 2.133650455 | R135: 0.0415453557 | S135: 6.879404973 | T135: 16.87940497 | U135: 5.141315444 | V135: 236.1172807 | W135: 1.525838636 | X135: 5.081922727 | Y135: 1.49444907 | Z135: ucdall_12_19 | AA135: 6.892772422 | AB135: 9.297347613 | AC135: 10.85238722 | AD135: 12.94734738 | AE135: 1 | AF135: Second IMPROVE Algorithm
A136: BIBE12018 | B136: BIBE1 | C136: 2018 | D136: 10 | E136: 0.5329033696 | F136: 0.0710761957 | G136: 0.5170030435 | H136: 0.0598726087 | I136: 0.2496496913 | J136: 2.454966087 | K136: 0.0211343478 | L136: 2.298098117 | M136: 0.3289685471 | N136: 1.495767116 | O136: 0.598726087 | P136: 0.2496496913 | Q136: 1.472979652 | R136: 0.0765488536 | S136: 6.520738064 | T136: 16.52073806 | U136: 4.961267272 | V136: 239.5775061 | W136: 1.548522609 | X136: 4.003488696 | Y136: 1.451639257 | Z136: ucdall_12_19 | AA136: 6.533407491 | AB136: 8.957268161 | AC136: 10.77956237 | AD136: 12.68801456 | AE136: 1 | AF136: Second IMPROVE Algorithm
A137: BIRM12005 | B137: BIRM1 | C137: 2005 | D137: 10 | E137: 2.908877813 | F137: 0.786851625 | G137: 3.516705 | H137: 0.8788541667 | I137: 1.041877392 | J137: 9.350554167 | K137: 0.1908525 | L137: 25.56273255 | M137: 7.030803281 | N137: 12.15845357 | O137: 8.788541667 | P137: 1.041877392 | Q137: 5.6103325 | R137: 1.234693935 | S137: 61.42743489 | T137: 72.4274349 | U137: 19.53866653 | V137: 57.94913409 | W137: 8.254234783 | X137: 17.1763875 | Y137: 9.324018496 | Z137: ucdall_12_19 | AA137: 22.19650241 | AB137: 25.1369417 | AC137: 28.20096805 | AD137: 31.86636092 | AE137: 1 | AF137: Second IMPROVE Algorithm
A138: BIRM12006 | B138: BIRM1 | C138: 2006 | D138: 10 | E138: 2.709976141 | F138: 0.9929634783 | G138: 2.977481739 | H138: 0.6705347826 | I138: 0.6254433087 | J138: 5.248447826 | K138: 0.1343242174 | L138: 23.74097458 | M138: 9.022327919 | N138: 10.00038942 | O138: 6.705347826 | P138: 0.6254433087 | Q138: 3.149068696 | R138: 0.8644485831 | S138: 54.10800033 | T138: 65.10800033 | U138: 18.51668808 | V138: 64.01476423 | W138: 6.812786957 | X138: 12.06123478 | Y138: 8.110723667 | Z138: ucdall_12_19 | AA138: 20.97584085 | AB138: 24.31802539 | AC138: 27.42496638 | AD138: 31.22549716 | AE138: 1 | AF138: Second IMPROVE Algorithm
A139: BIRM12007 | B139: BIRM1 | C139: 2007 | D139: 10 | E139: 2.413121563 | F139: 0.84713225 | G139: 2.844165 | H139: 0.6252875 | I139: 0.8027192042 | J139: 7.507327778 | K139: 0.13077 | L139: 20.67051952 | M139: 7.525723334 | N139: 9.488354667 | O139: 6.252875 | P139: 0.8027192042 | Q139: 4.504396667 | R139: 0.829375515 | S139: 50.0739639 | T139: 61.0739639 | U139: 17.87466781 | V139: 68.29619536 | W139: 6.849633333 | X139: 14.38297391 | Y139: 7.663195517 | Z139: ucdall_12_19 | AA139: 20.82908973 | AB139: 24.22142141 | AC139: 26.79128831 | AD139: 29.68708467 | AE139: 1 | AF139: Second IMPROVE Algorithm
A140: BIRM12008 | B140: BIRM1 | C140: 2008 | D140: 10 | E140: 2.080934821 | F140: 0.490716 | G140: 2.755388571 | H140: 0.506647619 | I140: 0.9861023095 | J140: 6.764961905 | K140: 0.107496 | L140: 18.3981736 | M140: 4.527380247 | N140: 9.181545831 | O140: 5.066476191 | P140: 0.9861023095 | Q140: 4.058977143 | R140: 0.6998683954 | S140: 42.91852372 | T140: 53.91852372 | U140: 16.50899453 | V140: 79.98284252 | W140: 6.154352381 | X140: 12.91931429 | Y140: 6.927285321 | Z140: ucdall_12_19 | AA140: 19.32911425 | AB140: 22.54671675 | AC140: 25.21166002 | AD140: 28.20506882 | AE140: 1 | AF140: Second IMPROVE Algorithm
A141: BIRM12009 | B141: BIRM1 | C141: 2009 | D141: 10 | E141: 1.868621413 | F141: 0.4011395217 | G141: 2.04606 | H141: 0.4690782609 | I141: 0.7087685696 | J141: 5.085204348 | K141: 0.0811252174 | L141: 16.31268859 | M141: 3.625570054 | N141: 6.513695688 | O141: 4.690782609 | P141: 0.7087685696 | Q141: 3.051122609 | R141: 0.5358516339 | S141: 35.43847975 | T141: 46.43847975 | U141: 15.28111035 | V141: 87.40214834 | W141: 5.144865217 | X141: 10.23006957 | Y141: 5.574792983 | Z141: ucdall_12_19 | AA141: 17.23303845 | AB141: 19.87301239 | AC141: 21.86631647 | AD141: 24.94572605 | AE141: 1 | AF141: Second IMPROVE Algorithm
A142: BIRM12010 | B142: BIRM1 | C142: 2010 | D142: 10 | E142: 2.464685707 | F142: 0.4655890435 | G142: 2.263413913 | H142: 0.4604782609 | I142: 0.8984331478 | J142: 6.057091304 | K142: 0.0869403913 | L142: 21.40692391 | M142: 4.224947257 | N142: 7.29462633 | O142: 4.604782609 | P142: 0.8984331478 | Q142: 3.634254783 | R142: 0.5469525622 | S142: 42.6109206 | T142: 53.6109206 | U142: 16.62726146 | V142: 77.00606749 | W142: 6.122326087 | X142: 12.17941739 | Y142: 6.639540463 | Z142: ucdall_12_19 | AA142: 18.81466389 | AB142: 21.21944741 | AC142: 23.43935546 | AD142: 26.00145364 | AE142: 1 | AF142: Second IMPROVE Algorithm
A143: BIRM12011 | B143: BIRM1 | C143: 2011 | D143: 10 | E143: 2.22810375 | F143: 0.5900225455 | G143: 2.135479091 | H143: 0.3952227273 | I143: 0.4144313636 | J143: 4.941631818 | K143: 0.2425909091 | L143: 19.18754772 | M143: 5.311941986 | N143: 6.850150393 | O143: 3.952227273 | P143: 0.4144313636 | Q143: 2.964979091 | R143: 1.569881954 | S143: 40.25115978 | T143: 51.25115978 | U143: 16.15815551 | V143: 81.04163266 | W143: 5.379736364 | X143: 10.32136818 | Y143: 6.005850386 | Z143: ucdall_12_19 | AA143: 18.33751214 | AB143: 20.41651223 | AC143: 23.19020449 | AD143: 25.75776911 | AE143: 1 | AF143: Second IMPROVE Algorithm
A144: BIRM12012 | B144: BIRM1 | C144: 2012 | D144: 10 | E144: 1.7931825 | F144: 0.3724118591 | G144: 2.42901 | H144: 0.4449227273 | I144: 0.9097941727 | J144: 5.864353182 | K144: 0.1010904545 | L144: 15.55230805 | M144: 3.303423079 | N144: 7.826801218 | O144: 4.449227273 | P144: 0.9097941727 | Q144: 3.518611909 | R144: 0.6583991277 | S144: 36.21856483 | T144: 47.21856483 | U144: 15.42579435 | V144: 86.44604418 | W144: 5.899027273 | X144: 11.60293333 | Y144: 6.050411714 | Z144: ucdall_12_19 | AA144: 16.93513602 | AB144: 19.86311236 | AC144: 21.50451693 | AD144: 23.99916313 | AE144: 1 | AF144: Second IMPROVE Algorithm
A145: BIRM12013 | B145: BIRM1 | C145: 2013 | D145: 10 | E145: 1.517782989 | F145: 0.5004695217 | G145: 1.564888696 | H145: 0.3001826087 | I145: 0.4506020739 | J145: 3.84622913 | K145: 0.1149174783 | L145: 12.49838747 | M145: 4.355628286 | N145: 4.818973551 | O145: 3.001826087 | P145: 0.4506020739 | Q145: 2.307737478 | R145: 0.7442433681 | S145: 28.17739831 | T145: 39.17739831 | U145: 13.51772577 | V145: 105.5250298 | W145: 4.092073913 | X145: 7.792345455 | Y145: 4.448843367 | Z145: ucdall_12_19 | AA145: 15.96450172 | AB145: 18.06569625 | AC145: 20.30030187 | AD145: 22.18725588 | AE145: 1 | AF145: Second IMPROVE Algorithm
A146: BIRM12014 | B146: BIRM1 | C146: 2014 | D146: 10 | E146: 1.594219239 | F146: 0.2938171304 | G146: 2.023113913 | H146: 0.3501217391 | I146: 0.6890869696 | J146: 6.462921739 | K146: 0.1174609565 | L146: 13.67242152 | M146: 2.595617161 | N146: 6.403872938 | O146: 3.501217391 | P146: 0.6890869696 | Q146: 3.877753043 | R146: 0.7424612374 | S146: 31.48243027 | T146: 42.48243026 | U146: 14.34247327 | V146: 96.83018079 | W146: 5.209834783 | X146: 11.67275652 | Y146: 5.067819948 | Z146: ucdall_12_19 | AA146: 16.37421412 | AB146: 18.5481515 | AC146: 20.42707545 | AD146: 22.69440675 | AE146: 1 | AF146: Second IMPROVE Algorithm
A147: BIRM12015 | B147: BIRM1 | C147: 2015 | D147: 10 | E147: 1.309671359 | F147: 0.3033838826 | G147: 2.031264783 | H147: 0.279746087 | I147: 0.3038692739 | J147: 4.917048696 | K147: 0.1189596522 | L147: 10.71765084 | M147: 2.597993979 | N147: 6.417667364 | O147: 2.79746087 | P147: 0.3038692739 | Q147: 2.950229217 | R147: 0.7540507612 | S147: 26.53892231 | T147: 37.53892231 | U147: 13.06214419 | V147: 111.0525621 | W147: 4.122094348 | X147: 9.039143043 | Y147: 4.346895037 | Z147: ucdall_12_19 | AA147: 15.2378704 | AB147: 18.13860897 | AC147: 19.76121722 | AD147: 21.95243804 | AE147: 1 | AF147: Second IMPROVE Algorithm
A148: BIRM12016 | B148: BIRM1 | C148: 2016 | D148: 10 | E148: 1.245823533 | F148: 0.3325950913 | G148: 1.726034087 | H148: 0.2878917391 | I148: 0.4252789261 | J148: 5.278146087 | K148: 0.0751875652 | L148: 10.47113291 | M148: 2.93844878 | N148: 5.391818311 | O148: 2.878917391 | P148: 0.4252789261 | Q148: 3.166887652 | R148: 0.4803593322 | S148: 25.7528433 | T148: 36.7528433 | U148: 12.9163465 | V148: 111.8297791 | W148: 4.242955217 | X148: 9.521101304 | Y148: 4.092810941 | Z148: ucdall_12_19 | AA148: 14.72515877 | AB148: 16.88770345 | AC148: 19.06602477 | AD148: 20.73801351 | AE148: 1 | AF148: Second IMPROVE Algorithm
A149: BIRM12017 | B149: BIRM1 | C149: 2017 | D149: 10 | E149: 0.9751190625 | F149: 0.3275702375 | G149: 1.86248175 | H149: 0.3179820833 | I149: 0.3953833083 | J149: 4.571869167 | K149: 0.082722 | L149: 8.245105369 | M149: 2.94777794 | N149: 5.826044578 | O149: 3.179820833 | P149: 0.3953833083 | Q149: 2.7431215 | R149: 0.545113806 | S149: 23.88236734 | T149: 34.88236733 | U149: 12.41720519 | V149: 117.3046137 | W149: 3.639033333 | X149: 8.2109025 | Y149: 3.961258442 | Z149: ucdall_12_19 | AA149: 14.59688086 | AB149: 16.75890511 | AC149: 19.65033476 | AD149: 22.72076133 | AE149: 1 | AF149: Second IMPROVE Algorithm
A150: BIRM12018 | B150: BIRM1 | C150: 2018 | D150: 10 | E150: 1.267384643 | F150: 0.3414378143 | G150: 2.019114 | H150: 0.3774366667 | I150: 0.3673084619 | J150: 5.209054095 | K150: 0.133548 | L150: 10.40549847 | M150: 2.915908059 | N150: 6.417531207 | O150: 3.774366667 | P150: 0.3673084619 | Q150: 3.125432457 | R150: 0.8309098209 | S150: 27.83695515 | T150: 38.83695515 | U150: 13.49538772 | V150: 104.9717341 | W150: 4.127053333 | X150: 9.251877 | Y150: 4.506229586 | Z150: ucdall_12_19 | AA150: 15.10471915 | AB150: 17.16397094 | AC150: 19.64223583 | AD150: 21.45049917 | AE150: 1 | AF150: Second IMPROVE Algorithm
A151: BLIS12000 | B151: BLIS1 | C151: 2000 | D151: 10 | E151: 0.262939875 | F151: 0.10177455 | G151: 0.572985 | H151: 0.061925 | I151: 0.120390045 | J151: 0.6904175 | K151: 0.03070665 | L151: 1.614652065 | M151: 0.6931626133 | N151: 1.677905844 | O151: 0.61925 | P151: 0.120390045 | Q151: 0.4142505 | R151: 0.1582811622 | S151: 5.29789223 | T151: 14.29789223 | U151: 3.476047516 | V151: 260.1688603 | W151: 0.9359 | X151: 1.586131579 | Y151: 1.15072112 | Z151: ucdall_12_19 | AA151: 5.19563725 | AB151: 7.154461396 | AC151: 8.99845281 | AD151: 10.36907403 | AE151: 1 | AF151: Second IMPROVE Algorithm
A152: BLIS12001 | B152: BLIS1 | C152: 2001 | D152: 10 | E152: 0.1895791071 | F152: 0.081528 | G152: 0.2754085714 | H152: 0.0472333333 | I152: 0.1406126476 | J152: 0.5696761905 | K152: 0.0287854286 | L152: 1.176386244 | M152: 0.5739779622 | N152: 0.7898047443 | O152: 0.4723333333 | P152: 0.1406126476 | Q152: 0.3418057143 | R152: 0.1644790436 | S152: 3.65939969 | T152: 12.65939969 | U152: 2.30348942 | V152: 288.9721743 | W152: 0.6930333333 | X152: 1.233015 | Y152: 0.7631470881 | Z152: ucdall_12_19 | AA152: 3.759299187 | AB152: 5.68720572 | AC152: 7.811777685 | AD152: 9.792552213 | AE152: 1 | AF152: Second IMPROVE Algorithm
A153: BLIS12002 | B153: BLIS1 | C153: 2002 | D153: 10 | E153: 0.1862491304 | F153: 0.0570572609 | G153: 0.327693913 | H153: 0.0408478261 | I153: 0.118096863 | J153: 0.6503326087 | K153: 0.0099739565 | L153: 1.208882226 | M153: 0.4018074084 | N153: 0.9393788981 | O153: 0.4084782609 | P153: 0.118096863 | Q153: 0.3901995652 | R153: 0.0595703637 | S153: 3.526413585 | T153: 12.52641359 | U153: 2.204420852 | V153: 291.4946322 | W153: 0.6714043478 | X153: 1.2727 | Y153: 0.73991895 | Z153: ucdall_12_19 | AA153: 3.701404878 | AB153: 6.334835777 | AC153: 8.342717923 | AD153: 10.84218168 | AE153: 1 | AF153: Second IMPROVE Algorithm
A154: BLIS12003 | B154: BLIS1 | C154: 2003 | D154: 10 | E154: 0.1624755 | F154: 0.0515097 | G154: 0.387792 | H154: 0.03904 | I154: 0.0965381875 | J154: 0.543949375 | K154: 0.00064035 | L154: 1.100857769 | M154: 0.3712112767 | N154: 1.11663514 | O154: 0.3904 | P154: 0.0965381875 | Q154: 0.326369625 | R154: 0.0038948139 | S154: 3.405906813 | T154: 12.40590681 | U154: 2.108828642 | V154: 294.0733654 | W154: 0.574215 | X154: 1.060294737 | Y154: 0.7379957375 | Z154: ucdall_12_19 | AA154: 3.313465583 | AB154: 5.407176634 | AC154: 7.209114525 | AD154: 10.17098419 | AE154: 1 | AF154: Second IMPROVE Algorithm
A155: BLIS12005 | B155: BLIS1 | C155: 2005 | D155: 10 | E155: 0.25339875 | F155: 0.0558452727 | G155: 0.3012954545 | H155: 0.0311045455 | I155: 0.0887589227 | J155: 0.4894272727 | K155: 0.0099077727 | L155: 1.443610281 | M155: 0.3587842947 | N155: 0.8686256001 | O155: 0.3110454545 | P155: 0.0887589227 | Q155: 0.2936563636 | R155: 0.0589116833 | S155: 3.4233926 | T155: 12.4233926 | U155: 2.080399421 | V155: 295.7892164 | W155: 0.6696681818 | X155: 1.159095455 | Y155: 0.7403107182 | Z155: ucdall_12_19 | AA155: 3.868873913 | AB155: 5.873877752 | AC155: 7.848615213 | AD155: 9.680633856 | AE155: 1 | AF155: Second IMPROVE Algorithm
A156: BLIS12006 | B156: BLIS1 | C156: 2006 | D156: 10 | E156: 0.2131505357 | F156: 0.04644 | G156: 0.2463085714 | H156: 0.0258714286 | I156: 0.1135097929 | J156: 0.7171619048 | K156: 0.0106855714 | L156: 1.36043017 | M156: 0.3330459686 | N156: 0.7022831134 | O156: 0.2587142857 | P156: 0.1135097929 | Q156: 0.4302971429 | R156: 0.0635642434 | S156: 3.261844717 | T156: 12.26184472 | U156: 2.005402723 | V156: 296.5494212 | W156: 0.5696285714 | X156: 1.286790476 | Y156: 0.6559659 | Z156: ucdall_12_19 | AA156: 3.338764987 | AB156: 6.206455668 | AC156: 8.072569975 | AD156: 10.11984493 | AE156: 1 | AF156: Second IMPROVE Algorithm
A157: BLIS12007 | B157: BLIS1 | C157: 2007 | D157: 10 | E157: 0.2369065217 | F157: 0.0691608261 | G157: 0.3780234783 | H157: 0.0347130435 | I157: 0.1387310261 | J157: 0.7734069565 | K157: 0.0180837391 | L157: 1.464997985 | M157: 0.5008768071 | N157: 1.086465337 | O157: 0.3471304348 | P157: 0.1387310261 | Q157: 0.4640441739 | R157: 0.0936495638 | S157: 4.095895328 | T157: 13.09589533 | U157: 2.651625124 | V157: 279.6223904 | W157: 0.8553136364 | X157: 1.5943 | Y157: 0.8756186348 | Z157: ucdall_12_19 | AA157: 3.807032662 | AB157: 5.963621508 | AC157: 7.947717417 | AD157: 10.82222495 | AE157: 1 | AF157: Second IMPROVE Algorithm
A158: BLIS12008 | B158: BLIS1 | C158: 2008 | D158: 10 | E158: 0.184790625 | F158: 0.0429804545 | G158: 0.3428427273 | H158: 0.0215272727 | I158: 0.1428606455 | J158: 0.8862090909 | K158: 0.0218593636 | L158: 1.163337778 | M158: 0.3204534351 | N158: 0.9881563768 | O158: 0.2152727273 | P158: 0.1428606455 | Q158: 0.5317254545 | R158: 0.1155667488 | S158: 3.477373166 | T158: 12.47737317 | U158: 2.155781363 | V158: 292.9630582 | W158: 0.7437863636 | X158: 1.629727273 | Y158: 0.7568610886 | Z158: ucdall_12_19 | AA158: 4.103320004 | AB158: 6.450014367 | AC158: 8.548913287 | AD158: 11.0468568 | AE158: 1 | AF158: Second IMPROVE Algorithm
A159: BLIS12009 | B159: BLIS1 | C159: 2009 | D159: 10 | E159: 0.169798125 | F159: 0.0485626364 | G159: 0.2733872727 | H159: 0.0280272727 | I159: 0.0864508364 | J159: 0.7474409091 | K159: 0.0130275 | L159: 1.107199512 | M159: 0.3302254175 | N159: 0.7837639215 | O159: 0.2802727273 | P159: 0.0864508364 | Q159: 0.4484645455 | R159: 0.0717710204 | S159: 3.10814798 | T159: 12.10814798 | U159: 1.882682385 | V159: 299.8308172 | W159: 0.5692727273 | X159: 1.314590909 | Y159: 0.6192536432 | Z159: ucdall_12_19 | AA159: 3.541220156 | AB159: 5.92866855 | AC159: 8.013059456 | AD159: 9.66328114 | AE159: 1 | AF159: Second IMPROVE Algorithm
A160: BLIS12010 | B160: BLIS1 | C160: 2010 | D160: 10 | E160: 0.1487939063 | F160: 0.035405125 | G160: 0.29871 | H160: 0.0246166667 | I160: 0.0888807708 | J160: 0.7931958333 | K160: 0.01524975 | L160: 0.9209457402 | M160: 0.2571981012 | N160: 0.8549962125 | O160: 0.2461666667 | P160: 0.0888807708 | Q160: 0.4759175 | R160: 0.0809898424 | S160: 2.925094834 | T160: 11.92509483 | U160: 1.735375886 | V160: 303.8344036 | W160: 0.6118333333 | X160: 1.404179167 | Y160: 0.6116562188 | Z160: ucdall_12_19 | AA160: 2.544665437 | AB160: 4.423393754 | AC160: 6.686646407 | AD160: 8.202339607 | AE160: 1 | AF160: Second IMPROVE Algorithm
A161: BLIS12011 | B161: BLIS1 | C161: 2011 | D161: 10 | E161: 0.1905128261 | F161: 0.0319639565 | G161: 0.2476721739 | H161: 0.0219217391 | I161: 0.0925464583 | J161: 1.312124348 | K161: 0.033818087 | L161: 1.223770202 | M161: 0.2263437592 | N161: 0.709393433 | O161: 0.2192173913 | P161: 0.0925464583 | Q161: 0.7872746087 | R161: 0.191059056 | S161: 3.449604908 | T161: 12.44960491 | U161: 2.162517493 | V161: 292.1328917 | W161: 0.6316818182 | X161: 1.985614286 | Y161: 0.6184352409 | Z161: ucdall_12_19 | AA161: 3.333071292 | AB161: 5.131592391 | AC161: 6.830365761 | AD161: 9.610230565 | AE161: 1 | AF161: Second IMPROVE Algorithm
A162: BLIS12012 | B162: BLIS1 | C162: 2012 | D162: 10 | E162: 0.1737611413 | F162: 0.034701 | G162: 0.2649678261 | H162: 0.0180130435 | I162: 0.0851239 | J162: 0.6845826087 | K162: 0.0101206957 | L162: 1.119919335 | M162: 0.2499616874 | N162: 0.7634267874 | O162: 0.1801304348 | P162: 0.0851239 | Q162: 0.4107495652 | R162: 0.0531035859 | S162: 2.862415295 | T162: 11.86241529 | U162: 1.627030265 | V162: 308.2398502 | W162: 0.6265130435 | X162: 1.307008696 | Y162: 0.5866876065 | Z162: ucdall_12_19 | AA162: 3.187888585 | AB162: 5.723119188 | AC162: 7.312179447 | AD162: 9.364513225 | AE162: 1 | AF162: Second IMPROVE Algorithm
A163: BLIS12013 | B163: BLIS1 | C163: 2013 | D163: 10 | E163: 0.1917568125 | F163: 0.073917 | G163: 0.344943 | H163: 0.020775 | I163: 0.08557218 | J163: 0.490785 | K163: 0.0177624 | L163: 1.132837345 | M163: 0.4887542014 | N163: 0.9925010391 | O163: 0.20775 | P163: 0.08557218 | Q163: 0.294471 | R163: 0.0918969867 | S163: 3.293782752 | T163: 12.29378275 | U163: 2.008681727 | V163: 296.9561544 | W163: 0.593595 | X163: 1.0808 | Y163: 0.7347263925 | Z163: ucdall_12_19 | AA163: 3.668450938 | AB163: 5.313682177 | AC163: 7.607935673 | AD163: 8.778401322 | AE163: 1 | AF163: Second IMPROVE Algorithm
A164: BLIS12014 | B164: BLIS1 | C164: 2014 | D164: 10 | E164: 0.1630415217 | F164: 0.043158913 | G164: 0.3150782609 | H164: 0.0178652174 | I164: 0.1192639826 | J164: 0.7114347826 | K164: 0.0098162609 | L164: 1.019037511 | M164: 0.3033540584 | N164: 0.9041823054 | O164: 0.1786521739 | P164: 0.1192639826 | Q164: 0.4268608696 | R164: 0.0493165831 | S164: 3.000667484 | T164: 12.00066748 | U164: 1.795856498 | V164: 302.1902013 | W164: 0.6188869565 | X164: 1.330321739 | Y164: 0.6682241565 | Z164: ucdall_12_19 | AA164: 3.008525047 | AB164: 5.336441397 | AC164: 7.263742953 | AD164: 9.31861527 | AE164: 1 | AF164: Second IMPROVE Algorithm
A165: BLIS12015 | B165: BLIS1 | C165: 2015 | D165: 10 | E165: 0.1602329348 | F165: 0.063678887 | G165: 0.5233398261 | H165: 0.0287873913 | I165: 0.1133868957 | J165: 0.8226943478 | K165: 0.0107170435 | L165: 1.113065011 | M165: 0.4797709314 | N165: 1.521456268 | O165: 0.287873913 | P165: 0.1133868957 | Q165: 0.4936166087 | R165: 0.0615774044 | S165: 4.070747032 | T165: 13.07074703 | U165: 2.618957835 | V165: 280.7621436 | W165: 0.8509917391 | X165: 1.657016087 | Y165: 0.9001429783 | Z165: ucdall_12_19 | AA165: 4.028163856 | AB165: 5.862140882 | AC165: 7.417251306 | AD165: 9.476339928 | AE165: 1 | AF165: Second IMPROVE Algorithm
A166: BLIS12016 | B166: BLIS1 | C166: 2016 | D166: 10 | E166: 0.115033125 | F166: 0.0389949409 | G166: 0.2013152727 | H166: 0.0075090909 | I166: 0.0623094818 | J166: 0.70859 | K166: 0.0195668182 | L166: 0.7759418329 | M166: 0.2802659825 | N166: 0.5732134967 | O166: 0.0750909091 | P166: 0.0623094818 | Q166: 0.425154 | R166: 0.1044059621 | S166: 2.296381665 | T166: 11.29638167 | U166: 1.189768906 | V166: 319.5532028 | W166: 0.3911840909 | X166: 1.094807727 | Y166: 0.4447287295 | Z166: ucdall_12_19 | AA166: 2.424469867 | AB166: 4.501324695 | AC166: 6.235461224 | AD166: 8.993662715 | AE166: 1 | AF166: Second IMPROVE Algorithm
A167: BLIS12017 | B167: BLIS1 | C167: 2017 | D167: 10 | E167: 0.13355625 | F167: 0.05274165 | G167: 0.2982665455 | H167: 0.023245 | I167: 0.0614667091 | J167: 0.5759807273 | K167: 0.023301 | L167: 0.820294025 | M167: 0.3505030369 | N167: 0.8549085526 | O167: 0.23245 | P167: 0.0614667091 | Q167: 0.3455884364 | R167: 0.116479665 | S167: 2.781690425 | T167: 11.78169043 | U167: 1.602734345 | V167: 307.8432696 | W167: 0.4587995455 | X167: 0.9789933333 | Y167: 0.5925771545 | Z167: ucdall_12_19 | AA167: 2.999260303 | AB167: 4.798301338 | AC167: 7.548511257 | AD167: 11.56826095 | AE167: 1 | AF167: Second IMPROVE Algorithm
A168: BLIS12018 | B168: BLIS1 | C168: 2018 | D168: 10 | E168: 0.1391434239 | F168: 0.0373595217 | G168: 0.3815326957 | H168: 0.0399104348 | I168: 0.0733539913 | J168: 0.575753913 | K168: 0.0202852174 | L168: 0.8683104994 | M168: 0.2616021071 | N168: 1.100880111 | O168: 0.3991043478 | P168: 0.0733539913 | Q168: 0.3454523478 | R168: 0.1097781519 | S168: 3.158481557 | T168: 12.15848156 | U168: 1.915458988 | V168: 299.1251205 | W168: 0.6349808696 | X168: 1.210734783 | Y168: 0.6915852848 | Z168: ucdall_12_19 | AA168: 3.347081907 | AB168: 4.803241838 | AC168: 6.8048803 | AD168: 9.636932204 | AE168: 1 | AF168: Second IMPROVE Algorithm
A169: BLMO12003 | B169: BLMO1 | C169: 2003 | D169: 10 | E169: 1.111070543 | F169: 0.6525605217 | G169: 1.08327913 | H169: 0.1325521739 | I169: 0.4518559826 | J169: 6.635778261 | K169: 0.0101574783 | L169: 8.380003526 | M169: 5.2856458 | N169: 3.271387097 | O169: 1.325521739 | P169: 0.4518559826 | Q169: 3.981466956 | R169: 0.0662529115 | S169: 22.76213401 | T169: 33.76213401 | U169: 12.03094173 | V169: 123.067916 | W169: 3.217947826 | X169: 9.853726087 | Y169: 3.44147583 | Z169: ucdall_12_19 | AA169: 14.14797308 | AB169: 15.74751023 | AC169: 19.52452745 | AD169: 23.32280622 | AE169: 1 | AF169: Second IMPROVE Algorithm
